{"text_format":"1","workbook":"xlsx","n_sheets":6,"sheets":["Cash-Flow-DATA","OTCHET-agregirani pokazateli","OTCHET F","OTCHET","INF","list"],"not_rendered":{"charts":0,"images":0,"macros":1,"external_links":1,"defined_names":15,"comments":5,"pivot_tables":0},"unopened":[],"bounds":{"document_bytes":16777216,"sheet_cells":100000,"rows_first":2000,"rows_last":500,"rows_between":2000,"halvings":0,"cell_chars":16384,"cell_head_chars":4096},"cells_cut":0,"cells_raw":0,"read":"whole","date_system":"1900"}

{"sheet":"Cash-Flow-DATA","index":0,"n_rows":139,"n_cols":20,"rows_kept":139,"cut":false,"hidden":false,"merged":[[131,5,131,6],[131,11,131,13],[131,15,131,16],[122,18,122,20],[123,18,123,20],[124,18,124,20],[126,18,126,20],[129,18,129,20],[99,18,99,20],[102,18,102,20],[130,1,130,3],[107,18,107,20],[108,18,108,20],[127,18,127,20],[128,18,128,20],[112,18,112,20],[114,18,114,20],[115,18,115,20],[116,18,116,20],[118,18,118,20],[120,18,120,20],[110,18,110,20],[111,18,111,20],[103,18,103,20],[104,18,104,20],[106,18,106,20],[75,18,75,20],[92,18,92,20],[93,18,93,20],[77,18,77,20],[78,18,78,20],[79,18,79,20],[87,18,87,20],[89,18,89,20],[90,18,90,20],[91,18,91,20],[95,18,95,20],[96,18,96,20],[97,18,97,20],[63,18,63,20],[64,18,64,20],[80,1,80,3],[85,18,85,20],[86,18,86,20],[68,18,68,20],[69,18,69,20],[71,18,71,20],[72,18,72,20],[73,18,73,20],[65,18,65,20],[67,18,67,20],[58,18,58,20],[59,18,59,20],[61,18,61,20],[41,18,41,20],[42,18,42,20],[43,18,43,20],[44,18,44,20],[46,18,46,20],[49,18,49,20],[51,18,51,20],[52,18,52,20],[53,18,53,20],[54,18,54,20],[56,18,56,20],[57,18,57,20],[50,18,50,20],[35,18,35,20],[36,18,36,20],[38,18,38,20],[40,18,40,20],[12,18,12,20],[13,18,13,20],[33,18,33,20],[34,18,34,20],[16,18,16,20],[17,18,17,20],[18,18,18,20],[19,18,19,20],[20,18,20,20],[21,18,21,20],[14,18,14,20],[15,18,15,20],[23,18,23,20],[24,18,24,20],[25,18,25,20],[26,18,26,20],[5,18,5,20],[7,18,7,20],[8,18,8,20],[1,1,1,3],[1,8,1,9],[1,11,1,13],[1,19,1,20],[3,18,3,20]]}
[null," (бюджетна организация, предприятие по чл. 165, ал. 1 от ЗПФ, поделение)",null,null,null,"ЕИК/БУЛСТАТ","код по ЕБК",null,"                    Web-адрес",null,null,"e-mail",null,null,null,"      финансово-правна форма"]
[null,{"$f":"+OTCHET!B9","v":"ОБЛАСТНА АДМИНИСТРАЦИЯ ПАЗАРДЖИК"},null,null,null,{"$f":"+OTCHET!H9","v":112121473},{"$f":"+OTCHET!F12","v":"0300"},null,{"$f":"+OTCHET!H603","v":0},null,null,{"$f":"+OTCHET!H601","v":"accountant@pz.government.bg"},null,null,null,{"$f":"+OTCHET!E15","v":0},{"$f":"+OTCHET!F15","v":"БЮДЖЕТ"},null,"                           код от регистъра на бюджетните организации в СЕБРА",{"$f":"+OTCHET!I9","v":30010130}]
[]
[null,"                                                               ИНФОРМАЦИЯ ЗА ИЗГОТВЯНЕ НА  ОТЧЕТ ЗА КАСОВОТО ИЗПЪЛНЕНИЕ ",null,null,null,null,null,null,null,"ГОДИНА",null,{"$f":"+Q4","v":2017},null,null,null,"ГОДИНА",{"$f":"+OTCHET!C3","v":2017},null,"ОТЧЕТ ЗА КАСОВОТО ИЗПЪЛНЕНИЕ НА БЮДЖЕТА, СМЕТКИТЕ ЗА СЕС И ЧУЖДИТЕ СРЕДСТВА"]
[]
[null,"                       НА БЮДЖЕТА, СМЕТКИТЕ ЗА СРЕДСТВАТА ОТ ЕВРОПЕЙСКИЯ СЪЮЗ И СМЕТКИТЕ ЗА ЧУЖДИ СРЕДСТВА КЪМ",null,null,null,null,null,null,null,null,null,{"$f":"OTCHET!F9","v":"2017-12-31"},null,"(В ЛЕВОВЕ)",null,{"$f":"OTCHET!F9","v":"2017-12-31"},"(В ЛЕВОВЕ)",null,{"$f":"+Q4","v":2017}]
[]
[null,null,null,null,null,"БЮДЖЕТ Годишен         уточнен план                           ","БЮДЖЕТ -ОТЧЕТ  ",null,"Сметки за сред-ства от Европей-ския съюз-инди-кативни разчети                      ","Сметки за сред-ства от Евро-пейския съюз - ОТЧЕТ",null,"Сметки за чуж-ди средства - ОТЧЕТ                ",null,"ОБЩО КАСОВ ОТЧЕТ  ",null,"таблица            'OTCHET'         Год. уточнен план                           ","таблица 'OTCHET'  ОТЧЕТ",null,"§§ от ЕБК, които се включват в съответния показател"]
[null,"                                  П О К А З А Т Е Л И",null,null,null,{"$f":"+L4","v":2017},{"$f":"+L6","v":"2017-12-31"},null,{"$f":"+L4","v":2017},{"$f":"+L6","v":"2017-12-31"},null,{"$f":"+L6","v":"2017-12-31"},null,{"$f":"+L6","v":"2017-12-31"},null,{"$f":"+L4","v":2017},{"$f":"OTCHET!F9","v":"2017-12-31"},null,"П О К А З А Т Е Л И"]
[null,"                                                                (а)",null,null,null,"(1)","(2)",null,"(3)","(4)",null,"(5)",null,"(6)=(2)+(4)+(5)",null,"(1)","(2)"]
[null," А. ПРИХОДИ, ПОМОЩИ И ДАРЕНИЯ",null,null,null,null,null,null,null,null,null,null,null,null,null,null,null,null," А. ПРИХОДИ, ПОМОЩИ И ДАРЕНИЯ"]
[null," I. Постъпления от текущи приходи",null,null,null,null,null,null,null,null,null,null,null,null,null,null,null,null," I. Постъпления от текущи приходи"]
[null," 1. Приходи от данъци и осигурителни вноски",null,null,null,{"$f":"+IF($P$2=0,$P13,0)","v":0},{"$f":"+IF($P$2=0,$Q13,0)","v":0},null,{"$f":"+IF(OR($P$2=98,$P$2=42,$P$2=96,$P$2=97),$P13,0)","v":0},{"$f":"+IF(OR($P$2=98,$P$2=42,$P$2=96,$P$2=97),$Q13,0)","v":0},null,{"$f":"+IF($P$2=33,$Q13,0)","v":0},null,{"$f":"+ROUND(+G13+J13+L13,0)","v":0},null,{"$f":"+ROUND(OTCHET!E22+OTCHET!E28+OTCHET!E33+OTCHET!E39+OTCHET!E47+OTCHET!E52+OTCHET!E58+OTCHET!E61+OTCHET!E64+OTCHET!E65+OTCHET!E72+OTCHET!E73+OTCHET!E74,0)","v":0},{"$f":"+ROUND(OTCHET!F22+OTCHET!F28+OTCHET!F33+OTCHET!F39+OTCHET!F47+OTCHET!F52+OTCHET!F58+OTCHET!F61+OTCHET!F64+OTCHET!F65+OTCHET!F72+OTCHET!F73+OTCHET!F74,0)","v":0},null,"приходни §§ 01-00 ÷ 20-00"]
[null," 2. Приходи от такси",null,null,null,{"$f":"+IF($P$2=0,$P14,0)","v":7000},{"$f":"+IF($P$2=0,$Q14,0)","v":5668},null,{"$f":"+IF(OR($P$2=98,$P$2=42,$P$2=96,$P$2=97),$P14,0)","v":0},{"$f":"+IF(OR($P$2=98,$P$2=42,$P$2=96,$P$2=97),$Q14,0)","v":0},null,{"$f":"+IF($P$2=33,$Q14,0)","v":0},null,{"$f":"+ROUND(+G14+J14+L14,0)","v":5668},null,{"$f":"+ROUND(+OTCHET!E90+OTCHET!E93+OTCHET!E94,0)","v":7000},{"$f":"+ROUND(+OTCHET!F90+OTCHET!F93+OTCHET!F94,0)","v":5668},null,"приходни §§ 25-00, 26-00 и 27-00"]
[null," 3. Приходи от административни глоби, санкции и наказателни лихви",null,null,null,0,431,null,0,0,null,0,null,431,null,{"$f":"+ROUND(+OTCHET!E110+OTCHET!E111,0)","v":0},{"$f":"+ROUND(+OTCHET!F110+OTCHET!F111,0)","v":431},null,"приходни §§ 28-02 и 28-09"]
[null," 4. Нетни приходи от продажби на услуги, стоки и продукция",null,null,null,0,0,null,0,0,null,0,null,0,null,{"$f":"+ROUND(OTCHET!E78,0)","v":0},{"$f":"+ROUND(OTCHET!F78,0)","v":0},null,"приходeн § 24-04"]
[null," 5. Приходи от наеми",null,null,null,60000,64530,null,0,0,null,0,null,64530,null,{"$f":"+ROUND(OTCHET!E79+OTCHET!E80,0)","v":60000},{"$f":"+ROUND(OTCHET!F79+OTCHET!F80,0)","v":64530},null,"приходни §§ 24-05 и 24-06"]
[null," 6. Приходи от концесии и лицензии за ползване на публични активи",null,null,null,0,0,null,0,0,null,0,null,0,null,{"$f":"+ROUND(OTCHET!E136++OTCHET!E137,0)","v":0},{"$f":"+ROUND(OTCHET!F136++OTCHET!F137,0)","v":0},null,"приходни §§ 41-00 и 42-00"]
[null," 7. Приходи от лихви",null,null,null,0,0,null,0,0,null,0,null,0,null,{"$f":"+ROUND(+SUM(OTCHET!E82:E89),0)","v":0},{"$f":"+ROUND(+SUM(OTCHET!F82:F89),0)","v":0},null,"приходни §§ 24-08 ÷ 24-19"]
[null," 8. Приходи от дивиденти и дялово участие ",null,null,null,0,0,null,0,0,null,0,null,0,null,{"$f":"+ROUND(OTCHET!E76+OTCHET!E77+OTCHET!E81,0)","v":0},{"$f":"+ROUND(OTCHET!F76+OTCHET!F77+OTCHET!F81,0)","v":0},null,"приходни §§ 24-01, 24-03 и 24-07"]
[null," 9. Други текущи приходи и реализирани курсови разлики",null,null,null,5000,7017,null,0,0,null,0,null,7017,null,{"$f":"+ROUND(OTCHET!E113+OTCHET!E114+OTCHET!E115+OTCHET!E119,0)","v":5000},{"$f":"+ROUND(OTCHET!F113+OTCHET!F114+OTCHET!F115+OTCHET!F119,0)","v":7017},null,"приходни §§ 36-01, 36-05, 36-10 и 36-19"]
[null," Общо за група І. Постъпления от текущи приходи",null,null,null,{"$f":"+ROUND(+SUM(F13:F21),0)","v":72000},{"$f":"+ROUND(+SUM(G13:G21),0)","v":77646},null,{"$f":"+ROUND(+SUM(I13:I21),0)","v":0},{"$f":"+ROUND(+SUM(J13:J21),0)","v":0},null,{"$f":"+ROUND(+SUM(L13:L21),0)","v":0},null,{"$f":"+ROUND(+SUM(N13:N21),0)","v":77646},null,{"$f":"+ROUND(+SUM(P13:P21),0)","v":72000},{"$f":"+ROUND(+SUM(Q13:Q21),0)","v":77646},null,"сборен ред за група І. Постъпления от текущи приходи"]
[null," IІ. Реализация на нефинансови активи и конфискувани средства",null,null,null,null,null,null,null,null,null,null,null,null,null,null,null,null," IІ. Реализация на нефинансови активи и конфискувани средства"]
[null," 1. Продажба на земя",null,null,null,{"$f":"+IF($P$2=0,$P24,0)","v":70000},{"$f":"+IF($P$2=0,$Q24,0)","v":13693},null,{"$f":"+IF(OR($P$2=98,$P$2=42,$P$2=96,$P$2=97),$P24,0)","v":0},{"$f":"+IF(OR($P$2=98,$P$2=42,$P$2=96,$P$2=97),$Q24,0)","v":0},null,{"$f":"+IF($P$2=33,$Q24,0)","v":0},null,{"$f":"+ROUND(+G24+J24+L24,0)","v":13693},null,{"$f":"+ROUND(OTCHET!E134,0)","v":70000},{"$f":"+ROUND(OTCHET!F134,0)","v":13693},null,"приходeн § 40-40"]
[null," 2. Продажба на други нефинансови дълготрайни активи",null,null,null,{"$f":"+IF($P$2=0,$P25,0)","v":0},{"$f":"+IF($P$2=0,$Q25,0)","v":25077},null,{"$f":"+IF(OR($P$2=98,$P$2=42,$P$2=96,$P$2=97),$P25,0)","v":0},{"$f":"+IF(OR($P$2=98,$P$2=42,$P$2=96,$P$2=97),$Q25,0)","v":0},null,{"$f":"+IF($P$2=33,$Q25,0)","v":0},null,{"$f":"+ROUND(+G25+J25+L25,0)","v":25077},null,{"$f":"+ROUND(+SUM(OTCHET!E125:E133)+OTCHET!E135,0)","v":0},{"$f":"+ROUND(+SUM(OTCHET!F125:F133)+OTCHET!F135,0)","v":25077},null,"приходeн § 40-00 без §§ 40-40 и 40-71"]
[null," 3. Конфиск. средства и продажби на конфискувани и от залог нефин. активи ",null,null,null,{"$f":"+IF($P$2=0,$P26,0)","v":0},{"$f":"+IF($P$2=0,$Q26,0)","v":0},null,{"$f":"+IF(OR($P$2=98,$P$2=42,$P$2=96,$P$2=97),$P26,0)","v":0},{"$f":"+IF(OR($P$2=98,$P$2=42,$P$2=96,$P$2=97),$Q26,0)","v":0},null,{"$f":"+IF($P$2=33,$Q26,0)","v":0},null,{"$f":"+ROUND(+G26+J26+L26,0)","v":0},null,{"$f":"+ROUND(+OTCHET!E109,0)","v":0},{"$f":"+ROUND(+OTCHET!F109,0)","v":0},null,"приходeн § 28-01"]
[null," Общо за група ІІ. Постъпления от продажби на нефинансови активи",null,null,null,{"$f":"+ROUND(+SUM(F24:F26),0)","v":70000},{"$f":"+ROUND(+SUM(G24:G26),0)","v":38770},null,{"$f":"+ROUND(+SUM(I24:I26),0)","v":0},{"$f":"+ROUND(+SUM(J24:J26),0)","v":0},null,{"$f":"+ROUND(+SUM(L24:L26),0)","v":0},null,{"$f":"+ROUND(+SUM(N24:N26),0)","v":38770},null,{"$f":"+ROUND(+SUM(P24:P26),0)","v":70000},{"$f":"+ROUND(+SUM(Q24:Q26),0)","v":38770},null,"сборен ред за група ІІ. Постъпления от продажби на нефинансови активи"]
[]
[null," IІI. Внесен ДДС, др. данъци в/у продажбите и коректив за постъпления "]
[null," 1. Внесен ДДС"]
[null," 2. Внесен данък върху приходите от стопанска дейност"]
[null," 3. Внесени други данъци върху продажбите"]
[null," 4. Коректив за касови постъпления"]
[null," ІІІ. Внесен ДДС и др. данъци в/у продажбите и коректив за постъпления",null,null,null,{"$f":"+IF($P$2=0,$P34,0)","v":0},{"$f":"+IF($P$2=0,$Q34,0)","v":-14063},null,{"$f":"+IF(OR($P$2=98,$P$2=42,$P$2=96,$P$2=97),$P34,0)","v":0},{"$f":"+IF(OR($P$2=98,$P$2=42,$P$2=96,$P$2=97),$Q34,0)","v":0},null,{"$f":"+IF($P$2=33,$Q34,0)","v":0},null,{"$f":"+ROUND(+G34+J34+L34,0)","v":-14063},null,{"$f":"+ROUND(+OTCHET!E120+OTCHET!E118,0)","v":0},{"$f":"+ROUND(+OTCHET!F120+OTCHET!F118,0)","v":-14063},null,"ІІІ. Внесен ДДС и др. д-ци в/у продажбите и коректив - приходни § 36-18 и 37-00"]
[null,"     в т. ч. внесен ДДС",null,null,null,{"$f":"+IF($P$2=0,$P35,0)","v":0},{"$f":"+IF($P$2=0,$Q35,0)","v":-11250},null,{"$f":"+IF(OR($P$2=98,$P$2=42,$P$2=96,$P$2=97),$P35,0)","v":0},{"$f":"+IF(OR($P$2=98,$P$2=42,$P$2=96,$P$2=97),$Q35,0)","v":0},null,{"$f":"+IF($P$2=33,$Q35,0)","v":0},null,-11250,null,{"$f":"+ROUND(OTCHET!E121,0)","v":0},{"$f":"+ROUND(OTCHET!F121,0)","v":-11250},null,"приходен § 37-01"]
[null,"                внесен данък в/у приходите от стопанска дейност",null,null,null,{"$f":"+IF($P$2=0,$P36,0)","v":0},{"$f":"+IF($P$2=0,$Q36,0)","v":-2813},null,{"$f":"+IF(OR($P$2=98,$P$2=42,$P$2=96,$P$2=97),$P36,0)","v":0},{"$f":"+IF(OR($P$2=98,$P$2=42,$P$2=96,$P$2=97),$Q36,0)","v":0},null,{"$f":"+IF($P$2=33,$Q36,0)","v":0},null,-2813,null,{"$f":"+ROUND(OTCHET!E122,0)","v":0},{"$f":"+ROUND(OTCHET!F122,0)","v":-2813},null,"приходен § 37-02"]
[null,"                внесени други данъци, такси и вноски в/у продажбите",null,null,null,{"$f":"+IF($P$2=0,$P37,0)","v":0},{"$f":"+IF($P$2=0,$Q37,0)","v":0},null,{"$f":"+IF(OR($P$2=98,$P$2=42,$P$2=96,$P$2=97),$P37,0)","v":0},{"$f":"+IF(OR($P$2=98,$P$2=42,$P$2=96,$P$2=97),$Q37,0)","v":0},null,{"$f":"+IF($P$2=33,$Q37,0)","v":0},null,0,null,{"$f":"+ROUND(OTCHET!E123,0)","v":0},{"$f":"+ROUND(OTCHET!F123,0)","v":0},null,"приходен § 37-09"]
[]
[null," IV. Постъпления от застрахователни обезщетения",null,null,null,{"$f":"+IF($P$2=0,$P39,0)","v":0},{"$f":"+IF($P$2=0,$Q39,0)","v":0},null,{"$f":"+IF(OR($P$2=98,$P$2=42,$P$2=96,$P$2=97),$P39,0)","v":0},{"$f":"+IF(OR($P$2=98,$P$2=42,$P$2=96,$P$2=97),$Q39,0)","v":0},null,{"$f":"+IF($P$2=33,$Q39,0)","v":0},null,0,null,{"$f":"+ROUND(OTCHET!E116+OTCHET!E117,0)","v":0},{"$f":"+ROUND(OTCHET!F116+OTCHET!F117,0)","v":0},null,"IV. Постъпления от застрахователни обезщетения - приходни § 36-11 и 36-12"]
[null," V. Приходи от помощи и дарения",null,null,null,null,null,null,null,null,null,null,null,null,null,null,null,null," V. Приходи от помощи и дарения"]
[null," 1. Помощи и дарения от Европейския съюз",null,null,null,{"$f":"+IF($P$2=0,$P41,0)","v":0},{"$f":"+IF($P$2=0,$Q41,0)","v":0},null,{"$f":"+IF(OR($P$2=98,$P$2=42,$P$2=96,$P$2=97),$P41,0)","v":0},{"$f":"+IF(OR($P$2=98,$P$2=42,$P$2=96,$P$2=97),$Q41,0)","v":0},null,{"$f":"+IF($P$2=33,$Q41,0)","v":0},null,{"$f":"+ROUND(+G41+J41+L41,0)","v":0},null,{"$f":"+ROUND(OTCHET!E142+OTCHET!E143+OTCHET!E160+OTCHET!E161,0)","v":0},{"$f":"+ROUND(OTCHET!F142+OTCHET!F143+OTCHET!F160+OTCHET!F161,0)","v":0},null,"приходни §§ 46-10, 46-20, 48-10 и 48-20"]
[null," 2. Други помощи и дарения от чужбина",null,null,null,{"$f":"+IF($P$2=0,$P42,0)","v":0},{"$f":"+IF($P$2=0,$Q42,0)","v":0},null,{"$f":"+IF(OR($P$2=98,$P$2=42,$P$2=96,$P$2=97),$P42,0)","v":0},{"$f":"+IF(OR($P$2=98,$P$2=42,$P$2=96,$P$2=97),$Q42,0)","v":0},null,{"$f":"+IF($P$2=33,$Q42,0)","v":0},null,{"$f":"+ROUND(+G42+J42+L42,0)","v":0},null,{"$f":"+ROUND(+SUM(OTCHET!E144:E149)+SUM(OTCHET!E162:E167),0)","v":0},{"$f":"+ROUND(+SUM(OTCHET!F144:F149)+SUM(OTCHET!F162:F167),0)","v":0},null,"приходни §§ 46-30 ÷ 46-80 и §§ 48-30 ÷ 48-80"]
[null," 3. Други безвъзмездно получени средства по международни и други програми",null,null,null,{"$f":"+IF($P$2=0,$P43,0)","v":0},{"$f":"+IF($P$2=0,$Q43,0)","v":0},null,{"$f":"+IF(OR($P$2=98,$P$2=42,$P$2=96,$P$2=97),$P43,0)","v":0},{"$f":"+IF(OR($P$2=98,$P$2=42,$P$2=96,$P$2=97),$Q43,0)","v":0},null,{"$f":"+IF($P$2=33,$Q43,0)","v":0},null,{"$f":"+ROUND(+G43+J43+L43,0)","v":0},null,{"$f":"+ROUND(OTCHET!E150,0)","v":0},{"$f":"+ROUND(OTCHET!F150,0)","v":0},null,"приходeн § 47-00"]
[null," 4. Помощи и дарения от страната",null,null,null,{"$f":"+IF($P$2=0,$P44,0)","v":0},{"$f":"+IF($P$2=0,$Q44,0)","v":0},null,{"$f":"+IF(OR($P$2=98,$P$2=42,$P$2=96,$P$2=97),$P44,0)","v":0},{"$f":"+IF(OR($P$2=98,$P$2=42,$P$2=96,$P$2=97),$Q44,0)","v":0},null,{"$f":"+IF($P$2=33,$Q44,0)","v":0},null,{"$f":"+ROUND(+G44+J44+L44,0)","v":0},null,{"$f":"+ROUND(OTCHET!E138,0)","v":0},{"$f":"+ROUND(OTCHET!F138,0)","v":0},null,"приходeн § 45-00"]
[null," Общо за група V. Приходи от помощи и дарения",null,null,null,{"$f":"+ROUND(+SUM(F41:F44),0)","v":0},{"$f":"+ROUND(+SUM(G41:G44),0)","v":0},null,{"$f":"+ROUND(+SUM(I41:I44),0)","v":0},{"$f":"+ROUND(+SUM(J41:J44),0)","v":0},null,{"$f":"+ROUND(+SUM(L41:L44),0)","v":0},null,{"$f":"+ROUND(+SUM(N41:N44),0)","v":0},null,{"$f":"+ROUND(+SUM(P41:P44),0)","v":0},{"$f":"+ROUND(+SUM(Q41:Q44),0)","v":0},null,"сборен ред за група V. Приходи от помощи и дарения"]
[]
[null," А. ОБЩО ПРИХОДИ, ПОМОЩИ И ДАРЕНИЯ",null,null,null,{"$f":"+ROUND(F22+F27+F34+F39+F45,0)","v":142000},{"$f":"+ROUND(G22+G27+G34+G39+G45,0)","v":102353},null,{"$f":"+ROUND(I22+I27+I34+I39+I45,0)","v":0},{"$f":"+ROUND(J22+J27+J34+J39+J45,0)","v":0},null,{"$f":"+ROUND(L22+L27+L34+L39+L45,0)","v":0},null,{"$f":"+ROUND(N22+N27+N34+N39+N45,0)","v":102353},null,{"$f":"+ROUND(P22+P27+P34+P39+P45,0)","v":142000},{"$f":"+ROUND(Q22+Q27+Q34+Q39+Q45,0)","v":102353},null," сборен ред за А. ОБЩО ПРИХОДИ, ПОМОЩИ И ДАРЕНИЯ"]
[null," Б. РАЗХОДИ И ПРИДОБИВАНЕ НА НЕФИНАНСОВИ АКТИВИ",null,null,null,null,null,null,null,null,null,null,null,null,null,null,null,null," Б. РАЗХОДИ И ПРИДОБИВАНЕ НА НЕФИНАНСОВИ АКТИВИ"]
[null," I. Плащания за текущи нелихвени разходи",null,null,null,null,null,null,null,null,null,null,null,null,null,null,null,null," I. Плащания за текущи нелихвени разходи"]
[null," 1. Разходи за издръжка - нефинансови позиции",null,null,null,{"$f":"+IF($P$2=0,$P50,0)","v":578867},{"$f":"+IF($P$2=0,$Q50,0)","v":555980},null,{"$f":"+IF(OR($P$2=98,$P$2=42,$P$2=96,$P$2=97),$P50,0)","v":0},{"$f":"+IF(OR($P$2=98,$P$2=42,$P$2=96,$P$2=97),$Q50,0)","v":0},null,{"$f":"+IF($P$2=33,$Q50,0)","v":0},null,{"$f":"+ROUND(+G50+J50+L50,0)","v":555980},null,{"$f":"+ROUND(OTCHET!E204-SUM(OTCHET!E216:E218)+OTCHET!E271+IF(+OR(OTCHET!$F$12=\"5500\",OTCHET!$F$12=\"5600\"),0,+OTCHET!E297),0)","v":578867},{"$f":"+ROUND(OTCHET!F204-SUM(OTCHET!F216:F218)+OTCHET!F271+IF(+OR(OTCHET!$F$12=\"5500\",OTCHET!$F$12=\"5600\"),0,+OTCHET!F297),0)","v":555980},null,"разходни §§ 10-00 (без §§ 10-62, 10-63 и 10-69), 46-00 и § 00-98 (без НОИ и НЗОК)"]
[null," 2. Разходи за застраховане и други финансови услуги",null,null,null,{"$f":"+IF($P$2=0,$P51,0)","v":0},{"$f":"+IF($P$2=0,$Q51,0)","v":2408},null,{"$f":"+IF(OR($P$2=98,$P$2=42,$P$2=96,$P$2=97),$P51,0)","v":0},{"$f":"+IF(OR($P$2=98,$P$2=42,$P$2=96,$P$2=97),$Q51,0)","v":0},null,{"$f":"+IF($P$2=33,$Q51,0)","v":0},null,{"$f":"+ROUND(+G51+J51+L51,0)","v":2408},null,{"$f":"+ROUND(+SUM(OTCHET!E216:E218),0)","v":0},{"$f":"+ROUND(+SUM(OTCHET!F216:F218),0)","v":2408},null,"разходни §§ 10-62, 10-63 и 10-69"]
[null," 3. Платени данъци, такси и административни санкции",null,null,null,{"$f":"+IF($P$2=0,$P52,0)","v":21000},{"$f":"+IF($P$2=0,$Q52,0)","v":20320},null,{"$f":"+IF(OR($P$2=98,$P$2=42,$P$2=96,$P$2=97),$P52,0)","v":0},{"$f":"+IF(OR($P$2=98,$P$2=42,$P$2=96,$P$2=97),$Q52,0)","v":0},null,{"$f":"+IF($P$2=33,$Q52,0)","v":0},null,{"$f":"+ROUND(+G52+J52+L52,0)","v":20320},null,{"$f":"+ROUND(OTCHET!E222,0)","v":21000},{"$f":"+ROUND(OTCHET!F222,0)","v":20320},null,"разходен § 19-00"]
[null," 4. Разходи за възнаграждения на персонал",null,null,null,{"$f":"+IF($P$2=0,$P53,0)","v":446318},{"$f":"+IF($P$2=0,$Q53,0)","v":444769},null,{"$f":"+IF(OR($P$2=98,$P$2=42,$P$2=96,$P$2=97),$P53,0)","v":0},{"$f":"+IF(OR($P$2=98,$P$2=42,$P$2=96,$P$2=97),$Q53,0)","v":0},null,{"$f":"+IF($P$2=33,$Q53,0)","v":0},null,{"$f":"+ROUND(+G53+J53+L53,0)","v":444769},null,{"$f":"+ROUND(OTCHET!E186+OTCHET!E189,0)","v":446318},{"$f":"+ROUND(OTCHET!F186+OTCHET!F189,0)","v":444769},null,"разходни §§ 01-00 и 02-00"]
[null," 5. Разходи за осигурителни вноски",null,null,null,{"$f":"+IF($P$2=0,$P54,0)","v":107413},{"$f":"+IF($P$2=0,$Q54,0)","v":106179},null,{"$f":"+IF(OR($P$2=98,$P$2=42,$P$2=96,$P$2=97),$P54,0)","v":0},{"$f":"+IF(OR($P$2=98,$P$2=42,$P$2=96,$P$2=97),$Q54,0)","v":0},null,{"$f":"+IF($P$2=33,$Q54,0)","v":0},null,{"$f":"+ROUND(+G54+J54+L54,0)","v":106179},null,{"$f":"+ROUND(OTCHET!E195+OTCHET!E203,0)","v":107413},{"$f":"+ROUND(OTCHET!F195+OTCHET!F203,0)","v":106179},null,"разходни §§ 05-00 и 08-00"]
[null," Общо за група І. Плащания за текущи нелихвени разходи",null,null,null,{"$f":"+ROUND(+SUM(F50:F54),0)","v":1153598},{"$f":"+ROUND(+SUM(G50:G54),0)","v":1129656},null,{"$f":"+ROUND(+SUM(I50:I54),0)","v":0},{"$f":"+ROUND(+SUM(J50:J54),0)","v":0},null,{"$f":"+ROUND(+SUM(L50:L54),0)","v":0},null,{"$f":"+ROUND(+SUM(N50:N54),0)","v":1129656},null,{"$f":"+ROUND(+SUM(P50:P54),0)","v":1153598},{"$f":"+ROUND(+SUM(Q50:Q54),0)","v":1129656},null,"сборен ред за група І. Плащания за текущи нелихвени разходи"]
[null," IІ. Плащания за придобиване на нефинансови дълготрайни активи",null,null,null,null,null,null,null,null,null,null,null,null,null,null,null,null," IІ. Плащания за придобиване на нефинансови дълготрайни активи"]
[null," 1. Придобиване на земя",null,null,null,{"$f":"+IF($P$2=0,$P57,0)","v":0},{"$f":"+IF($P$2=0,$Q57,0)","v":0},null,{"$f":"+IF(OR($P$2=98,$P$2=42,$P$2=96,$P$2=97),$P57,0)","v":0},{"$f":"+IF(OR($P$2=98,$P$2=42,$P$2=96,$P$2=97),$Q57,0)","v":0},null,{"$f":"+IF($P$2=33,$Q57,0)","v":0},null,{"$f":"+ROUND(+G57+J57+L57,0)","v":0},null,{"$f":"+ROUND(OTCHET!E287,0)","v":0},{"$f":"+ROUND(OTCHET!F287,0)","v":0},null,"разходен § 54-00"]
[null," 2. Придобиване на други дълготрайни материални активи",null,null,null,{"$f":"+IF($P$2=0,$P58,0)","v":0},{"$f":"+IF($P$2=0,$Q58,0)","v":0},null,{"$f":"+IF(OR($P$2=98,$P$2=42,$P$2=96,$P$2=97),$P58,0)","v":0},{"$f":"+IF(OR($P$2=98,$P$2=42,$P$2=96,$P$2=97),$Q58,0)","v":0},null,{"$f":"+IF($P$2=33,$Q58,0)","v":0},null,{"$f":"+ROUND(+G58+J58+L58,0)","v":0},null,{"$f":"+ROUND(+OTCHET!E275+OTCHET!E276,0)","v":0},{"$f":"+ROUND(+OTCHET!F275+OTCHET!F276,0)","v":0},null,"разходни §§ 51-00 и 52-00"]
[null," 3. Придобиване на нематериални дълготрайни активи",null,null,null,{"$f":"+IF($P$2=0,$P59,0)","v":3500},{"$f":"+IF($P$2=0,$Q59,0)","v":1800},null,{"$f":"+IF(OR($P$2=98,$P$2=42,$P$2=96,$P$2=97),$P59,0)","v":0},{"$f":"+IF(OR($P$2=98,$P$2=42,$P$2=96,$P$2=97),$Q59,0)","v":0},null,{"$f":"+IF($P$2=33,$Q59,0)","v":0},null,{"$f":"+ROUND(+G59+J59+L59,0)","v":1800},null,{"$f":"+ROUND(OTCHET!E284,0)","v":3500},{"$f":"+ROUND(OTCHET!F284,0)","v":1800},null,"разходен § 53-00"]
[null," 4. Нето-прираст на държавния резерв и изкупуване на земеделска продукция ",null,null,null,{"$f":"+IF($P$2=0,$P60,0)","v":0},{"$f":"+IF($P$2=0,$Q60,0)","v":0},null,{"$f":"+IF(OR($P$2=98,$P$2=42,$P$2=96,$P$2=97),$P60,0)","v":0},{"$f":"+IF(OR($P$2=98,$P$2=42,$P$2=96,$P$2=97),$Q60,0)","v":0},null,{"$f":"+IF($P$2=33,$Q60,0)","v":0},null,{"$f":"+ROUND(+G60+J60+L60,0)","v":0},null,{"$f":"+ROUND(OTCHET!E293,0)","v":0},{"$f":"+ROUND(OTCHET!F293,0)","v":0},null,"разходен § 57-00 и приходeн § 40-71 (-)"]
[null,"     в т. ч. постъпления от реализация на държавния резерв (-)",null,null,null,{"$f":"+IF($P$2=0,$P61,0)","v":0},{"$f":"+IF($P$2=0,$Q61,0)","v":0},null,{"$f":"+IF(OR($P$2=98,$P$2=42,$P$2=96,$P$2=97),$P61,0)","v":0},{"$f":"+IF(OR($P$2=98,$P$2=42,$P$2=96,$P$2=97),$Q61,0)","v":0},null,{"$f":"+IF($P$2=33,$Q61,0)","v":0},null,{"$f":"+ROUND(+G61+J61+L61,0)","v":0},null,{"$f":"+ROUND(OTCHET!E296,0)","v":0},{"$f":"+ROUND(OTCHET!F296,0)","v":0},null,"приходeн § 40-71 (-)"]
[null," Общо за група ІІ. Плащания за на нефинансови дълготрайни активи",null,null,null,{"$f":"+ROUND(+SUM(F57:F60),0)","v":3500},{"$f":"+ROUND(+SUM(G57:G60),0)","v":1800},null,{"$f":"+ROUND(+SUM(I57:I60),0)","v":0},{"$f":"+ROUND(+SUM(J57:J60),0)","v":0},null,{"$f":"+ROUND(+SUM(L57:L60),0)","v":0},null,{"$f":"+ROUND(+SUM(N57:N60),0)","v":1800},null,{"$f":"+ROUND(+SUM(P57:P60),0)","v":3500},{"$f":"+ROUND(+SUM(Q57:Q60),0)","v":1800},null,"сборен ред за група ІІ. Плащания за на нефинансови дълготрайни активи"]
[null," III. Плащания за разходи за лихви",null,null,null,null,null,null,null,null,null,null,null,null,null,null,null,null," III. Плащания за разходи за лихви"]
[null," 1. Разходи за лихви по банкови заеми и държавни (общински) ценни книжа",null,null,null,{"$f":"+IF($P$2=0,$P64,0)","v":0},{"$f":"+IF($P$2=0,$Q64,0)","v":0},null,{"$f":"+IF(OR($P$2=98,$P$2=42,$P$2=96,$P$2=97),$P64,0)","v":0},{"$f":"+IF(OR($P$2=98,$P$2=42,$P$2=96,$P$2=97),$Q64,0)","v":0},null,{"$f":"+IF($P$2=33,$Q64,0)","v":0},null,{"$f":"+ROUND(+G64+J64+L64,0)","v":0},null,{"$f":"+ROUND(OTCHET!E226+OTCHET!E232+SUM(OTCHET!E235:E238),0)","v":0},{"$f":"+ROUND(OTCHET!F226+OTCHET!F232+SUM(OTCHET!F235:F238),0)","v":0},null,"разходни §§ 21-00 ÷ 28-00"]
[null," 2. Разходи за лихви по други заеми и дългове",null,null,null,{"$f":"+IF($P$2=0,$P65,0)","v":0},{"$f":"+IF($P$2=0,$Q65,0)","v":0},null,{"$f":"+IF(OR($P$2=98,$P$2=42,$P$2=96,$P$2=97),$P65,0)","v":0},{"$f":"+IF(OR($P$2=98,$P$2=42,$P$2=96,$P$2=97),$Q65,0)","v":0},null,{"$f":"+IF($P$2=33,$Q65,0)","v":0},null,{"$f":"+ROUND(+G65+J65+L65,0)","v":0},null,{"$f":"+ROUND(OTCHET!E239,0)","v":0},{"$f":"+ROUND(OTCHET!F239,0)","v":0},null,"разходен § 29-00"]
[null," Общо за група ІІІ. Плащания за разходи за лихви",null,null,null,{"$f":"+ROUND(+SUM(F64:F65),0)","v":0},{"$f":"+ROUND(+SUM(G64:G65),0)","v":0},null,{"$f":"+ROUND(+SUM(I64:I65),0)","v":0},{"$f":"+ROUND(+SUM(J64:J65),0)","v":0},null,{"$f":"+ROUND(+SUM(L64:L65),0)","v":0},null,{"$f":"+ROUND(+SUM(N64:N65),0)","v":0},null,{"$f":"+ROUND(+SUM(P64:P65),0)","v":0},{"$f":"+ROUND(+SUM(Q64:Q65),0)","v":0},null,"сборен ред за група ІІІ. Плащания за разходи за лихви"]
[null," IV. Трансфери към домакинства",null,null,null,null,null,null,null,null,null,null,null,null,null,null,null,null," IV. Трансфери към домакинства"]
[null," 1. Осигурителни плащания и други текущи трансфери",null,null,null,{"$f":"+IF($P$2=0,$P68,0)","v":0},{"$f":"+IF($P$2=0,$Q68,0)","v":0},null,{"$f":"+IF(OR($P$2=98,$P$2=42,$P$2=96,$P$2=97),$P68,0)","v":0},{"$f":"+IF(OR($P$2=98,$P$2=42,$P$2=96,$P$2=97),$Q68,0)","v":0},null,{"$f":"+IF($P$2=33,$Q68,0)","v":0},null,{"$f":"+ROUND(+G68+J68+L68,0)","v":0},null,{"$f":"+ROUND(+SUM(OTCHET!E255:E258)+IF(+OR(OTCHET!$F$12=\"5500\",OTCHET!$F$12=\"5600\"),+OTCHET!E297,0),0)","v":0},{"$f":"+ROUND(+SUM(OTCHET!F255:F258)+IF(+OR(OTCHET!$F$12=\"5500\",OTCHET!$F$12=\"5600\"),+OTCHET!F297,0),0)","v":0},null,"разходни §§ 39-00 ÷ 42-00 (за НОИ и НЗОК - и разходен § 00-98) "]
[null," 2. Капиталови трансфери към домакинства",null,null,null,{"$f":"+IF($P$2=0,$P69,0)","v":0},{"$f":"+IF($P$2=0,$Q69,0)","v":0},null,{"$f":"+IF(OR($P$2=98,$P$2=42,$P$2=96,$P$2=97),$P69,0)","v":0},{"$f":"+IF(OR($P$2=98,$P$2=42,$P$2=96,$P$2=97),$Q69,0)","v":0},null,{"$f":"+IF($P$2=33,$Q69,0)","v":0},null,{"$f":"+ROUND(+G69+J69+L69,0)","v":0},null,{"$f":"+ROUND(+OTCHET!E292,0)","v":0},{"$f":"+ROUND(+OTCHET!F292,0)","v":0},null,"разходен § 55-04"]
[null," Общо за група ІV. Трансфери към домакинства",null,null,null,{"$f":"+ROUND(+SUM(F68:F69),0)","v":0},{"$f":"+ROUND(+SUM(G68:G69),0)","v":0},null,{"$f":"+ROUND(+SUM(I68:I69),0)","v":0},{"$f":"+ROUND(+SUM(J68:J69),0)","v":0},null,{"$f":"+ROUND(+SUM(L68:L69),0)","v":0},null,{"$f":"+ROUND(+SUM(N68:N69),0)","v":0},null,{"$f":"+ROUND(+SUM(P68:P69),0)","v":0},{"$f":"+ROUND(+SUM(Q68:Q69),0)","v":0},null,"сборен ред за група ІV. Трансфери към домакинства"]
[null," V. Субсидии и капиталови трансфери",null,null,null,null,null,null,null,null,null,null,null,null,null,null,null,null," V. Субсидии и капиталови трансфери"]
[null," 1. Текущи субсидии и трансфери към други лица",null,null,null,{"$f":"+IF($P$2=0,$P72,0)","v":0},{"$f":"+IF($P$2=0,$Q72,0)","v":0},null,{"$f":"+IF(OR($P$2=98,$P$2=42,$P$2=96,$P$2=97),$P72,0)","v":0},{"$f":"+IF(OR($P$2=98,$P$2=42,$P$2=96,$P$2=97),$Q72,0)","v":0},null,{"$f":"+IF($P$2=33,$Q72,0)","v":0},null,{"$f":"+ROUND(+G72+J72+L72,0)","v":0},null,{"$f":"+ROUND(+OTCHET!E248+OTCHET!E265+OTCHET!E269+OTCHET!E270+OTCHET!E273,0)","v":0},{"$f":"+ROUND(+OTCHET!F248+OTCHET!F265+OTCHET!F269+OTCHET!F270+OTCHET!F273,0)","v":0},null,"разходни §§ 33-00, 43-00, 44-00, 45-00 и 49-01"]
[null," 2. Капиталови трансфери към други лица",null,null,null,{"$f":"+IF($P$2=0,$P73,0)","v":0},{"$f":"+IF($P$2=0,$Q73,0)","v":0},null,{"$f":"+IF(OR($P$2=98,$P$2=42,$P$2=96,$P$2=97),$P73,0)","v":0},{"$f":"+IF(OR($P$2=98,$P$2=42,$P$2=96,$P$2=97),$Q73,0)","v":0},null,{"$f":"+IF($P$2=33,$Q73,0)","v":0},null,{"$f":"+ROUND(+G73+J73+L73,0)","v":0},null,{"$f":"+ROUND(OTCHET!E274+OTCHET!E288-OTCHET!E292,0)","v":0},{"$f":"+ROUND(OTCHET!F274+OTCHET!F288-OTCHET!F292,0)","v":0},null,"разходни §§ 49-02 и 55-00 (без § 55-04)"]
[null," Общо за група V. Субсидии и капиталови трансфери",null,null,null,{"$f":"+ROUND(+SUM(F72:F73),0)","v":0},{"$f":"+ROUND(+SUM(G72:G73),0)","v":0},null,{"$f":"+ROUND(+SUM(I72:I73),0)","v":0},{"$f":"+ROUND(+SUM(J72:J73),0)","v":0},null,{"$f":"+ROUND(+SUM(L72:L73),0)","v":0},null,{"$f":"+ROUND(+SUM(N72:N73),0)","v":0},null,{"$f":"+ROUND(+SUM(P72:P73),0)","v":0},{"$f":"+ROUND(+SUM(Q72:Q73),0)","v":0},null,"сборен ред за група V. Субсидии и капиталови трансфери"]
[]
[null," Б. ОБЩО РАЗХОДИ И ПРИДОБИВАНЕ НА НЕФИНАНСОВИ АКТИВИ",null,null,null,{"$f":"+ROUND(F55+F62+F66+F70+F74,0)","v":1157098},{"$f":"+ROUND(G55+G62+G66+G70+G74,0)","v":1131456},null,{"$f":"+ROUND(I55+I62+I66+I70+I74,0)","v":0},{"$f":"+ROUND(J55+J62+J66+J70+J74,0)","v":0},null,{"$f":"+ROUND(L55+L62+L66+L70+L74,0)","v":0},null,{"$f":"+ROUND(N55+N62+N66+N70+N74,0)","v":1131456},null,{"$f":"+ROUND(P55+P62+P66+P70+P74,0)","v":1157098},{"$f":"+ROUND(Q55+Q62+Q66+Q70+Q74,0)","v":1131456},null," сборен за ред Б. ОБЩО РАЗХОДИ И ПРИДОБИВАНЕ НА НЕФИН. АКТИВИ"]
[null," В. ТРАНСФЕРИ И БЕЗЛИХВЕНИ ЗАЕМИ М/У БЮДЖ. ОРГАНИЗАЦИИ",null,null,null,null,null,null,null,null,null,null,null,null,null,null,null,null," В. ТРАНСФЕРИ И БЕЗЛИХВЕНИ ЗАЕМИ М/У БЮДЖ. ОРГАНИЗАЦИИ"]
[null," 1. Трансфери между бюджетни организации (нето)",null,null,null,{"$f":"+IF($P$2=0,$P78,0)","v":1015098},{"$f":"+IF($P$2=0,$Q78,0)","v":1029118},null,{"$f":"+IF(OR($P$2=98,$P$2=42,$P$2=96,$P$2=97),$P78,0)","v":0},{"$f":"+IF(OR($P$2=98,$P$2=42,$P$2=96,$P$2=97),$Q78,0)","v":0},null,{"$f":"+IF($P$2=33,$Q78,0)","v":0},null,{"$f":"+ROUND(+G78+J78+L78,0)","v":1029118},null,{"$f":"+ROUND(OTCHET!E415,0)","v":1015098},{"$f":"+ROUND(OTCHET!F415,0)","v":1029118},null,"трансферни параграфи §§ 30-00 ÷ 32-00 и 60-00 ÷ 69-00"]
[null," 2. Временни безлихвени заеми между бюджетни организации (нето)",null,null,null,{"$f":"+IF($P$2=0,$P79,0)","v":0},{"$f":"+IF($P$2=0,$Q79,0)","v":0},null,{"$f":"+IF(OR($P$2=98,$P$2=42,$P$2=96,$P$2=97),$P79,0)","v":0},{"$f":"+IF(OR($P$2=98,$P$2=42,$P$2=96,$P$2=97),$Q79,0)","v":0},null,{"$f":"+IF($P$2=33,$Q79,0)","v":0},null,{"$f":"+ROUND(+G79+J79+L79,0)","v":0},null,{"$f":"+ROUND(OTCHET!E425,0)","v":0},{"$f":"+ROUND(OTCHET!F425,0)","v":0},null,"трансферни параграфи §§ 74-00 ÷ 78-00"]
[null," В. ОБЩО ТРАНСФЕРИ И  ЗАЕМИ М/У БЮДЖЕТНИ ОРГАНИЗАЦИИ",null,null,null,{"$f":"+ROUND(F78+F79,0)","v":1015098},{"$f":"+ROUND(G78+G79,0)","v":1029118},null,{"$f":"+ROUND(I78+I79,0)","v":0},{"$f":"+ROUND(J78+J79,0)","v":0},null,{"$f":"+ROUND(L78+L79,0)","v":0},null,{"$f":"+ROUND(N78+N79,0)","v":1029118},null,{"$f":"+ROUND(P78+P79,0)","v":1015098},{"$f":"+ROUND(Q78+Q79,0)","v":1029118},null," сборен ред за  В. ОБЩО ТРАНСФЕРИ И  ЗАЕМИ М/У БЮДЖ. ОРГАНИЗАЦИИ"]
[null,{"$f":"+IF(+SUM(F81:N81)=0,0,\"Контрола: дефицит/излишък = финансиране с обратен знак (Г. + Д. = 0)\")","v":0},null,null,null,{"$f":"+ROUND(F82,0)+ROUND(F83,0)","v":0},{"$f":"+ROUND(G82,0)+ROUND(G83,0)","v":0},null,{"$f":"+ROUND(I82,0)+ROUND(I83,0)","v":0},{"$f":"+ROUND(J82,0)+ROUND(J83,0)","v":0},null,{"$f":"+ROUND(L82,0)+ROUND(L83,0)","v":0},null,{"$f":"+ROUND(N82,0)+ROUND(N83,0)","v":0},null,{"$f":"+ROUND(P82,0)+ROUND(P83,0)","v":0},{"$f":"+ROUND(Q82,0)+ROUND(Q83,0)","v":0}]
[null,"Г. Бюджетно салдо: Дефицит (-) / излишък (+) = (А. - Б. + В. )",null,null,null,{"$f":"+ROUND(F47,0)-ROUND(F76,0)+ROUND(F80,0)","v":0},{"$f":"+ROUND(G47,0)-ROUND(G76,0)+ROUND(G80,0)","v":15},null,{"$f":"+ROUND(I47,0)-ROUND(I76,0)+ROUND(I80,0)","v":0},{"$f":"+ROUND(J47,0)-ROUND(J76,0)+ROUND(J80,0)","v":0},null,{"$f":"+ROUND(L47,0)-ROUND(L76,0)+ROUND(L80,0)","v":0},null,{"$f":"+ROUND(N47,0)-ROUND(N76,0)+ROUND(N80,0)","v":15},null,{"$f":"+ROUND(P47,0)-ROUND(P76,0)+ROUND(P80,0)","v":0},{"$f":"+ROUND(Q47,0)-ROUND(Q76,0)+ROUND(Q80,0)","v":15},null,"Г. Бюджетно салдо: Дефицит (-) / излишък (+) = (А. - Б. + В. )"]
[null,"Д. Финансиране на бюджетното салдо (Е. + Ж. + З. - И.)",null,null,null,{"$f":"+ROUND(F100,0)+ROUND(F119,0)+ROUND(F125,0)-ROUND(F130,0)","v":0},{"$f":"+ROUND(G100,0)+ROUND(G119,0)+ROUND(G125,0)-ROUND(G130,0)","v":-15},null,{"$f":"+ROUND(I100,0)+ROUND(I119,0)+ROUND(I125,0)-ROUND(I130,0)","v":0},{"$f":"+ROUND(J100,0)+ROUND(J119,0)+ROUND(J125,0)-ROUND(J130,0)","v":0},null,{"$f":"+ROUND(L100,0)+ROUND(L119,0)+ROUND(L125,0)-ROUND(L130,0)","v":0},null,{"$f":"+ROUND(N100,0)+ROUND(N119,0)+ROUND(N125,0)-ROUND(N130,0)","v":-15},null,{"$f":"+ROUND(P100,0)+ROUND(P119,0)+ROUND(P125,0)-ROUND(P130,0)","v":0},{"$f":"+ROUND(Q100,0)+ROUND(Q119,0)+ROUND(Q125,0)-ROUND(Q130,0)","v":-15},null,"Д. Финансиране на бюджетното салдо (Е. + Ж. + З. - И.)"]
[null," Е. ОПЕРАЦИИ С ФИНАНСОВИ АКТИВИ",null,null,null,null,null,null,null,null,null,null,null,null,null,null,null,null," Е. ОПЕРАЦИИ С ФИНАНСОВИ АКТИВИ"]
[null," I. Придобиване и реализиране на дялове, акции и участия",null,null,null,null,null,null,null,null,null,null,null,null,null,null,null,null," I. Придобиване и реализиране на дялове, акции и участия"]
[null," 1. Придобиване на дялове, акции и участия в предприятия (-)",null,null,null,{"$f":"+IF($P$2=0,$P86,0)","v":0},{"$f":"+IF($P$2=0,$Q86,0)","v":0},null,{"$f":"+IF(OR($P$2=98,$P$2=42,$P$2=96,$P$2=97),$P86,0)","v":0},{"$f":"+IF(OR($P$2=98,$P$2=42,$P$2=96,$P$2=97),$Q86,0)","v":0},null,{"$f":"+IF($P$2=33,$Q86,0)","v":0},null,{"$f":"+ROUND(+G86+J86+L86,0)","v":0},null,{"$f":"+ROUND(+OTCHET!E458+OTCHET!E459,0)","v":0},{"$f":"+ROUND(+OTCHET!F458+OTCHET!F459,0)","v":0},null,"финансиращи §§ 70-01 и 70-03"]
[null," 2. Постъпления от реализация и приватизация на дялове, акциии и участия",null,null,null,{"$f":"+IF($P$2=0,$P87,0)","v":0},{"$f":"+IF($P$2=0,$Q87,0)","v":0},null,{"$f":"+IF(OR($P$2=98,$P$2=42,$P$2=96,$P$2=97),$P87,0)","v":0},{"$f":"+IF(OR($P$2=98,$P$2=42,$P$2=96,$P$2=97),$Q87,0)","v":0},null,{"$f":"+IF($P$2=33,$Q87,0)","v":0},null,{"$f":"+ROUND(+G87+J87+L87,0)","v":0},null,{"$f":"+ROUND(OTCHET!E460+OTCHET!E531,0)","v":0},{"$f":"+ROUND(OTCHET!F460+OTCHET!F531,0)","v":0},null,"финансиращи §§ 70-10 и 90-00"]
[null," Общо за група І. Придобиване и реализиране на дялове, акции и участия",null,null,null,{"$f":"+ROUND(+SUM(F86:F87),0)","v":0},{"$f":"+ROUND(+SUM(G86:G87),0)","v":0},null,{"$f":"+ROUND(+SUM(I86:I87),0)","v":0},{"$f":"+ROUND(+SUM(J86:J87),0)","v":0},null,{"$f":"+ROUND(+SUM(L86:L87),0)","v":0},null,{"$f":"+ROUND(+SUM(N86:N87),0)","v":0},null,{"$f":"+ROUND(+SUM(P86:P87),0)","v":0},{"$f":"+ROUND(+SUM(Q86:Q87),0)","v":0},null," Сборен ред за група І. Придобиване и реализиране на дялове, акции и участия"]
[null," IІ. Предоставени заеми, възмездна фин. помощ и активирани гаранции",null,null,null,null,null,null,null,null,null,null,null,null,null,null,null,null," IІ. Предоставени заеми, възмездна фин. помощ и активирани гаранции"]
[null," 1. Предоставени заеми и възмездна финансова помощ (-)",null,null,null,{"$f":"+IF($P$2=0,$P90,0)","v":0},{"$f":"+IF($P$2=0,$Q90,0)","v":0},null,{"$f":"+IF(OR($P$2=98,$P$2=42,$P$2=96,$P$2=97),$P90,0)","v":0},{"$f":"+IF(OR($P$2=98,$P$2=42,$P$2=96,$P$2=97),$Q90,0)","v":0},null,{"$f":"+IF($P$2=33,$Q90,0)","v":0},null,{"$f":"+ROUND(+G90+J90+L90,0)","v":0},null,{"$f":"+ROUND(OTCHET!E462+OTCHET!E465+OTCHET!E475,0)","v":0},{"$f":"+ROUND(OTCHET!F462+OTCHET!F465+OTCHET!F475,0)","v":0},null,"финансиращи §§ 71-01, 72-01 и 79-01"]
[null," 2. Получени погашения по предоставени заеми и възмездна фин. помощ (+)",null,null,null,{"$f":"+IF($P$2=0,$P91,0)","v":0},{"$f":"+IF($P$2=0,$Q91,0)","v":0},null,{"$f":"+IF(OR($P$2=98,$P$2=42,$P$2=96,$P$2=97),$P91,0)","v":0},{"$f":"+IF(OR($P$2=98,$P$2=42,$P$2=96,$P$2=97),$Q91,0)","v":0},null,{"$f":"+IF($P$2=33,$Q91,0)","v":0},null,{"$f":"+ROUND(+G91+J91+L91,0)","v":0},null,{"$f":"+ROUND(OTCHET!E463+OTCHET!E466+OTCHET!E476+OTCHET!E498+IF(+OTCHET!E490>0,+OTCHET!E490,0),0)","v":0},{"$f":"+ROUND(OTCHET!F463+OTCHET!F466+OTCHET!F476+OTCHET!F498+IF(+OTCHET!F490>0,+OTCHET!F490,0),0)","v":0},null,"финансиращи §§ 71-02, 72-02, 79-02 и 82-00 и § 80-80 (ако е \"плюс\")"]
[null," 3. Плащания по активирани гаранции  - главници по гарантирани заеми",null,null,null,{"$f":"+IF($P$2=0,$P92,0)","v":0},{"$f":"+IF($P$2=0,$Q92,0)","v":0},null,{"$f":"+IF(OR($P$2=98,$P$2=42,$P$2=96,$P$2=97),$P92,0)","v":0},{"$f":"+IF(OR($P$2=98,$P$2=42,$P$2=96,$P$2=97),$Q92,0)","v":0},null,{"$f":"+IF($P$2=33,$Q92,0)","v":0},null,{"$f":"+ROUND(+G92+J92+L92,0)","v":0},null,{"$f":"+ROUND(+SUM(OTCHET!E468:E470),0)","v":0},{"$f":"+ROUND(+SUM(OTCHET!F468:F470),0)","v":0},null,"финансиращи §§ 73-20, 73-69 и 73-70"]
[null," 4. Възстановени суми по активирани гаранции - главници",null,null,null,{"$f":"+IF($P$2=0,$P93,0)","v":0},{"$f":"+IF($P$2=0,$Q93,0)","v":0},null,{"$f":"+IF(OR($P$2=98,$P$2=42,$P$2=96,$P$2=97),$P93,0)","v":0},{"$f":"+IF(OR($P$2=98,$P$2=42,$P$2=96,$P$2=97),$Q93,0)","v":0},null,{"$f":"+IF($P$2=33,$Q93,0)","v":0},null,{"$f":"+ROUND(+G93+J93+L93,0)","v":0},null,{"$f":"+ROUND(+SUM(OTCHET!E471:E472),0)","v":0},{"$f":"+ROUND(+SUM(OTCHET!F471:F472),0)","v":0},null,"финансиращи §§ 73-91 и 73-92"]
[null," Общо за група ІІ. Предоставени заеми, възмездна фин. помощ и гаранции",null,null,null,{"$f":"+ROUND(+SUM(F90:F93),0)","v":0},{"$f":"+ROUND(+SUM(G90:G93),0)","v":0},null,{"$f":"+ROUND(+SUM(I90:I93),0)","v":0},{"$f":"+ROUND(+SUM(J90:J93),0)","v":0},null,{"$f":"+ROUND(+SUM(L90:L93),0)","v":0},null,{"$f":"+ROUND(+SUM(N90:N93),0)","v":0},null,{"$f":"+ROUND(+SUM(P90:P93),0)","v":0},{"$f":"+ROUND(+SUM(Q90:Q93),0)","v":0},null," Сборен ред за група ІІ. Предоставени заеми, възмездна фин. помощ и гаранции"]
[null," IІI. Други операции с финансови активи",null,null,null,null,null,null,null,null,null,null,null,null,null,null,null,null," IІI. Други операции с финансови активи"]
[null," 1. Нето-операции с други ценни книжа  и фин. активи (кеш-мениджмънт)",null,null,null,{"$f":"+IF($P$2=0,$P96,0)","v":0},{"$f":"+IF($P$2=0,$Q96,0)","v":0},null,{"$f":"+IF(OR($P$2=98,$P$2=42,$P$2=96,$P$2=97),$P96,0)","v":0},{"$f":"+IF(OR($P$2=98,$P$2=42,$P$2=96,$P$2=97),$Q96,0)","v":0},null,{"$f":"+IF($P$2=33,$Q96,0)","v":0},null,{"$f":"+ROUND(+G96+J96+L96,0)","v":0},null,{"$f":"+ROUND(OTCHET!E532+OTCHET!E537,0)","v":0},{"$f":"+ROUND(OTCHET!F532+OTCHET!F537,0)","v":0},null,"финансиращи §§ 91-01 и 92-00"]
[null," 2. Други операции с финансови активи (нето)",null,null,null,{"$f":"+IF($P$2=0,$P97,0)","v":0},{"$f":"+IF($P$2=0,$Q97,0)","v":0},null,{"$f":"+IF(OR($P$2=98,$P$2=42,$P$2=96,$P$2=97),$P97,0)","v":0},{"$f":"+IF(OR($P$2=98,$P$2=42,$P$2=96,$P$2=97),$Q97,0)","v":0},null,{"$f":"+IF($P$2=33,$Q97,0)","v":0},null,{"$f":"+ROUND(+G97+J97+L97,0)","v":0},null,{"$f":"+ROUND(+OTCHET!E473+OTCHET!E554+OTCHET!E556,0)","v":0},{"$f":"+ROUND(+OTCHET!F473+OTCHET!F554+OTCHET!F556,0)","v":0},null,"финансиращи §§ 73-93, 93-36, 93-38"]
[null," Общо за група ІІІ. Други операции с финансови активи",null,null,null,{"$f":"+ROUND(+SUM(F96:F97),0)","v":0},{"$f":"+ROUND(+SUM(G96:G97),0)","v":0},null,{"$f":"+ROUND(+SUM(I96:I97),0)","v":0},{"$f":"+ROUND(+SUM(J96:J97),0)","v":0},null,{"$f":"+ROUND(+SUM(L96:L97),0)","v":0},null,{"$f":"+ROUND(+SUM(N96:N97),0)","v":0},null,{"$f":"+ROUND(+SUM(P96:P97),0)","v":0},{"$f":"+ROUND(+SUM(Q96:Q97),0)","v":0},null,"  Сборен ред за група ІІІ. Други операции с финансови активи"]
[]
[null," Е. ОБЩО ОПЕРАЦИИ С ФИНАНСОВИ АКТИВИ",null,null,null,{"$f":"+ROUND(F88+F94+F98,0)","v":0},{"$f":"+ROUND(G88+G94+G98,0)","v":0},null,{"$f":"+ROUND(I88+I94+I98,0)","v":0},{"$f":"+ROUND(J88+J94+J98,0)","v":0},null,{"$f":"+ROUND(L88+L94+L98,0)","v":0},null,{"$f":"+ROUND(N88+N94+N98,0)","v":0},null,{"$f":"+ROUND(P88+P94+P98,0)","v":0},{"$f":"+ROUND(Q88+Q94+Q98,0)","v":0},null," Сборен ред за Е. ОБЩО ОПЕРАЦИИ С ФИНАНСОВИ АКТИВИ"]
[null," Ж. ОПЕРАЦИИ С ФИНАНСОВИ ПАСИВИ",null,null,null,null,null,null,null,null,null,null,null,null,null,null,null,null," Ж. ОПЕРАЦИИ С ФИНАНСОВИ ПАСИВИ"]
[null," I. Емитирани държавни (общински) ценни книжа",null,null,null,null,null,null,null,null,null,null,null,null,null,null,null,null," I. Емитирани държавни (общински) ценни книжа"]
[null," 1. Постъпления от емисии на държавни (общински) ценни книжа (+)",null,null,null,{"$f":"+IF($P$2=0,$P103,0)","v":0},{"$f":"+IF($P$2=0,$Q103,0)","v":0},null,{"$f":"+IF(OR($P$2=98,$P$2=42,$P$2=96,$P$2=97),$P103,0)","v":0},{"$f":"+IF(OR($P$2=98,$P$2=42,$P$2=96,$P$2=97),$Q103,0)","v":0},null,{"$f":"+IF($P$2=33,$Q103,0)","v":0},null,{"$f":"+ROUND(+G103+J103+L103,0)","v":0},null,{"$f":"+ROUND(OTCHET!E494+OTCHET!E495+OTCHET!E508,0)","v":0},{"$f":"+ROUND(OTCHET!F494+OTCHET!F495+OTCHET!F508,0)","v":0},null,"финансиращи §§ 81-11, 81-12 и 85-00"]
[null," 2. Погашения по емисии на държавни (общински) ценни книжа) (-)",null,null,null,{"$f":"+IF($P$2=0,$P104,0)","v":0},{"$f":"+IF($P$2=0,$Q104,0)","v":0},null,{"$f":"+IF(OR($P$2=98,$P$2=42,$P$2=96,$P$2=97),$P104,0)","v":0},{"$f":"+IF(OR($P$2=98,$P$2=42,$P$2=96,$P$2=97),$Q104,0)","v":0},null,{"$f":"+IF($P$2=33,$Q104,0)","v":0},null,{"$f":"+ROUND(+G104+J104+L104,0)","v":0},null,{"$f":"+ROUND(OTCHET!E496+OTCHET!E497+OTCHET!E512,0)","v":0},{"$f":"+ROUND(OTCHET!F496+OTCHET!F497+OTCHET!F512,0)","v":0},null,"финансиращи §§ 81-21, 81-22 и 86-00"]
[null," Общо за група І. Емитирани държавни (общински) ценни книжа",null,null,null,{"$f":"+ROUND(+SUM(F103:F104),0)","v":0},{"$f":"+ROUND(+SUM(G103:G104),0)","v":0},null,{"$f":"+ROUND(+SUM(I103:I104),0)","v":0},{"$f":"+ROUND(+SUM(J103:J104),0)","v":0},null,{"$f":"+ROUND(+SUM(L103:L104),0)","v":0},null,{"$f":"+ROUND(+SUM(N103:N104),0)","v":0},null,{"$f":"+ROUND(+SUM(P103:P104),0)","v":0},{"$f":"+ROUND(+SUM(Q103:Q104),0)","v":0},null," Сборен ред за група І. Емитирани държавни (общински) ценни книжа"]
[null," IІ. Заеми от банки и други лица",null,null,null,null,null,null,null,null,null,null,null,null,null,null,null,null," IІ. Заеми от банки и други лица"]
[null," 1. Получени банкови и други заеми (+)",null,null,null,{"$f":"+IF($P$2=0,$P107,0)","v":0},{"$f":"+IF($P$2=0,$Q107,0)","v":0},null,{"$f":"+IF(OR($P$2=98,$P$2=42,$P$2=96,$P$2=97),$P107,0)","v":0},{"$f":"+IF(OR($P$2=98,$P$2=42,$P$2=96,$P$2=97),$Q107,0)","v":0},null,{"$f":"+IF($P$2=33,$Q107,0)","v":0},null,{"$f":"+ROUND(+G107+J107+L107,0)","v":0},null,{"$f":"+ROUND(OTCHET!E478+OTCHET!E479+OTCHET!E482+OTCHET!E483+OTCHET!E486+OTCHET!E487+OTCHET!E491+OTCHET!E500+OTCHET!E501+OTCHET!E504+OTCHET!E505,0)","v":0},{"$f":"+ROUND(OTCHET!F478+OTCHET!F479+OTCHET!F482+OTCHET!F483+OTCHET!F486+OTCHET!F487+OTCHET!F491+OTCHET!F500+OTCHET!F501+OTCHET!F504+OTCHET!F505,0)","v":0},null,"финансиращи §§ 80-11, 80-12, 80-31, 80-32, 80-51, 80-52, 80-97, 83-11, 83-12, 83-71, 83-72 "]
[null," 2. Погашения по получени банкови и други заеми (-)",null,null,null,{"$f":"+IF($P$2=0,$P108,0)","v":0},{"$f":"+IF($P$2=0,$Q108,0)","v":0},null,{"$f":"+IF(OR($P$2=98,$P$2=42,$P$2=96,$P$2=97),$P108,0)","v":0},{"$f":"+IF(OR($P$2=98,$P$2=42,$P$2=96,$P$2=97),$Q108,0)","v":0},null,{"$f":"+IF($P$2=33,$Q108,0)","v":0},null,{"$f":"+ROUND(+G108+J108+L108,0)","v":0},null,{"$f":"+ROUND(OTCHET!E480+OTCHET!E481+OTCHET!E484+OTCHET!E485+OTCHET!E488+OTCHET!E489+OTCHET!E492+OTCHET!E502+OTCHET!E503+OTCHET!E506+OTCHET!E507+IF(+OTCHET!E490<0,+OTCHET!E490,0),0)","v":0},{"$f":"+ROUND(OTCHET!F480+OTCHET!F481+OTCHET!F484+OTCHET!F485+OTCHET!F488+OTCHET!F489+OTCHET!F492+OTCHET!F502+OTCHET!F503+OTCHET!F506+OTCHET!F507+IF(+OTCHET!F490<0,+OTCHET!F490,0),0)","v":0},null,"§§ 80-17, 80-18, 80-37, 80-38, 80-57, 80-58, 80-98, 83-21, 83-22, 83-81, 83-82 и § 80-80 (ако е \"минус\")"]
[null," Общо за група ІІ. Заеми от банки и други лица",null,null,null,{"$f":"+ROUND(+SUM(F107:F108),0)","v":0},{"$f":"+ROUND(+SUM(G107:G108),0)","v":0},null,{"$f":"+ROUND(+SUM(I107:I108),0)","v":0},{"$f":"+ROUND(+SUM(J107:J108),0)","v":0},null,{"$f":"+ROUND(+SUM(L107:L108),0)","v":0},null,{"$f":"+ROUND(+SUM(N107:N108),0)","v":0},null,{"$f":"+ROUND(+SUM(P107:P108),0)","v":0},{"$f":"+ROUND(+SUM(Q107:Q108),0)","v":0},null,"Сборен ред за група ІІ. Заеми от банки и други лица"]
[null," IІI. Финансиране чрез финансов лизинг и търговски кредит",null,null,null,null,null,null,null,null,null,null,null,null,null,null,null,null," IІI. Финансиране чрез финансов лизинг и търговски кредит"]
[null," 1. Получено финансиране по финансов лизинг и търговски кредит (+)",null,null,null,{"$f":"+IF($P$2=0,$P111,0)","v":0},{"$f":"+IF($P$2=0,$Q111,0)","v":0},null,{"$f":"+IF(OR($P$2=98,$P$2=42,$P$2=96,$P$2=97),$P111,0)","v":0},{"$f":"+IF(OR($P$2=98,$P$2=42,$P$2=96,$P$2=97),$Q111,0)","v":0},null,{"$f":"+IF($P$2=33,$Q111,0)","v":0},null,{"$f":"+ROUND(+G111+J111+L111,0)","v":0},null,{"$f":"+ROUND(OTCHET!E543,0)","v":0},{"$f":"+ROUND(OTCHET!F543,0)","v":0},null,"финансиращ § 93-17"]
[null," 2. Погашения по финансов лизинг и търговски кредит (-)",null,null,null,{"$f":"+IF($P$2=0,$P112,0)","v":0},{"$f":"+IF($P$2=0,$Q112,0)","v":0},null,{"$f":"+IF(OR($P$2=98,$P$2=42,$P$2=96,$P$2=97),$P112,0)","v":0},{"$f":"+IF(OR($P$2=98,$P$2=42,$P$2=96,$P$2=97),$Q112,0)","v":0},null,{"$f":"+IF($P$2=33,$Q112,0)","v":0},null,{"$f":"+ROUND(+G112+J112+L112,0)","v":0},null,{"$f":"+ROUND(OTCHET!E544,0)","v":0},{"$f":"+ROUND(OTCHET!F544,0)","v":0},null,"финансиращ § 93-18"]
[null," Общо за група ІІІ. Финансиране чрез фин. лизинг и търговски кредит",null,null,null,{"$f":"+ROUND(+SUM(F111:F112),0)","v":0},{"$f":"+ROUND(+SUM(G111:G112),0)","v":0},null,{"$f":"+ROUND(+SUM(I111:I112),0)","v":0},{"$f":"+ROUND(+SUM(J111:J112),0)","v":0},null,{"$f":"+ROUND(+SUM(L111:L112),0)","v":0},null,{"$f":"+ROUND(+SUM(N111:N112),0)","v":0},null,{"$f":"+ROUND(+SUM(P111:P112),0)","v":0},{"$f":"+ROUND(+SUM(Q111:Q112),0)","v":0},null,"Сборен ред за група ІІІ. Финансиране чрез фин. лизинг и търговски кредит"]
[null,"ІV. Други операции с финансови пасиви",null,null,null,null,null,null,null,null,null,null,null,null,null,null,null,null,"ІV. Други операции с финансови пасиви"]
[null," 1. Операции с чужди средства (нето)",null,null,null,{"$f":"+IF($P$2=0,$P115,0)","v":0},{"$f":"+IF($P$2=0,$Q115,0)","v":-15},null,{"$f":"+IF(OR($P$2=98,$P$2=42,$P$2=96,$P$2=97),$P115,0)","v":0},{"$f":"+IF(OR($P$2=98,$P$2=42,$P$2=96,$P$2=97),$Q115,0)","v":0},null,{"$f":"+IF($P$2=33,$Q115,0)","v":0},null,{"$f":"+ROUND(+G115+J115+L115,0)","v":-15},null,{"$f":"+ROUND(OTCHET!E541+OTCHET!E542+OTCHET!E558+OTCHET!E559,0)","v":0},{"$f":"+ROUND(OTCHET!F541+OTCHET!F542+OTCHET!F558+OTCHET!F559,0)","v":-15},null,"финансиращи §§ 93-01, 93-10, 93-55 и 93-56"]
[null," 2. Друго финансиране - операции с пасиви (нето)",null,null,null,{"$f":"+IF($P$2=0,$P116,0)","v":0},{"$f":"+IF($P$2=0,$Q116,0)","v":0},null,{"$f":"+IF(OR($P$2=98,$P$2=42,$P$2=96,$P$2=97),$P116,0)","v":0},{"$f":"+IF(OR($P$2=98,$P$2=42,$P$2=96,$P$2=97),$Q116,0)","v":0},null,{"$f":"+IF($P$2=33,$Q116,0)","v":0},null,{"$f":"+ROUND(+G116+J116+L116,0)","v":0},null,{"$f":"+ROUND(OTCHET!E555+OTCHET!E557,0)","v":0},{"$f":"+ROUND(OTCHET!F555+OTCHET!F557,0)","v":0},null,"финансиращи §§ 93-37 и 93-39"]
[null," Общо за група ІV. Други операции с финансови пасиви",null,null,null,{"$f":"+ROUND(+SUM(F115:F116),0)","v":0},{"$f":"+ROUND(+SUM(G115:G116),0)","v":-15},null,{"$f":"+ROUND(+SUM(I115:I116),0)","v":0},{"$f":"+ROUND(+SUM(J115:J116),0)","v":0},null,{"$f":"+ROUND(+SUM(L115:L116),0)","v":0},null,{"$f":"+ROUND(+SUM(N115:N116),0)","v":-15},null,{"$f":"+ROUND(+SUM(P115:P116),0)","v":0},{"$f":"+ROUND(+SUM(Q115:Q116),0)","v":-15},null,"Сборен ред за група ІV. Други операции с финансови пасиви"]
[]
[null," Ж. ОБЩО ОПЕРАЦИИ С ФИНАНСОВИ ПАСИВИ",null,null,null,{"$f":"+ROUND(F105+F109+F113+F117,0)","v":0},{"$f":"+ROUND(G105+G109+G113+G117,0)","v":-15},null,{"$f":"+ROUND(I105+I109+I113+I117,0)","v":0},{"$f":"+ROUND(J105+J109+J113+J117,0)","v":0},null,{"$f":"+ROUND(L105+L109+L113+L117,0)","v":0},null,{"$f":"+ROUND(N105+N109+N113+N117,0)","v":-15},null,{"$f":"+ROUND(P105+P109+P113+P117,0)","v":0},{"$f":"+ROUND(Q105+Q109+Q113+Q117,0)","v":-15},null," Сборен ред за Ж. ОБЩО ОПЕРАЦИИ С ФИНАНСОВИ ПАСИВИ"]
[null," З. НЕТО-РАЗЧЕТИ И ОПЕРАЦИИ",null,null,null,null,null,null,null,null,null,null,null,null,null,null,null,null," З. НЕТО-РАЗЧЕТИ И ОПЕРАЦИИ"]
[null," 1. Нето-операции за сметка на средства от Европейския съюз",null,null,null,{"$f":"+IF($P$2=0,$P121,0)","v":0},{"$f":"+IF($P$2=0,$Q121,0)","v":0},null,{"$f":"+IF(OR($P$2=98,$P$2=42,$P$2=96,$P$2=97),$P121,0)","v":0},{"$f":"+IF(OR($P$2=98,$P$2=42,$P$2=96,$P$2=97),$Q121,0)","v":0},null,{"$f":"+IF($P$2=33,$Q121,0)","v":0},null,{"$f":"+ROUND(+G121+J121+L121,0)","v":0},null,{"$f":"+ROUND(+SUM(OTCHET!E545:E552),0)","v":0},{"$f":"+ROUND(+SUM(OTCHET!F545:F552),0)","v":0},null,"финансиращи §§ 93-21 ÷ 93-28"]
[null," 2. Операции за сметка на други бюджети, сметки и фондове",null,null,null,{"$f":"+IF($P$2=0,$P122,0)","v":0},{"$f":"+IF($P$2=0,$Q122,0)","v":-78267},null,{"$f":"+IF(OR($P$2=98,$P$2=42,$P$2=96,$P$2=97),$P122,0)","v":0},{"$f":"+IF(OR($P$2=98,$P$2=42,$P$2=96,$P$2=97),$Q122,0)","v":0},null,{"$f":"+IF($P$2=33,$Q122,0)","v":0},null,{"$f":"+ROUND(+G122+J122+L122,0)","v":-78267},null,{"$f":"+ROUND(OTCHET!E520,0)","v":0},{"$f":"+ROUND(OTCHET!F520,0)","v":-78267},null,"финансиращ § 88-00"]
[null," 3. Други нето-разчети и операции на бюджетни организации",null,null,null,{"$f":"+IF($P$2=0,$P123,0)","v":0},{"$f":"+IF($P$2=0,$Q123,0)","v":0},null,{"$f":"+IF(OR($P$2=98,$P$2=42,$P$2=96,$P$2=97),$P123,0)","v":0},{"$f":"+IF(OR($P$2=98,$P$2=42,$P$2=96,$P$2=97),$Q123,0)","v":0},null,{"$f":"+IF($P$2=33,$Q123,0)","v":0},null,{"$f":"+ROUND(+G123+J123+L123,0)","v":0},null,{"$f":"+ROUND(+OTCHET!E517+OTCHET!E527+OTCHET!E553+OTCHET!E560+OTCHET!E561+OTCHET!E575+OTCHET!E587+IF(AND(OTCHET!$F$12=\"9900\",+OTCHET!$E$15=0),+OTCHET!E582,0),0)","v":0},{"$f":"+ROUND(+OTCHET!F517+OTCHET!F527+OTCHET!F553+OTCHET!F560+OTCHET!F561+OTCHET!F575+OTCHET!F587+IF(AND(OTCHET!$F$12=\"9900\",+OTCHET!$E$15=0),+OTCHET!F582,0),0)","v":0},null,"финансиращи §§ 87-00, 89-00, 93-30, 93-95, 93-96, 95-13 и 98-00 (за ЦБ - и § 96-01 и 96-02)"]
[null," 4. Разлики от закръгления в хил. лв. (+/-)",null,null,null,null,null,null,null,null,null,null,null,{"$f":"+ROUND(+G124+J124+L124,0)","v":0},null,null,null,null,"прилага се само за отчета в хил. лв."]
[null," З. ОБЩО НЕТО-РАЗЧЕТИ И ДРУГИ ОПЕРАЦИИ",null,null,null,{"$f":"+ROUND(+SUM(F121:F124),0)","v":0},{"$f":"+ROUND(+SUM(G121:G124),0)","v":-78267},null,{"$f":"+ROUND(+SUM(I121:I124),0)","v":0},{"$f":"+ROUND(+SUM(J121:J124),0)","v":0},null,{"$f":"+ROUND(+SUM(L121:L124),0)","v":0},null,{"$f":"+ROUND(+SUM(N121:N124),0)","v":-78267},null,{"$f":"+ROUND(+SUM(P121:P124),0)","v":0},{"$f":"+ROUND(+SUM(Q121:Q124),0)","v":-78267},null," Сборен ред за З. ОБЩО НЕТО-РАЗЧЕТИ И ДРУГИ НЕТНИ ПОЗИЦИИ"]
[null," И. ИЗМЕНЕНИЕ НА ПАРИЧНИТЕ СРЕДСТВА",null,null,null,null,null,null,null,null,null,null,null,null,null,null,null,null," И. ИЗМЕНЕНИЕ НА ПАРИЧНИТЕ СРЕДСТВА"]
[null," 1. Наличности на парични средства в началото на отчетния период",null,null,null,{"$f":"+IF($P$2=0,$P127,0)","v":0},{"$f":"+IF($P$2=0,$Q127,0)","v":150409},null,{"$f":"+IF(OR($P$2=98,$P$2=42,$P$2=96,$P$2=97),$P127,0)","v":0},{"$f":"+IF(OR($P$2=98,$P$2=42,$P$2=96,$P$2=97),$Q127,0)","v":0},null,{"$f":"+IF($P$2=33,$Q127,0)","v":0},null,{"$f":"+ROUND(+G127+J127+L127,0)","v":150409},null,{"$f":"+ROUND(+SUM(OTCHET!E563:E568)+SUM(OTCHET!E577:E578)+IF(AND(OTCHET!$F$12=\"9900\",+OTCHET!$E$15=0),0,SUM(OTCHET!E583:E584)),0)","v":0},{"$f":"+ROUND(+SUM(OTCHET!F563:F568)+SUM(OTCHET!F577:F578)+IF(AND(OTCHET!$F$12=\"9900\",+OTCHET!$E$15=0),0,SUM(OTCHET!F583:F584)),0)","v":150409},null,"финансиращи §§ 95-01 ÷ 95-06, 95-21, 95-22, 96-01 и 96-03 (за ЦБ -  без § 96-01 и 96-03)"]
[null," 2. Преоценка на наличности в чудестранна валута в края на отчетния период",null,null,null,{"$f":"+IF($P$2=0,$P128,0)","v":0},{"$f":"+IF($P$2=0,$Q128,0)","v":-190},null,{"$f":"+IF(OR($P$2=98,$P$2=42,$P$2=96,$P$2=97),$P128,0)","v":0},{"$f":"+IF(OR($P$2=98,$P$2=42,$P$2=96,$P$2=97),$Q128,0)","v":0},null,{"$f":"+IF($P$2=33,$Q128,0)","v":0},null,{"$f":"+ROUND(+G128+J128+L128,0)","v":-190},null,{"$f":"+ROUND(OTCHET!E576+OTCHET!E581,0)","v":0},{"$f":"+ROUND(OTCHET!F576+OTCHET!F581,0)","v":-190},null,"финансиращи §§ 95-14 и 95-49"]
[null," 3. Наличности на парични средства в края на отчетния период",null,null,null,{"$f":"+IF($P$2=0,$P129,0)","v":0},{"$f":"+IF($P$2=0,$Q129,0)","v":71952},null,{"$f":"+IF(OR($P$2=98,$P$2=42,$P$2=96,$P$2=97),$P129,0)","v":0},{"$f":"+IF(OR($P$2=98,$P$2=42,$P$2=96,$P$2=97),$Q129,0)","v":0},null,{"$f":"+IF($P$2=33,$Q129,0)","v":0},null,{"$f":"+ROUND(+G129+J129+L129,0)","v":71952},null,{"$f":"+ROUND(-SUM(OTCHET!E569:E574)-SUM(OTCHET!E579:E580)-IF(AND(OTCHET!$F$12=\"9900\",+OTCHET!$E$15=0),0,SUM(OTCHET!E585:E586)),0)","v":0},{"$f":"+ROUND(-SUM(OTCHET!F569:F574)-SUM(OTCHET!F579:F580)-IF(AND(OTCHET!$F$12=\"9900\",+OTCHET!$E$15=0),0,SUM(OTCHET!F585:F586)),0)","v":71952},null,"(-) §§ 95-07 ÷ 95-12, 95-28, 95-29, 96-07 и 96-09 (за ЦБ - § без 96-07 и 96-09)"]
[null," И. ИЗМЕНЕНИЕ НА ПАРИЧНИТЕ СРЕДСТВА (3. - 1. - 2.)",null,null,null,{"$f":"+ROUND(+F129-F127-F128,0)","v":0},{"$f":"+ROUND(+G129-G127-G128,0)","v":-78267},null,{"$f":"+ROUND(+I129-I127-I128,0)","v":0},{"$f":"+ROUND(+J129-J127-J128,0)","v":0},null,{"$f":"+ROUND(+L129-L127-L128,0)","v":0},null,{"$f":"+ROUND(+N129-N127-N128,0)","v":-78267},null,{"$f":"+ROUND(+P129-P127-P128,0)","v":0},{"$f":"+ROUND(+Q129-Q127-Q128,0)","v":-78267},null," Сборен ред за И. ИЗМЕНЕНИЕ НА ПАРИЧНИТЕ СРЕДСТВА (3. - 1. - 2.)"]
[null,{"$f":"+IF(+SUM(F131:N131)=0,0,\"Контрола: дефицит/излишък = финансиране с обратен знак (Г. + Д. = 0)\")","v":0},null,null,null,{"$f":"+ROUND(F82,0)+ROUND(F83,0)","v":0},{"$f":"+ROUND(G82,0)+ROUND(G83,0)","v":0},null,{"$f":"+ROUND(I82,0)+ROUND(I83,0)","v":0},{"$f":"+ROUND(J82,0)+ROUND(J83,0)","v":0},null,{"$f":"+ROUND(L82,0)+ROUND(L83,0)","v":0},null,{"$f":"+ROUND(N82,0)+ROUND(N83,0)","v":0},null,{"$f":"+ROUND(P82,0)+ROUND(P83,0)","v":0},{"$f":"+ROUND(Q82,0)+ROUND(Q83,0)","v":0}]
[null,"                                                              Дата:",{"$f":"+OTCHET!B601","v":0},"              ГЛ. СЧЕТОВОДИТЕЛ:",null,null,null,null,"                          РЪКОВОДИТЕЛ:"]
[]
[]
[null,"КОНТРОЛА - РАВНЕНИЕ МЕЖДУ БЮДЖЕТНО САЛДО И ФИНАНСИРАНЕ",null,null,null,{"$f":"+IF(+ROUND(F138,2)=0,\"O K\",\"НЕРАВНЕНИЕ!\")","v":"O K"},{"$f":"+IF(+ROUND(G138,2)=0,\"O K\",\"НЕРАВНЕНИЕ!\")","v":"O K"},null,{"$f":"+IF(+ROUND(I138,2)=0,\"O K\",\"НЕРАВНЕНИЕ!\")","v":"O K"},{"$f":"+IF(+ROUND(J138,2)=0,\"O K\",\"НЕРАВНЕНИЕ!\")","v":"O K"},null,{"$f":"+IF(+ROUND(L138,2)=0,\"O K\",\"НЕРАВНЕНИЕ!\")","v":"O K"},null,{"$f":"+IF(+ROUND(N138,2)=0,\"O K\",\"НЕРАВНЕНИЕ!\")","v":"O K"},null,{"$f":"+IF(+ROUND(P138,2)=0,\"O K\",\"НЕРАВНЕНИЕ!\")","v":"O K"},{"$f":"+IF(+ROUND(Q138,2)=0,\"O K\",\"НЕРАВНЕНИЕ!\")","v":"O K"}]
[null,"КОНТРОЛА - РАВНЕНИЕ НА КАСОВИ ПОТОЦИ С НАЛИЧНОСТ",null,null,null,{"$f":"+IF(+ROUND(F139,0)=0,\"O K\",\"НЕРАВНЕНИЕ!\")","v":"O K"},{"$f":"+IF(+ROUND(G139,0)=0,\"O K\",\"НЕРАВНЕНИЕ!\")","v":"O K"},null,{"$f":"+IF(+ROUND(I139,0)=0,\"O K\",\"НЕРАВНЕНИЕ!\")","v":"O K"},{"$f":"+IF(+ROUND(J139,0)=0,\"O K\",\"НЕРАВНЕНИЕ!\")","v":"O K"},null,{"$f":"+IF(+ROUND(L139,0)=0,\"O K\",\"НЕРАВНЕНИЕ!\")","v":"O K"},null,{"$f":"+IF(+ROUND(N139,0)=0,\"O K\",\"НЕРАВНЕНИЕ!\")","v":"O K"},null,{"$f":"+IF(+ROUND(P139,0)=0,\"O K\",\"НЕРАВНЕНИЕ!\")","v":"O K"},{"$f":"+IF(+ROUND(Q139,0)=0,\"O K\",\"НЕРАВНЕНИЕ!\")","v":"O K"}]
[]
[null,"КОНТРОЛА - РАВНЕНИЕ НА БЮДЖ. САЛДО И ФИНАНСИРАНЕ - неравнение в левове",null,null,null,{"$f":"+ROUND(F82,0)+ROUND(F83,0)","v":0},{"$f":"+ROUND(G82,0)+ROUND(G83,0)","v":0},null,{"$f":"+ROUND(I82,0)+ROUND(I83,0)","v":0},{"$f":"+ROUND(J82,0)+ROUND(J83,0)","v":0},null,{"$f":"+ROUND(L82,0)+ROUND(L83,0)","v":0},null,{"$f":"+ROUND(N82,0)+ROUND(N83,0)","v":0},null,{"$f":"+ROUND(P82,0)+ROUND(P83,0)","v":0},{"$f":"+ROUND(Q82,0)+ROUND(Q83,0)","v":0}]
[null,"КОНТРОЛА - РАВНЕНИЕ НА КАСОВИ ПОТОЦИ С НАЛИЧНОСТ - неравнение в левове",null,null,null,{"$f":"SUM(+ROUND(F82,0)+ROUND(F100,0)+ROUND(F119,0)+ROUND(F125,0)+ROUND(F127,0)+ROUND(F128,0))-ROUND(F129,0)","v":0},{"$f":"SUM(+ROUND(G82,0)+ROUND(G100,0)+ROUND(G119,0)+ROUND(G125,0)+ROUND(G127,0)+ROUND(G128,0))-ROUND(G129,0)","v":0},null,{"$f":"SUM(+ROUND(I82,0)+ROUND(I100,0)+ROUND(I119,0)+ROUND(I125,0)+ROUND(I127,0)+ROUND(I128,0))-ROUND(I129,0)","v":0},{"$f":"SUM(+ROUND(J82,0)+ROUND(J100,0)+ROUND(J119,0)+ROUND(J125,0)+ROUND(J127,0)+ROUND(J128,0))-ROUND(J129,0)","v":0},null,{"$f":"SUM(+ROUND(L82,0)+ROUND(L100,0)+ROUND(L119,0)+ROUND(L125,0)+ROUND(L127,0)+ROUND(L128,0))-ROUND(L129,0)","v":0},null,{"$f":"SUM(+ROUND(N82,0)+ROUND(N100,0)+ROUND(N119,0)+ROUND(N125,0)+ROUND(N127,0)+ROUND(N128,0))-ROUND(N129,0)","v":0},null,{"$f":"SUM(+ROUND(P82,0)+ROUND(P100,0)+ROUND(P119,0)+ROUND(P125,0)+ROUND(P127,0)+ROUND(P128,0))-ROUND(P129,0)","v":0},{"$f":"SUM(+ROUND(Q82,0)+ROUND(Q100,0)+ROUND(Q119,0)+ROUND(Q125,0)+ROUND(Q127,0)+ROUND(Q128,0))-ROUND(Q129,0)","v":0}]

{"sheet":"OTCHET-agregirani pokazateli","index":1,"n_rows":112,"n_cols":15,"rows_kept":112,"cut":false,"hidden":false,"merged":[[10,8,10,9],[11,8,13,9],[111,8,111,9],[111,4,111,5],[105,6,105,7],[107,4,107,5],[16,4,17,4],[16,5,17,5]]}
[]
[]
[]
[]
[]
[]
[]
[null,{"$f":"VLOOKUP(E15,SMETKA,3,FALSE)","v":"                                  ОТЧЕТ ЗА КАСОВОТО ИЗПЪЛНЕНИЕ НА БЮДЖЕТА"}]
[]
[]
[null,{"$f":"+OTCHET!B9","v":"ОБЛАСТНА АДМИНИСТРАЦИЯ ПАЗАРДЖИК"},null,null,"към",{"$f":"OTCHET!F9","v":"2017-12-31"},"ЕИК/БУЛСТАТ",{"$f":"+OTCHET!H9","v":112121473},{"$f":"+OTCHET!I9","v":30010130}]
[null,"                                  (наименование на разпоредителя с бюджет)",null,null,null,null,null,null,"код от регистъра на бюджетните организации в СЕБРА"]
[null,{"$f":"+OTCHET!B12","v":"Министерски съвет "},null,null,{"$f":"+OTCHET!E12","v":"код по ЕБК:"},{"$f":"+OTCHET!F12","v":"0300"}]
[null,"               (наименование на първостепенния разпоредител с бюджет)"]
[null,"финансово-правна форма",null,null,{"$f":"OTCHET!E15","v":0},{"$f":"OTCHET!F15","v":"БЮДЖЕТ"}]
[null,null,null,null,null,null,null,null,null,"(в левове)"]
[null,null,"§§",null,"Годишен         уточнен план                           2017 г.","ОТЧЕТ               2017 г.","                                      ОТЧЕТНИ ДАННИ ЗА:",null,null,null,null,null,null,null,"§§ от ЕБК, които се включват в съответния показател"]
[null,"П О К А З А Т Е Л И",null,null,null,null,"левови\n сметки и СЕБРА ","валутни \nсметки ","операции в брой (в левове и валута)","операции приравнени на касов поток","ОТЧЕТ","ОТЧЕТ"]
[]
[null,"(а)",null,null,"(1)","(2)","(3)","(4)","(5)","(6)","(код 4)","(код 5)","(код 5)"]
[]
[10,"I. СОБСТВЕНИ ПРИХОДИ И ПОМОЩИ ","§§ 01 - 48",null,{"$f":"+E23+E25+E36+E37","v":142000},102353,43811,0,58542,0,{"$f":"+K23+K25+K35+K36+K37","v":0},{"$f":"+L23+L25+L35+L36+L37","v":0},{"$f":"+M23+M25+M35+M36","v":0},null,"§§ 01 - 48"]
[15,"1. Данъчни приходи","§§ 01 - 20  ",null,{"$f":"OTCHET!E22+OTCHET!E28+OTCHET!E33+OTCHET!E39+OTCHET!E47+OTCHET!E52+OTCHET!E58+OTCHET!E61+OTCHET!E64+OTCHET!E65+OTCHET!E72+OTCHET!E73+OTCHET!E74","v":0},{"$f":"+G23+H23+I23+J23","v":0},{"$f":"OTCHET!G22+OTCHET!G28+OTCHET!G33+OTCHET!G39+OTCHET!G47+OTCHET!G52+OTCHET!G58+OTCHET!G61+OTCHET!G64+OTCHET!G65+OTCHET!G72+OTCHET!G73+OTCHET!G74","v":0},{"$f":"OTCHET!H22+OTCHET!H28+OTCHET!H33+OTCHET!H39+OTCHET!H47+OTCHET!H52+OTCHET!H58+OTCHET!H61+OTCHET!H64+OTCHET!H65+OTCHET!H72+OTCHET!H73+OTCHET!H74","v":0},{"$f":"OTCHET!I22+OTCHET!I28+OTCHET!I33+OTCHET!I39+OTCHET!I47+OTCHET!I52+OTCHET!I58+OTCHET!I61+OTCHET!I64+OTCHET!I65+OTCHET!I72+OTCHET!I73+OTCHET!I74","v":0},{"$f":"OTCHET!J22+OTCHET!J28+OTCHET!J33+OTCHET!J39+OTCHET!J47+OTCHET!J52+OTCHET!J58+OTCHET!J61+OTCHET!J64+OTCHET!J65+OTCHET!J72+OTCHET!J73+OTCHET!J74","v":0},null,null,null,null,"§§ 01 - 20  "]
[null,"в т. ч. трансфери за отчислени приходи","§ 65",null,null,0,null,null,null,null,null,null,null,null,"§ 65"]
[20,"2. Други приходи","§§ 24 - 42",null,{"$f":"+E26+E30+E31+E32+E33","v":142000},{"$f":"+F26+F30+F31+F32+F33","v":102353},{"$f":"+G26+G30+G31+G32+G33","v":43811},{"$f":"+H26+H30+H31+H32+H33","v":0},{"$f":"+I26+I30+I31+I32+I33","v":58542},{"$f":"+J26+J30+J31+J32+J33","v":0},0,0,0,null,"§§ 24 - 42"]
[25,"2.1 Приходи и доходи от собственост ","§24",null,{"$f":"OTCHET!E75","v":60000},64530,{"$f":"OTCHET!G75","v":11868},{"$f":"OTCHET!H75","v":0},{"$f":"OTCHET!I75","v":52662},{"$f":"OTCHET!J75","v":0},null,null,null,null,"§24"]
[26,"в т. ч.   вноски от приходи на държавни и общински предприятия и институции","под.§ 24-01",null,{"$f":"OTCHET!E76","v":0},0,{"$f":"OTCHET!G76","v":0},{"$f":"OTCHET!H76","v":0},{"$f":"OTCHET!I76","v":0},{"$f":"OTCHET!J76","v":0},null,null,null,null,"под.§ 24-01"]
[30,"             нетни приходи от продажба на услуги, стоки и продукция","под.§ 24-04",null,{"$f":"OTCHET!E78","v":0},0,{"$f":"OTCHET!G78","v":0},{"$f":"OTCHET!H78","v":0},{"$f":"OTCHET!I78","v":0},{"$f":"OTCHET!J78","v":0},null,null,null,null,"под.§ 24-04"]
[35,"             приходи от наеми на имущество и земя ","под.§§ 24-05 и 24-06",null,{"$f":"+OTCHET!E79+OTCHET!E80","v":60000},64530,{"$f":"+OTCHET!G79+OTCHET!G80","v":11868},{"$f":"+OTCHET!H79+OTCHET!H80","v":0},{"$f":"+OTCHET!I79+OTCHET!I80","v":52662},{"$f":"+OTCHET!J79+OTCHET!J80","v":0},null,null,null,null,"под.§§ 24-05 и 24-06"]
[40,"2.2 Приходи от такси","§§ 25 - 27",null,{"$f":"OTCHET!E90+OTCHET!E93+OTCHET!E94","v":7000},5668,{"$f":"OTCHET!G90+OTCHET!G93+OTCHET!G94","v":165},{"$f":"OTCHET!H90+OTCHET!H93+OTCHET!H94","v":0},{"$f":"OTCHET!I90+OTCHET!I93+OTCHET!I94","v":5503},{"$f":"OTCHET!J90+OTCHET!J93+OTCHET!J94","v":0},null,null,null,null,"§§ 25 - 27"]
[45,"2.3 Глоби, санкции и наказателни лихви ","§28",null,{"$f":"OTCHET!E108","v":0},431,{"$f":"OTCHET!G108","v":394},{"$f":"OTCHET!H108","v":0},{"$f":"OTCHET!I108","v":37},{"$f":"OTCHET!J108","v":0},null,null,null,null,"§28"]
[50,"2.4  Други неданъчни приходи ","§§ 36 - 37 и §§ 41 - 42",null,{"$f":"OTCHET!E112+OTCHET!E120+OTCHET!E136+OTCHET!E137","v":5000},-7046,{"$f":"OTCHET!G112+OTCHET!G120+OTCHET!G136+OTCHET!G137","v":-7386},{"$f":"OTCHET!H112+OTCHET!H120+OTCHET!H136+OTCHET!H137","v":0},{"$f":"OTCHET!I112+OTCHET!I120+OTCHET!I136+OTCHET!I137","v":340},{"$f":"OTCHET!J112+OTCHET!J120+OTCHET!J136+OTCHET!J137","v":0},null,null,null,null,"§§ 36 - 37 и §§ 41 - 42"]
[51,"2.5  Постъпления от продажба на нефинансови активи","§ 40 с изключение на под.§ 40-71",null,{"$f":"OTCHET!E124","v":70000},38770,{"$f":"OTCHET!G124","v":38770},{"$f":"OTCHET!H124","v":0},{"$f":"OTCHET!I124","v":0},{"$f":"OTCHET!J124","v":0},null,null,null,null,"§ 40 с изключение на под.§ 40-71"]
[52,null,null,null,null,0]
[null,null,null,null,null,0]
[60,"3. Помощи и  дарения от страната","§ 45 ",null,{"$f":"+OTCHET!E138","v":0},0,{"$f":"+OTCHET!G138","v":0},{"$f":"+OTCHET!H138","v":0},{"$f":"+OTCHET!I138","v":0},{"$f":"+OTCHET!J138","v":0},null,null,null,null,"§ 45 "]
[65,"4. Помощи и дарения от чужбина","§§ 46 - 48  ",null,{"$f":"OTCHET!E141+OTCHET!E150+OTCHET!E159","v":0},0,{"$f":"OTCHET!G141+OTCHET!G150+OTCHET!G159","v":0},{"$f":"OTCHET!H141+OTCHET!H150+OTCHET!H159","v":0},{"$f":"OTCHET!I141+OTCHET!I150+OTCHET!I159","v":0},{"$f":"OTCHET!J141+OTCHET!J150+OTCHET!J159","v":0},null,null,null,null,"§§ 46 - 48  "]
[70,"II. РАЗХОДИ ","§§ 01 - 57",null,{"$f":"SUM(E39:E53)-E44-E46-E51-E52","v":1157098},1131456,966422,0,4380,160654,{"$f":"SUM(K39:K52)-K44-K46-K51","v":0},{"$f":"SUM(L39:L52)-L44-L46-L51","v":0},{"$f":"SUM(M39:M51)-M44-M50","v":0},null,"§§ 01 - 57"]
[75,"1. Заплати и възнаграждения за персонала, нает по трудови и служебни прав. ","§ 01",null,{"$f":"OTCHET!E186","v":305873},305311,{"$f":"OTCHET!G186","v":266478},{"$f":"OTCHET!H186","v":0},{"$f":"OTCHET!I186","v":0},{"$f":"OTCHET!J186","v":38833},null,null,null,null,"§ 01"]
[80,"2. Други възнаграждения и плащания за персонала ","§ 02",null,{"$f":"OTCHET!E189","v":140445},139458,{"$f":"OTCHET!G189","v":123816},{"$f":"OTCHET!H189","v":0},{"$f":"OTCHET!I189","v":0},{"$f":"OTCHET!J189","v":15642},null,null,null,null,"§ 02"]
[85,"3. Осигурителни вноски","§§ 05 и 08",null,{"$f":"+OTCHET!E195+OTCHET!E203","v":107413},106179,{"$f":"+OTCHET!G195+OTCHET!G203","v":0},{"$f":"+OTCHET!H195+OTCHET!H203","v":0},{"$f":"+OTCHET!I195+OTCHET!I203","v":0},{"$f":"+OTCHET!J195+OTCHET!J203","v":106179},null,null,null,null,"§§ 05 и 08"]
[90,"4. Издръжка ","§§ 10; 19; 46",null,{"$f":"+OTCHET!E204+OTCHET!E222+OTCHET!E271","v":599867},578708,{"$f":"+OTCHET!G204+OTCHET!G222+OTCHET!G271","v":574328},{"$f":"+OTCHET!H204+OTCHET!H222+OTCHET!H271","v":0},{"$f":"+OTCHET!I204+OTCHET!I222+OTCHET!I271","v":4380},{"$f":"+OTCHET!J204+OTCHET!J222+OTCHET!J271","v":0},null,null,null,null,"§§ 10; 19; 46"]
[95,"5. Лихви ","§§ 21 - 29",null,{"$f":"+OTCHET!E226+OTCHET!E232+OTCHET!E235+OTCHET!E236+OTCHET!E237+OTCHET!E238+OTCHET!E239","v":0},0,{"$f":"+OTCHET!G226+OTCHET!G232+OTCHET!G235+OTCHET!G236+OTCHET!G237+OTCHET!G238+OTCHET!G239","v":0},{"$f":"+OTCHET!H226+OTCHET!H232+OTCHET!H235+OTCHET!H236+OTCHET!H237+OTCHET!H238+OTCHET!H239","v":0},{"$f":"+OTCHET!I226+OTCHET!I232+OTCHET!I235+OTCHET!I236+OTCHET!I237+OTCHET!I238+OTCHET!I239","v":0},{"$f":"+OTCHET!J226+OTCHET!J232+OTCHET!J235+OTCHET!J236+OTCHET!J237+OTCHET!J238+OTCHET!J239","v":0},null,null,null,null,"§§ 21 - 29"]
[100,"в т. ч. външни ","§§ 25 - 28; 29-69/29-70 и 29-92 ",null,{"$f":"+OTCHET!E235+OTCHET!E236+OTCHET!E237+OTCHET!E238+OTCHET!E242+OTCHET!E243+OTCHET!E247","v":0},0,{"$f":"+OTCHET!G235+OTCHET!G236+OTCHET!G237+OTCHET!G238+OTCHET!G242+OTCHET!G243+OTCHET!G247","v":0},{"$f":"+OTCHET!H235+OTCHET!H236+OTCHET!H237+OTCHET!H238+OTCHET!H242+OTCHET!H243+OTCHET!H247","v":0},{"$f":"+OTCHET!I235+OTCHET!I236+OTCHET!I237+OTCHET!I238+OTCHET!I242+OTCHET!I243+OTCHET!I247","v":0},{"$f":"+OTCHET!J235+OTCHET!J236+OTCHET!J237+OTCHET!J238+OTCHET!J242+OTCHET!J243+OTCHET!J247","v":0},null,null,null,null,"§§ 25 - 28; 29-69/29-70 и 29-92 "]
[105,"6. Социални разходи, стипендии","§§ 39 - 42",null,{"$f":"+OTCHET!E255+OTCHET!E256+OTCHET!E257+OTCHET!E258","v":0},0,{"$f":"+OTCHET!G255+OTCHET!G256+OTCHET!G257+OTCHET!G258","v":0},{"$f":"+OTCHET!H255+OTCHET!H256+OTCHET!H257+OTCHET!H258","v":0},{"$f":"+OTCHET!I255+OTCHET!I256+OTCHET!I257+OTCHET!I258","v":0},{"$f":"+OTCHET!J255+OTCHET!J256+OTCHET!J257+OTCHET!J258","v":0},null,null,null,null,"§§ 39 - 42"]
[106,"в т. ч. стипендии","§ 40",null,{"$f":"+OTCHET!E256","v":0},0,{"$f":"+OTCHET!G256","v":0},{"$f":"+OTCHET!H256","v":0},{"$f":"+OTCHET!I256","v":0},{"$f":"+OTCHET!J256","v":0},null,null,null,null,"§ 40"]
[107,"7.Субсидии ","§§ 43 - 45; 49",null,{"$f":"+OTCHET!E265+OTCHET!E269+OTCHET!E270+OTCHET!E273","v":0},0,{"$f":"+OTCHET!G265+OTCHET!G269+OTCHET!G270+OTCHET!G273","v":0},{"$f":"+OTCHET!H265+OTCHET!H269+OTCHET!H270+OTCHET!H273","v":0},{"$f":"+OTCHET!I265+OTCHET!I269+OTCHET!I270+OTCHET!I273","v":0},{"$f":"+OTCHET!J265+OTCHET!J269+OTCHET!J270+OTCHET!J273","v":0},null,null,null,null,"§§ 43 - 45; 49-01"]
[108,"8. Придобиване на нeфинансови актииви","§§ 51 - 54",null,{"$f":"OTCHET!E275+OTCHET!E276+OTCHET!E284+OTCHET!E287","v":3500},1800,{"$f":"OTCHET!G275+OTCHET!G276+OTCHET!G284+OTCHET!G287","v":1800},{"$f":"OTCHET!H275+OTCHET!H276+OTCHET!H284+OTCHET!H287","v":0},{"$f":"OTCHET!I275+OTCHET!I276+OTCHET!I284+OTCHET!I287","v":0},{"$f":"OTCHET!J275+OTCHET!J276+OTCHET!J284+OTCHET!J287","v":0},null,null,null,null,"§§ 51 - 54"]
[110,"9. Капиталови трансфери","§ 55",null,{"$f":"+OTCHET!E288+OTCHET!E274","v":0},0,{"$f":"+OTCHET!G288+OTCHET!G274","v":0},{"$f":"+OTCHET!H288+OTCHET!H274","v":0},{"$f":"+OTCHET!I288+OTCHET!I274","v":0},{"$f":"+OTCHET!J288+OTCHET!J274","v":0},null,null,null,null,"§ 55; 49-02"]
[115,"10. Прираст на държавния резерв и изкупуване на земеделска продукция ","(+ § 57 - под.§ 40-71)",null,{"$f":"+OTCHET!E293","v":0},0,{"$f":"+OTCHET!G293","v":0},{"$f":"+OTCHET!H293","v":0},{"$f":"+OTCHET!I293","v":0},{"$f":"+OTCHET!J293","v":0},null,null,null,null,"(+ § 57 - под.§ 40-71)"]
[120,"в т. ч. плащания за попълване на държавния резерв","под.§;57-01",null,{"$f":"OTCHET!E294","v":0},0,{"$f":"OTCHET!G294","v":0},{"$f":"OTCHET!H294","v":0},{"$f":"OTCHET!I294","v":0},{"$f":"OTCHET!J294","v":0},null,null,null,null,"под.§;57-01"]
[125,"          постъпления от продажби на държавния резерв (-)","(-)под.§ 40-71",null,{"$f":"OTCHET!E296","v":0},0,{"$f":"OTCHET!G296","v":0},{"$f":"OTCHET!H296","v":0},{"$f":"OTCHET!I296","v":0},{"$f":"OTCHET!J296","v":0},null,null,null,null,"(-)под.§ 40-71"]
[127,"11. Резерв за непредвидини и неотложни разходи","§;00-98",null,{"$f":"+OTCHET!E297","v":0},0,{"$f":"+OTCHET!G297","v":0},{"$f":"+OTCHET!H297","v":0},{"$f":"+OTCHET!I297","v":0},{"$f":"+OTCHET!J297","v":0},null,null,null,null,"§;00-98"]
[130,"III. Трансфери","§§ 30 - 31; 32; 60 - 67; 69; 74 - 78 ",null,{"$f":"+E55+E56+E60","v":1015098},1029118,852288,0,0,176830,{"$f":"+K55+K56+K59","v":0},{"$f":"+L55+L56+L59","v":0},{"$f":"+M55+M56+M59","v":0},null,"§§ 30 - 31; 32; 60 - 67; 69; 74 - 78 "]
[135,"1. Трансфери от/за ЦБ за/от други бюджети ","§§ 30 - 31; 60",null,{"$f":"+OTCHET!E357+OTCHET!E371+OTCHET!E384","v":0},0,{"$f":"+OTCHET!G357+OTCHET!G371+OTCHET!G384","v":0},{"$f":"+OTCHET!H357+OTCHET!H371+OTCHET!H384","v":0},{"$f":"+OTCHET!I357+OTCHET!I371+OTCHET!I384","v":0},{"$f":"+OTCHET!J357+OTCHET!J371+OTCHET!J384","v":0},null,null,null,null,"§§ 30 - 31; 60"]
[140,"2. Други трансфери ","§§ 32; 61- 67;  74 - 78",null,{"$f":"+OTCHET!E379+OTCHET!E387+OTCHET!E392+OTCHET!E395+OTCHET!E398+OTCHET!E401+OTCHET!E402+OTCHET!E405+OTCHET!E418+OTCHET!E419+OTCHET!E420+OTCHET!E421+OTCHET!E422","v":1015098},852288,{"$f":"+OTCHET!G379+OTCHET!G387+OTCHET!G392+OTCHET!G395+OTCHET!G398+OTCHET!G401+OTCHET!G402+OTCHET!G405+OTCHET!G418+OTCHET!G419+OTCHET!G420+OTCHET!G421+OTCHET!G422","v":852288},{"$f":"+OTCHET!H379+OTCHET!H387+OTCHET!H392+OTCHET!H395+OTCHET!H398+OTCHET!H401+OTCHET!H402+OTCHET!H405+OTCHET!H418+OTCHET!H419+OTCHET!H420+OTCHET!H421+OTCHET!H422","v":0},{"$f":"+OTCHET!I379+OTCHET!I387+OTCHET!I392+OTCHET!I395+OTCHET!I398+OTCHET!I401+OTCHET!I402+OTCHET!I405+OTCHET!I418+OTCHET!I419+OTCHET!I420+OTCHET!I421+OTCHET!I422","v":0},{"$f":"+OTCHET!J379+OTCHET!J387+OTCHET!J392+OTCHET!J395+OTCHET!J398+OTCHET!J401+OTCHET!J402+OTCHET!J405+OTCHET!J418+OTCHET!J419+OTCHET!J420+OTCHET!J421+OTCHET!J422","v":0},null,null,null,null,"§§ 32; 61- 67;  74 - 78"]
[145,"в т. ч. временни безлихвени заеми","§§ 74 - 78",null,{"$f":"+OTCHET!E418+OTCHET!E419+OTCHET!E420+OTCHET!E421+OTCHET!E422","v":0},0,{"$f":"+OTCHET!G418+OTCHET!G419+OTCHET!G420+OTCHET!G421+OTCHET!G422","v":0},{"$f":"+OTCHET!H418+OTCHET!H419+OTCHET!H420+OTCHET!H421+OTCHET!H422","v":0},{"$f":"+OTCHET!I418+OTCHET!I419+OTCHET!I420+OTCHET!I421+OTCHET!I422","v":0},{"$f":"+OTCHET!J418+OTCHET!J419+OTCHET!J420+OTCHET!J421+OTCHET!J422","v":0},null,null,null,null,"§§ 74 - 78"]
[150,"         трансфери за отчислени постъпления","§ 65",null,{"$f":"OTCHET!E401","v":0},0,{"$f":"OTCHET!G401","v":0},{"$f":"OTCHET!H401","v":0},{"$f":"OTCHET!I401","v":0},{"$f":"OTCHET!J401","v":0},null,null,null,null,"§ 65"]
[160,null,null,null,null,0]
[162,"3. Трансфери за поети осигурителни вноски и данъци","§ 69",null,{"$f":"OTCHET!E408","v":0},176830,{"$f":"OTCHET!G408","v":0},{"$f":"OTCHET!H408","v":0},{"$f":"OTCHET!I408","v":0},{"$f":"OTCHET!J408","v":176830},null,null,null,null,"§ 69"]
[165,"IV. Вноска в бюджета на ЕС","§ 33",null,{"$f":"+OTCHET!E248","v":0},0,{"$f":"+OTCHET!G248","v":0},{"$f":"+OTCHET!H248","v":0},{"$f":"+OTCHET!I248","v":0},{"$f":"+OTCHET!J248","v":0},null,null,null,null,"§ 33"]
[175,"V. Дефицит / излишък = I - II +III - IV ",null,null,{"$f":"+E22-E38+E54-E61","v":0},15,-70323,0,54162,16176,{"$f":"+K22-K38+K54","v":0},{"$f":"+L22-L38+L54","v":0},{"$f":"+M22-M38+M54","v":0}]
[180,{"$f":"+IF(+SUM(E$63:J$63)=0,0,\"Контрола: дефицит/излишък = финансиране с обратен знак (V. + VІ. = 0)\")","v":0},null,null,{"$f":"+E$62+E$64","v":0},0,0,0,0,0,{"$f":"+K62+K64","v":{"$error":"#REF!"}},{"$f":"+L62+L64","v":{"$error":"#REF!"}},{"$f":"+M62+M64","v":{"$error":"#REF!"}}]
[185,"VI. Финансиране ","§§ 70 - 98",null,{"$f":"SUM(+E66+E74+E75+E82+E83+E84+E87+E88+E89+E90+E91+E92+E93)","v":0},{"$f":"SUM(+F66+F74+F75+F82+F83+F84+F87+F88+F89+F90+F91+F92+F93)","v":-15},{"$f":"SUM(+G66+G74+G75+G82+G83+G84+G87+G88+G89+G90+G91+G92+G93)","v":70323},{"$f":"SUM(+H66+H74+H75+H82+H83+H84+H87+H88+H89+H90+H91+H92+H93)","v":0},{"$f":"SUM(+I66+I74+I75+I82+I83+I84+I87+I88+I89+I90+I91+I92+I93)","v":-54162},{"$f":"SUM(+J66+J74+J75+J82+J83+J84+J87+J88+J89+J90+J91+J92+J93)","v":-16176},{"$error":"#REF!"},{"$error":"#REF!"},{"$f":"SUM(+M66+M74+M75+M82+M83+M84+M87+M88+M89+M90+M91+M93+M94)","v":{"$error":"#REF!"}},null,"§§ 70 - 98"]
[190,null,null,null,null,0]
[195,"1. Външно финансиране","§§ 80 - 82; 92-01; 95-21/95-22; 95-28/95-29 и 95-49",null,{"$f":"SUM(E67:E73)","v":0},{"$f":"SUM(F67:F73)","v":0},{"$f":"SUM(G67:G73)","v":0},{"$f":"SUM(H67:H73)","v":0},{"$f":"SUM(I67:I73)","v":0},{"$f":"SUM(J67:J73)","v":0},{"$error":"#REF!"},{"$error":"#REF!"},{"$error":"#REF!"},null,"§§ 80 - 82; 92-01; 95-21/95-22; 95-28/95-29 и 95-49"]
[200,"            получени външни заеми ","под.§§ 80-11/80-12; 80-31/80-32; 80-51/80-52 и 80-97",null,{"$f":"+OTCHET!E478+OTCHET!E479+OTCHET!E482+OTCHET!E483+OTCHET!E486+OTCHET!E487+OTCHET!E491","v":0},0,{"$f":"+OTCHET!G478+OTCHET!G479+OTCHET!G482+OTCHET!G483+OTCHET!G486+OTCHET!G487+OTCHET!G491","v":0},{"$f":"+OTCHET!H478+OTCHET!H479+OTCHET!H482+OTCHET!H483+OTCHET!H486+OTCHET!H487+OTCHET!H491","v":0},{"$f":"+OTCHET!I478+OTCHET!I479+OTCHET!I482+OTCHET!I483+OTCHET!I486+OTCHET!I487+OTCHET!I491","v":0},{"$f":"+OTCHET!J478+OTCHET!J479+OTCHET!J482+OTCHET!J483+OTCHET!J486+OTCHET!J487+OTCHET!J491","v":0},{"$f":"+#REF!+#REF!+#REF!+#REF!+#REF!+#REF!+#REF!","v":{"$error":"#REF!"}},{"$f":"+#REF!+#REF!+#REF!+#REF!+#REF!+#REF!+#REF!","v":{"$error":"#REF!"}},{"$f":"+#REF!+#REF!+#REF!+#REF!+#REF!+#REF!+#REF!","v":{"$error":"#REF!"}},null,"под.§§ 80-11/80-12; 80-31/80-32; 80-51/80-52 и 80-97"]
[205,"            погашения по външни заеми ","под.§§ 80-17/80-18; 80-37/80-38; 80-57/80-58; 80-80 и 80-98;",null,{"$f":"+OTCHET!E480+OTCHET!E481+OTCHET!E484+OTCHET!E485+OTCHET!E488+OTCHET!E489+OTCHET!E490+OTCHET!E492","v":0},0,{"$f":"+OTCHET!G480+OTCHET!G481+OTCHET!G484+OTCHET!G485+OTCHET!G488+OTCHET!G489+OTCHET!G490+OTCHET!G492","v":0},{"$f":"+OTCHET!H480+OTCHET!H481+OTCHET!H484+OTCHET!H485+OTCHET!H488+OTCHET!H489+OTCHET!H490+OTCHET!H492","v":0},{"$f":"+OTCHET!I480+OTCHET!I481+OTCHET!I484+OTCHET!I485+OTCHET!I488+OTCHET!I489+OTCHET!I490+OTCHET!I492","v":0},{"$f":"+OTCHET!J480+OTCHET!J481+OTCHET!J484+OTCHET!J485+OTCHET!J488+OTCHET!J489+OTCHET!J490+OTCHET!J492","v":0},{"$f":"+#REF!+#REF!+#REF!+#REF!+#REF!+#REF!+#REF!+#REF!","v":{"$error":"#REF!"}},{"$f":"+#REF!+#REF!+#REF!+#REF!+#REF!+#REF!+#REF!+#REF!","v":{"$error":"#REF!"}},{"$f":"+#REF!+#REF!+#REF!+#REF!+#REF!+#REF!+#REF!+#REF!","v":{"$error":"#REF!"}},null,"под.§§ 80-17/80-18; 80-37/80-38; 80-57/80-58; 80-80 и 80-98;"]
[210,"            държавни /общински/ ЦК емитирани на м/нар. капиталови пазари ","§ 81",null,{"$f":"+OTCHET!E493","v":0},0,{"$f":"+OTCHET!G493","v":0},{"$f":"+OTCHET!H493","v":0},{"$f":"+OTCHET!I493","v":0},{"$f":"+OTCHET!J493","v":0},{"$f":"+#REF!","v":{"$error":"#REF!"}},{"$f":"+#REF!","v":{"$error":"#REF!"}},{"$f":"+#REF!","v":{"$error":"#REF!"}},null,"§ 81"]
[215,"            получени погашения по предоставени кредити от други държави ","§ 82",null,{"$f":"+OTCHET!E498","v":0},0,{"$f":"+OTCHET!G498","v":0},{"$f":"+OTCHET!H498","v":0},{"$f":"+OTCHET!I498","v":0},{"$f":"+OTCHET!J498","v":0},{"$f":"+#REF!","v":{"$error":"#REF!"}},{"$f":"+#REF!","v":{"$error":"#REF!"}},{"$f":"+#REF!","v":{"$error":"#REF!"}},null,"§ 82"]
[220,"            операции с др. ЦК и финансови активи ","под. § 92-01",null,{"$f":"+OTCHET!E538","v":0},0,{"$f":"+OTCHET!G538","v":0},{"$f":"+OTCHET!H538","v":0},{"$f":"+OTCHET!I538","v":0},{"$f":"+OTCHET!J538","v":0},{"$f":"+#REF!","v":{"$error":"#REF!"}},{"$f":"+#REF!","v":{"$error":"#REF!"}},{"$f":"+#REF!","v":{"$error":"#REF!"}},null,"под. § 92-01"]
[230,"            остатък в лв.равн. по валутни сметки и каса в чужбина от предх. период ","под. §§ 95-21и 95-22",null,{"$f":"+OTCHET!E577+OTCHET!E578","v":0},0,{"$f":"+OTCHET!G577+OTCHET!G578","v":0},{"$f":"+OTCHET!H577+OTCHET!H578","v":0},{"$f":"+OTCHET!I577+OTCHET!I578","v":0},{"$f":"+OTCHET!J577+OTCHET!J578","v":0},{"$f":"+#REF!+#REF!","v":{"$error":"#REF!"}},{"$f":"+#REF!+#REF!","v":{"$error":"#REF!"}},{"$f":"+#REF!+#REF!","v":{"$error":"#REF!"}},null,"под. §§ 95-21и 95-22"]
[235,"            наличности  в лв. равн.по валутни сметки и каса в чужб. в кр.на периода ","под. §§ 95-28/95-29 и 95-49",null,{"$f":"+OTCHET!E579+OTCHET!E580+OTCHET!E581","v":0},0,{"$f":"+OTCHET!G579+OTCHET!G580+OTCHET!G581","v":0},{"$f":"+OTCHET!H579+OTCHET!H580+OTCHET!H581","v":0},{"$f":"+OTCHET!I579+OTCHET!I580+OTCHET!I581","v":0},{"$f":"+OTCHET!J579+OTCHET!J580+OTCHET!J581","v":0},{"$f":"+#REF!+#REF!+#REF!","v":{"$error":"#REF!"}},{"$f":"+#REF!+#REF!+#REF!","v":{"$error":"#REF!"}},{"$f":"+#REF!+#REF!+#REF!","v":{"$error":"#REF!"}},null,"под. §§ 95-28/95-29 и 95-49"]
[240,"2. Придобиване на дялове, акции, съучастия и др, финансови активи ","§ 70",null,{"$f":"OTCHET!E457","v":0},0,{"$f":"OTCHET!G457","v":0},{"$f":"OTCHET!H457","v":0},{"$f":"OTCHET!I457","v":0},{"$f":"OTCHET!J457","v":0},{"$f":"#REF!","v":{"$error":"#REF!"}},{"$f":"#REF!","v":{"$error":"#REF!"}},{"$f":"#REF!","v":{"$error":"#REF!"}},null,"§ 70"]
[245,"3. Възмездни средства","§§ 71 - 73 и 79",null,{"$f":"SUM(E76:E81)","v":0},{"$f":"SUM(F76:F81)","v":0},{"$f":"SUM(G76:G81)","v":0},{"$f":"SUM(H76:H81)","v":0},{"$f":"SUM(I76:I81)","v":0},{"$f":"SUM(J76:J81)","v":0},0,0,0,null,"§§ 71 - 73 и 79"]
[250,"            предоставени ","под. § 71-01 и § 72-01",null,{"$f":"+OTCHET!E462+OTCHET!E465","v":0},0,{"$f":"+OTCHET!G462+OTCHET!G465","v":0},{"$f":"+OTCHET!H462+OTCHET!H465","v":0},{"$f":"+OTCHET!I462+OTCHET!I465","v":0},{"$f":"+OTCHET!J462+OTCHET!J465","v":0},null,null,null,null,"под. § 71-01 и § 72-01"]
[260,"            възстановени","под. § 71-02 и § 72-02 ",null,{"$f":"+OTCHET!E463+OTCHET!E466","v":0},0,{"$f":"+OTCHET!G463+OTCHET!G466","v":0},{"$f":"+OTCHET!H463+OTCHET!H466","v":0},{"$f":"+OTCHET!I463+OTCHET!I466","v":0},{"$f":"+OTCHET!J463+OTCHET!J466","v":0},null,null,null,null,"под. § 71-02 и § 72-02 "]
[265,"            нето плащания по активирани гаранции, поръчителства и преоформен дълг "," § 73",null,{"$f":"OTCHET!E467","v":0},0,{"$f":"OTCHET!G467","v":0},{"$f":"OTCHET!H467","v":0},{"$f":"OTCHET!I467","v":0},{"$f":"OTCHET!J467","v":0},null,null,null,null," § 73"]
[null,null,null,null,null,0]
[270,"            предоставени заеми към крайни бенифициенти","под. § 79-01",null,{"$f":"+OTCHET!E475","v":0},0,{"$f":"+OTCHET!G475","v":0},{"$f":"+OTCHET!H475","v":0},{"$f":"+OTCHET!I475","v":0},{"$f":"+OTCHET!J475","v":0},null,null,null,null,"под. § 79-01"]
[275,"            възстановени суми по заеми от крайни бенифициенти","под. § 79-02",null,{"$f":"+OTCHET!E476","v":0},0,{"$f":"+OTCHET!G476","v":0},{"$f":"+OTCHET!H476","v":0},{"$f":"+OTCHET!I476","v":0},{"$f":"+OTCHET!J476","v":0},null,null,null,null,"под. § 79-02"]
[280,"4. Приватизация на дялове, акции и участия","§ 90",null,{"$f":"OTCHET!E531","v":0},0,{"$f":"OTCHET!G531","v":0},{"$f":"OTCHET!H531","v":0},{"$f":"OTCHET!I531","v":0},{"$f":"OTCHET!J531","v":0},null,null,null,null,"§ 90"]
[285,"5. Покупко-продажба на държавни/общински/ ценни книжа от бюдж. предприятия ","§ 91",null,{"$f":"OTCHET!E532","v":0},0,{"$f":"OTCHET!G532","v":0},{"$f":"OTCHET!H532","v":0},{"$f":"OTCHET!I532","v":0},{"$f":"OTCHET!J532","v":0},null,null,null,null,"§ 91"]
[290,"6. Друго вътрешно финансиране ","§§ 83; 85 - 88; 92-02; 93",null,{"$f":"+E85+E86","v":0},{"$f":"+F85+F86","v":-78282},{"$f":"+G85+G86","v":-4994},{"$f":"+H85+H86","v":-56597},{"$f":"+I85+I86","v":-515},{"$f":"+J85+J86","v":-16176},0,0,0,null,"§§ 83; 85 - 88; 92-02; 93"]
[295,"            операции по вътрешен дълг и финан. активи- нето ","§§ 83; 85 - 86 и 92-02",null,{"$f":"+OTCHET!E499+OTCHET!E508+OTCHET!E512+OTCHET!E539","v":0},0,{"$f":"+OTCHET!G499+OTCHET!G508+OTCHET!G512+OTCHET!G539","v":0},{"$f":"+OTCHET!H499+OTCHET!H508+OTCHET!H512+OTCHET!H539","v":0},{"$f":"+OTCHET!I499+OTCHET!I508+OTCHET!I512+OTCHET!I539","v":0},{"$f":"+OTCHET!J499+OTCHET!J508+OTCHET!J512+OTCHET!J539","v":0},null,null,null,null,"§§ 83; 85 - 86 и 92-02"]
[300,"            друго финансиране ","§§ 87; 88 и 93",null,{"$f":"+OTCHET!E517+OTCHET!E520+OTCHET!E540","v":0},-78282,{"$f":"+OTCHET!G517+OTCHET!G520+OTCHET!G540","v":-4994},{"$f":"+OTCHET!H517+OTCHET!H520+OTCHET!H540","v":-56597},{"$f":"+OTCHET!I517+OTCHET!I520+OTCHET!I540","v":-515},{"$f":"+OTCHET!J517+OTCHET!J520+OTCHET!J540","v":-16176},null,null,null,null,"§§ 87; 88 и 93"]
[310,"7.Суми по разчети за поети осигур, вноски и данъци","§89",null,{"$f":"OTCHET!E527","v":0},{"$f":"+G87+H87+I87+J87","v":0},{"$f":"OTCHET!G527","v":0},{"$f":"OTCHET!H527","v":0},{"$f":"OTCHET!I527","v":0},{"$f":"OTCHET!J527","v":0},null,null,null,null,"§89"]
[320,"8. Наличности в началото на периода ","под. §§ 95-01 до 95-06",null,{"$f":"+OTCHET!E563+OTCHET!E564+OTCHET!E565+OTCHET!E566+OTCHET!E567+OTCHET!E568","v":0},150409,{"$f":"+OTCHET!G563+OTCHET!G564+OTCHET!G565+OTCHET!G566+OTCHET!G567+OTCHET!G568","v":0},{"$f":"+OTCHET!H563+OTCHET!H564+OTCHET!H565+OTCHET!H566+OTCHET!H567+OTCHET!H568","v":150409},{"$f":"+OTCHET!I563+OTCHET!I564+OTCHET!I565+OTCHET!I566+OTCHET!I567+OTCHET!I568","v":0},{"$f":"+OTCHET!J563+OTCHET!J564+OTCHET!J565+OTCHET!J566+OTCHET!J567+OTCHET!J568","v":0},null,null,null,null,"под. §§ 95-01 до 95-06"]
[330,"9 Наличности в края на периода ","под. §§ 95-07 до 95-13",null,{"$f":"+OTCHET!E569+OTCHET!E570+OTCHET!E571+OTCHET!E572+OTCHET!E573+OTCHET!E574+OTCHET!E575","v":0},-71952,{"$f":"+OTCHET!G569+OTCHET!G570+OTCHET!G571+OTCHET!G572+OTCHET!G573+OTCHET!G574+OTCHET!G575","v":0},{"$f":"+OTCHET!H569+OTCHET!H570+OTCHET!H571+OTCHET!H572+OTCHET!H573+OTCHET!H574+OTCHET!H575","v":-71952},{"$f":"+OTCHET!I569+OTCHET!I570+OTCHET!I571+OTCHET!I572+OTCHET!I573+OTCHET!I574+OTCHET!I575","v":0},{"$f":"+OTCHET!J569+OTCHET!J570+OTCHET!J571+OTCHET!J572+OTCHET!J573+OTCHET!J574+OTCHET!J575","v":0},null,null,null,null,"под. §§ 95-07 до 95-13"]
[335,"10. Преоценка на валутни наличности ","под. § 95-14",null,{"$f":"+OTCHET!E576","v":0},-190,{"$f":"+OTCHET!G576","v":0},{"$f":"+OTCHET!H576","v":-190},{"$f":"+OTCHET!I576","v":0},{"$f":"+OTCHET!J576","v":0},null,null,null,null,"под. § 95-14"]
[340,"11. Депозити и сметки консолидирани в \"Единната сметка\" от предх. период ","под. §§ 96-01 до 96-03",null,{"$f":"+OTCHET!E583+OTCHET!E584","v":0},0,{"$f":"+OTCHET!G583+OTCHET!G584","v":0},{"$f":"+OTCHET!H583+OTCHET!H584","v":0},{"$f":"+OTCHET!I583+OTCHET!I584","v":0},{"$f":"+OTCHET!J583+OTCHET!J584","v":0},null,null,null,null,"под. §§ 96-01 до 96-03"]
[345,"12. Депозити и сметки консолидирани в \"Единната сметка\" в края на периода","под. §§ 96-07 до 96-09",null,{"$f":"+OTCHET!E585+OTCHET!E586","v":0},0,{"$f":"+OTCHET!G585+OTCHET!G586","v":0},{"$f":"+OTCHET!H585+OTCHET!H586","v":0},{"$f":"+OTCHET!I585+OTCHET!I586","v":0},{"$f":"+OTCHET!J585+OTCHET!J586","v":0},null,null,null,null,"под. §§ 96-07 до 96-09"]
[350,"13. Касови операции, депозити, покупко-продажба на валута и сетълмент ","§ 98",null,{"$f":"OTCHET!E587","v":0},0,{"$f":"OTCHET!G587","v":75317},{"$f":"OTCHET!H587","v":-21670},{"$f":"OTCHET!I587","v":-53647},{"$f":"OTCHET!J587","v":0},null,null,null,null,"§ 98"]
[355,"            в т. ч. покупко-продажба на валута (+/-) ","под. § 98-30",null,{"$f":"+OTCHET!E590","v":0},0,{"$f":"+OTCHET!G590","v":21155},{"$f":"+OTCHET!H590","v":-21670},{"$f":"+OTCHET!I590","v":515},{"$f":"+OTCHET!J590","v":0},null,null,null,null,"под. § 98-30"]
[null,"ЧИСЛЕНОСТ НА ПЕРСОНАЛА"]
[null,"Щатни бройки "]
[null,"по трудови правоотношения"]
[null,"по служебни правоотношения"]
[]
[null,"Средногодишни щатни бройки "]
[null,"по трудови правоотношения"]
[null,"по служебни правоотношения"]
[null,{"$f":"+IF(+SUM(E$63:J$63)=0,0,\"Контрола: дефицит/излишък = финансиране с обратен знак (V. + VІ. = 0)\")","v":0},null,null,{"$f":"+E$62+E$64","v":0},0,0,0,0,0]
[]
[null,{"$f":"+OTCHET!H601","v":"accountant@pz.government.bg"},null,null,null,null,{"$f":"+OTCHET!E601","v":34},{"$f":"+OTCHET!F601","v":400023},null,{"$f":"+OTCHET!B601","v":"00:00:00"}]
[null,"(e-mail)",null,null,null,null,"(служебни телефони) ",null,null,"(дата)"]
[null,"ИЗГОТВИЛ:"]
[null,null,null,null,{"$f":"+OTCHET!D599","v":"НАДЕЖДА ЦОКОВА"}]
[]
[]
[null,"ГЛ. СЧЕТОВОДИТЕЛ:",null,null,null,null,null,"РЪКОВОДИТЕЛ:"]
[null,null,null,null,{"$f":"+OTCHET!G596","v":"НАДЕЖДА ЦОКОВА"},null,null,null,{"$f":"+OTCHET!G599","v":"СТЕФАН МИРЕВ"}]

{"sheet":"OTCHET F","index":2,"n_rows":734,"n_cols":15,"rows_kept":734,"cut":false,"hidden":true,"merged":[[6,1,6,3],[8,1,8,3],[11,1,11,3],[21,2,21,3],[22,2,22,3],[23,2,23,3],[18,2,18,3],[19,2,19,3],[24,2,24,3],[20,2,20,3],[25,2,25,3],[26,2,26,3],[27,2,27,3],[28,2,28,3],[29,2,29,3],[40,2,40,3],[42,2,42,3],[30,2,30,3],[31,2,31,3],[32,2,32,3],[33,2,33,3],[34,2,34,3],[35,2,35,3],[36,2,36,3],[37,2,37,3],[55,1,55,3],[58,1,58,3],[62,11,64,11],[62,12,64,12],[38,2,38,3],[39,2,39,3],[43,2,43,3],[44,2,44,3],[47,2,47,3],[53,1,53,3],[46,2,46,3],[45,2,45,3],[62,14,64,14],[63,2,63,3],[64,2,64,3],[62,2,62,3],[70,2,70,3],[77,2,77,3],[65,2,65,3],[66,2,66,3],[67,2,67,3],[68,2,68,3],[69,2,69,3],[71,2,71,3],[72,2,72,3],[73,2,73,3],[74,2,74,3],[79,2,79,3],[80,2,80,3],[81,2,81,3],[82,2,82,3],[83,2,83,3],[84,2,84,3],[85,2,85,3],[86,2,86,3],[62,13,64,13],[76,2,76,3],[75,2,75,3],[87,2,87,3],[88,2,88,3],[91,2,91,3],[92,2,92,3],[93,2,93,3],[94,2,94,3],[95,2,95,3],[98,1,98,3],[89,2,89,3],[90,2,90,3],[113,2,113,3],[129,2,129,3],[114,2,114,3],[100,1,100,3],[103,1,103,3],[107,2,107,3],[108,2,108,3],[111,2,111,3],[128,2,128,3],[115,2,115,3],[116,2,116,3],[112,2,112,3],[109,2,109,3],[110,2,110,3],[130,2,130,3],[118,2,118,3],[120,2,120,3],[121,2,121,3],[122,2,122,3],[117,2,117,3],[125,2,125,3],[126,2,126,3],[123,2,123,3],[124,2,124,3],[127,2,127,3],[131,2,131,3],[135,1,135,3],[137,1,137,3],[140,1,140,3],[151,1,151,3],[153,1,153,3],[156,1,156,3],[165,2,165,3],[160,2,160,3],[161,2,161,3],[162,2,162,3],[163,2,163,3],[164,2,164,3],[182,2,182,3],[183,2,183,3],[177,2,177,3],[180,2,180,3],[181,2,181,3],[174,2,174,3],[176,2,176,3],[166,2,166,3],[167,2,167,3],[178,2,178,3],[179,2,179,3],[168,2,168,3],[169,2,169,3],[170,2,170,3],[171,2,171,3],[172,2,172,3],[173,2,173,3],[175,2,175,3],[208,2,208,3],[197,2,197,3],[198,2,198,3],[184,2,184,3],[190,1,190,3],[206,2,206,3],[207,2,207,3],[200,2,200,3],[201,2,201,3],[204,2,204,3],[188,1,188,3],[193,1,193,3],[205,2,205,3],[202,2,202,3],[203,2,203,3],[199,2,199,3]]}
["a","b","c","d","e","f","g","h","h","h","pub"]
[null,null,null,null,null,null,null,null,null,null,1]
[null,null,null,null,null,null,null,null,null,null,1]
[null,null,null,null,null,null,null,null,null,null,1]
[null,null,null,null," "," ",null,null,null,null,1]
[null,null,null,null,null," ",null,null,null,null,1]
[null,{"$f":"OTCHET!B7","v":"ОТЧЕТНИ ДАННИ ПО ЕБК ЗА ИЗПЪЛНЕНИЕТО НА БЮДЖЕТА"},null,null,null,null,null,null,null,null,1]
[null,null,null,null,"за периода от ","до",null,null,null,null,1]
[null,{"$f":"OTCHET!B9","v":"ОБЛАСТНА АДМИНИСТРАЦИЯ ПАЗАРДЖИК"},null,null,{"$f":"OTCHET!$E9","v":"2017-01-01"},{"$f":"OTCHET!$F9","v":"2017-12-31"},null,null,null,null,1]
[null,{"$f":"OTCHET!B10","v":"                                                            (наименование на разпоредителя с бюджет)"},null,null,null,{"$f":"OTCHET!$F10","v":0},null,null,null,null,1]
[null,null,null,null,null,null,null,null,null,null,1]
[null,{"$f":"OTCHET!B12","v":"Министерски съвет "},null,null,"код :",{"$f":"OTCHET!$F12","v":"0300"},null,null,null,null,1]
[null,{"$f":"OTCHET!B13","v":"                                             (наименование на първостепенния разпоредител с бюджет)"},null,null,"(по ЕБК)"," ",null,null,null,null,1]
[null,null,null,null,null,null,null,null,null,null,1]
[null,null,null,null,null,null,null,null,null,null,1]
[null,null,null,null,null,null,null,null,null,null,1]
[null,null,null,null,null,null,null,null,null,null,1]
[null,null,null,null,null,null,null,null,null,"(в лева)",1]
[null,null,"I. ПРИХОДИ",null,"Уточнен план","Отчет",null,null,null,null,1]
[null,"§§","(параграфи от ЕБК)",null,2017,"Общо","левови\nсметки ","валутни\nсметки ","Касови операции в лева и валута","Приравнени некасови операции",1]
[null,null," 0 1 ¦",null,"(1)","(2)","(3)","(4)","(5)","(6)",1]
[5,100,"Данък върху доходите на физически лица:",null,{"$f":"OTCHET!$E22","v":0},{"$f":"OTCHET!$F22","v":0},{"$f":"OTCHET!$G22","v":0},{"$f":"OTCHET!$H22","v":0},{"$f":"OTCHET!$I22","v":0},{"$f":"OTCHET!$J22","v":0},{"$f":"(IF(E22<>0,$K$2,IF(F22<>0,$K$2,\"\")))","v":""}]
[25,200,"Корпоративен данък:",null,{"$f":"OTCHET!$E28","v":0},{"$f":"OTCHET!$F28","v":0},{"$f":"OTCHET!$G28","v":0},{"$f":"OTCHET!$H28","v":0},{"$f":"OTCHET!$I28","v":0},{"$f":"OTCHET!$J28","v":0},""]
[50,400,"Данъци върху дивидентите, ликвидационните дялове и доходите на местни и чуждестранни лица:",null,{"$f":"OTCHET!$E33","v":0},{"$f":"OTCHET!$F33","v":0},{"$f":"OTCHET!$G33","v":0},{"$f":"OTCHET!$H33","v":0},{"$f":"OTCHET!$I33","v":0},{"$f":"OTCHET!$J33","v":0},""]
[65,800,"Осигурителни вноски",null,{"$f":"OTCHET!$E39","v":0},{"$f":"OTCHET!$F39","v":0},{"$f":"OTCHET!$G39","v":0},{"$f":"OTCHET!$H39","v":0},{"$f":"OTCHET!$I39","v":0},{"$f":"OTCHET!$J39","v":0},""]
[95,1000,"Здравно-осигурителни вноски",null,{"$f":"OTCHET!$E47","v":0},{"$f":"OTCHET!$F47","v":0},{"$f":"OTCHET!$G47","v":0},{"$f":"OTCHET!$H47","v":0},{"$f":"OTCHET!$I47","v":0},{"$f":"OTCHET!$J47","v":0},""]
[130,1300,"Имуществени данъци :",null,{"$f":"OTCHET!$E52","v":0},{"$f":"OTCHET!$F52","v":0},{"$f":"OTCHET!$G52","v":0},{"$f":"OTCHET!$H52","v":0},{"$f":"OTCHET!$I52","v":0},{"$f":"OTCHET!$J52","v":0},""]
[160,1400,"Данък върху добавената стойност",null,{"$f":"OTCHET!$E58","v":0},{"$f":"OTCHET!$F58","v":0},{"$f":"OTCHET!$G58","v":0},{"$f":"OTCHET!$H58","v":0},{"$f":"OTCHET!$I58","v":0},{"$f":"OTCHET!$J58","v":0},""]
[175,1500,"Акцизи ",null,{"$f":"OTCHET!$E61","v":0},{"$f":"OTCHET!$F61","v":0},{"$f":"OTCHET!$G61","v":0},{"$f":"OTCHET!$H61","v":0},{"$f":"OTCHET!$I61","v":0},{"$f":"OTCHET!$J61","v":0},""]
[null,1600,"Данък върху застрахователните премии",null,{"$f":"OTCHET!$E64","v":0},{"$f":"OTCHET!$F64","v":0},{"$f":"OTCHET!$G64","v":0},{"$f":"OTCHET!$H64","v":0},{"$f":"OTCHET!$I64","v":0},{"$f":"OTCHET!$J64","v":0},""]
[200,1700,"Други данъци по Закона за корпоративното подоходно облагане:",null,{"$f":"OTCHET!$E65","v":0},{"$f":"OTCHET!$F65","v":0},{"$f":"OTCHET!$G65","v":0},{"$f":"OTCHET!$H65","v":0},{"$f":"OTCHET!$I65","v":0},{"$f":"OTCHET!$J65","v":0},""]
[231,1800,"Такси върху производството на захар и изоглюкоза",null,{"$f":"OTCHET!$E72","v":0},{"$f":"OTCHET!$F72","v":0},{"$f":"OTCHET!$G72","v":0},{"$f":"OTCHET!$H72","v":0},{"$f":"OTCHET!$I72","v":0},{"$f":"OTCHET!$J72","v":0},""]
[235,1900,"Мита и митнически такси:",null,{"$f":"OTCHET!$E73","v":0},{"$f":"OTCHET!$F73","v":0},{"$f":"OTCHET!$G73","v":0},{"$f":"OTCHET!$H73","v":0},{"$f":"OTCHET!$I73","v":0},{"$f":"OTCHET!$J73","v":0},""]
[255,2000,"Други данъци",null,{"$f":"OTCHET!$E74","v":0},{"$f":"OTCHET!$F74","v":0},{"$f":"OTCHET!$G74","v":0},{"$f":"OTCHET!$H74","v":0},{"$f":"OTCHET!$I74","v":0},{"$f":"OTCHET!$J74","v":0},""]
[265,2400,"Приходи и доходи от собственост",null,{"$f":"OTCHET!$E75","v":60000},{"$f":"OTCHET!$F75","v":64530},{"$f":"OTCHET!$G75","v":11868},{"$f":"OTCHET!$H75","v":0},{"$f":"OTCHET!$I75","v":52662},{"$f":"OTCHET!$J75","v":0},1]
[350,2500,"Държавни такси",null,{"$f":"OTCHET!$E90","v":7000},{"$f":"OTCHET!$F90","v":5668},{"$f":"OTCHET!$G90","v":165},{"$f":"OTCHET!$H90","v":0},{"$f":"OTCHET!$I90","v":5503},{"$f":"OTCHET!$J90","v":0},1]
[360,2600,"Съдебни такси",null,{"$f":"OTCHET!$E93","v":0},{"$f":"OTCHET!$F93","v":0},{"$f":"OTCHET!$G93","v":0},{"$f":"OTCHET!$H93","v":0},{"$f":"OTCHET!$I93","v":0},{"$f":"OTCHET!$J93","v":0},""]
[370,2700,"Общински такси",null,{"$f":"OTCHET!$E94","v":0},{"$f":"OTCHET!$F94","v":0},{"$f":"OTCHET!$G94","v":0},{"$f":"OTCHET!$H94","v":0},{"$f":"OTCHET!$I94","v":0},{"$f":"OTCHET!$J94","v":0},""]
[445,2800,"Глоби, санкции и наказателни лихви",null,{"$f":"OTCHET!$E108","v":0},{"$f":"OTCHET!$F108","v":431},{"$f":"OTCHET!$G108","v":394},{"$f":"OTCHET!$H108","v":0},{"$f":"OTCHET!$I108","v":37},{"$f":"OTCHET!$J108","v":0},1]
[470,3600,"Други неданъчни приходи",null,{"$f":"OTCHET!$E112","v":5000},{"$f":"OTCHET!$F112","v":7017},{"$f":"OTCHET!$G112","v":6677},{"$f":"OTCHET!$H112","v":0},{"$f":"OTCHET!$I112","v":340},{"$f":"OTCHET!$J112","v":0},1]
[495,3700,"Внесени ДДС и други данъци върху продажбите ",null,{"$f":"OTCHET!$E120","v":0},{"$f":"OTCHET!$F120","v":-14063},{"$f":"OTCHET!$G120","v":-14063},{"$f":"OTCHET!$H120","v":0},{"$f":"OTCHET!$I120","v":0},{"$f":"OTCHET!$J120","v":0},1]
[515,4000,"Постъпления от продажба на нефинансови активи (без 40-71)",null,{"$f":"OTCHET!$E124","v":70000},{"$f":"OTCHET!$F124","v":38770},{"$f":"OTCHET!$G124","v":38770},{"$f":"OTCHET!$H124","v":0},{"$f":"OTCHET!$I124","v":0},{"$f":"OTCHET!$J124","v":0},1]
[540,4100,"Приходи от концесии",null,{"$f":"OTCHET!$E136","v":0},{"$f":"OTCHET!$F136","v":0},{"$f":"OTCHET!$G136","v":0},{"$f":"OTCHET!$H136","v":0},{"$f":"OTCHET!$I136","v":0},{"$f":"OTCHET!$J136","v":0},""]
[550,4200,"Приходи от лицензии за ползване на държавни/общински активи",null,{"$f":"OTCHET!$E137","v":0},{"$f":"OTCHET!$F137","v":0},{"$f":"OTCHET!$G137","v":0},{"$f":"OTCHET!$H137","v":0},{"$f":"OTCHET!$I137","v":0},{"$f":"OTCHET!$J137","v":0},""]
[560,"45-00","Помощи и дарения от страната",null,{"$f":"OTCHET!$E138","v":0},{"$f":"OTCHET!$F138","v":0},{"$f":"OTCHET!$G138","v":0},{"$f":"OTCHET!$H138","v":0},{"$f":"OTCHET!$I138","v":0},{"$f":"OTCHET!$J138","v":0},""]
[575,4600,"Помощи и дарения от чужбина",null,{"$f":"OTCHET!$E141","v":0},{"$f":"OTCHET!$F141","v":0},{"$f":"OTCHET!$G141","v":0},{"$f":"OTCHET!$H141","v":0},{"$f":"OTCHET!$I141","v":0},{"$f":"OTCHET!$J141","v":0},""]
[575,4700,"Получени чрез небюджетни предприятия средства от КФП по международни и други програми",null,{"$f":"OTCHET!$E940","v":0},{"$f":"OTCHET!$F150","v":0},{"$f":"OTCHET!$G150","v":0},{"$f":"OTCHET!$H150","v":0},{"$f":"OTCHET!$I150","v":0},{"$f":"OTCHET!$J150","v":0},""]
[575,4800,"Разпределени към администратори от чужбина средства по международни програми и договори (-)",null,{"$f":"OTCHET!$E159","v":0},{"$f":"OTCHET!$F159","v":0},{"$f":"OTCHET!$G159","v":0},{"$f":"OTCHET!$H159","v":0},{"$f":"OTCHET!$I159","v":0},{"$f":"OTCHET!$J159","v":0},""]
[620,null,null,"I. ОБЩО ПРИХОДИ",{"$f":"OTCHET!$E168","v":142000},{"$f":"OTCHET!$F168","v":102353},{"$f":"OTCHET!$G168","v":43811},{"$f":"OTCHET!$H168","v":0},{"$f":"OTCHET!$I168","v":58542},{"$f":"OTCHET!$J168","v":0},1]
[null,null,null,null,null,null,null,null,null,null,1]
[null,null,null,null,null,null,null,null,null,null,1]
[null,null,null,null,null,null,null,null,null,null,1]
[null,null,null,null,null,null,null,null,null,null,1]
[null,{"$f":"$B$7","v":"ОТЧЕТНИ ДАННИ ПО ЕБК ЗА ИЗПЪЛНЕНИЕТО НА БЮДЖЕТА"},null,null,null,null,null,null,null,null,1]
[null,null,null,null,"за периода от ","до",null,null,null,null,1]
[null,{"$f":"$B$9","v":"ОБЛАСТНА АДМИНИСТРАЦИЯ ПАЗАРДЖИК"},null,null,{"$f":"$E$9","v":"2017-01-01"},{"$f":"$F$9","v":"2017-12-31"},null,null,null,null,1]
[null,{"$f":"$B$10","v":"                                                            (наименование на разпоредителя с бюджет)"},null,null,null,{"$f":"$F$10","v":0},null,null,null,null,1]
[null,null,null,null,null,null,null,null,null,null,1]
[null,{"$f":"$B$12","v":"Министерски съвет "},null,null,"код :",{"$f":"$F$12","v":"0300"},null,null,null,null,1]
[null,{"$f":"$B$13","v":"                                             (наименование на първостепенния разпоредител с бюджет)"},null,null,"(по ЕБК)",null,null,null,null,null,1]
[null,null,null,null,null,null,null,null,null,null,1]
[null,null,null,null,null,null,null,null,null,"(в лева)",1]
[null,null,"II. РАЗХОДИ ",null,"Уточнен план","Отчет",null,null,null,null,1,"Прогнозен размер на ан-гажиментите за поемане през 2018 г.","Прогнозен размер на ан-гажиментите за поемане през 2019 г.","Прогнозен размер на ан-гажиментите за поемане през 2020 г.","Прогнозен размер на ан-гажиментите за поемане през 2021 г."]
[null,"§§","(параграфи по ЕБК)",null,2017,"Общо","левови\nсметки ","валутни\nсметки ","Касови операции в лева и валута","Приравнени некасови операции",1]
[null,null," 02 ¦",null,"(1)","(2)","(3)","(4)","(5)","(6)",1]
[5,100,"Заплати и възнаграждения за персонала, нает по трудови и служебни правоотношения",null,{"$f":"OTCHET!$E186","v":305873},{"$f":"OTCHET!$F186","v":305311},{"$f":"OTCHET!$G186","v":266478},{"$f":"OTCHET!$H186","v":0},{"$f":"OTCHET!$I186","v":0},{"$f":"OTCHET!$J186","v":38833},{"$f":"(IF(E66<>0,$K$2,IF(F66<>0,$K$2,\"\")))","v":1}]
[35,200,"Други възнаграждения и плащания за персонала",null,{"$f":"OTCHET!$E189","v":140445},{"$f":"OTCHET!$F189","v":139458},{"$f":"OTCHET!$G189","v":123816},{"$f":"OTCHET!$H189","v":0},{"$f":"OTCHET!$I189","v":0},{"$f":"OTCHET!$J189","v":15642},1]
[65,500,"Задължителни осигурителни вноски от работодатели",null,{"$f":"OTCHET!$E195","v":107413},{"$f":"OTCHET!$F195","v":106179},{"$f":"OTCHET!$G195","v":0},{"$f":"OTCHET!$H195","v":0},{"$f":"OTCHET!$I195","v":0},{"$f":"OTCHET!$J195","v":106179},1]
[115,800,"Вноски за доброволно осигуряване  ",null,{"$f":"OTCHET!$E203","v":0},{"$f":"OTCHET!$F203","v":0},{"$f":"OTCHET!$G203","v":0},{"$f":"OTCHET!$H203","v":0},{"$f":"OTCHET!$I203","v":0},{"$f":"OTCHET!$J203","v":0},""]
[125,1000,"Издръжка",null,{"$f":"OTCHET!$E204","v":578867},{"$f":"OTCHET!$F204","v":558388},{"$f":"OTCHET!$G204","v":553991},{"$f":"OTCHET!$H204","v":0},{"$f":"OTCHET!$I204","v":4397},{"$f":"OTCHET!$J204","v":0},1]
[220,1900,"Платени данъци, такси и административни санкции",null,{"$f":"OTCHET!$E222","v":21000},{"$f":"OTCHET!$F222","v":20320},{"$f":"OTCHET!$G222","v":20337},{"$f":"OTCHET!$H222","v":0},{"$f":"OTCHET!$I222","v":-17},{"$f":"OTCHET!$J222","v":0},1]
[220,2100,"Разходи за лихви по емисии на държавни (общински) ценни книжа",null,{"$f":"OTCHET!$E226","v":0},{"$f":"OTCHET!$F226","v":0},{"$f":"OTCHET!$G226","v":0},{"$f":"OTCHET!$H226","v":0},{"$f":"OTCHET!$I226","v":0},{"$f":"OTCHET!$J226","v":0},""]
[250,2200,"Разходи за лихви по заеми от страната",null,{"$f":"OTCHET!$E232","v":0},{"$f":"OTCHET!$F232","v":0},{"$f":"OTCHET!$G232","v":0},{"$f":"OTCHET!$H232","v":0},{"$f":"OTCHET!$I232","v":0},{"$f":"OTCHET!$J232","v":0},""]
[270,2500,"Разходи за лихви по заеми от други държави",null,{"$f":"OTCHET!$E235","v":0},{"$f":"OTCHET!$F235","v":0},{"$f":"OTCHET!$G235","v":0},{"$f":"OTCHET!$H235","v":0},{"$f":"OTCHET!$I235","v":0},{"$f":"OTCHET!$J235","v":0},""]
[290,2600,"Разходи за лихви по заеми от международни организации и институции",null,{"$f":"OTCHET!$E236","v":0},{"$f":"OTCHET!$F236","v":0},{"$f":"OTCHET!$G236","v":0},{"$f":"OTCHET!$H236","v":0},{"$f":"OTCHET!$I236","v":0},{"$f":"OTCHET!$J236","v":0},""]
[320,2700,"Разходи за лихви по заеми от банки и други финансови институции от чужбина",null,{"$f":"OTCHET!$E237","v":0},{"$f":"OTCHET!$F237","v":0},{"$f":"OTCHET!$G237","v":0},{"$f":"OTCHET!$H237","v":0},{"$f":"OTCHET!$I237","v":0},{"$f":"OTCHET!$J237","v":0},""]
[330,2800,"Разходи за лихви  и отстъпки по облигации, емитирани и търгувани на международните капиталови пазари",null,{"$f":"OTCHET!$E238","v":0},{"$f":"OTCHET!$F238","v":0},{"$f":"OTCHET!$G238","v":0},{"$f":"OTCHET!$H238","v":0},{"$f":"OTCHET!$I238","v":0},{"$f":"OTCHET!$J238","v":0},""]
[350,2900,"Други разходи за лихви",null,{"$f":"OTCHET!$E239","v":0},{"$f":"OTCHET!$F239","v":0},{"$f":"OTCHET!$G239","v":0},{"$f":"OTCHET!$H239","v":0},{"$f":"OTCHET!$I239","v":0},{"$f":"OTCHET!$J239","v":0},""]
[397,3300,"Вноска в бюджета на Европейския съюз",null,{"$f":"OTCHET!$E248","v":0},{"$f":"OTCHET!$F248","v":0},{"$f":"OTCHET!$G248","v":0},{"$f":"OTCHET!$H248","v":0},{"$f":"OTCHET!$I248","v":0},{"$f":"OTCHET!$J248","v":0},""]
[404,3900,"Здравно-осигурителни плащания",null,{"$f":"OTCHET!$E255","v":0},{"$f":"OTCHET!$F255","v":0},{"$f":"OTCHET!$G255","v":0},{"$f":"OTCHET!$H255","v":0},{"$f":"OTCHET!$I255","v":0},{"$f":"OTCHET!$J255","v":0},""]
[440,4000,"Стипендии",null,{"$f":"OTCHET!$E256","v":0},{"$f":"OTCHET!$F256","v":0},{"$f":"OTCHET!$G256","v":0},{"$f":"OTCHET!$H256","v":0},{"$f":"OTCHET!$I256","v":0},{"$f":"OTCHET!$J256","v":0},""]
[450,4100,"Пенсии",null,{"$f":"OTCHET!$E257","v":0},{"$f":"OTCHET!$F257","v":0},{"$f":"OTCHET!$G257","v":0},{"$f":"OTCHET!$H257","v":0},{"$f":"OTCHET!$I257","v":0},{"$f":"OTCHET!$J257","v":0},""]
[495,4200,"Текущи трансфери, обезщетения и помощи за домакинствата",null,{"$f":"OTCHET!$E258","v":0},{"$f":"OTCHET!$F258","v":0},{"$f":"OTCHET!$G258","v":0},{"$f":"OTCHET!$H258","v":0},{"$f":"OTCHET!$I258","v":0},{"$f":"OTCHET!$J258","v":0},""]
[635,4300,"Субсидии и други текущи трансфери за нефинансови предприятия ",null,{"$f":"OTCHET!$E265","v":0},{"$f":"OTCHET!$F265","v":0},{"$f":"OTCHET!$G265","v":0},{"$f":"OTCHET!$H265","v":0},{"$f":"OTCHET!$I265","v":0},{"$f":"OTCHET!$J265","v":0},""]
[655,4400,"Субсидии и други текущи трансфери за финансови институции",null,{"$f":"OTCHET!$E269","v":0},{"$f":"OTCHET!$F269","v":0},{"$f":"OTCHET!$G269","v":0},{"$f":"OTCHET!$H269","v":0},{"$f":"OTCHET!$I269","v":0},{"$f":"OTCHET!$J269","v":0},""]
[665,4500,"Субсидии и други текущи трансфери на организации с нестопанска цел",null,{"$f":"OTCHET!$E270","v":0},{"$f":"OTCHET!$F270","v":0},{"$f":"OTCHET!$G270","v":0},{"$f":"OTCHET!$H270","v":0},{"$f":"OTCHET!$I270","v":0},{"$f":"OTCHET!$J270","v":0},""]
[675,4600,"Разходи за членски внос и участие в нетърговски организации и дейности",null,{"$f":"OTCHET!$E271","v":0},{"$f":"OTCHET!$F271","v":0},{"$f":"OTCHET!$G271","v":0},{"$f":"OTCHET!$H271","v":0},{"$f":"OTCHET!$I271","v":0},{"$f":"OTCHET!$J271","v":0},""]
[685,4900,"Предоставени текущи и капиталови трансфери за чужбина",null,{"$f":"OTCHET!$E272","v":0},{"$f":"OTCHET!$F272","v":0},{"$f":"OTCHET!$G272","v":0},{"$f":"OTCHET!$H272","v":0},{"$f":"OTCHET!$I272","v":0},{"$f":"OTCHET!$J272","v":0},""]
[700,5100,"Основен ремонт на дълготрайни материални активи",null,{"$f":"OTCHET!$E275","v":0},{"$f":"OTCHET!$F275","v":0},{"$f":"OTCHET!$G275","v":0},{"$f":"OTCHET!$H275","v":0},{"$f":"OTCHET!$I275","v":0},{"$f":"OTCHET!$J275","v":0},""]
[710,5200,"Придобиване на дълготрайни материални активи",null,{"$f":"OTCHET!$E276","v":0},{"$f":"OTCHET!$F276","v":0},{"$f":"OTCHET!$G276","v":0},{"$f":"OTCHET!$H276","v":0},{"$f":"OTCHET!$I276","v":0},{"$f":"OTCHET!$J276","v":0},""]
[750,5300,"Придобиване на нематериални дълготрайни активи",null,{"$f":"OTCHET!$E284","v":3500},{"$f":"OTCHET!$F284","v":1800},{"$f":"OTCHET!$G284","v":1800},{"$f":"OTCHET!$H284","v":0},{"$f":"OTCHET!$I284","v":0},{"$f":"OTCHET!$J284","v":0},1]
[765,5400,"Придобиване на земя",null,{"$f":"OTCHET!$E287","v":0},{"$f":"OTCHET!$F287","v":0},{"$f":"OTCHET!$G287","v":0},{"$f":"OTCHET!$H287","v":0},{"$f":"OTCHET!$I287","v":0},{"$f":"OTCHET!$J287","v":0},""]
[775,5500,"Капиталови трансфери",null,{"$f":"OTCHET!$E288","v":0},{"$f":"OTCHET!$F288","v":0},{"$f":"OTCHET!$G288","v":0},{"$f":"OTCHET!$H288","v":0},{"$f":"OTCHET!$I288","v":0},{"$f":"OTCHET!$J288","v":0},""]
[805,5700,"Прираст на държавния резерв и изкупуване на земеделска продукция (включва и 40-71)",null,{"$f":"OTCHET!$E293","v":0},{"$f":"OTCHET!$F293","v":0},{"$f":"OTCHET!$G293","v":0},{"$f":"OTCHET!$H293","v":0},{"$f":"OTCHET!$I293","v":0},{"$f":"OTCHET!$J293","v":0},""]
[820,"00-98","Резерв за непредвидени и неотложни разходи",null,{"$f":"OTCHET!$E297","v":0},{"$f":"OTCHET!$F297","v":0},{"$f":"OTCHET!$G297","v":0},{"$f":"OTCHET!$H297","v":0},{"$f":"OTCHET!$I297","v":0},{"$f":"OTCHET!$J297","v":0},""]
[825,null,"II. ОБЩО РАЗХОДИ РЕКАПИТУЛАЦИЯ",null,{"$f":"OTCHET!$E301","v":1157098},{"$f":"OTCHET!$F301","v":1131456},{"$f":"OTCHET!$G301","v":966422},{"$f":"OTCHET!$H301","v":0},{"$f":"OTCHET!$I301","v":4380},{"$f":"OTCHET!$J301","v":160654},1,{"$f":"SUM(L66:L95)","v":0},{"$f":"SUM(M66:M95)","v":0},{"$f":"SUM(N66:N95)","v":0},{"$f":"SUM(O66:O95)","v":0}]
[null,null,null,null,null,null,null,null,null,null,1]
[null,null,null,null,null,null,null,null,null,null,1]
[null,{"$f":"$B$7","v":"ОТЧЕТНИ ДАННИ ПО ЕБК ЗА ИЗПЪЛНЕНИЕТО НА БЮДЖЕТА"},null,null,null,null,null,null,null,null,1]
[null,null,null,null,"за периода от ","до",null,null,null,null,1]
[null,{"$f":"$B$9","v":"ОБЛАСТНА АДМИНИСТРАЦИЯ ПАЗАРДЖИК"},null,null,{"$f":"$E$9","v":"2017-01-01"},{"$f":"$F$9","v":"2017-12-31"},null,null,null,null,1]
[null,{"$f":"$B$10","v":"                                                            (наименование на разпоредителя с бюджет)"},null,null,null,{"$f":"$F$10","v":0},null,null,null,null,1]
[null,null,null,null,null,null,null,null,null,null,1]
[null,{"$f":"$B$12","v":"Министерски съвет "},null,null,"код :",{"$f":"$F$12","v":"0300"},null,null,null,null,1]
[null,{"$f":"$B$13","v":"                                             (наименование на първостепенния разпоредител с бюджет)"},null,null,"(по ЕБК)",null,null,null,null,null,1]
[null,null,null,null,null,null,null,null,null,null,1]
[null,null,null,null,null,null,null,null,null,"(в лева)",1]
[null,null,"IV ТРАНСФЕРИ - РЕКАПИТУЛАЦИЯ",null,"Уточнен план","Отчет",null,null,null,null,1]
[null,"§§","(параграфи по ЕБК)",null,2017,"Общо","левови\nсметки ","валутни\nсметки ","Касови операции в лева и валута","Приравнени некасови операции",1]
[1,null," 03 ¦",null,"(1)","(2)","(3)","(4)","(5)","(6)",1]
[2,null,"А) ТРАНСФЕРИ",null,null,null,null,null,null,null,1]
[5,3000,"Трансфери от ЦБ за други бюджети (нето) ",null,{"$f":"OTCHET!$E357","v":0},{"$f":"OTCHET!$F357","v":0},{"$f":"OTCHET!$G357","v":0},{"$f":"OTCHET!$H357","v":0},{"$f":"OTCHET!$I357","v":0},{"$f":"OTCHET!$J357","v":0},{"$f":"(IF(E112<>0,$K$2,IF(F112<>0,$K$2,\"\")))","v":""}]
[70,3100,"Трансфери между бюджета на бюджетната организация и ЦБ (нето)",null,{"$f":"OTCHET!$E371","v":0},{"$f":"OTCHET!$F371","v":0},{"$f":"OTCHET!$G371","v":0},{"$f":"OTCHET!$H371","v":0},{"$f":"OTCHET!$I371","v":0},{"$f":"OTCHET!$J371","v":0},""]
[115,3200,"Предоставени субсидии от държавния бюджет за БАН и държавните висши училища (нето)",null,{"$f":"OTCHET!$E379","v":0},{"$f":"OTCHET!$F379","v":0},{"$f":"OTCHET!$G379","v":0},{"$f":"OTCHET!$H379","v":0},{"$f":"OTCHET!$I379","v":0},{"$f":"OTCHET!$J379","v":0},""]
[145,6000,"Трансфери между ЦБ и сметки за средствата от ЕС (нето)",null,{"$f":"OTCHET!$E384","v":0},{"$f":"OTCHET!$F384","v":0},{"$f":"OTCHET!$G384","v":0},{"$f":"OTCHET!$H384","v":0},{"$f":"OTCHET!$I384","v":0},{"$f":"OTCHET!$J384","v":0},""]
[160,6100,"Трансфери между бюджети (нето)",null,{"$f":"OTCHET!$E387","v":-526756},{"$f":"OTCHET!$F387","v":-511208},{"$f":"OTCHET!$G387","v":-511208},{"$f":"OTCHET!$H387","v":0},{"$f":"OTCHET!$I387","v":0},{"$f":"OTCHET!$J387","v":0},1]
[185,6200,"Трансфери между бюджети и сметки за средствата от ЕС (нето)",null,{"$f":"OTCHET!$E392","v":0},{"$f":"OTCHET!$F392","v":0},{"$f":"OTCHET!$G392","v":0},{"$f":"OTCHET!$H392","v":0},{"$f":"OTCHET!$I392","v":0},{"$f":"OTCHET!$J392","v":0},""]
[200,6300,"Трансфери между сметки за средствата от ЕС (нето)",null,{"$f":"OTCHET!$E395","v":0},{"$f":"OTCHET!$F395","v":0},{"$f":"OTCHET!$G395","v":0},{"$f":"OTCHET!$H395","v":0},{"$f":"OTCHET!$I395","v":0},{"$f":"OTCHET!$J395","v":0},""]
[210,6400,"Трансфери от/за държавни предприятия и други лица, включени в консолидираната фискална програма",null,{"$f":"OTCHET!$E398","v":0},{"$f":"OTCHET!$F398","v":0},{"$f":"OTCHET!$G398","v":0},{"$f":"OTCHET!$H398","v":0},{"$f":"OTCHET!$I398","v":0},{"$f":"OTCHET!$J398","v":0},""]
[213,6500,"Трансфери на отчислени пoстъпления",null,{"$f":"OTCHET!$E401","v":0},{"$f":"OTCHET!$F401","v":0},{"$f":"OTCHET!$G401","v":0},{"$f":"OTCHET!$H401","v":0},{"$f":"OTCHET!$I401","v":0},{"$f":"OTCHET!$J401","v":0},""]
[215,6600,"Разчети за извършени плащания в СЕБРА (+/-)",null,{"$f":"OTCHET!$E402","v":1541854},{"$f":"OTCHET!$F402","v":1363496},{"$f":"OTCHET!$G402","v":1363496},{"$f":"OTCHET!$H402","v":0},{"$f":"OTCHET!$I402","v":0},{"$f":"OTCHET!$J402","v":0},1]
[215,6700,"Трансфери от/за сметки за чужди средства",null,{"$f":"OTCHET!$E405","v":0},{"$f":"OTCHET!$F405","v":0},{"$f":"OTCHET!$G405","v":0},{"$f":"OTCHET!$H405","v":0},{"$f":"OTCHET!$I405","v":0},{"$f":"OTCHET!$J405","v":0},""]
[230,6900,"Трансфери за поети осигурителни вноски и данъци",null,{"$f":"OTCHET!$E408","v":0},{"$f":"OTCHET!$F408","v":176830},{"$f":"OTCHET!$G408","v":0},{"$f":"OTCHET!$H408","v":0},{"$f":"OTCHET!$I408","v":0},{"$f":"OTCHET!$J408","v":176830},1]
[260,null,"III. ОБЩО",null,{"$f":"OTCHET!$E415","v":1015098},{"$f":"OTCHET!$F415","v":1029118},{"$f":"OTCHET!$G415","v":852288},{"$f":"OTCHET!$H415","v":0},{"$f":"OTCHET!$I415","v":0},{"$f":"OTCHET!$J415","v":176830},1]
[261,null," 04 ¦",null,null,null,null,null,null,null,1]
[262,"§§","В) ВРЕМЕННИ БЕЗЛИХВЕНИ ЗАЕМИ МЕЖДУ ЦЕНТРАЛНИЯ БЮДЖЕТ,  БЮДЖЕТНИ СМЕТКИ  И  ИЗВЪНБЮДЖЕТНИ ФОНДОВЕ И СМЕТКИ",null,null,null,null,null,null,null,1]
[265,7400,"Получени/предоставени временни безлихвени заеми от/за ЦБ (нето)",null,{"$f":"OTCHET!$E418","v":0},{"$f":"OTCHET!$F418","v":0},{"$f":"OTCHET!$G418","v":0},{"$f":"OTCHET!$H418","v":0},{"$f":"OTCHET!$I418","v":0},{"$f":"OTCHET!$J418","v":0},{"$f":"(IF(E127<>0,$K$2,IF(F127<>0,$K$2,\"\")))","v":""}]
[275,7500,"Временни безлихвени заеми между бюджетни сметки (нето)",null,{"$f":"OTCHET!$E419","v":0},{"$f":"OTCHET!$F419","v":0},{"$f":"OTCHET!$G419","v":0},{"$f":"OTCHET!$H419","v":0},{"$f":"OTCHET!$I419","v":0},{"$f":"OTCHET!$J419","v":0},{"$f":"(IF(E128<>0,$K$2,IF(F128<>0,$K$2,\"\")))","v":""}]
[285,7600,"Временни безлихвени заеми между бюджети и сметки за средствата от ЕС (нето)",null,{"$f":"OTCHET!$E420","v":0},{"$f":"OTCHET!$F420","v":0},{"$f":"OTCHET!$G420","v":0},{"$f":"OTCHET!$H420","v":0},{"$f":"OTCHET!$I420","v":0},{"$f":"OTCHET!$J420","v":0},{"$f":"(IF(E129<>0,$K$2,IF(F129<>0,$K$2,\"\")))","v":""}]
[295,7700,"Временни безлихвени заеми между сметки за средствата от ЕС (нето)",null,{"$f":"OTCHET!$E421","v":0},{"$f":"OTCHET!$F421","v":0},{"$f":"OTCHET!$G421","v":0},{"$f":"OTCHET!$H421","v":0},{"$f":"OTCHET!$I421","v":0},{"$f":"OTCHET!$J421","v":0},{"$f":"(IF(E130<>0,$K$2,IF(F130<>0,$K$2,\"\")))","v":""}]
[305,7800,"Временни безлихвени заеми от/за държавни предприятия и други сметки, включени в консолидираната фискална програма (нето)",null,{"$f":"OTCHET!$E422","v":0},{"$f":"OTCHET!$F422","v":0},{"$f":"OTCHET!$G422","v":0},{"$f":"OTCHET!$H422","v":0},{"$f":"OTCHET!$I422","v":0},{"$f":"OTCHET!$J422","v":0},{"$f":"(IF(E131<>0,$K$2,IF(F131<>0,$K$2,\"\")))","v":""}]
[315,null,"IV. ОБЩО",null,{"$f":"OTCHET!$E425","v":0},{"$f":"OTCHET!$F425","v":0},{"$f":"OTCHET!$G425","v":0},{"$f":"OTCHET!$H425","v":0},{"$f":"OTCHET!$I425","v":0},{"$f":"OTCHET!$J425","v":0},1]
[null,null,null,null,null,null,null,null,null,null,1]
[null,null,null,null,null,null,null,null,null,null,1]
[null,null,null,null,null,null,null,null,null,null,1]
[null,{"$f":"$B$7","v":"ОТЧЕТНИ ДАННИ ПО ЕБК ЗА ИЗПЪЛНЕНИЕТО НА БЮДЖЕТА"},null,null,null,null,null,null,null,null,1]
[null,null,null,null,"за периода от ","до",null,null,null,null,1]
[null,{"$f":"$B$9","v":"ОБЛАСТНА АДМИНИСТРАЦИЯ ПАЗАРДЖИК"},null,null,{"$f":"$E$9","v":"2017-01-01"},{"$f":"$F$9","v":"2017-12-31"},null,null,null,null,1]
[null,{"$f":"$B$10","v":"                                                            (наименование на разпоредителя с бюджет)"},null,null,null,{"$f":"$F$10","v":0},null,null,null,null,1]
[null,null,null,null,null,null,null,null,null,null,1]
[null,{"$f":"$B$12","v":"Министерски съвет "},null,null,"код :",{"$f":"$F$12","v":"0300"},null,null,null,null,1]
[null,{"$f":"$B$13","v":"                                             (наименование на първостепенния разпоредител с бюджет)"},null,null,"(по ЕБК)",null,null,null,null,null,1]
[null,null,null,null,null,null,null,null,null,null,1]
[null,null,null,null,null,null,null,null,null,"(в лева)",1]
[null,null,null,"V. БЮДЖЕТНО САЛДО (ДЕФИЦИТ / ИЗЛИШЪК) =","Уточнен план","Отчет",null,null,null,null,1]
[null,null,null,"= I.(раздел)-II.(раздел=рекапитулацията от всички дейности)+III.(раздел=рекапитулация от всички трансфери)",2017,"Общо","левови\nсметки ","валутни\nсметки ","Касови операции в лева и валута","Приравнени некасови операции",1]
[null,null,null," 0 5  ¦","(1)","(2)","(3)","(4)","(5)","(6)",1]
[null,null,null,null,{"$f":"+E49-E96+E124+E132","v":0},15,-70323,0,54162,16176,1]
[null,null,null,null,null,null,null,null,null,null,1]
[null,null,null,null,null,null,null,null,null,null,1]
[null,null,null,null,null,null,null,null,null,null,1]
[null,{"$f":"$B$7","v":"ОТЧЕТНИ ДАННИ ПО ЕБК ЗА ИЗПЪЛНЕНИЕТО НА БЮДЖЕТА"},null,null,null,null,null,null,null,null,1]
[null,null,null,null,"за периода от ","до",null,null,null,null,1]
[null,{"$f":"$B$9","v":"ОБЛАСТНА АДМИНИСТРАЦИЯ ПАЗАРДЖИК"},null,null,{"$f":"$E$9","v":"2017-01-01"},{"$f":"$F$9","v":"2017-12-31"},null,null,null,null,1]
[null,{"$f":"$B$10","v":"                                                            (наименование на разпоредителя с бюджет)"},null,null,null,{"$f":"$F$10","v":0},null,null,null,null,1]
[null,null,null,null,null,null,null,null,null,null,1]
[null,{"$f":"$B$12","v":"Министерски съвет "},null,null,"код :",{"$f":"$F$12","v":"0300"},null,null,null,null,1]
[null,{"$f":"$B$13","v":"                                             (наименование на първостепенния разпоредител с бюджет)"},null,null,"(по ЕБК)",null,null,null,null,null,1]
[null,null,null,null,null,null,null,null,null,null,1]
[null,null,null,null,null,null,null,null,null,"(в лева)",1]
[null,null,"VI. ОПЕРАЦИИ С ФИНАНСОВИ АКТИВИ И ПАСИВИ - ПОЗИЦИИ",null,"Уточнен план","Отчет",null,null,null,null,1]
[null,"§§","(параграфи по ЕБК)",null,2017,"Общо","левови\nсметки ","валутни\nсметки ","Касови операции в лева и валута","Приравнени некасови операции",1]
[1,null," 0 6 ¦",null,"(1)","(2)","(3)","(4)","(5)","(6)",1]
[5,7000,"Придобиване на дялове, акции и съучастия (нето)",null,{"$f":"OTCHET!$E457","v":0},{"$f":"OTCHET!$F457","v":0},{"$f":"OTCHET!$G457","v":0},{"$f":"OTCHET!$H457","v":0},{"$f":"OTCHET!$I457","v":0},{"$f":"OTCHET!$J457","v":0},{"$f":"(IF(E164<>0,$K$2,IF(F164<>0,$K$2,\"\")))","v":""}]
[30,7100,"Предоставени кредити (нето)",null,{"$f":"OTCHET!$E461","v":0},{"$f":"OTCHET!$F461","v":0},{"$f":"OTCHET!$G461","v":0},{"$f":"OTCHET!$H461","v":0},{"$f":"OTCHET!$I461","v":0},{"$f":"OTCHET!$J461","v":0},""]
[45,7200,"Предоставена възмездна финансова помощ (нето)",null,{"$f":"OTCHET!$E464","v":0},{"$f":"OTCHET!$F464","v":0},{"$f":"OTCHET!$G464","v":0},{"$f":"OTCHET!$H464","v":0},{"$f":"OTCHET!$I464","v":0},{"$f":"OTCHET!$J464","v":0},""]
[60,7300,"Плащания по активирани гаранции, поръчителства и преоформен държавен дълг (нето)",null,{"$f":"OTCHET!$E467","v":0},{"$f":"OTCHET!$F467","v":0},{"$f":"OTCHET!$G467","v":0},{"$f":"OTCHET!$H467","v":0},{"$f":"OTCHET!$I467","v":0},{"$f":"OTCHET!$J467","v":0},""]
[110,7900,"Предоставени заеми към крайни бенефициенти по държавни инвестиционни заеми (нето)",null,{"$f":"OTCHET!$E474","v":0},{"$f":"OTCHET!$F474","v":0},{"$f":"OTCHET!$G474","v":0},{"$f":"OTCHET!$H474","v":0},{"$f":"OTCHET!$I474","v":0},{"$f":"OTCHET!$J474","v":0},""]
[125,8000,"Заеми от чужбина - нето (+/-)",null,{"$f":"OTCHET!$E477","v":0},{"$f":"OTCHET!$F477","v":0},{"$f":"OTCHET!$G477","v":0},{"$f":"OTCHET!$H477","v":0},{"$f":"OTCHET!$I477","v":0},{"$f":"OTCHET!$J477","v":0},""]
[220,8100,"Държавни (общински) ценни книжа емитирани на международните капиталови пазари - нето (+/-)",null,{"$f":"OTCHET!$E493","v":0},{"$f":"OTCHET!$F493","v":0},{"$f":"OTCHET!$G493","v":0},{"$f":"OTCHET!$H493","v":0},{"$f":"OTCHET!$I493","v":0},{"$f":"OTCHET!$J493","v":0},""]
[245,8200,"Получени погашения по предоставени кредити на други държави (+)",null,{"$f":"OTCHET!$E498","v":0},{"$f":"OTCHET!$F498","v":0},{"$f":"OTCHET!$G498","v":0},{"$f":"OTCHET!$H498","v":0},{"$f":"OTCHET!$I498","v":0},{"$f":"OTCHET!$J498","v":0},""]
[255,8300,"Заеми от банки и други лица в страната - нето (+/-)",null,{"$f":"OTCHET!$E499","v":0},{"$f":"OTCHET!$F499","v":0},{"$f":"OTCHET!$G499","v":0},{"$f":"OTCHET!$H499","v":0},{"$f":"OTCHET!$I499","v":0},{"$f":"OTCHET!$J499","v":0},""]
[295,8500,"Емисии на държавни (общински) ценни книжа (+)",null,{"$f":"OTCHET!$E508","v":0},{"$f":"OTCHET!$F508","v":0},{"$f":"OTCHET!$G508","v":0},{"$f":"OTCHET!$H508","v":0},{"$f":"OTCHET!$I508","v":0},{"$f":"OTCHET!$J508","v":0},""]
[315,8600,"Погашения на държавни (общински) ценни книжа (-)",null,{"$f":"OTCHET!$E512","v":0},{"$f":"OTCHET!$F512","v":0},{"$f":"OTCHET!$G512","v":0},{"$f":"OTCHET!$H512","v":0},{"$f":"OTCHET!$I512","v":0},{"$f":"OTCHET!$J512","v":0},""]
[355,8700,"Разчети между първостепенни разпоредители  за централизация на средства и плащания в Себра",null,{"$f":"OTCHET!$E517","v":0},{"$f":"OTCHET!$F517","v":0},{"$f":"OTCHET!$G517","v":0},{"$f":"OTCHET!$H517","v":0},{"$f":"OTCHET!$I517","v":0},{"$f":"OTCHET!$J517","v":0},""]
[355,8800,"Събрани средства и извършени плащания за сметка на други бюджети, сметки и фондове - нето (+/-)",null,{"$f":"OTCHET!$E520","v":0},{"$f":"OTCHET!$F520","v":-78267},{"$f":"OTCHET!$G520","v":-4979},{"$f":"OTCHET!$H520","v":-56597},{"$f":"OTCHET!$I520","v":-515},{"$f":"OTCHET!$J520","v":-16176},1]
[375,8900,"Суми по разчети за поети осигурителни вноски и данъци",null,{"$f":"OTCHET!$E527","v":0},{"$f":"OTCHET!$F527","v":0},{"$f":"OTCHET!$G527","v":0},{"$f":"OTCHET!$H527","v":0},{"$f":"OTCHET!$I527","v":0},{"$f":"OTCHET!$J527","v":0},""]
[395,9000,"Приватизация (+)",null,{"$f":"OTCHET!$E531","v":0},{"$f":"OTCHET!$F531","v":0},{"$f":"OTCHET!$G531","v":0},{"$f":"OTCHET!$H531","v":0},{"$f":"OTCHET!$I531","v":0},{"$f":"OTCHET!$J531","v":0},""]
[405,9100,"Покупко-продажба на държавни (общински) ценни книжа от бюджетни организации - нето  (+/-)",null,{"$f":"OTCHET!$E532","v":0},{"$f":"OTCHET!$F532","v":0},{"$f":"OTCHET!$G532","v":0},{"$f":"OTCHET!$H532","v":0},{"$f":"OTCHET!$I532","v":0},{"$f":"OTCHET!$J532","v":0},""]
[430,9200,"Операции с други ценни книжа и финансови активи за управление на ликвидността - нето (+/-)",null,{"$f":"OTCHET!$E537","v":0},{"$f":"OTCHET!$F537","v":0},{"$f":"OTCHET!$G537","v":0},{"$f":"OTCHET!$H537","v":0},{"$f":"OTCHET!$I537","v":0},{"$f":"OTCHET!$J537","v":0},""]
[445,9300,"Друго финансиране - нето(+/-)",null,{"$f":"OTCHET!$E540","v":0},{"$f":"OTCHET!$F540","v":-15},{"$f":"OTCHET!$G540","v":-15},{"$f":"OTCHET!$H540","v":0},{"$f":"OTCHET!$I540","v":0},{"$f":"OTCHET!$J540","v":0},1]
[470,9500,"Депозити и средства по сметки - нето (+/-)    (този параграф се използва и за наличностите на ЦБ в БНБ)",null,{"$f":"OTCHET!$E562","v":0},{"$f":"OTCHET!$F562","v":78267},{"$f":"OTCHET!$G562","v":0},{"$f":"OTCHET!$H562","v":78267},{"$f":"OTCHET!$I562","v":0},{"$f":"OTCHET!$J562","v":0},1]
[565,9600,"Депозити и сметки консолидирани в системата на \"Единната сметка\"-нето (+/-)",null,{"$f":"OTCHET!$E582","v":0},{"$f":"OTCHET!$F582","v":0},{"$f":"OTCHET!$G582","v":0},{"$f":"OTCHET!$H582","v":0},{"$f":"OTCHET!$I582","v":0},{"$f":"OTCHET!$J582","v":0},""]
[575,9800,"Касови операции, депозити, покупко-продажба на валута и сетълмент операции",null,{"$f":"OTCHET!$E587","v":0},{"$f":"OTCHET!$F587","v":0},{"$f":"OTCHET!$G587","v":75317},{"$f":"OTCHET!$H587","v":-21670},{"$f":"OTCHET!$I587","v":-53647},{"$f":"OTCHET!$J587","v":0},""]
[610,null,"VI. ОБЩО ОПЕРАЦИИ С ФИНАНСОВИ АКТИВИ И ПАСИВИ",null,{"$f":"OTCHET!$E593","v":0},{"$f":"OTCHET!$F593","v":-15},{"$f":"OTCHET!$G593","v":70323},{"$f":"OTCHET!$H593","v":0},{"$f":"OTCHET!$I593","v":-54162},{"$f":"OTCHET!$J593","v":-16176},1]
[null,null,null,null,null,null,null,null,null,null,1]
[null,null,null,null,null,null,null,null,null,null,1]
[null,null,null,null,null,null,null,null,null,null,1]
[null,{"$f":"$B$7","v":"ОТЧЕТНИ ДАННИ ПО ЕБК ЗА ИЗПЪЛНЕНИЕТО НА БЮДЖЕТА"},null,null,null,null,null,null,null,null,1]
[null,null,null,null,"за периода от ","до",null,null,null,null,1]
[null,{"$f":"$B$9","v":"ОБЛАСТНА АДМИНИСТРАЦИЯ ПАЗАРДЖИК"},null,null,{"$f":"$E$9","v":"2017-01-01"},{"$f":"$F$9","v":"2017-12-31"},null,null,null,null,1]
[null,{"$f":"$B$10","v":"                                                            (наименование на разпоредителя с бюджет)"},null,null,null,{"$f":"$F$10","v":0},null,null,null,null,1]
[null,null,null,null,null,null,null,null,null,null,1]
[null,{"$f":"$B$12","v":"Министерски съвет "},null,null,"код :",{"$f":"$F$12","v":"0300"},null,null,null,null,1]
[null,{"$f":"$B$13","v":"                                             (наименование на първостепенния разпоредител с бюджет)"},null,null,"(по ЕБК)",null,null,null,null,null,1]
[null,null,null,null,null,null,null,null,null,null,1]
[null,null,null,null,null,null,null,null,null,"(в лева)",1]
[null,"§§","РАЗПРЕДЕЛЕНИЕ НА РАЗХОДИТЕ ПО ФУНКЦИИ",null,"Уточнен план","Отчет",null,null,null,null,1]
[null,null,null,null,2017,"Общо","левови\nсметки ","валутни\nсметки ","Касови операции в лева и валута","Приравнени некасови операции",1]
[null,"I.","ОБЩИ ДЪРЖАВНИ СЛУЖБИ",null,{"$f":"SUMIF(OTCHET!L:L,1,OTCHET!E:E)","v":726535},{"$f":"SUMIF(OTCHET!L:L,1,OTCHET!F:F)","v":702858},{"$f":"SUMIF(OTCHET!L:L,1,OTCHET!G:G)","v":560306},{"$f":"SUMIF(OTCHET!L:L,1,OTCHET!H:H)","v":0},{"$f":"SUMIF(OTCHET!L:L,1,OTCHET!I:I)","v":3390},{"$f":"SUMIF(OTCHET!L:L,1,OTCHET!J:J)","v":139162},1]
[null,"II.","ОТБРАНА И СИГУРНОСТ",null,{"$f":"SUMIF(OTCHET!L:L,2,OTCHET!E:E)","v":413181},{"$f":"SUMIF(OTCHET!L:L,2,OTCHET!F:F)","v":411327},{"$f":"SUMIF(OTCHET!L:L,2,OTCHET!G:G)","v":394028},{"$f":"SUMIF(OTCHET!L:L,2,OTCHET!H:H)","v":0},{"$f":"SUMIF(OTCHET!L:L,2,OTCHET!I:I)","v":990},{"$f":"SUMIF(OTCHET!L:L,2,OTCHET!J:J)","v":16309},1]
[null,"III.","ОБРАЗОВАНИЕ",null,{"$f":"SUMIF(OTCHET!L:L,3,OTCHET!E:E)","v":0},{"$f":"SUMIF(OTCHET!L:L,3,OTCHET!F:F)","v":0},{"$f":"SUMIF(OTCHET!L:L,3,OTCHET!G:G)","v":0},{"$f":"SUMIF(OTCHET!L:L,3,OTCHET!H:H)","v":0},{"$f":"SUMIF(OTCHET!L:L,3,OTCHET!I:I)","v":0},{"$f":"SUMIF(OTCHET!L:L,3,OTCHET!J:J)","v":0},1]
[null,"IV.","ЗДРАВЕОПАЗВАНЕ",null,{"$f":"SUMIF(OTCHET!L:L,4,OTCHET!E:E)","v":0},{"$f":"SUMIF(OTCHET!L:L,4,OTCHET!F:F)","v":0},{"$f":"SUMIF(OTCHET!L:L,4,OTCHET!G:G)","v":0},{"$f":"SUMIF(OTCHET!L:L,4,OTCHET!H:H)","v":0},{"$f":"SUMIF(OTCHET!L:L,4,OTCHET!I:I)","v":0},{"$f":"SUMIF(OTCHET!L:L,4,OTCHET!J:J)","v":0},1]
[null,"V.","СОЦИАЛНО ОСИГУРЯВАНЕ, ПОДПОМАГАНЕ И ГРИЖИ",null,{"$f":"SUMIF(OTCHET!L:L,5,OTCHET!E:E)","v":17382},{"$f":"SUMIF(OTCHET!L:L,5,OTCHET!F:F)","v":17271},{"$f":"SUMIF(OTCHET!L:L,5,OTCHET!G:G)","v":12088},{"$f":"SUMIF(OTCHET!L:L,5,OTCHET!H:H)","v":0},{"$f":"SUMIF(OTCHET!L:L,5,OTCHET!I:I)","v":0},{"$f":"SUMIF(OTCHET!L:L,5,OTCHET!J:J)","v":5183},1]
[null,"VI.","ЖИЛИЩНО СТРОИТЕЛСТВО, БЛАГОУСТРОЙСТВО, КОМУНАЛНО СТОПАНСТВО И ОПАЗВАНЕ НА ОКОЛНАТА СРЕДА",null,{"$f":"SUMIF(OTCHET!L:L,6,OTCHET!E:E)","v":0},{"$f":"SUMIF(OTCHET!L:L,6,OTCHET!F:F)","v":0},{"$f":"SUMIF(OTCHET!L:L,6,OTCHET!G:G)","v":0},{"$f":"SUMIF(OTCHET!L:L,6,OTCHET!H:H)","v":0},{"$f":"SUMIF(OTCHET!L:L,6,OTCHET!I:I)","v":0},{"$f":"SUMIF(OTCHET!L:L,6,OTCHET!J:J)","v":0},1]
[null,"VII.","ПОЧИВНО ДЕЛО, КУЛТУРА, РЕЛИГИОЗНИ ДЕЙНОСТИ",null,{"$f":"SUMIF(OTCHET!L:L,7,OTCHET!E:E)","v":0},{"$f":"SUMIF(OTCHET!L:L,7,OTCHET!F:F)","v":0},{"$f":"SUMIF(OTCHET!L:L,7,OTCHET!G:G)","v":0},{"$f":"SUMIF(OTCHET!L:L,7,OTCHET!H:H)","v":0},{"$f":"SUMIF(OTCHET!L:L,7,OTCHET!I:I)","v":0},{"$f":"SUMIF(OTCHET!L:L,7,OTCHET!J:J)","v":0},1]
[null,"VIII.","ИКОНОМИЧЕСКИ ДЕЙНОСТИ И УСЛУГИ",null,{"$f":"SUMIF(OTCHET!L:L,8,OTCHET!E:E)","v":0},{"$f":"SUMIF(OTCHET!L:L,8,OTCHET!F:F)","v":0},{"$f":"SUMIF(OTCHET!L:L,8,OTCHET!G:G)","v":0},{"$f":"SUMIF(OTCHET!L:L,8,OTCHET!H:H)","v":0},{"$f":"SUMIF(OTCHET!L:L,8,OTCHET!I:I)","v":0},{"$f":"SUMIF(OTCHET!L:L,8,OTCHET!J:J)","v":0},1]
[null,"IX.","РАЗХОДИ НЕКЛАСИФИЦИРАНИ В ДРУГИТЕ ДЕЙНОСТИ",null,{"$f":"SUMIF(OTCHET!L:L,9,OTCHET!E:E)","v":0},{"$f":"SUMIF(OTCHET!L:L,9,OTCHET!F:F)","v":0},{"$f":"SUMIF(OTCHET!L:L,9,OTCHET!G:G)","v":0},{"$f":"SUMIF(OTCHET!L:L,9,OTCHET!H:H)","v":0},{"$f":"SUMIF(OTCHET!L:L,9,OTCHET!I:I)","v":0},{"$f":"SUMIF(OTCHET!L:L,9,OTCHET!J:J)","v":0},1]
[null,null,"ОБЩО РАЗХОДИ ПО ФУНКЦИИ",null,{"$f":"SUM(E200:E208)","v":1157098},1131456,966422,0,4380,160654,1]
[]
[]
[]
[]
[]
[]
[]
[]
[]
[]
[]
[]
[]
[]
[]
[]
[]
[]
[]
[]
[]
[]
[]
[]
[]
[]
[]
[]
[]
[]
[]
[]
[]
[]
[]
[]
[]
[]
[]
[]
[]
[]
[]
[]
[]
[]
[]
[]
[]
[]
[]
[]
[]
[]
[]
[]
[]
[]
[]
[]
[]
[]
[]
[]
[]
[]
[]
[]
[]
[]
[]
[]
[]
[]
[]
[]
[]
[]
[]
[]
[]
[]
[]
[]
[]
[]
[]
[]
[]
[]
[]
[]
[]
[]
[]
[]
[]
[]
[]
[]
[]
[]
[]
[]
[]
[]
[]
[]
[]
[]
[]
[]
[]
[]
[]
[]
[]
[]
[]
[]
[]
[]
[]
[]
[]
[]
[]
[]
[]
[]
[]
[]
[]
[]
[]
[]
[]
[]
[]
[]
[]
[]
[]
[]
[]
[]
[]
[]
[]
[]
[]
[]
[]
[]
[]
[]
[]
[]
[]
[]
[]
[]
[]
[]
[]
[]
[]
[]
[]
[]
[]
[]
[]
[]
[]
[]
[]
[]
[]
[]
[]
[]
[]
[]
[]
[]
[]
[]
[]
[]
[]
[]
[]
[]
[]
[]
[]
[]
[]
[]
[]
[]
[]
[]
[]
[]
[]
[]
[]
[]
[]
[]
[]
[]
[]
[]
[]
[]
[]
[]
[]
[]
[]
[]
[]
[]
[]
[]
[]
[]
[]
[]
[]
[]
[]
[]
[]
[]
[]
[]
[]
[]
[]
[]
[]
[]
[]
[]
[]
[]
[]
[]
[]
[]
[]
[]
[]
[]
[]
[]
[]
[]
[]
[]
[]
[]
[]
[]
[]
[]
[]
[]
[]
[]
[]
[]
[]
[]
[]
[]
[]
[]
[]
[]
[]
[]
[]
[]
[]
[]
[]
[]
[]
[]
[]
[]
[]
[]
[]
[]
[]
[]
[]
[]
[]
[]
[]
[]
[]
[]
[]
[]
[]
[]
[]
[]
[]
[]
[]
[]
[]
[]
[]
[]
[]
[]
[]
[]
[]
[]
[]
[]
[]
[]
[]
[]
[]
[]
[]
[]
[]
[]
[]
[]
[]
[]
[]
[]
[]
[]
[]
[]
[]
[]
[]
[]
[]
[]
[]
[]
[]
[]
[]
[]
[]
[]
[]
[]
[]
[]
[]
[]
[]
[]
[]
[]
[]
[]
[]
[]
[]
[]
[]
[]
[]
[]
[]
[]
[]
[]
[]
[]
[]
[]
[]
[]
[]
[]
[]
[]
[]
[]
[]
[]
[]
[]
[]
[]
[]
[]
[]
[]
[]
[]
[]
[]
[]
[]
[]
[]
[]
[]
[]
[]
[]
[]
[]
[]
[]
[]
[]
[]
[]
[]
[]
[]
[]
[]
[]
[]
[]
[]
[]
[]
[]
[]
[]
[]
[]
[]
[]
[]
[]
[]
[]
[]
[]
[]
[]
[]
[]
[]
[]
[]
[]
[]
[]
[]
[]
[]
[]
[]
[]
[]
[]
[]
[]
[]
[]
[]
[]
[]
[]
[]
[]
[]
[]
[]
[]
[]
[]
[]
[]
[]
[]
[]
[]
[]
[]
[]
[]
[]
[]
[]
[]
[]
[]
[]
[]
[]
[]
[]
[]
[]
[]
[]
[]
[]
[]
[]
[]
[]
[]
[]
[null,null,null,null,null,null,{"$f":"(IF(E693<>0,$G$2,IF(F693<>0,$G$2,\"\")))","v":""}]

{"sheet":"OTCHET","index":3,"n_rows":1468,"n_cols":12,"rows_kept":1468,"cut":false,"hidden":false,"merged":[[6,1,6,3],[8,1,8,3],[11,1,11,3],[21,2,21,3],[27,2,27,3],[32,2,32,3],[296,2,296,3],[271,2,271,3],[274,2,274,3],[268,2,268,3],[275,2,275,3],[257,2,257,3],[264,2,264,3],[269,2,269,3],[270,2,270,3],[292,2,292,3],[188,2,188,3],[194,2,194,3],[172,1,172,3],[174,1,174,3],[177,1,177,3],[539,2,539,3],[456,2,456,3],[492,2,492,3],[497,2,497,3],[526,2,526,3],[473,2,473,3],[476,2,476,3],[38,2,38,3],[185,2,185,3],[446,1,446,3],[430,1,430,3],[305,1,305,3],[307,1,307,3],[444,1,444,3],[407,2,407,3],[419,2,419,3],[343,1,343,3],[345,1,345,3],[370,2,370,3],[378,2,378,3],[394,2,394,3],[383,2,383,3],[433,1,433,3],[283,2,283,3],[286,2,286,3],[287,2,287,3],[221,2,221,3],[202,2,202,3],[203,2,203,3],[225,2,225,3],[231,2,231,3],[234,2,234,3],[238,2,238,3],[237,2,237,3],[255,2,255,3],[256,2,256,3],[235,2,235,3],[236,2,236,3],[254,2,254,3],[339,1,339,3],[348,1,348,3],[356,2,356,3],[386,2,386,3],[418,2,418,3],[421,2,421,3],[428,1,428,3],[400,2,400,3],[420,2,420,3],[401,2,401,3],[417,2,417,3],[397,2,397,3],[391,2,391,3],[404,2,404,3],[8,8,8,9],[9,8,11,9],[516,2,516,3],[581,2,581,3],[530,2,530,3],[536,2,536,3],[607,1,607,3],[609,1,609,3],[612,1,612,3],[598,6,598,9],[596,6,596,9],[449,1,449,3],[561,2,561,3],[498,2,498,3],[519,2,519,3],[586,2,586,3],[507,2,507,3],[531,2,531,3],[511,2,511,3],[595,6,595,9],[460,2,460,3],[463,2,463,3],[466,2,466,3],[310,1,310,3],[623,2,623,3],[599,6,599,9],[599,1,599,2],[659,2,659,3],[663,2,663,3],[669,2,669,3],[672,2,672,3],[626,2,626,3],[632,2,632,3],[640,2,640,3],[641,2,641,3],[602,7,602,9],[600,7,600,9],[600,1,600,2],[692,2,692,3],[693,2,693,3],[694,2,694,3],[695,2,695,3],[673,2,673,3],[674,2,674,3],[675,2,675,3],[676,2,676,3],[709,2,709,3],[712,2,712,3],[713,2,713,3],[721,2,721,3],[702,2,702,3],[706,2,706,3],[707,2,707,3],[708,2,708,3],[743,1,743,3],[745,1,745,3],[748,1,748,3],[780,1,780,3],[724,2,724,3],[725,2,725,3],[730,2,730,3],[735,2,735,3],[805,2,805,3],[813,2,813,3],[814,2,814,3],[832,2,832,3],[782,1,782,3],[785,1,785,3],[796,2,796,3],[799,2,799,3],[847,2,847,3],[848,2,848,3],[849,2,849,3],[865,2,865,3],[836,2,836,3],[842,2,842,3],[845,2,845,3],[846,2,846,3],[879,2,879,3],[880,2,880,3],[881,2,881,3],[882,2,882,3],[866,2,866,3],[867,2,867,3],[868,2,868,3],[875,2,875,3],[898,2,898,3],[903,2,903,3],[908,2,908,3],[916,1,916,3],[885,2,885,3],[886,2,886,3],[894,2,894,3],[897,2,897,3],[958,1,958,3],[969,2,969,3],[972,2,972,3],[978,2,978,3],[918,1,918,3],[921,1,921,3],[953,1,953,3],[955,1,955,3],[1015,2,1015,3],[1018,2,1018,3],[1019,2,1019,3],[1020,2,1020,3],[986,2,986,3],[987,2,987,3],[1005,2,1005,3],[1009,2,1009,3],[1040,2,1040,3],[1041,2,1041,3],[1048,2,1048,3],[1052,2,1052,3],[1021,2,1021,3],[1022,2,1022,3],[1038,2,1038,3],[1039,2,1039,3],[1059,2,1059,3],[1067,2,1067,3],[1070,2,1070,3],[1071,2,1071,3],[1053,2,1053,3],[1054,2,1054,3],[1055,2,1055,3],[1058,2,1058,3],[1094,1,1094,3],[1126,1,1126,3],[1128,1,1128,3],[1131,1,1131,3],[1076,2,1076,3],[1081,2,1081,3],[1089,1,1089,3],[1091,1,1091,3],[1160,2,1160,3],[1178,2,1178,3],[1182,2,1182,3],[1188,2,1188,3],[1142,2,1142,3],[1145,2,1145,3],[1151,2,1151,3],[1159,2,1159,3],[1195,2,1195,3],[1211,2,1211,3],[1212,2,1212,3],[1213,2,1213,3],[1191,2,1191,3],[1192,2,1192,3],[1193,2,1193,3],[1194,2,1194,3],[1227,2,1227,3],[1228,2,1228,3],[1231,2,1231,3],[1232,2,1232,3],[1214,2,1214,3],[1221,2,1221,3],[1225,2,1225,3],[1226,2,1226,3],[1254,2,1254,3],[1262,1,1262,3],[1264,1,1264,3],[1267,1,1267,3],[1240,2,1240,3],[1243,2,1243,3],[1244,2,1244,3],[1249,2,1249,3],[1299,1,1299,3],[1301,1,1301,3],[1304,1,1304,3],[1315,2,1315,3],[1318,2,1318,3],[1324,2,1324,3],[1332,2,1332,3],[1333,2,1333,3],[1351,2,1351,3],[1355,2,1355,3],[1361,2,1361,3],[1364,2,1364,3],[1365,2,1365,3],[1366,2,1366,3],[1367,2,1367,3],[1368,2,1368,3],[1384,2,1384,3],[1385,2,1385,3],[1417,2,1417,3],[1386,2,1386,3],[1387,2,1387,3],[1394,2,1394,3],[1398,2,1398,3],[1399,2,1399,3],[1400,2,1400,3],[1422,2,1422,3],[1427,2,1427,3],[1435,1,1435,3],[1437,1,1437,3],[1440,1,1440,3],[1401,2,1401,3],[1404,2,1404,3],[1405,2,1405,3],[1413,2,1413,3],[1416,2,1416,3]]}
["a",null,"c","d","e","f","f","f","f","f","endprint"]
[2,null,null,null,null,null,null,null,null,null,1]
[null,"година",{"$f":"YEAR(F9)","v":2017},null,null,null,null,null,null,null,1]
[null,null,null,null,null,null,null,null,null,null,1]
[null,null,null,null," "," "," "," "," "," ",1]
[null,null,null,null,null," "," "," "," "," ",1]
[null,{"$f":"VLOOKUP(E15,SMETKA,2,FALSE)","v":"ОТЧЕТНИ ДАННИ ПО ЕБК ЗА ИЗПЪЛНЕНИЕТО НА БЮДЖЕТА"},null,null,null,null,null,null,null,null,1]
[null,null,null,null,"за периода        от ","до",null,"ЕИК/БУЛСТАТ",null,null,1]
[null,"ОБЛАСТНА АДМИНИСТРАЦИЯ ПАЗАРДЖИК",null,null,"2017-01-01","2017-12-31",null,112121473,30010130,null,1]
[null,"                                                            (наименование на разпоредителя с бюджет)",null,null,null,null,null,null,"код от регистъра на бюджетните организации в СЕБРА",null,1]
[null,null,null,null,null,null,null,null,null,null,1]
[null,{"$f":"VLOOKUP(F12,PRBK,2,FALSE)","v":"Министерски съвет "},null,null,"код по ЕБК:","0300",null,null,null,null,1]
[null,"                                             (наименование на първостепенния разпоредител с бюджет)",null,null,null,null,null,null,null,null,1]
[null,null,null,null,null,null,null,null,null,null,1]
[null,null,null,"ФИНАНСОВО-ПРАВНА ФОРМА",0,{"$f":"+IF(+E15=0,\"БЮДЖЕТ\",+IF(+E15=98,\"СЕС - КСФ\",+IF(+E15=42,\"СЕС - РА\",+IF(+E15=96,\"СЕС - ДЕС\",+IF(+E15=97,\"СЕС - ДМП\",+IF(+E15=33,\"Чужди средства\"))))))","v":"БЮДЖЕТ"},null,null,null,null,1]
[null,null,null,null,null,null,null,null,null,null,1]
[null,null,null,null,null,null,null,null,null,null,1]
[null,null,null,null,null,null,null,null,null,"(в лева)",1]
[null,null,null,"I. П Р И Х О Д И,  П О М О Щ И   И   Д А Р Е Н И Я","Уточнен план","                                                                                                                              О Т Ч Е Т Н И   Д А Н Н И",null,null,null,null,1]
[null,"§§","под-§§","Н А И М Е Н О В А Н И Е",{"$f":"$C$3","v":2017},"ОБЩО","левови\n сметки и СЕБРА ","валутни \nсметки ","операции в брой (в левове и валута)","операции приравнени на касов поток",1]
[null,null,null," 0 1 ¦","(1)","(2)","(3)","(4)","(5)","(6)",1]
[5,100,"Данък върху доходите на физически лица:",null,{"$f":"SUM(E23:E27)","v":0},0,0,0,0,0,{"$f":"(IF($E22<>0,$K$2,IF($F22<>0,$K$2,IF($G22<>0,$K$2,IF($H22<>0,$K$2,IF($I22<>0,$K$2,IF($J22<>0,$K$2,\"\")))))))","v":""}]
[10,null,101,"от доходи по трудови, служебни и приравнени на тях правоотношения",null,{"$f":"G23+H23+I23+J23","v":0},null,null,null,null,""]
[15,null,102,"от еднолични търговци, свободни професии, извънтрудови правоотношения и др.",null,{"$f":"G24+H24+I24+J24","v":0},null,null,null,null,""]
[20,null,103,"окончателен годишен (патентен) данък и данък върху таксиметров превоз на пътници",null,{"$f":"G25+H25+I25+J25","v":0},null,null,null,null,""]
[20,null,108,"окончателен данък върху приходите от лихви по банкови сметки на физическите лица",null,{"$f":"G26+H26+I26+J26","v":0},null,null,null,null,""]
[21,null,109,"окончателен данък  на местни и чуждестранни физически лица по чл. 37 и 38 от ЗДДФЛ",null,{"$f":"G27+H27+I27+J27","v":0},null,null,null,null,""]
[25,200,"Корпоративен данък:",null,{"$f":"SUM(E29:E32)","v":0},0,0,0,0,0,""]
[30,null,201,"корпоративен данък от нефинансови предприятия",null,{"$f":"G29+H29+I29+J29","v":0},null,null,null,null,""]
[35,null,202,"корпоративен данък от финансови институции",null,{"$f":"G30+H30+I30+J30","v":0},null,null,null,null,""]
[40,null,203,"корпоративен данък от юридически лица с нестопанска цел",null,{"$f":"G31+H31+I31+J31","v":0},null,null,null,null,""]
[45,null,204,"корпоративен данък от застрахователни дружества",null,{"$f":"G32+H32+I32+J32","v":0},null,null,null,null,""]
[50,400,"Данъци върху дивидентите, ликвидационните дялове и доходите на местни и чуждестранни лица:",null,{"$f":"SUM(E34:E38)","v":0},0,0,0,0,0,""]
[55,null,401,"данък върху дивидентите и ликвидационните дялове на местни юридически лица",null,{"$f":"G34+H34+I34+J34","v":0},null,null,null,null,""]
[56,null,402,"данък върху дивидентите и ликвидационните дялове на бюджетни предприятия",null,{"$f":"G35+H35+I35+J35","v":0},null,null,null,null,""]
[57,null,403,"данък върху дивидентите и ликвидационните дялове на чуждестрани юридически лица",null,{"$f":"G36+H36+I36+J36","v":0},null,null,null,null,""]
[58,null,404,"данък върху доходите на чуждестранни юридически лица",null,{"$f":"G37+H37+I37+J37","v":0},null,null,null,null,""]
[59,null,411,"данък върху дивидентите и ликвидационните дялове на физически лица",null,{"$f":"G38+H38+I38+J38","v":0},null,null,null,null,""]
[65,800,"Осигурителни вноски",null,{"$f":"SUM(E40:E46)","v":0},0,0,0,0,0,""]
[70,null,801,"вноски за работници и служители от работодатели",null,{"$f":"G40+H40+I40+J40","v":0},null,null,null,null,""]
[75,null,802,"вноски от работници и служители (лична вноска) ",null,0,null,null,null,null,""]
[80,null,804,"вноски от самонаети лица (самоосигуряващи се лица) ",null,0,null,null,null,null,""]
[85,null,809,"вноски  за други категории осигурени лица",null,0,null,null,null,null,""]
[85,null,811,"вноски по чл. 4б и 4в от КСО за сметка на осигурителя",null,0,null,null,null,null,""]
[85,null,812,"вноски по чл. 4б от КСО за сметка на осигурените лица",null,0,null,null,null,null,""]
[85,null,814,"вноски по чл. 4б от КСО от самонаети лица (самоосигуряващи се лица) ",null,0,null,null,null,null,""]
[95,1000,"Здравно-осигурителни вноски",null,{"$f":"SUM(E48:E51)","v":0},0,0,0,0,0,""]
[100,null,1001,"здравно-осигурителни вноски за работници и служители от работодатели",null,{"$f":"G48+H48+I48+J48","v":0},null,null,null,null,""]
[105,null,1002,"здравно-осигурителни вноски от работници и служители (лична вноска) ",null,{"$f":"G49+H49+I49+J49","v":0},null,null,null,null,""]
[110,null,1004,"здравно-осигурителни вноски от самонаети (самоосигуряващи се лица) ",null,{"$f":"G50+H50+I50+J50","v":0},null,null,null,null,""]
[125,null,1007,"здравно-осигур.вноски  за други категории осигурени лица",null,{"$f":"G51+H51+I51+J51","v":0},null,null,null,null,""]
[130,1300,"Имуществени и други местни данъци :",null,{"$f":"SUM(E53:E57)","v":0},0,0,0,0,0,""]
[135,null,1301,"данък върху недвижими имоти",null,{"$f":"G53+H53+I53+J53","v":0},null,null,null,null,""]
[140,null,1302,"данък върху наследствата",null,{"$f":"G54+H54+I54+J54","v":0},null,null,null,null,""]
[145,null,1303,"данък върху превозните средства",null,{"$f":"G55+H55+I55+J55","v":0},null,null,null,null,""]
[null,null,1304,"данък при придобиване на имущество по дарения и възмезден начин",null,{"$f":"G56+H56+I56+J56","v":0},null,null,null,null,""]
[150,null,1308,"туристически данък",null,{"$f":"G57+H57+I57+J57","v":0},null,null,null,null,""]
[160,1400,"Данък върху добавената стойност",null,{"$f":"SUM(E59:E60)","v":0},0,0,0,0,0,""]
[165,null,1401,"данък върху добавената стойност при сделки в страната",null,{"$f":"G59+H59+I59+J59","v":0},null,null,null,null,""]
[170,null,1402,"данък върху добавената стойност при внос",null,{"$f":"G60+H60+I60+J60","v":0},null,null,null,null,""]
[175,1500,"Акцизи ",null,{"$f":"SUM(E62:E63)","v":0},0,0,0,0,0,""]
[180,null,1501,"акциз при сделки в страната",null,{"$f":"G62+H62+I62+J62","v":0},null,null,null,null,""]
[185,null,1502,"акциз при внос",null,{"$f":"G63+H63+I63+J63","v":0},null,null,null,null,""]
[null,1600,"Данък върху застрахователните премии",null,null,{"$f":"G64+H64+I64+J64","v":0},null,null,null,null,""]
[200,1700,"Други данъци по Закона за корпоративното подоходно облагане:",null,{"$f":"SUM(E66:E71)","v":0},0,0,0,0,0,""]
[205,null,1701,"данък върху представителните разходи",null,{"$f":"G66+H66+I66+J66","v":0},null,null,null,null,""]
[210,null,1702,"данък върху разходи, предоставяни в натура",null,0,null,null,null,null,""]
[215,null,1703,"данък върху разходите за превозни средства",null,0,null,null,null,null,""]
[225,null,1706,"окончателни данъци върху залози за хазартни игри и хазартни съоръжения",null,0,null,null,null,null,""]
[226,null,1707,"данък върху дейността от опериране на кораби",null,0,null,null,null,null,""]
[227,null,1709,"данък върху приходите на бюджетните предприятия",null,0,null,null,null,null,""]
[231,1800,"Такси върху производството на захар и изоглюкоза",null,null,0,null,null,null,null,""]
[235,1900,"Мита и митнически такси:",null,null,0,null,null,null,null,""]
[255,2000,"Други данъци",null,null,0,null,null,null,null,""]
[265,2400,"Приходи и доходи от собственост",null,{"$f":"SUM(E76:E89)","v":60000},64530,11868,0,52662,0,1]
[270,null,2401,"вноски от приходи на държавни (общински) предприятия и институции",null,{"$f":"G76+H76+I76+J76","v":0},null,null,null,null,""]
[280,null,2403,"превишение на приходите над разходите на БНБ",null,0,null,null,null,null,""]
[285,null,2404,"нетни приходи от продажби на услуги, стоки и продукция",null,0,null,null,null,null,""]
[290,null,2405,"приходи от наеми на имущество",42000,44863,11396,0,33467,0,1]
[295,null,2406,"приходи от наеми на земя",18000,19667,472,0,19195,0,1]
[300,null,2407,"приходи от дивиденти",null,0,null,null,null,null,""]
[305,null,2408,"приходи от лихви по текущи банкови сметки",null,0,null,null,null,null,""]
[310,null,2409,"приходи от лихви по срочни депозити",null,0,null,null,null,null,""]
[315,null,2410,"приходи от лихви по предоставени заеми в страната и чужбина",null,0,null,null,null,null,""]
[325,null,2412,"приходи от лихви от предприятия по преоформен държавен дълг",null,0,null,null,null,null,""]
[330,null,2413,"приходи от лихви и отстъпки от държавни и общински ценни книжа",null,0,null,null,null,null,""]
[335,null,2415,"приходи от лихви и отстъпки от дългови ценни книжа на местни и чуждестранни лица",null,0,null,null,null,null,""]
[340,null,2418,"лихви по срочни депозити за сметка на централния бюджет (+/-)",null,0,null,null,null,null,""]
[345,null,2419,"приходи от други лихви",null,0,null,null,null,null,{"$f":"(IF($E89<>0,$K$2,IF($F89<>0,$K$2,IF($G89<>0,$K$2,IF($H89<>0,$K$2,IF($I89<>0,$K$2,IF($J89<>0,$K$2,\"\")))))))","v":""}]
[350,2500,"Държавни такси",null,{"$f":"SUM(E91:E92)","v":7000},5668,165,0,5503,0,1]
[355,null,2501,"такси за административни и други услуги и дейности",7000,{"$f":"G91+H91+I91+J91","v":5668},165,0,5503,0,1]
[356,null,2502,"такси и лицензии с данъчен характер",null,{"$f":"G92+H92+I92+J92","v":0},null,null,null,null,""]
[360,2600,"Съдебни такси",null,null,{"$f":"G93+H93+I93+J93","v":0},null,null,null,null,""]
[370,2700,"Общински такси",null,{"$f":"SUM(E95:E107)","v":0},0,0,0,0,0,""]
[375,null,2701,"за ползване на детски градини",null,{"$f":"G95+H95+I95+J95","v":0},null,null,null,null,""]
[380,null,"27-02","за ползване на детски ясли и други по здравеопазването",null,0,null,null,null,null,""]
[385,null,"27-03","за ползване на лагери и други по социалния отдих",null,0,null,null,null,null,""]
[390,null,2704,"за ползване на домашен социален патронаж и други общински социални услуги",null,0,null,null,null,null,""]
[395,null,"27-05","за ползване на пазари, тържища, панаири, тротоари, улични платна и др.",null,0,null,null,null,null,""]
[400,null,2706,"за ползване на полудневни детски градини",null,0,null,null,null,null,""]
[405,null,"27-07","за битови отпадъци",null,0,null,null,null,null,""]
[410,null,"27-08","за ползване на общежития и други по образованието",null,0,null,null,null,null,""]
[420,null,"27-10","за технически услуги",null,0,null,null,null,null,""]
[425,null,"27-11","за административни услуги",null,0,null,null,null,null,""]
[430,null,"27-15","за откупуване на гробни места",null,0,null,null,null,null,""]
[436,null,"27-17","за притежаване на куче",null,0,null,null,null,null,""]
[440,null,"27-29","други общински такси",null,0,null,null,null,null,""]
[445,2800,"Глоби, санкции и наказателни лихви",null,{"$f":"+E109+E110+E111","v":0},{"$f":"+F109+F110+F111","v":431},{"$f":"+G109+G110+G111","v":394},{"$f":"SUM(H109:H111)","v":0},{"$f":"+I109+I110+I111","v":37},{"$f":"SUM(J109:J111)","v":0},1]
[450,null,2801,"конфискувани средства и приходи от продажби на конфискувани и придобити от залог вещи",null,{"$f":"G109+H109+I109+J109","v":0},null,null,null,null,""]
[455,null,2802,"глоби, санкции, неустойки, наказателни лихви, обезщетения и начети",null,{"$f":"G110+H110+I110+J110","v":431},394,0,37,0,1]
[455,null,2809,"наказателни лихви за данъци, мита и осигурителни вноски",null,{"$f":"G111+H111+I111+J111","v":0},null,null,null,null,""]
[470,3600,"Други приходи",null,{"$f":"SUM(E113:E119)","v":5000},7017,6677,0,340,0,1]
[475,null,3601,"реализирани курсови разлики от валутни операции (нето) (+/-)",null,{"$f":"G113+H113+I113+J113","v":0},null,null,null,null,""]
[480,null,3605,"прехвърлени/възстановени акумулирани средства от осигурителни вноски",null,{"$f":"G114+H114+I114+J114","v":0},null,null,null,null,""]
[480,null,3610,"приходи от други вноски",null,0,null,null,null,null,""]
[480,null,3611,"получени застрахователни обезщетения за ДМА",null,0,null,null,null,null,""]
[485,null,3612,"получени други застрахователни обезщетения",null,0,null,null,null,null,""]
[null,null,3618,"коректив за касови постъпления (-/+) ",null,0,null,null,null,null,""]
[490,null,3619,"други неданъчни приходи",5000,7017,6677,0,340,0,1]
[495,3700,"Внесени ДДС и други данъци върху продажбите ",null,{"$f":"SUM(E121:E123)","v":0},-14063,-14063,0,0,0,1]
[500,null,3701,"внесен ДДС (-)",null,{"$f":"G121+H121+I121+J121","v":-11250},-11250,0,0,0,1]
[505,null,3702,"внесен данък върху приходите от стопанска дейност на бюджетните предприятия (-)",null,{"$f":"G122+H122+I122+J122","v":-2813},-2813,0,0,0,1]
[510,null,3709,"внесени други данъци,такси и вноски върху продажбите (-)",null,{"$f":"G123+H123+I123+J123","v":0},null,null,null,null,""]
[515,4000,"Постъпления от продажба на нефинансови активи (без § 40-71)",null,{"$f":"SUM(E125:E135)","v":70000},38770,38770,0,0,0,1]
[516,null,4021,"постъпления от продажба на компютри и хардуер",null,{"$f":"G125+H125+I125+J125","v":0},null,null,null,null,""]
[517,null,4022,"постъпления от продажба на сгради",null,0,null,null,null,null,""]
[518,null,4023,"постъпления от продажба на друго оборудване, машини и съоръжения",null,0,null,null,null,null,""]
[519,null,4024,"постъпления от продажба на транспортни средства",null,0,null,null,null,null,""]
[520,null,4025,"постъпления от продажба на стопански инвентар",null,0,null,null,null,null,""]
[521,null,4026,"постъпления от продажба на инфраструктурни обекти",null,0,null,null,null,null,""]
[522,null,4029,"постъпления от продажба на други ДМА",null,0,null,null,null,null,""]
[523,null,4030,"постъпления от продажба на нематериални дълготрайни активи",null,25077,25077,0,0,0,1]
[523,null,4039,"постъпления от продажба на квоти за емисии на парникови газове",null,0,null,null,null,null,""]
[524,null,4040,"постъпления от продажба на земя",70000,13693,13693,0,0,0,1]
[526,null,4072,"постъпления от продажба на земеделска продукция",null,0,null,null,null,null,""]
[540,4100,"Приходи от концесии",null,null,0,null,null,null,null,""]
[550,4200,"Приходи от лицензии за ползване на държавни/общински активи",null,null,0,null,null,null,null,""]
[560,"45-00","Помощи и дарения от страната",null,{"$f":"SUM(E139:E140)","v":0},0,0,0,0,0,""]
[565,null,4501,"текущи помощи и дарения от страната",null,{"$f":"G139+H139+I139+J139","v":0},null,null,null,null,""]
[570,null,4503,"капиталови помощи и дарения от страната",null,{"$f":"G140+H140+I140+J140","v":0},null,null,null,null,""]
[575,4600,"Помощи и дарения от чужбина",null,{"$f":"SUM(E142:E149)","v":0},0,0,0,0,0,""]
[580,null,4610,"текущи помощи и дарения от Европейския съюз",null,{"$f":"G142+H142+I142+J142","v":0},null,null,null,null,""]
[585,null,4620,"капиталови помощи и дарения от Европейския съюз",null,0,null,null,null,null,""]
[590,null,4630,"текущи помощи и дарения от други държави",null,0,null,null,null,null,""]
[595,null,4640,"капиталови помощи и дарения от други държави",null,0,null,null,null,null,""]
[600,null,4650,"текущи помощи и дарения от други международни организации",null,0,null,null,null,null,""]
[605,null,4660,"капиталови помощи и дарения от други международни организации",null,0,null,null,null,null,""]
[610,null,4670,"други текущи помощи и дарения от чужбина",null,0,null,null,null,null,""]
[615,null,4680,"други капиталови помощи и дарения  от чужбина",null,0,null,null,null,null,""]
[575,4700,"Получени чрез небюджетни предприятия средства от КФП по международни и други програми",null,{"$f":"SUM(E151:E158)","v":0},0,0,0,0,0,""]
[580,null,4743,"получени чрез нефинансови предприятия текущи трансфери от КФП по международни и други програми ",null,{"$f":"G151+H151+I151+J151","v":0},null,null,null,null,""]
[585,null,4744,"получени чрез финансови институции текущи трансфери от КФП по международни и други програми",null,0,null,null,null,null,""]
[590,null,4745,"получени чрез нестопански организации текущи трансфери от КФП по международни и други програми ",null,0,null,null,null,null,""]
[595,null,4749,"получени чрез предприятия от чужбина текущи трансфери от КФП по международни и други програми",null,0,null,null,null,null,{"$f":"(IF($E154<>0,$K$2,IF($F154<>0,$K$2,IF($G154<>0,$K$2,IF($H154<>0,$K$2,IF($I154<>0,$K$2,IF($J154<>0,$K$2,\"\")))))))","v":""}]
[600,null,4751,"получени чрез нефинансови предприятия капиталови трансфери от КФП по международни и други програми ",null,0,null,null,null,null,""]
[605,null,4752,"получени чрез финансови институции капиталови трансфери от КФП по международни и други програми ",null,0,null,null,null,null,""]
[610,null,4753,"получени чрез нестопански организации капиталови трансфери от КФП по международни и други програми",null,0,null,null,null,null,""]
[615,null,4759,"получени чрез предприятия от чужбина капиталови трансфери от КФП по международни и други програми",null,0,null,null,null,null,""]
[575,4800,"Разпределени към администратори от чужбина средства по международни програми и договори (-)",null,{"$f":"SUM(E160:E167)","v":0},0,0,0,0,0,""]
[580,null,4810,"разпределени към чужбина текущи трансфери по програми на Европейския съюз (-)",null,{"$f":"G160+H160+I160+J160","v":0},null,null,null,null,""]
[585,null,4820,"разпределени към чужбина капиталови трансфери по програми на Европейския съюз ",null,0,null,null,null,null,""]
[590,null,4830,"разпределени към чужбина текущи трансфери по програми на други държави (-)",null,0,null,null,null,null,""]
[595,null,4840,"разпределени към чужбина капиталови трансфери по програми на други държави (-)",null,0,null,null,null,null,""]
[600,null,4850,"разпределени към чужбина текущи трансфери по програми на други международни организации (-)",null,0,null,null,null,null,""]
[605,null,4860,"разпределени към чужбина капиталови трансфери по програми на други международни организации  (-)",null,0,null,null,null,null,""]
[610,null,4870,"разпределени към чужбина текущи трансфери по други чуждестранни дарения и помощи (-)",null,0,null,null,null,null,""]
[615,null,4880,"разпределени към чужбина капиталови трансфери по други чуждестранни дарения и помощи (-)",null,0,null,null,null,null,""]
[620,"ВСИЧКО","99-99","I. В С И Ч К О   П Р И Х О Д И,  П О М О Щ И   И   Д А Р Е Н И Я",{"$f":"SUM(E22,E28,E33,E39,E47,E52,E58,E61,E64,E65,E72,E73,E74,E75,E90,E93,E94,E108,E112,E120,E124,E136,E137,E138,E141,E150,E159)","v":142000},102353,43811,0,58542,0,1]
[null,null,null,null,null,null,null,null,null,null,1]
[null,null,null,null,null,null,null,null,null,null,1]
[null,null,null,null,null,null,null,null,null,null,1]
[null,null,null,null,null,null,null,null,null,null,1]
[null,{"$f":"$B$7","v":"ОТЧЕТНИ ДАННИ ПО ЕБК ЗА ИЗПЪЛНЕНИЕТО НА БЮДЖЕТА"},null,null,null,null,null,null,null,null,1]
[null,null,null,null,"за периода        от ","до",null,null,null,null,1]
[null,{"$f":"$B$9","v":"ОБЛАСТНА АДМИНИСТРАЦИЯ ПАЗАРДЖИК"},null,null,{"$f":"$E$9","v":"2017-01-01"},{"$f":"$F$9","v":"2017-12-31"},null,null,null,null,1]
[null,{"$f":"$B$10","v":"                                                            (наименование на разпоредителя с бюджет)"},null,null,null,null,null,null,null,null,1]
[null,null,null,null,null,null,null,null,null,null,1]
[null,{"$f":"$B$12","v":"Министерски съвет "},null,null,"       код по ЕБК:",{"$f":"$F$12","v":"0300"},null,null,null,null,1]
[null,{"$f":"$B$13","v":"                                             (наименование на първостепенния разпоредител с бюджет)"},null,null,null,null,null,null,null,null,1]
[null,null,null,"ФИНАНСОВО-ПРАВНА ФОРМА",{"$f":"$E$15","v":0},{"$f":"$F$15","v":"БЮДЖЕТ"},null,null,null,null,1]
[null,null,null,null,null,null,null,null,null,"(в лева)",1]
[null,null,null,"II. РАЗХОДИ - РЕКАПИТУЛАЦИЯ ПО ПАРАГРАФИ И ПОДПАРАГРАФИ","Уточнен план","                                                                                                                              О Т Ч Е Т Н И   Д А Н Н И",null,null,null,null,1]
[null,"§§","под-§§","НАИМЕНОВАНИЕ НА ПАРАГРАФИТЕ И ПОДПАРАГРАФИТЕ",{"$f":"$C$3","v":2017},"ОБЩО","левови\n сметки и СЕБРА ","валутни \nсметки ","операции в брой (в левове и валута)","операции приравнени на касов поток",1]
[null,null,null," 02 ¦","(1)","(2)","(3)","(4)","(5)","(6)",1]
[null,null,null,null,null,null,null,null,null,null,1]
[5,100,"Заплати и възнаграждения за персонала, нает по трудови и служебни правоотношения",null,{"$f":"SUMIF($B$603:$B$12272,$B186,E$603:E$12272)","v":305873},305311,266478,0,0,38833,{"$f":"(IF($E186<>0,$K$2,IF($F186<>0,$K$2,IF($G186<>0,$K$2,IF($H186<>0,$K$2,IF($I186<>0,$K$2,IF($J186<>0,$K$2,\"\")))))))","v":1}]
[10,null,101,"заплати и възнаграждения на персонала нает по трудови правоотношения",{"$f":"SUMIF($C$603:$C$12272,$C187,E$603:E$12272)","v":102943},102552,80206,0,0,22346,1,"Р"]
[15,null,102,"заплати и възнаграждения на персонала нает по служебни правоотношения",202930,202759,186272,0,0,16487,1,"Е"]
[35,200,"Други възнаграждения и плащания за персонала",null,{"$f":"SUMIF($B$603:$B$12272,$B189,E$603:E$12272)","v":140445},139458,123816,0,0,15642,1,"К"]
[40,null,201,"за нещатен персонал нает по трудови правоотношения ",{"$f":"SUMIF($C$603:$C$12272,$C190,E$603:E$12272)","v":132612},91031,77416,0,0,13615,1,"А"]
[45,null,202,"за персонала по извънтрудови правоотношения",7833,10430,9187,0,0,1243,1,"П"]
[50,null,205,"изплатени суми от СБКО за облекло и други на персонала, с характер на възнаграждение",0,5375,5375,0,0,0,1,"И"]
[55,null,208,"обезщетения за персонала, с характер на възнаграждение",0,30510,29726,0,0,784,1,"Т"]
[60,null,209,"другиплащания и възнаграждения",0,2112,2112,0,0,0,1,"У"]
[65,500,"Задължителни осигурителни вноски от работодатели",null,{"$f":"SUMIF($B$603:$B$12272,$B195,E$603:E$12272)","v":107413},106179,0,0,0,106179,1,"Л"]
[70,null,551,"осигурителни вноски от работодатели за Държавното обществено осигуряване (ДОО)",{"$f":"SUMIF($C$603:$C$12272,$C196,E$603:E$12272)","v":66716},66082,0,0,0,66082,1,"А"]
[75,null,{"$f":"C196+1","v":552},"осигурителни вноски от работодатели за Учителския пенсионен фонд (УчПФ)",0,0,0,0,0,0,"","Ц"]
[80,null,558,"вноски по чл. 4б и 4в от КСО за сметка на осигурителя",0,0,0,0,0,0,"","И"]
[80,null,560,"здравно-осигурителни вноски от работодатели",27502,27152,0,0,0,27152,1,"Я"]
[85,null,580,"вноски за допълнително задължително осигуряване от работодатели",13195,12945,0,0,0,12945,1]
[90,null,588,"коректив на вноски за ДЗПО за сумите по чл. 4б и 4в от КСО за сметка на осигурителя",0,0,0,0,0,0,""]
[90,null,590,"задължителни вноски за чуждестранни пенсионни фондове и  схеми за сметка на осигурителя",0,0,0,0,0,0,""]
[115,800,"Вноски за доброволно осигуряване  ",null,{"$f":"SUMIF($B$603:$B$12272,$B203,E$603:E$12272)","v":0},0,0,0,0,0,"","Н"]
[125,1000,"Издръжка",null,578867,558388,553991,0,4397,0,1,"А"]
[130,null,1011,"Храна",{"$f":"SUMIF($C$603:$C$12272,$C205,E$603:E$12272)","v":201605},365,0,0,365,0,1]
[135,null,1012,"Медикаменти",0,0,0,0,0,0,"","Р"]
[140,null,1013,"Постелен инвентар и облекло",0,3050,0,0,3050,0,1,"А"]
[145,null,1014,"Учебни и научно-изследователски разходи и книги за библиотеките",0,0,0,0,0,0,"","З"]
[150,null,1015,"материали",5210,24350,12160,0,12190,0,1,"Х"]
[155,null,1016,"вода, горива и енергия",1506,57388,77050,0,-19662,0,1,"О"]
[160,null,1020,"разходи за външни услуги",368940,467138,461627,0,5511,0,1,"Д"]
[165,null,1030,"Текущ ремонт",0,0,0,0,0,0,"","И"]
[175,null,1051,"командировки в страната",1606,3596,1606,0,1990,0,1]
[180,null,1052,"краткосрочни командировки в чужбина",0,89,0,0,89,0,1]
[185,null,1053,"дългосрочни командировки в чужбина",{"$f":"SUMIF($C$603:$C$12272,$C215,E$603:E$12272)","v":0},0,0,0,0,0,"","Р"]
[190,null,1062,"разходи за застраховки",0,2406,1548,0,858,0,1,"Е"]
[200,null,1063,"такса ангажимент по заеми",0,0,0,0,0,0,"","К"]
[200,null,1069,"други финансови услуги",0,2,0,0,2,0,1,"А"]
[205,null,1091,"други разходи за СБКО",0,0,0,0,0,0,"","П"]
[210,null,1092,"разходи за договорни санкции и неустойки, съдебни обезщетения и разноски",0,4,0,0,4,0,1,"И"]
[215,null,1098,"други разходи, некласифицирани в другите параграфи и подпараграфи",0,0,0,0,0,0,"","Т"]
[220,1900,"Платени данъци, такси и административни санкции",null,{"$f":"SUMIF($B$603:$B$12272,$B222,E$603:E$12272)","v":21000},20320,20337,0,-17,0,1,"У"]
[225,null,1901,"платени държавни данъци, такси, наказателни лихви и административни санкции",{"$f":"SUMIF($C$603:$C$12272,$C223,E$603:E$12272)","v":21000},95,65,0,30,0,1,"Л"]
[230,null,1981,"платени общински данъци, такси, наказателни лихви и административни санкции",0,20225,20272,0,-47,0,1,"А"]
[245,null,1991,"платени данъци, такси, наказателни лихви и административни санкции в чужбина",0,0,0,0,0,0,"","Ц"]
[220,2100,"Разходи за лихви по емисии на държавни (общински) ценни книжа",null,{"$f":"SUMIF($B$603:$B$12272,$B226,E$603:E$12272)","v":0},0,0,0,0,0,"","И"]
[225,null,2110,"лихви по държавни (общински) ценни книжа",{"$f":"SUMIF($C$603:$C$12272,$C227,E$603:E$12272)","v":0},0,0,0,0,0,"","Я"]
[230,null,2120,"отстъпки по държавни (общински) ценни книжа",0,0,0,0,0,0,""]
[235,null,2125,"лихви и отстъпки по целеви емисии на държавни ценни книжа",0,0,0,0,0,0,"","Н"]
[240,null,2140,"лихви по държавни ценни книжа, емитирани за структурната реформа ",0,0,0,0,0,0,"","А"]
[245,null,2190,"премии над номинала от емисии на държавни (общински) ценни книжа (-)",0,0,0,0,0,0,""]
[250,2200,"Разходи за лихви по заеми от страната",null,{"$f":"SUMIF($B$603:$B$12272,$B232,E$603:E$12272)","v":0},0,0,0,0,0,"","Р"]
[255,null,2221,"Разходи за лихви по заеми от банки в страната",{"$f":"SUMIF($C$603:$C$12272,$C233,E$603:E$12272)","v":0},0,0,0,0,0,"","А"]
[265,null,2224,"Разходи за лихви по други заеми от страната",0,0,0,0,0,0,"","З"]
[270,2500,"Разходи за лихви по заеми от други държави",null,{"$f":"SUMIF($B$603:$B$12272,$B235,E$603:E$12272)","v":0},0,0,0,0,0,"","Х"]
[290,2600,"Разходи за лихви по заеми от международни организации и институции",null,0,0,0,0,0,0,"","О"]
[320,2700,"Разходи за лихви по заеми от банки и други финансови институции от чужбина",null,0,0,0,0,0,0,"","Д"]
[330,2800,"Разходи за лихви и отстъпки по облигации, емитирани и търгувани на международните капиталови пазари",null,0,0,0,0,0,0,"","И"]
[350,2900,"Други разходи за лихви",null,0,0,0,0,0,0,""]
[355,null,2910,"Платени лихви по финансов лизинг и търговски кредит",{"$f":"SUMIF($C$603:$C$12272,$C240,E$603:E$12272)","v":0},0,0,0,0,0,""]
[375,null,2920,"Платени лихви по активирани гаранции по заеми от  банки в страната",0,0,0,0,0,0,""]
[375,null,2969,"Платени лихви по активирани гаранции по заеми от международни организации и институции",0,0,0,0,0,0,""]
[380,null,2970,"Платени лихви по активирани гаранции по заеми от банки и финансови институции от чужбина",0,0,0,0,0,0,""]
[385,null,2989,"Възстановени суми по платени лихви по активирани гаранции (-)",0,0,0,0,0,0,""]
[390,null,2990,"Платени лихви по заеми, предоставени от централния бюджет и бюджетни организации",0,0,0,0,0,0,""]
[390,null,2991,"Други разходи за лихви към  местни лица",0,0,0,0,0,0,""]
[395,null,2992,"Други разходи за лихви към чуждестранни лица",0,0,0,0,0,0,""]
[397,3300,"Вноска в бюджета на Европейския съюз",null,{"$f":"SUMIF($B$603:$B$12272,$B248,E$603:E$12272)","v":0},0,0,0,0,0,"","Р"]
[398,null,3301,"ресурс на база брутен национален доход",{"$f":"SUMIF($C$603:$C$12272,$C249,E$603:E$12272)","v":0},0,0,0,0,0,"","Е"]
[399,null,3302,"ресурс на база данък върху добавената стойност",0,0,0,0,0,0,"","К"]
[400,null,3303,"корекция за Обединеното кралство",0,0,0,0,0,0,"","А"]
[401,null,3304,"традиционни собствени ресурси - мита",0,0,0,0,0,0,"","П"]
[402,null,3305,"традиционни собствени ресурси - такси върху производството на захар и изоглюкоза",0,0,0,0,0,0,"","И"]
[404,null,3306,"участие във финансирането на брутното намаление за Нидерландия, Швеция, Дания и Австрия",0,0,0,0,0,0,{"$f":"(IF($E254<>0,$K$2,IF($F254<>0,$K$2,IF($G254<>0,$K$2,IF($H254<>0,$K$2,IF($I254<>0,$K$2,IF($J254<>0,$K$2,\"\")))))))","v":""},"Т"]
[404,3900,"Здравно-осигурителни плащания",null,{"$f":"SUMIF($B$603:$B$12272,$B255,E$603:E$12272)","v":0},0,0,0,0,0,"","У"]
[440,4000,"Стипендии",null,0,0,0,0,0,0,"","Л"]
[450,4100,"Пенсии",null,0,0,0,0,0,0,"","А"]
[495,4200,"Текущи трансфери, обезщетения и помощи за домакинствата",null,0,0,0,0,0,0,"","Ц"]
[500,null,4201,"обезщетения и помощи по социалното осигуряване",{"$f":"SUMIF($C$603:$C$12272,$C259,E$603:E$12272)","v":0},0,0,0,0,0,"","И"]
[505,null,4202,"обезщетения и помощи по социалното подпомагане",0,0,0,0,0,0,"","Я"]
[510,null,4214,"обезщетения и помощи по решение на общинския съвет",0,0,0,0,0,0,""]
[515,null,4217,"текущи трансфери за домакинства от средства на Европейския съюз",0,0,0,0,0,0,"","Н"]
[520,null,4218,"текущи трансфери за домакинства по други международни програми и споразумения",0,0,0,0,0,0,"","А"]
[525,null,4219,"други текущи трансфери за домакинствата",0,0,0,0,0,0,""]
[635,4300,"Субсидии и други текущи трансфери за нефинансови предприятия ",null,{"$f":"SUMIF($B$603:$B$12272,$B265,E$603:E$12272)","v":0},0,0,0,0,0,"","Р"]
[640,null,4301,"за текуща дейност",{"$f":"SUMIF($C$603:$C$12272,$C266,E$603:E$12272)","v":0},0,0,0,0,0,"","А"]
[645,null,4302,"за осъществяване на болнична помощ ",0,0,0,0,0,0,"","З"]
[650,null,4309,"други субсидии и плащания",0,0,0,0,0,0,"","Х"]
[655,4400,"Субсидии и други текущи трансфери за финансови институции",null,{"$f":"SUMIF($B$603:$B$12272,$B269,E$603:E$12272)","v":0},0,0,0,0,0,"","О"]
[665,4500,"Субсидии и други текущи трансфери за юридически лица с нестопанска цел",null,0,0,0,0,0,0,"","Д"]
[675,4600,"Разходи за членски внос и участие в нетърговски организации и дейности",null,0,0,0,0,0,0,"","И"]
[685,4900,"Предоставени текущи и капиталови трансфери за чужбина",null,0,0,0,0,0,0,""]
[690,null,4901,"текущи трансфери за чужбина",{"$f":"SUMIF($C$603:$C$12272,$C273,E$603:E$12272)","v":0},0,0,0,0,0,""]
[695,null,4902,"капиталови трансфери за чужбина",0,0,0,0,0,0,"","Р"]
[700,5100,"Основен ремонт на дълготрайни материални активи",null,{"$f":"SUMIF($B$603:$B$12272,$B275,E$603:E$12272)","v":0},0,0,0,0,0,"","Е"]
[710,5200,"Придобиване на дълготрайни материални активи",null,0,0,0,0,0,0,"","К"]
[715,null,5201,"придобиване на компютри и хардуер",{"$f":"SUMIF($C$603:$C$12272,$C277,E$603:E$12272)","v":0},0,0,0,0,0,"","А"]
[720,null,5202,"придобиване на сгради",0,0,0,0,0,0,"","П"]
[725,null,5203,"придобиване на друго оборудване, машини и съоръжения",0,0,0,0,0,0,"","И"]
[730,null,5204,"придобиване на транспортни средства",0,0,0,0,0,0,"","Т"]
[735,null,5205,"придобиване на стопански инвентар",0,0,0,0,0,0,"","У"]
[740,null,5206,"изграждане на инфраструктурни обекти",0,0,0,0,0,0,"","Л"]
[745,null,5219,"придобиване на други ДМА",0,0,0,0,0,0,"","А"]
[750,5300,"Придобиване на нематериални дълготрайни активи",null,{"$f":"SUMIF($B$603:$B$12272,$B284,E$603:E$12272)","v":3500},1800,1800,0,0,0,1,"Ц"]
[755,null,5301,"придобиване на програмни продукти и лицензи за програмни продукти",{"$f":"SUMIF($C$603:$C$12272,$C285,E$603:E$12272)","v":3500},1800,1800,0,0,0,1,"И"]
[760,null,5309,"придобиване на други нематериални дълготрайни активи",0,0,0,0,0,0,"","Я"]
[765,5400,"Придобиване на земя",null,{"$f":"SUMIF($B$603:$B$12272,$B287,E$603:E$12272)","v":0},0,0,0,0,0,""]
[775,5500,"Капиталови трансфери",null,0,0,0,0,0,0,"","Н"]
[780,null,5501,"капиталови трансфери за нефинансови предприятия",{"$f":"SUMIF($C$603:$C$12272,$C289,E$603:E$12272)","v":0},0,0,0,0,0,"","А"]
[785,null,5502,"капиталови трансфери за финансови институции",0,0,0,0,0,0,""]
[790,null,5503,"капиталови трансфери за организации с нестопанска цел",0,0,0,0,0,0,"","Р"]
[795,null,5504,"капиталови трансфери за домакинствата",0,0,0,0,0,0,"","А"]
[805,5700,"Прираст на държавния резерв и изкупуване на земеделска продукция (включва и § 40-71)",null,{"$f":"SUMIF($B$603:$B$12272,$B293,E$603:E$12272)","v":0},0,0,0,0,0,"","З"]
[810,null,5701,"плащания за попълване на държавния резерв",{"$f":"SUMIF($C$603:$C$12272,$C294,E$603:E$12272)","v":0},0,0,0,0,0,"","Х"]
[815,null,5702,"плащания за изкупуване на земеделска продукция",0,0,0,0,0,0,"","О"]
[525,null,4071,"постъпления от продажба на държавния резерв (-)",0,0,0,0,0,0,"","Д"]
[820,98,"Резерв за непредвидени и неотложни разходи",null,{"$f":"SUMIF($B$603:$B$12272,$B297,E$603:E$12272)","v":0},0,0,0,0,0,"","И"]
[821,null,null,null,null,null,null,null,null,null,""]
[822,null,null,null,null,null,null,null,null,null,""]
[823,null,null,null,null,null,null,null,null,null,""]
[825,"ВСИЧКО","99-99","II. ВСИЧКО РАЗХОДИ - РЕКАПИТУЛАЦИЯ ПО ПАРАГРАФИ И ПОДПАРАГРАФИ",{"$f":"SUMIF($C$603:$C$12272,$C301,E$603:E$12272)","v":1157098},1131456,966422,0,4380,160654,1]
[null,null,null,null,null,null,null,null,null,null,1]
[null,null,null,null,null,null,null,null,null,null,1]
[null,null,null,null,null,null,null,null,null,null,{"$f":"(IF($E$301<>0,$K$2,IF($F$301<>0,$K$2,\"\")))","v":1}]
[null,null,null,null,null,null,null,null,null,null,1]
[null,{"$f":"$B$7","v":"ОТЧЕТНИ ДАННИ ПО ЕБК ЗА ИЗПЪЛНЕНИЕТО НА БЮДЖЕТА"},null,null,null,null,null,null,null,null,1]
[null,null,null,null,"за периода        от ","до",null,null,null,null,1]
[null,{"$f":"$B$9","v":"ОБЛАСТНА АДМИНИСТРАЦИЯ ПАЗАРДЖИК"},null,null,{"$f":"$E$9","v":"2017-01-01"},{"$f":"$F$9","v":"2017-12-31"},null,null,null,null,1]
[null,{"$f":"$B$10","v":"                                                            (наименование на разпоредителя с бюджет)"},null,null,null,null,null,null,null,null,1]
[null,null,null,null,null,null,null,null,null,null,1]
[null,{"$f":"$B$12","v":"Министерски съвет "},null,null,"       код по ЕБК:",{"$f":"$F$12","v":"0300"},null,null,null,null,1]
[null,{"$f":"$B$13","v":"                                             (наименование на първостепенния разпоредител с бюджет)"},null,null,null,null,null,null,null,null,1,"Р"]
[null,null,null,"               ФИНАНСОВО-ПРАВНА ФОРМА",{"$f":"$E$15","v":0},{"$f":"+$F$15","v":"БЮДЖЕТ"},null,null,null,null,1,"Е"]
[null,null,null,null,null,null,null,null,null,null,1,"К"]
[null,null,null,"НАТУРАЛНИ ПОКАЗАТЕЛИ - РЕКАПИТУЛАЦИЯ",null,null,null,null,null,null,1,"А"]
[null,"МЯРКА","Код  9 8","  О б щ и   н а т у р а л н и   п о к а з а т е л и","    П л а н","    О т ч е т ",null,null,null,null,1,"П"]
[905,null," 9 8 0 1","Щ а т н и   б р о й к и",{"$f":"SUMIF($C$603:$C$12272,$C317,E$603:E$12272)","v":30},30,null,null,null,null,1,"И"]
[906,null," 9 8 1 1","в т.ч.: по трудови правоотношения",8,8,null,null,null,null,1,"Т"]
[907,null," 9 8 1 2","           по служебни правоотношения",22,22,null,null,null,null,1,"У"]
[910,null," 9 8 0 2","Средногодишни щатни бройки",30,30,null,null,null,null,1,"Л"]
[911,null," 9 8 2 1","в т.ч.: по трудови правоотношения",8,8,null,null,null,null,1,"А"]
[912,null," 9 8 2 2","         по служебни правоотношения",22,22,null,null,null,null,1,"Ц"]
[920,null," 9 8 0 3","Средна годишна брутна заплата",{"$f":"IF(ISERROR(E186/(E320+E332)),0,E186/(E320+E332))","v":10195.766666666666},{"$f":"IF(ISERROR(J186/(F320+F332)),0,F186/(F320+F332))","v":10177.033333333333},null,null,null,null,1,"И"]
[921,null," 9 8 3 1"," в т.ч.:   по трудови правоотношения",{"$f":"IF(ISERROR(E187/(E321+E332)),0,E187/(E321+E332))","v":12867.875},{"$f":"IF(ISERROR(J187/(F321+F332)),0,F187/(F321+F332))","v":12819},null,null,null,null,1,"Я"]
[922,null," 9 8 3 2","            по служебни правоотношения",{"$f":"IF(ISERROR(E188/(E322)),0,E188/(E322))","v":9224.0909090909099},{"$f":"IF(ISERROR(J188/(F322)),0,F188/(F322))","v":9216.318181818182},null,null,null,null,1,"-"]
[930,null," 9 8 0 4","Брой на моторни превозни средства",{"$f":"SUMIF($C$603:$C$12272,$C326,E$603:E$12272)","v":0},4,null,null,null,null,1,"Н"]
[931,null,"9 8 0 5","- в т.ч. - леки автомобили",0,4,null,null,null,null,1,"А"]
[932,null,"9 8 0 6","             - санитарни линейки",0,0,null,null,null,null,1,"Т"]
[935,null," 9 8 0 7","Брой ученици, финансирани по единни разходни стандарти",0,0,null,null,null,null,1,"У"]
[940,null," 9 8 0 8","Средна годишна брутна заплата за дейности, финансирани по единни разходни стандарти",null,null,null,null,null,null,1,"Р"]
[950,null," 9 8 0 9","Щатни бройки за дейности, финансирани по единни разходни стандарти",{"$f":"SUMIF($C$603:$C$12272,$C331,E$603:E$12272)","v":0},0,null,null,null,null,1,"А"]
[953,null," 9 8 1 0","Средногодишни щатни бройки за дейности, финансирани по единни разходни стандарти",0,0,null,null,null,null,1,"Л"]
[954,null,"9 8 1 3","Средногодишен приравнен брой учащи във ВУ, финансирани по норматив за издръжка на обучението",0,0,null,null,null,null,1,"Н"]
[955,null,"9 8 1 4","Брой леглодни в студентски общежития",0,0,null,null,null,null,1,"И"]
[956,null,"9 8 1 5","Брой хранодни в студентски стол",0,0,null,null,null,null,1]
[958,null,"9 8 1 7","Болнични легла",0,0,null,null,null,null,1,"П"]
[959,null,"9 8 1 8","Обем радиопрограма /часове/",0,0,null,null,null,null,1,"-"]
[960,null,"9 8 1 9","Обем телевизионна програма /часове/",0,0,null,null,null,null,1,"Л"]
[null,"ЗАБЕЛЕЖКА:",null,null,null,null,null,null,null,null,1,"И"]
[null," За натурални показатели, не влючени в този отчет, специфични за конкретна дейност се представят отделни справки, допълнително определени от Министерство на финансите.",null,null,null,null,null,null,null,null,1]
[null,null,null,null,null,null,null,null,null,null,1]
[null,null,null,null,null,null,null,null,null,null,1]
[null,null,null,null,null,null,null,null,null,null,1]
[null,{"$f":"$B$7","v":"ОТЧЕТНИ ДАННИ ПО ЕБК ЗА ИЗПЪЛНЕНИЕТО НА БЮДЖЕТА"},null,null,null,null,null,null,null,null,1]
[null,null,null,null,"за периода        от ","до",null,null,null,null,1]
[null,{"$f":"$B$9","v":"ОБЛАСТНА АДМИНИСТРАЦИЯ ПАЗАРДЖИК"},null,null,{"$f":"$E$9","v":"2017-01-01"},{"$f":"$F$9","v":"2017-12-31"},null,null,null,null,1]
[null,{"$f":"$B$10","v":"                                                            (наименование на разпоредителя с бюджет)"},null,null,null,null,null,null,null,null,1]
[null,null,null,null,null,null,null,null,null,null,1]
[null,{"$f":"$B$12","v":"Министерски съвет "},null,null,"       код по ЕБК:",{"$f":"$F$12","v":"0300"},null,null,null,null,1]
[null,{"$f":"$B$13","v":"                                             (наименование на първостепенния разпоредител с бюджет)"},null,null,null,null,null,null,null,null,1]
[null,null,null,"ФИНАНСОВО-ПРАВНА ФОРМА",{"$f":"$E$15","v":0},{"$f":"+$F$15","v":"БЮДЖЕТ"},null,null,null,null,1]
[null,null,null,null,null,null,null,null,null,"(в лева)",1]
[null,null,null,"III-ІV. ТРАНСФЕРИ И ВРЕМЕННИ БЕЗЛИХВЕНИ ЗАЕМИ - РЕКАПИТУЛАЦИЯ","Уточнен план","                                                                                                                              О Т Ч Е Т Н И   Д А Н Н И",null,null,null,null,1]
[null,"§§","под-§§","НАИМЕНОВАНИЕ НА ПАРАГРАФИТЕ И ПОДПАРАГРАФИТЕ",{"$f":"$C$3","v":2017},"ОБЩО","левови\n сметки и СЕБРА ","валутни \nсметки ","операции в брой (в левове и валута)","операции приравнени на касов поток",1]
[1,"  ІІІ. ТРАНСФЕРИ",null," 03 ¦","(1)","(2)","(3)","(4)","(5)","(6)",1]
[2,null,null,null,null,null,null,null,null,null,1]
[5,3000,"Трансфери от ЦБ за други бюджети (нето)",null,{"$f":"SUM(E358:E370)","v":0},0,0,0,0,0,{"$f":"(IF($E357<>0,$K$2,IF($F357<>0,$K$2,IF($G357<>0,$K$2,IF($H357<>0,$K$2,IF($I357<>0,$K$2,IF($J357<>0,$K$2,\"\")))))))","v":""}]
[10,null,3020,"трансфери между ЦБ и бюджети по държавния бюджет",null,{"$f":"G358+H358+I358+J358","v":0},null,null,null,null,""]
[20,null,3040,"възстановени трансфери в ЦБ от бюджети на общини",null,0,null,null,null,null,""]
[25,null,3041,"обща субсидия и други трансфери за държавни дейности от ЦБ за общини",null,0,null,null,null,null,""]
[30,null,3042,"обща изравнителна субсидия и други трансфери за местни дейности от ЦБ за общини",null,0,null,null,null,null,""]
[35,null,3043,"целеви субсидии от ЦБ за капиталови разходи за общини",null,0,null,null,null,null,""]
[36,null,3048,"други целеви трансфери от ЦБ за общини",null,0,null,null,null,null,""]
[45,null,3050,"трансфери между ЦБ и Държавното обществено осигуряване",null,0,null,null,null,null,""]
[50,null,3061,"трансфери между ЦБ и НЗОК",null,0,null,null,null,null,""]
[60,null,3081,"трансфери между ЦБ и БНТ",null,0,null,null,null,null,""]
[null,null,"30-82","трансфери между ЦБ и БНР",null,0,null,null,null,null,""]
[65,null,3083,"трансфери между ЦБ и БТА",null,0,null,null,null,null,""]
[65,null,3089,"трансфери  между ЦБ и други бюджети",null,0,null,null,null,null,""]
[65,null,3090,"други възстановени в ЦБ трансфери от бюджети",null,0,null,null,null,null,""]
[70,3100,"Трансфери между бюджета на бюджетната организация и ЦБ (нето)",null,{"$f":"SUM(E372:E378)","v":0},0,0,0,0,0,""]
[75,null,3110,"трансфери от/за ЦБ (+/-)",null,{"$f":"G372+H372+I372+J372","v":0},null,null,null,null,""]
[80,null,3111,"обща субсидия и други трансфери за държавни дейности от ЦБ за общини (+)",null,0,null,null,null,null,""]
[85,null,3112,"обща изравнителна субсидия и други трансфери за местни дейности от ЦБ за общини (+)",null,0,null,null,null,null,""]
[90,null,3113,"получени от общини целеви субсидии от ЦБ за капиталови разходи (+)",null,0,null,null,null,null,""]
[91,null,3118,"получени от общини целеви трансфери от ЦБ чрез  кодовете в СЕБРА 488 001 ххх-х",null,0,null,null,null,null,""]
[null,null,3128,"получени от общини целеви трансфери от ЦБ чрез кодове в СЕБРА 488 002 ххх-х",null,0,null,null,null,null,""]
[100,null,3120,"възстановени трансфери за ЦБ (-)",null,0,null,null,null,null,""]
[115,3200,"Предоставени субсидии от държавния бюджет за БАН и държавните висши училища (нето)",null,{"$f":"SUM(E380:E383)","v":0},0,0,0,0,0,""]
[120,null,3210,"предоставени трансфери от ДБ за държавните висши училища",null,{"$f":"G380+H380+I380+J380","v":0},null,null,null,null,""]
[125,null,3220,"предоставени трансфери от ДБ за БАН",null,{"$f":"G381+H381+I381+J381","v":0},null,null,null,null,""]
[130,null,3230,"получени от държавните висши училища  трансфери от ДБ (+)",null,{"$f":"G382+H382+I382+J382","v":0},null,null,null,null,""]
[135,null,3240,"получени от БАН трансфери от ДБ (+)",null,{"$f":"G383+H383+I383+J383","v":0},null,null,null,null,""]
[145,6000,"Трансфери между ЦБ и сметки за средствата от ЕС (нето)",null,{"$f":"+E385+E386","v":0},0,0,0,0,0,""]
[150,null,6001," - получени трансфери (+)",null,{"$f":"G385+H385+I385+J385","v":0},null,null,null,null,""]
[155,null,6002," - предоставени трансфери (-)",null,{"$f":"G386+H386+I386+J386","v":0},null,null,null,null,""]
[160,6100,"Трансфери между бюджети (нето)",null,{"$f":"SUM(E388:E391)","v":-526756},-511208,-511208,0,0,0,1]
[165,null,6101,"трансфери между бюджети - получени трансфери (+)",null,{"$f":"G388+H388+I388+J388","v":0},null,null,null,null,""]
[170,null,6102,"трансфери между бюджети - предоставени трансфери (-)",-384756,{"$f":"G389+H389+I389+J389","v":-384756},-384756,0,0,0,1]
[180,null,6105,"трансфери от МТСП по програми за осигуряване на заетост (+/-)",17082,{"$f":"G390+H390+I390+J390","v":17081},17081,0,0,0,1]
[180,null,6109,"вътрешни трансфери в системата на първостепенния разпоредител (+/-)",-159082,{"$f":"G391+H391+I391+J391","v":-143533},-143533,0,0,0,1]
[185,6200,"Трансфери между бюджети и сметки за средствата от ЕС (нето)",null,{"$f":"+E393+E394","v":0},0,0,0,0,0,""]
[190,null,6201,"- получени трансфери (+)",null,{"$f":"G393+H393+I393+J393","v":0},null,null,null,null,""]
[195,null,6202,"- предоставени трансфери (-)",null,{"$f":"G394+H394+I394+J394","v":0},null,null,null,null,""]
[200,6300,"Трансфери между сметки за средствата от ЕС (нето)",null,{"$f":"+E396+E397","v":0},0,0,0,0,0,""]
[205,null,6301,"- получени трансфери (+)",null,{"$f":"G396+H396+I396+J396","v":0},null,null,null,null,""]
[206,null,6302,"- предоставени трансфери (-)",null,{"$f":"G397+H397+I397+J397","v":0},null,null,null,null,""]
[210,6400,"Трансфери от/за държавни предприятия и други лица, включени в КФП",null,{"$f":"+E399+E400","v":0},0,0,0,0,0,""]
[211,null,6401,"- получени трансфери (+)",null,{"$f":"G399+H399+I399+J399","v":0},null,null,null,null,""]
[212,null,6402,"- предоставени трансфери (-)",null,{"$f":"G400+H400+I400+J400","v":0},null,null,null,null,""]
[213,6500,"Трансфери на отчислени постъпления",null,null,{"$f":"G401+H401+I401+J401","v":0},null,null,null,null,""]
[215,6600,"Разчети за извършени плащания в СЕБРА (+/-)",null,{"$f":"+E403+E404","v":1541854},1363496,1363496,0,0,0,{"$f":"(IF($E402<>0,$K$2,IF($F402<>0,$K$2,IF($F403<>0,$K$2,IF($F404<>0,$K$2,\"\")))))","v":1}]
[220,null,6601,"Разчети с подведомствени разпоредители за плащания в СЕБРА  (-)",null,{"$f":"G403+H403+I403+J403","v":0},null,null,null,null,""]
[225,null,6602,"Разчети с първостепенен разпоредител за плащания в СЕБРА  (+)",1541854,{"$f":"G404+H404+I404+J404","v":1363496},1363496,0,0,0,1]
[215,6700,"Трансфери от/за сметки за чужди средства",null,{"$f":"+E406+E407","v":0},0,0,0,0,0,""]
[220,null,6701,"трансфери от/за сметки за чужди средства - получени трансфери (+)",null,{"$f":"G406+H406+I406+J406","v":0},null,null,null,null,""]
[225,null,6702,"трансфери от/за сметки за чужди средства - предоставени трансфери (-)",null,{"$f":"G407+H407+I407+J407","v":0},null,null,null,null,""]
[230,6900,"Трансфери за поети осигурителни вноски и данъци",null,{"$f":"SUM(E409:E414)","v":0},176830,0,0,0,176830,{"$f":"(IF($E408<>0,$K$2,IF($F408<>0,$K$2,IF($F409<>0,$K$2,IF($F410<>0,$K$2,IF($F411<>0,$K$2,IF($F412<>0,$K$2,IF($F413<>0,$K$2,IF($F414<>0,$K$2,\"\")))))))))","v":1}]
[235,null,6901,"Трансфери за поети данъци върху доходите на физически лица",null,{"$f":"G409+H409+I409+J409","v":31348},0,0,0,31348,1]
[240,null,6905,"Трансфери за поети осигурителни вноски за ДОО",null,80466,0,0,0,80466,1]
[240,null,6906,"Трансфери за поети осигурителни вноски за здравно осигуряване",null,32811,0,0,0,32811,1]
[245,null,6907,"Трансфери за поети осигурителни вноски за ДЗПО",null,16029,0,0,0,16029,1]
[250,null,6908,"Корективен трансфер за поети осигурителни вноски и данъци",null,16176,0,0,0,16176,1]
[255,null,6909,"Разпределени суми на трансфери за поети осигурителни вноски и данъци (-)",null,0,0,0,0,null,""]
[260,"ВСИЧКО","99-99","III. ВСИЧКО ТРАНСФЕРИ",{"$f":"SUM(E357,E371,E379,E384,E387,E392,E395,E398,E401,E402,E405,E408)","v":1015098},1029118,852288,0,0,176830,1]
[261,"ІV. ВР.БЕЗЛ.ЗАЕМИ",null," 04 ¦",null,null,null,null,null,null,""]
[262,null,null,null,null,null,null,null,null,null,""]
[265,7400,"Получени/предоставени временни безлихвени заеми от/за ЦБ (нето)",null,null,{"$f":"G418+H418+I418+J418","v":0},null,null,null,null,""]
[275,7500,"Временни безлихвени заеми между бюджети (нето)",null,null,{"$f":"G419+H419+I419+J419","v":0},null,null,null,null,""]
[285,7600,"Временни безлихвени заеми между бюджети и сметки за средствата от ЕС (нето)",null,null,{"$f":"G420+H420+I420+J420","v":0},null,null,null,null,""]
[295,7700,"Временни безлихвени заеми между сметки за средствата от ЕС (нето)",null,null,{"$f":"G421+H421+I421+J421","v":0},null,null,null,null,{"$f":"(IF($E421<>0,$K$2,IF($F421<>0,$K$2,IF($G421<>0,$K$2,IF($H421<>0,$K$2,IF($I421<>0,$K$2,IF($J421<>0,$K$2,\"\")))))))","v":""}]
[215,7800,"Временни безлихвени заеми от/за държавни предприятия и други сметки, включени в КФП ",null,{"$f":"+E423+E424","v":0},0,0,0,0,0,{"$f":"(IF($E422<>0,$K$2,IF($F422<>0,$K$2,IF($G422<>0,$K$2,IF($H422<>0,$K$2,IF($I422<>0,$K$2,IF($J422<>0,$K$2,\"\")))))))","v":""}]
[220,null,7833,"Временни безлихвени заеми от/за сметки за чужди средства (нето) ",null,{"$f":"G423+H423+I423+J423","v":0},null,null,null,null,{"$f":"(IF($E423<>0,$K$2,IF($F423<>0,$K$2,IF($G423<>0,$K$2,IF($H423<>0,$K$2,IF($I423<>0,$K$2,IF($J423<>0,$K$2,\"\")))))))","v":""}]
[225,null,7888,"Временни безлихвени заеми от/за държавни предприятия, включени в КФП (нето) ",null,{"$f":"G424+H424+I424+J424","v":0},null,null,null,null,{"$f":"(IF($E424<>0,$K$2,IF($F424<>0,$K$2,IF($G424<>0,$K$2,IF($H424<>0,$K$2,IF($I424<>0,$K$2,IF($J424<>0,$K$2,\"\")))))))","v":""}]
[315,"ВСИЧКО","99-99","IV. ВСИЧКО ВРЕМЕННИ БЕЗЛИХВЕНИ ЗАЕМИ",{"$f":"SUM(E418,E419,E420,E421,E422)","v":0},0,0,0,0,0,1]
[null,null,null,null,null,null,null,null,null,null,1]
[null,null,null,null,null,null,null,null,null,null,1]
[null,null,null,null,null,null,null,null,null,null,1]
[null,{"$f":"$B$7","v":"ОТЧЕТНИ ДАННИ ПО ЕБК ЗА ИЗПЪЛНЕНИЕТО НА БЮДЖЕТА"},null,null,null,null,null,null,null,null,1]
[null,null,null,null,"за периода        от ","до",null,null,null,null,1]
[null,{"$f":"$B$9","v":"ОБЛАСТНА АДМИНИСТРАЦИЯ ПАЗАРДЖИК"},null,null,{"$f":"$E$9","v":"2017-01-01"},{"$f":"$F$9","v":"2017-12-31"},null,null,null,null,1]
[null,{"$f":"$B$10","v":"                                                            (наименование на разпоредителя с бюджет)"},null,null,null,null,null,null,null,null,1]
[null,null,null,null,null,null,null,null,null,null,1]
[null,{"$f":"$B$12","v":"Министерски съвет "},null,null,"       код по ЕБК:",{"$f":"$F$12","v":"0300"},null,null,null,null,1]
[null,{"$f":"$B$13","v":"                                             (наименование на първостепенния разпоредител с бюджет)"},null,null,null,null,null,null,null,null,1]
[null,null,null,"ФИНАНСОВО-ПРАВНА ФОРМА",{"$f":"$E$15","v":0},{"$f":"+$F$15","v":"БЮДЖЕТ"},null,null,null,null,1]
[null,null,null,null,null,null,null,null,null,null,1]
[null,null,null,null,null,null,null,null,null,"(в лева)",1]
[null,null,null,"V.-VІ. БЮДЖЕТНО САЛДО и ФИНАНСИРАНЕ НА БЮДЖЕТНОТО САЛДО","Уточнен план 2017","ОТЧЕТНИ ДАННИ ОБЩО","левови\n сметки и СЕБРА ","валутни \nсметки ","операции в брой (в левове и валута)","операции приравнени на касов поток",1]
[null,null,null," 0 5  ¦","(1)","(2)=(3+4+5+6)","(3)","(4)","(5)","(6)",1]
[null,null,null,"V. БЮДЖЕТНО САЛДО - ДЕФИЦИТ (-) / ИЗЛИШЪК (+)      (V.=I.-II.+III.+ІV.)",{"$f":"+E168-E301+E415+E425","v":0},15,-70323,0,54162,16176,1]
[null,null,null,"VІ. ФИНАНСИРАНЕ НА БЮДЖЕТНОТО САЛДО (VІ.=-V.)",{"$f":"+E593","v":0},-15,70323,0,-54162,-16176,1]
[null,null,null,{"$f":"+IF(+SUM(E443:J443)=0,0,\"Контрола: дефицит/излишък = финансиране с обратен знак (V. + VІ. = 0)\")","v":0},0,0,0,0,0,0,1]
[null,null,null,null,null,null,null,null,null,null,1]
[null,{"$f":"$B$7","v":"ОТЧЕТНИ ДАННИ ПО ЕБК ЗА ИЗПЪЛНЕНИЕТО НА БЮДЖЕТА"},null,null,null,null,null,null,null,null,1]
[null,null,null,null,"за периода        от ","до",null,null,null,null,1]
[null,{"$f":"$B$9","v":"ОБЛАСТНА АДМИНИСТРАЦИЯ ПАЗАРДЖИК"},null,null,{"$f":"$E$9","v":"2017-01-01"},{"$f":"$F$9","v":"2017-12-31"},null,null,null,null,1]
[null,{"$f":"$B$10","v":"                                                            (наименование на разпоредителя с бюджет)"},null,null,null,null,null,null,null,null,1]
[null,null,null,null,null,null,null,null,null,null,1]
[null,{"$f":"$B$12","v":"Министерски съвет "},null,null,"       код по ЕБК:",{"$f":"$F$12","v":"0300"},null,null,null,null,1]
[null,null,null,null,null,null,null,null,null,null,1]
[null,null,null,"ФИНАНСОВО-ПРАВНА ФОРМА",{"$f":"$E$15","v":0},{"$f":"+$F$15","v":"БЮДЖЕТ"},null,null,null,null,1]
[null,null,null,null,null,null,null,null,null,"(в лева)",1]
[null,"       VI. ОПЕРАЦИИ С ФИНАНСОВИ АКТИВИ И ПАСИВИ (финансиране на бюдж. салдо)",null,null,"Уточнен план","                                                                                                                              О Т Ч Е Т Н И   Д А Н Н И",null,null,null,null,1]
[null,"§§","под-§§","НАИМЕНОВАНИЕ НА ПАРАГРАФИТЕ И ПОДПАРАГРАФИТЕ",{"$f":"$C$3","v":2017},"ОБЩО","левови\n сметки и СЕБРА ","валутни \nсметки ","операции в брой (в левове и валута)","операции приравнени на касов поток",1]
[1,null,null," 0 6 ¦","(1)","(2)","(3)","(4)","(5)","(6)",1]
[5,7000,"Придобиване на дялове, акции и съучастия (нето)",null,{"$f":"SUM(E458:E460)","v":0},0,0,0,0,0,{"$f":"(IF($E457<>0,$K$2,IF($F457<>0,$K$2,IF($G457<>0,$K$2,IF($H457<>0,$K$2,IF($I457<>0,$K$2,IF($J457<>0,$K$2,\"\")))))))","v":""}]
[10,null,7001,"придобиване на дялове и акции и увеличение на капитала и капиталовите резерви (-)",null,{"$f":"G458+H458+I458+J458","v":0},null,null,null,null,""]
[20,null,7003,"участия в съвместни предприятия, активи и стопански дейности (-)",null,{"$f":"G459+H459+I459+J459","v":0},null,null,null,null,""]
[25,null,7010,"постъпления от продажби на дялове, акции, съучастия, и от ликвидационни дялове (+)",null,{"$f":"G460+H460+I460+J460","v":0},null,null,null,null,""]
[30,7100,"Предоставени кредити (нето)",null,{"$f":"+E462+E463","v":0},0,0,0,0,0,""]
[35,null,7101,"предоставени средства по лихвени заеми (-)",null,{"$f":"G462+H462+I462+J462","v":0},null,null,null,null,""]
[40,null,7102,"възстановени главници по предоставени лихвени заеми (+)",null,{"$f":"G463+H463+I463+J463","v":0},null,null,null,null,""]
[45,7200,"Предоставена възмездна финансова помощ (нето)",null,{"$f":"+E465+E466","v":0},0,0,0,0,0,""]
[50,null,7201,"предоставени средства по възмездна финансова помощ (-)",null,{"$f":"G465+H465+I465+J465","v":0},null,null,null,null,""]
[55,null,7202,"възстановени суми по възмездна финансова помощ (+)",null,{"$f":"G466+H466+I466+J466","v":0},null,null,null,null,""]
[60,7300,"Плащания по активирани гаранции, поръчителства и преоформен държавен дълг (нето)",null,{"$f":"SUM(E468:E473)","v":0},0,0,0,0,0,""]
[65,null,7320,"Погашения по активирани гаранции по заеми от  банки в страната",null,{"$f":"G468+H468+I468+J468","v":0},null,null,null,null,""]
[85,null,7369,"Погашения по активирани гаранции по заеми от международни организации и институции",null,0,null,null,null,null,""]
[90,null,7370,"Погашения по активирани гаранции по заеми от банки и финансови институции от чужбина",null,0,null,null,null,null,""]
[95,null,7391,"възстановени средства по активирани гаранции и поръчителства (+)",null,0,null,null,null,null,""]
[100,null,7392,"вноски от предприятия по преоформен държавен дълг (+)",null,0,null,null,null,null,""]
[105,null,7393,"получени суми от банки в несъстоятелност (+)",null,0,null,null,null,null,""]
[110,7900,"Предоставени заеми към крайни бенефициенти по държавни инвестиционни заеми (нето)",null,{"$f":"+E475+E476","v":0},0,0,0,0,0,""]
[115,null,7901,"предоставени заеми на крайни бенефициенти (-)",null,{"$f":"G475+H475+I475+J475","v":0},null,null,null,null,""]
[120,null,7902,"възстановени суми по предоставени заеми на крайни бенефиценти (+)",null,{"$f":"G476+H476+I476+J476","v":0},null,null,null,null,""]
[125,8000,"Заеми от чужбина - нето (+/-)",null,{"$f":"SUM(E478:E492)","v":0},0,0,0,0,0,""]
[130,null,8011,"получени краткосрочни заеми от други държави (+)",null,{"$f":"G478+H478+I478+J478","v":0},null,null,null,null,""]
[135,null,8012,"получени дългосрочни заеми от други държави (+)",null,0,null,null,null,null,""]
[140,null,8017,"погашения по краткосрочни заеми от други държави (-)",null,0,null,null,null,null,""]
[145,null,8018,"погашения по дългосрочни заеми от други държави (-)",null,0,null,null,null,null,""]
[150,null,8031,"получени краткосрочни заеми от международни организации (+)",null,0,null,null,null,null,""]
[155,null,8032,"получени дългосрочни заеми от международни организации (+)",null,0,null,null,null,null,""]
[175,null,8037,"погашения по краткосрочни заеми от международни организации (-)",null,0,null,null,null,null,""]
[180,null,8038,"погашения по дългосрочнизаеми от международни организации (-)",null,0,null,null,null,null,""]
[185,null,8051,"получени краткосрочни заеми от банки и финансови институции от чужбина (+)",null,0,null,null,null,null,""]
[190,null,8052,"получени дългосрочни заеми от банки и финансови институции от чужбина (+)",null,0,null,null,null,null,""]
[195,null,8057,"погашения по краткосрочни заеми от банки и финансови институции от чужбина (-)",null,0,null,null,null,null,""]
[200,null,8058,"погашения по дългосрочни заеми от банки и финансови институции от чужбина (-)",null,0,null,null,null,null,""]
[205,null,8080,"клирингови разчети - пасивни и активни салда (-/+)",null,0,null,null,null,null,""]
[210,null,8097,"друго финансиране от чужбина (+)",null,0,null,null,null,null,""]
[215,null,8098,"други погашения и плащания по финансиране от чужбина (-)",null,0,null,null,null,null,""]
[220,8100,"Държавни (общински) ценни книжа емитирани на международните капиталови пазари",null,{"$f":"SUM(E494:E497)","v":0},0,0,0,0,0,""]
[225,null,8111,"краткосрочни  ДЦК (ОбЦК) емитирани на международните капиталови пазари (+)",null,{"$f":"G494+H494+I494+J494","v":0},null,null,null,null,""]
[230,null,8112,"дългосрочни ДЦК (ОбЦК) емитирани на международните капиталови пазари (+)",null,{"$f":"G495+H495+I495+J495","v":0},null,null,null,null,""]
[235,null,8121,"погашения по  краткосрочни ДЦК (ОбЦК) емитирани на международните капиталови пазари (-)",null,{"$f":"G496+H496+I496+J496","v":0},null,null,null,null,""]
[240,null,8122,"погашения по дългосрочни ДЦК (ОбЦК) емитирани на международните капиталови пазари (-)",null,{"$f":"G497+H497+I497+J497","v":0},null,null,null,null,""]
[245,8200,"Получени погашения по предоставени кредити на други държави (+)",null,null,{"$f":"G498+H498+I498+J498","v":0},null,null,null,null,""]
[255,8300,"Заеми от банки и други лица в страната - нето (+/-)",null,{"$f":"SUM(E500:E507)","v":0},0,0,0,0,0,""]
[260,null,8311,"получени краткосрочни заеми от банки в страната (+)",null,{"$f":"G500+H500+I500+J500","v":0},null,null,null,null,""]
[261,null,8312,"получени дългосрочни заеми от банки в страната (+)",null,0,null,null,null,null,""]
[262,null,8321,"погашения по краткосрочни заеми от банки в страната (-)",null,0,null,null,null,null,""]
[263,null,8322,"погашения по дългосрочни заеми от банки в страната (-)",null,0,null,null,null,null,""]
[264,null,8371,"получени краткосрочни заеми от други лица  в страната (+)",null,0,null,null,null,null,""]
[265,null,8372,"получени дългосрочни заеми от други лица в страната (+)",null,0,null,null,null,null,""]
[266,null,8381,"погашения по краткосрочни заеми от други лица в страната (-)",null,0,null,null,null,null,""]
[267,null,8382,"погашения по дългосрочни заеми от други лица в страната (-)",null,0,null,null,null,null,""]
[295,8500,"Емисии на държавни (общински) ценни книжа (+)",null,{"$f":"SUM(E509:E511)","v":0},0,0,0,0,0,""]
[300,null,8501,"емисии на краткосрочни държавни (общински) ценни книжа (+)",null,{"$f":"G509+H509+I509+J509","v":0},null,null,null,null,""]
[305,null,8502,"емисии на дългосрочни държавни (общински) ценни книжа (+)",null,{"$f":"G510+H510+I510+J510","v":0},null,null,null,null,""]
[310,null,8504,"целеви емисии на дългосрочни държавни (общински) ценни книжа (+)",null,{"$f":"G511+H511+I511+J511","v":0},null,null,null,null,""]
[315,8600,"Погашения на държавни (общински) ценни книжа (-)",null,{"$f":"SUM(E513:E516)","v":0},0,0,0,0,0,""]
[320,null,8611,"погашения по краткосрочни държавни (общински) ценни книжа (-)",null,{"$f":"G513+H513+I513+J513","v":0},null,null,null,null,""]
[325,null,8621,"погашения по дългосрочни държавни (общински) ценни книжа (-)",null,{"$f":"G514+H514+I514+J514","v":0},null,null,null,null,""]
[330,null,8623,"погашения по целеви емисии на дългосрочни държавни (общински) ценни книжа (-)",null,{"$f":"G515+H515+I515+J515","v":0},null,null,null,null,""]
[340,null,8640,"погашения по ДЦК, емитирани за структурната реформа (-)",null,{"$f":"G516+H516+I516+J516","v":0},null,null,null,null,""]
[295,8700,"Разчети между първостепенни разпоредители  за централизация на средства и плащания в СЕБРА",null,{"$f":"SUM(E518:E519)","v":0},0,0,0,0,0,""]
[300,null,8733,"разчети между първостепенни разпоредители за централизация на средства (+/-)",null,{"$f":"G518+H518+I518+J518","v":0},null,null,null,null,""]
[310,null,8766,"разчети между първостепенни разпоредители за плащания в СЕБРА (+/-)",null,{"$f":"G519+H519+I519+J519","v":0},null,null,null,null,""]
[355,8800,"Събрани средства и извършени плащания за сметка на други бюджети, сметки и фондове ",null,{"$f":"SUM(E521:E526)","v":0},-78267,-4979,-56597,-515,-16176,1]
[360,null,8801,"събрани средства и извършени плащания от/за ЦБ (+/-)",null,{"$f":"G521+H521+I521+J521","v":0},null,null,null,null,{"$f":"(IF($E521<>0,$K$2,IF($F521<>0,$K$2,IF($G521<>0,$K$2,IF($H521<>0,$K$2,IF($I521<>0,$K$2,IF($J521<>0,$K$2,\"\")))))))","v":""}]
[365,null,8802,"събрани средства и извършени плащания от/за бюджети по държавния бюджет (+/-)",null,0,null,null,null,null,""]
[365,null,8803,"събрани средства и извършени плащания от/за сметки за средствата от Европейския съюз ",null,-78267,-4979,-56597,-515,-16176,1]
[370,null,8804,"събрани средства и извършени плащания от/за общински бюджети (+/-)",null,0,null,null,null,null,""]
[365,null,"88-05","събрани средства и извършени плащания от/за социалноосигурителни фондове (+/-)",null,0,null,null,null,null,""]
[370,null,8809,"събрани средства и извършени плащания от/за други бюджети (+/-)",null,0,null,null,null,null,""]
[375,8900,"Суми по разчети за поети осигурителни вноски и данъци",null,{"$f":"SUM(E528:E530)","v":0},0,0,0,0,0,""]
[380,null,8901,"суми по разчети м/у ЦБ,НОИ, НЗОК и НАП за поети осигурителни вноски",null,{"$f":"G528+H528+I528+J528","v":0},null,null,null,null,""]
[385,null,8902,"суми по разчети м/у ЦБ и бюджетните организации за поети осигурителни вноски и данъци",null,{"$f":"G529+H529+I529+J529","v":0},null,null,null,null,""]
[390,null,8903,"суми по разчети м/у бюджети, сметки и фондове за поети осигурителни вноски и данъци",null,{"$f":"G530+H530+I530+J530","v":0},null,0,0,null,""]
[395,9000,"Приватизация на дялове, акции и участия",null,null,{"$f":"G531+H531+I531+J531","v":0},null,null,null,null,""]
[405,9100,"Покупко-продажба на държавни (общински) ценни книжа от бюджетни организации - нето  (+/-)",null,{"$f":"SUM(E533:E536)","v":0},0,0,0,0,0,""]
[410,null,9111,"покупка на държавни (общински) ценни книжа на първичния пазар (-)",null,{"$f":"G533+H533+I533+J533","v":0},null,null,null,null,""]
[415,null,9112,"покупка на държавни (общински) ценни книжа на вторичния пазар (-)",null,{"$f":"G534+H534+I534+J534","v":0},null,null,null,null,""]
[420,null,9121,"продажба на държавни (общински) ценни книжа (+)",null,{"$f":"G535+H535+I535+J535","v":0},null,null,null,null,""]
[425,null,9122,"получени погашения по държавни (общински) ценни книжа (+)",null,{"$f":"G536+H536+I536+J536","v":0},null,null,null,null,""]
[430,9200,"Операции с други ценни книжа и финансови активи за управление на ликвидността - нето (+/-)",null,{"$f":"+E538+E539","v":0},0,0,0,0,0,""]
[435,null,9201,"с чуждестранни ценни книжа и финасови активи (+/-)",null,{"$f":"G538+H538+I538+J538","v":0},null,null,null,null,""]
[440,null,9202,"с ценни книжа и финансови активи на местни лица /резиденти/ (+/-)",null,{"$f":"G539+H539+I539+J539","v":0},null,null,null,null,""]
[445,9300,"Друго финансиране - нето(+/-)",null,{"$f":"SUM(E541:E561)","v":0},-15,-15,0,0,0,1]
[450,null,9301,"чужди средства от държавни/общински предприятия (+/-)",null,{"$f":"G541+H541+I541+J541","v":0},null,null,null,null,""]
[450,null,9310,"чужди средства от други лица (небюджетни предприятия и физически лица) (+/-)",null,-15,-15,0,0,0,1]
[451,null,9317,"задължения по финансов лизинг и търговски кредит (+)",null,0,0,0,0,null,""]
[452,null,9318,"погашения по финансов лизинг и търговски кредит (-)",null,0,null,null,null,null,""]
[456,null,9321,"плащания за сметка на Европейския съюз - директни плащания на земеделски производители (-)",null,0,null,null,null,null,""]
[457,null,9322,"възстановени суми от Европейския съюз - директни плащания на земеделски производители (+)",null,0,null,null,null,null,""]
[458,null,9323,"плащания за сметка на Европейския съюз - средства от ЕЗФРСР, прехвърлени към директни плащания (-)",null,0,null,null,null,null,""]
[459,null,9324,"възстановени суми от Европейския съюз - средства от ЕЗФРСР, прехвърлени към директни плащания (+)",null,0,null,null,null,null,""]
[460,null,9325,"плащания за сметка на Европейския съюз - пазарни мерки  (-)",null,0,null,null,null,null,""]
[461,null,9326,"възстановени суми от Европейския съюз - пазарни мерки (+)",null,0,null,null,null,null,""]
[null,null,9327,"плащания за сметка на средства на Европейския съюз от суми за преструктуриране (-)",null,0,null,null,null,null,""]
[null,null,9328," постъпления от Европейския съюз - суми за преструктуриране (+)",null,0,null,null,null,null,""]
[462,null,9330,"суми по разчети с централния бюджет за финансиране на плащания при недостиг на средства по сметки (+/-)",null,0,null,null,null,null,""]
[null,null,9336,"друго финансиране - операции с активи - предоставени временни депозити и гаранции на други бюджетни организации (-/+)",null,0,null,null,null,null,""]
[462,null,9337,"друго финансиране - операции с пасиви - получени временни депозити и гаранции от други бюджетни организации (-/+)",null,0,null,null,null,null,""]
[null,null,9338,"друго финансиране - операции с активи (+/-)",null,0,null,null,null,null,""]
[462,null,9339,"друго финансиране - операции с пасиви (+/-)",null,0,null,null,null,null,""]
[null,null,9355,"събрани суми за допълнително задължително пенсионно осигуряване (+)",null,0,null,null,null,null,""]
[462,null,9356,"разпределени суми за допълнително задължително пенсионно осигуряване (-)",null,0,null,null,null,null,""]
[462,null,9395,"получени парични наличности при преобразуване на бюджетни организации (+)",null,0,null,null,null,null,""]
[465,null,9396,"прехвърлени парични наличности при преобразуване на бюджетни организации (-)",null,{"$f":"G561+H561+I561+J561","v":0},null,null,null,null,""]
[470,9500,"Депозити и средства по сметки - нето (+/-)   ",null,{"$f":"SUM(E563:E581)","v":0},78267,0,78267,0,0,1]
[475,null,9501,"остатък в левове по сметки от предходния период (+)",null,{"$f":"G563+H563+I563+J563","v":0},0,0,0,0,""]
[480,null,9502,"остатък в левова равностойност по валутни сметки от предходния период (+)",null,150409,0,150409,0,0,1]
[485,null,9503,"остатък в левове по депозити от предходния период (+)",null,0,0,0,0,0,""]
[490,null,9504,"остатък в левова равностойност по депозити във валута от предходния период (+)",null,0,0,0,0,0,""]
[495,null,9505,"остатък в касата в  левове от предходния период (+)",null,0,0,0,0,0,""]
[500,null,9506,"остътък  в касата във валута от предходния период (+)",null,0,0,0,0,0,""]
[505,null,9507,"наличност в левове по сметки в края на периода (-)",null,0,0,0,0,0,""]
[510,null,9508,"наличност в левова равностойност по валутни сметки в края на периода (-)",null,-71952,0,-71952,0,0,1]
[515,null,9509,"наличност в левове по депозити в края на периода (-)",null,0,0,0,0,0,""]
[520,null,9510,"наличност в левова равностойност по депозити във валута в края на периода (-)",null,0,0,0,0,0,""]
[525,null,9511,"наличност в касата в левове в края на периода (-)",null,0,0,0,0,0,""]
[530,null,9512,"наличност в касата във валута в края на периода (-)",null,0,0,0,0,0,""]
[535,null,9513,"преводи в процес на сетълмент (-/+)",null,0,0,0,0,0,""]
[540,null,9514," преоценка на валутни наличности (нереализирани курсови разлики) по сметки и средства в страната  (+/-)",null,-190,0,-190,0,0,1]
[545,null,9521,"остатък в левова равностойност по валутни сметки  в чужбина от предходния период (+)",null,0,0,0,0,0,""]
[550,null,9522,"остатък в касата във валута  в чужбина от предходния период (+)",null,0,0,0,0,0,""]
[555,null,9528,"наличност в касата във валута  в чужбина в края на периода (-)",null,0,0,0,0,0,""]
[560,null,9529,"наличност в левова равностойност по валутни сметки в чужбина в края на периода(-)",null,0,0,0,0,0,""]
[561,null,9549,"преоценка на валутни наличности (нереализирани курсови разлики) по сметки и средства в чужбина (+/-)",null,0,0,null,null,0,""]
[565,9600,"Депозити и сметки консолидирани в системата на \"Единната сметка\"-нето (+/-)",null,{"$f":"SUM(E583:E586)","v":0},0,0,0,0,0,""]
[566,null,9601,"остатък по левови текущи сметки на бюджетните организации в БНБ от предходния период (+) ",null,{"$f":"G583+H583+I583+J583","v":0},0,0,0,0,""]
[567,null,9603,"остатък по левови депозити на бюджетните организации в БНБ от предходния период (+)",null,{"$f":"G584+H584+I584+J584","v":0},0,0,0,0,""]
[568,null,9607,"наличност по левови текущи сметки на бюджетните организации в БНБ в края на периода (-) ",null,{"$f":"G585+H585+I585+J585","v":0},0,0,0,0,{"$f":"(IF($E585<>0,$K$2,IF($F585<>0,$K$2,IF($G585<>0,$K$2,IF($H585<>0,$K$2,IF($I585<>0,$K$2,IF($J585<>0,$K$2,\"\")))))))","v":""}]
[569,null,9609,"наличност по левови депозити на бюджетните организации в БНБ в края на периода (-)",null,{"$f":"G586+H586+I586+J586","v":0},0,0,0,0,""]
[575,9800,"Касови операции, депозити, покупко-продажба на валута и сетълмент операции",null,{"$f":"SUM(E588:E592)","v":0},0,75317,-21670,-53647,0,1]
[580,null,9810,"операции в брой между банка и каса (+/-)",0,{"$f":"G588+H588+I588+J588","v":0},54162,0,-54162,0,1]
[585,null,9820,"предоставяне (възстановяване) на средства по срочни депозити (+/-)",0,{"$f":"G589+H589+I589+J589","v":0},null,null,null,0,""]
[590,null,9830,"покупко-продажба на валута (+/-)",0,{"$f":"G590+H590+I590+J590","v":0},21155,-21670,515,0,1]
[600,null,9850,"операции СЕБРА - захранване на \"сметки за наличности\" (+/-)",0,{"$f":"G591+H591+I591+J591","v":0},0,0,0,0,""]
[605,null,9890,"салдо по сметката на ЦБ за разпределение на преводи от системата за брутен сетълмент в реално време (+/-)",null,{"$f":"G592+H592+I592+J592","v":0},null,0,0,0,""]
[610,"ВСИЧКО","99-99","VI. ВСИЧКО ОПЕРАЦИИ С ФИНАНСОВИ АКТИВИ И ПАСИВИ",{"$f":"SUM(E457,E461,E464,E467,E477,E493,E498,E499,E508,E512,E517,E474,E520,E527,E531,E532,E537,E540,E562,E582,E587)","v":0},-15,70323,0,-54162,-16176,1]
[null,null,null,{"$f":"+IF(+SUM(E594:J594)=0,0,\"Контрола: дефицит/излишък = финансиране с обратен знак (V. + VІ. = 0)\")","v":0},{"$f":"E593+E441","v":0},0,0,0,0,0,1]
[null,null,null,null,null,null,null,null,null,null,1]
[null,null,null,null,null,"ГЛ. СЧЕТОВОДИТЕЛ:","НАДЕЖДА ЦОКОВА",null,null,null,1]
[null,null,null,null,null,null,"( име и фамилия)",null,null,null,1]
[null,null,null,null,null,null,null,null,null,null,1]
[null,null,"ИЗГОТВИЛ:","НАДЕЖДА ЦОКОВА",null,"РЪКОВОДИТЕЛ:","СТЕФАН МИРЕВ",null,null,null,1]
[null,"дата",null,"                                                                      ( име и фамилия)",null,null,"( име и фамилия)",null,null,null,1]
[null,null,null,"служебни телефони ",34,400023,"e-mail:","accountant@pz.government.bg",null,null,1]
[null,null,null,null,null,null,null,null,null,null,1]
[null,null,null,null,null,null,"Web-адрес:",null,null,null,1]
[null,null,null,null,null,null,null,null,null,null,1]
[null,null,null,null,null,null,null,null,null,null,1]
[null,null,null,null,null,null,null,null,null,null,{"$f":"(IF($E740<>0,$K$2,IF($F740<>0,$K$2,IF($G740<>0,$K$2,IF($H740<>0,$K$2,IF($I740<>0,$K$2,IF($J740<>0,$K$2,\"\")))))))","v":1}]
[null,null,null,null,null,null,null,null,null,null,{"$f":"(IF($E740<>0,$K$2,IF($F740<>0,$K$2,IF($G740<>0,$K$2,IF($H740<>0,$K$2,IF($I740<>0,$K$2,IF($J740<>0,$K$2,\"\")))))))","v":1}]
[null,{"$f":"$B$7","v":"ОТЧЕТНИ ДАННИ ПО ЕБК ЗА ИЗПЪЛНЕНИЕТО НА БЮДЖЕТА"},null,null,null,null,null,null,null,null,{"$f":"(IF($E740<>0,$K$2,IF($F740<>0,$K$2,IF($G740<>0,$K$2,IF($H740<>0,$K$2,IF($I740<>0,$K$2,IF($J740<>0,$K$2,\"\")))))))","v":1}]
[null,null,null,null,"за периода от ","до",null,"                 II.1. РАЗХОДИ ПО ДЕЙНОСТИ",null,null,{"$f":"(IF($E740<>0,$K$2,IF($F740<>0,$K$2,IF($G740<>0,$K$2,IF($H740<>0,$K$2,IF($I740<>0,$K$2,IF($J740<>0,$K$2,\"\")))))))","v":1}]
[null,{"$f":"$B$9","v":"ОБЛАСТНА АДМИНИСТРАЦИЯ ПАЗАРДЖИК"},null,null,{"$f":"$E$9","v":"2017-01-01"},{"$f":"$F$9","v":"2017-12-31"},null,null,null,null,{"$f":"(IF($E740<>0,$K$2,IF($F740<>0,$K$2,IF($G740<>0,$K$2,IF($H740<>0,$K$2,IF($I740<>0,$K$2,IF($J740<>0,$K$2,\"\")))))))","v":1}]
[null,{"$f":"$B$10","v":"                                                            (наименование на разпоредителя с бюджет)"},null,null,null,null,null,null,null,null,{"$f":"(IF($E740<>0,$K$2,IF($F740<>0,$K$2,IF($G740<>0,$K$2,IF($H740<>0,$K$2,IF($I740<>0,$K$2,IF($J740<>0,$K$2,\"\")))))))","v":1}]
[null,null,null,null,null,null,null,null,null,null,{"$f":"(IF($E740<>0,$K$2,IF($F740<>0,$K$2,IF($G740<>0,$K$2,IF($H740<>0,$K$2,IF($I740<>0,$K$2,IF($J740<>0,$K$2,\"\")))))))","v":1}]
[null,{"$f":"$B$12","v":"Министерски съвет "},null,null,"       код по ЕБК:",{"$f":"$F$12","v":"0300"},null,null,null,null,{"$f":"(IF($E740<>0,$K$2,IF($F740<>0,$K$2,IF($G740<>0,$K$2,IF($H740<>0,$K$2,IF($I740<>0,$K$2,IF($J740<>0,$K$2,\"\")))))))","v":1}]
[null,{"$f":"$B$13","v":"                                             (наименование на първостепенния разпоредител с бюджет)"},null,null,null,null,null,null,null,null,{"$f":"(IF($E740<>0,$K$2,IF($F740<>0,$K$2,IF($G740<>0,$K$2,IF($H740<>0,$K$2,IF($I740<>0,$K$2,IF($J740<>0,$K$2,\"\")))))))","v":1}]
[null,null,null,"ФИНАНСОВО-ПРАВНА ФОРМА",{"$f":"$E$15","v":0},{"$f":"$F$15","v":"БЮДЖЕТ"},null,null,null,null,{"$f":"(IF($E740<>0,$K$2,IF($F740<>0,$K$2,IF($G740<>0,$K$2,IF($H740<>0,$K$2,IF($I740<>0,$K$2,IF($J740<>0,$K$2,\"\")))))))","v":1}]
[null,null,null,null,null,null,null,null,null,"(в лева)",{"$f":"(IF($E740<>0,$K$2,IF($F740<>0,$K$2,IF($G740<>0,$K$2,IF($H740<>0,$K$2,IF($I740<>0,$K$2,IF($J740<>0,$K$2,\"\")))))))","v":1}]
[null,null,null,"II.1. РАЗХОДИ ПО ДЕЙНОСТИ","Уточнен план","                                                                                                                              О Т Ч Е Т Н И   Д А Н Н И",null,null,null,null,{"$f":"(IF($E740<>0,$K$2,IF($F740<>0,$K$2,IF($G740<>0,$K$2,IF($H740<>0,$K$2,IF($I740<>0,$K$2,IF($J740<>0,$K$2,\"\")))))))","v":1}]
[null,"§§","под-§§","НАИМЕНОВАНИЯ НА ПАРАГРАФИТЕ И ПОДПАРАГРАФИТЕ",{"$f":"$C$3","v":2017},"ОБЩО","левови\n сметки и СЕБРА ","валутни \nсметки ","операции в брой (в левове и валута)","операции приравнени на касов поток",{"$f":"(IF($E740<>0,$K$2,IF($F740<>0,$K$2,IF($G740<>0,$K$2,IF($H740<>0,$K$2,IF($I740<>0,$K$2,IF($J740<>0,$K$2,\"\")))))))","v":1}]
[null,null,null," 02 ¦","(1)","(2)","(3)","(4)","(5)","(6)",{"$f":"(IF($E740<>0,$K$2,IF($F740<>0,$K$2,IF($G740<>0,$K$2,IF($H740<>0,$K$2,IF($I740<>0,$K$2,IF($J740<>0,$K$2,\"\")))))))","v":1}]
[null,null,0,"ИЗБЕРЕТЕ ОПЕРАТИВНА ПРОГРАМА ",null,null,null,null,null,null,{"$f":"(IF($E740<>0,$K$2,IF($F740<>0,$K$2,IF($G740<>0,$K$2,IF($H740<>0,$K$2,IF($I740<>0,$K$2,IF($J740<>0,$K$2,\"\")))))))","v":1}]
[null,null,{"$f":"VLOOKUP(D622,EBK_DEIN2,2,FALSE)","v":1117},"<------          ДЕЙНОСТ    -  код  по  ЕБК",null,null,null,null,null,null,{"$f":"(IF($E740<>0,$K$2,IF($F740<>0,$K$2,IF($G740<>0,$K$2,IF($H740<>0,$K$2,IF($I740<>0,$K$2,IF($J740<>0,$K$2,\"\")))))))","v":1}]
[null,null,{"$f":"+C621","v":1117},"117 Държавни и общински служби и дейности по изборите",null,null,null,null,null,null,{"$f":"(IF($E740<>0,$K$2,IF($F740<>0,$K$2,IF($G740<>0,$K$2,IF($H740<>0,$K$2,IF($I740<>0,$K$2,IF($J740<>0,$K$2,\"\")))))))","v":1}]
[null,null,null,"(наименование на дейността)",null,null,null,null,null,null,{"$f":"(IF($E740<>0,$K$2,IF($F740<>0,$K$2,IF($G740<>0,$K$2,IF($H740<>0,$K$2,IF($I740<>0,$K$2,IF($J740<>0,$K$2,\"\")))))))","v":1}]
[null,100,"Заплати и възнаграждения за персонала, нает по трудови и служебни правоотношения",null,{"$f":"SUM(E625:E626)","v":6417},6417,5708,0,0,709,{"$f":"(IF($E624<>0,$K$2,IF($F624<>0,$K$2,IF($G624<>0,$K$2,IF($H624<>0,$K$2,IF($I624<>0,$K$2,IF($J624<>0,$K$2,\"\")))))))","v":1}]
[null,null,101,"заплати и възнаграждения на персонала нает по трудови правоотношения",773,{"$f":"G625+H625+I625+J625","v":773},605,0,0,168,{"$f":"(IF($E625<>0,$K$2,IF($F625<>0,$K$2,IF($G625<>0,$K$2,IF($H625<>0,$K$2,IF($I625<>0,$K$2,IF($J625<>0,$K$2,\"\")))))))","v":1}]
[null,null,102,"заплати и възнаграждения на персонала нает по служебни правоотношения",5644,{"$f":"G626+H626+I626+J626","v":5644},5103,0,0,541,1]
[null,200,"Други възнаграждения и плащания за персонала",null,{"$f":"SUM(E628:E632)","v":33469},33469,32465,0,0,1004,1]
[null,null,201,"за нещатен персонал нает по трудови правоотношения ",25636,{"$f":"G628+H628+I628+J628","v":25636},25636,0,0,0,1]
[null,null,202,"за персонала по извънтрудови правоотношения",7833,{"$f":"G629+H629+I629+J629","v":7833},6829,0,0,1004,1]
[null,null,205,"изплатени суми от СБКО за облекло и други на персонала, с характер на възнаграждение",null,{"$f":"G630+H630+I630+J630","v":0},null,null,null,null,""]
[null,null,208,"обезщетения за персонала, с характер на възнаграждение",null,{"$f":"G631+H631+I631+J631","v":0},null,null,null,null,""]
[null,null,209,"другиплащания и възнаграждения",null,{"$f":"G632+H632+I632+J632","v":0},null,null,null,null,""]
[null,500,"Задължителни осигурителни вноски от работодатели",null,{"$f":"SUM(E634:E640)","v":10763},10763,0,0,0,10763,1]
[null,null,551,"осигурителни вноски от работодатели за Държавното обществено осигуряване (ДОО)",6581,{"$f":"G634+H634+I634+J634","v":6581},0,0,0,6581,1]
[null,null,{"$f":"C634+1","v":552},"осигурителни вноски от работодатели за Учителския пенсионен фонд (УПФ)",null,0,0,0,0,null,""]
[null,null,558,"вноски по чл. 4б и 4в от КСО за сметка на осигурителя",null,{"$f":"G636+H636+I636+J636","v":0},0,0,0,0,""]
[null,null,560,"здравно-осигурителни вноски от работодатели",2731,2731,0,0,0,2731,1]
[null,null,580,"вноски за допълнително задължително осигуряване от работодатели",1451,1451,0,0,0,1451,1]
[null,null,588,"коректив на вноски за ДЗПО за сумите по чл. 4б и 4в от КСО за сметка на осигурителя",null,{"$f":"G639+H639+I639+J639","v":0},0,0,0,0,""]
[5,null,590,"задължителни вноски за чуждестранни пенсионни фондове и  схеми за сметка на осигурителя",null,0,null,null,null,null,""]
[10,800,"Вноски за доброволно осигуряване ",null,null,0,null,null,null,null,""]
[15,1000,"Издръжка",null,{"$f":"SUM(E643:E659)","v":14617},14617,13617,0,1000,0,1]
[35,null,1011,"Храна",null,{"$f":"G643+H643+I643+J643","v":0},null,null,null,null,""]
[40,null,1012,"Медикаменти",null,0,null,null,null,null,""]
[45,null,1013,"Постелен инвентар и облекло",null,0,null,null,null,null,""]
[50,null,1014,"Учебни и научно-изследователски разходи и книги за библиотеките",null,0,null,null,null,null,""]
[55,null,1015,"материали",5210,5210,4424,0,786,0,1]
[60,null,1016,"вода, горива и енергия",1506,1506,1400,0,106,0,1]
[65,null,1020,"разходи за външни услуги",6295,6295,6187,0,108,0,1]
[70,null,1030,"Текущ ремонт",null,0,null,null,null,null,""]
[75,null,1051,"командировки в страната",1606,1606,1606,0,0,0,1]
[80,null,1052,"краткосрочни командировки в чужбина",null,0,null,null,null,null,""]
[80,null,1053,"дългосрочни командировки в чужбина",null,0,null,null,null,null,""]
[85,null,1062,"разходи за застраховки",null,0,null,null,null,null,""]
[90,null,1063,"такса ангажимент по заеми",null,0,null,null,null,null,""]
[90,null,1069,"други финансови услуги",null,0,null,null,null,null,""]
[115,null,1091,"други разходи за СБКО",null,0,null,null,null,null,""]
[125,null,1092,"разходи за договорни санкции и неустойки, съдебни обезщетения и разноски",null,0,null,null,null,null,""]
[130,null,1098,"други разходи, некласифицирани в другите параграфи и подпараграфи",null,0,null,null,null,null,""]
[135,1900,"Платени данъци, такси и административни санкции",null,{"$f":"SUM(E661:E663)","v":0},0,0,0,0,0,""]
[140,null,1901,"платени държавни данъци, такси, наказателни лихви и административни санкции",null,{"$f":"G661+H661+I661+J661","v":0},null,null,null,null,""]
[145,null,1981,"платени общински данъци, такси, наказателни лихви и административни санкции",null,{"$f":"G662+H662+I662+J662","v":0},null,null,null,null,""]
[150,null,1991,"платени данъци, такси, наказателни лихви и административни санкции в чужбина",null,{"$f":"G663+H663+I663+J663","v":0},null,null,null,null,""]
[155,2100,"Разходи за лихви по емисии на държавни (общински) ценни книжа",null,{"$f":"SUM(E665:E669)","v":0},0,0,0,0,0,""]
[160,null,2110,"лихви по държавни (общински) ценни книжа",null,{"$f":"G665+H665+I665+J665","v":0},null,null,null,null,""]
[165,null,2120,"отстъпки по държавни (общински) ценни книжа",null,{"$f":"G666+H666+I666+J666","v":0},null,null,null,null,""]
[175,null,2125,"лихви и отстъпки по целеви емисии на държавни ценни книжа",null,{"$f":"G667+H667+I667+J667","v":0},null,null,0,null,""]
[180,null,2140,"лихви по държавни ценни книжа, емитирани за структурната реформа ",null,{"$f":"G668+H668+I668+J668","v":0},null,null,0,null,""]
[185,null,2190,"премии над номинала от емисии на държавни (общински) ценни книжа (-)",null,{"$f":"G669+H669+I669+J669","v":0},null,null,0,null,""]
[190,2200,"Разходи за лихви по заеми от страната",null,{"$f":"SUM(E671:E672)","v":0},0,0,0,0,0,""]
[200,null,2221,"Разходи за лихви по заеми от банки в страната",null,{"$f":"G671+H671+I671+J671","v":0},null,null,null,null,""]
[200,null,2224,"Разходи за лихви по други заеми от страната",null,0,null,null,null,null,""]
[205,2500,"Разходи за лихви по заеми от други държави",null,null,0,null,null,null,null,""]
[210,2600,"Разходи за лихви по заеми от международни организации и институции",null,null,0,null,null,null,null,""]
[215,2700,"Разходи за лихви по заеми от банки и други финансови институции от чужбина",null,null,0,null,null,null,null,""]
[220,2800,"Разходи за лихви и отстъпки по облигации, емитирани и търгувани на международните капиталови пазари",null,null,0,null,null,null,null,""]
[225,2900,"Други разходи за лихви",null,{"$f":"SUM(E678:E685)","v":0},0,0,0,0,0,""]
[230,null,2910,"Платени лихви по финансов лизинг и търговски кредит",null,{"$f":"G678+H678+I678+J678","v":0},null,null,null,null,""]
[245,null,2920,"Платени лихви по активирани гаранции по заеми от  банки в страната",null,{"$f":"G679+H679+I679+J679","v":0},null,null,null,null,""]
[220,null,2969,"Платени лихви по активирани гаранции по заеми от международни организации и институции",null,0,null,null,null,null,""]
[225,null,2970,"Платени лихви по активирани гаранции по заеми от банки и финансови институции от чужбина",null,0,null,null,null,null,""]
[230,null,2989,"Възстановени суми по платени лихви по активирани гаранции (-)",null,0,null,null,null,null,""]
[235,null,2990,"Платени лихви по заеми, предоставени от централния бюджет и бюджетни организации",null,{"$f":"G683+H683+I683+J683","v":0},null,null,null,null,""]
[240,null,2991,"Други разходи за лихви към  местни лица",null,0,null,null,null,null,""]
[245,null,2992,"Други разходи за лихви към чуждестранни лица",null,0,null,null,null,null,""]
[250,3300,"Вноска в бюджета на Европейския съюз",null,{"$f":"SUM(E687:E692)","v":0},0,0,0,0,0,""]
[255,null,3301,"ресурс на база брутен национален доход",null,{"$f":"G687+H687+I687+J687","v":0},null,null,0,0,""]
[265,null,3302,"ресурс на база данък върху добавената стойност",null,0,null,null,0,0,""]
[270,null,3303,"корекция за Обединеното кралство",null,0,null,null,0,0,""]
[290,null,3304,"традиционни собствени ресурси - мита",null,0,null,null,0,0,""]
[320,null,3305,"традиционни собствени ресурси - такси върху производството на захар и изоглюкоза",null,0,null,null,0,0,""]
[330,null,3306,"участие във финансирането на брутното намаление за Нидерландия, Швеция, Дания и Австрия",null,0,null,null,0,0,""]
[350,3900,"Здравно-осигурителни плащания",null,null,0,null,null,null,null,{"$f":"(IF($E693<>0,$K$2,IF($F693<>0,$K$2,IF($G693<>0,$K$2,IF($H693<>0,$K$2,IF($I693<>0,$K$2,IF($J693<>0,$K$2,\"\")))))))","v":""}]
[355,4000,"Стипендии",null,null,0,null,null,null,null,""]
[375,4100,"Пенсии",null,null,0,null,null,null,null,""]
[375,4200,"Текущи трансфери, обезщетения и помощи за домакинствата",null,{"$f":"SUM(E697:E702)","v":0},0,0,0,0,0,""]
[380,null,4201,"обезщетения и помощи по социалното осигуряване",null,{"$f":"G697+H697+I697+J697","v":0},null,null,null,null,""]
[385,null,4202,"обезщетения и помощи по социалното подпомагане",null,0,null,null,null,null,""]
[390,null,4214,"обезщетения и помощи по решение на общинския съвет",null,0,null,null,null,null,""]
[390,null,4217,"текущи трансфери за домакинства от средства на Европейския съюз",null,0,null,null,null,null,""]
[395,null,4218,"текущи трансфери за домакинства по други международни програми и споразумения",null,0,null,null,null,null,""]
[397,null,4219,"други текущи трансфери за домакинствата",null,0,null,null,null,null,""]
[398,4300,"Субсидии и други текущи трансфери за нефинансови предприятия ",null,{"$f":"SUM(E704:E706)","v":0},0,0,0,0,0,""]
[399,null,4301,"за текуща дейност",null,{"$f":"G704+H704+I704+J704","v":0},null,null,null,null,""]
[400,null,4302,"за осъществяване на болнична помощ ",null,0,null,null,null,null,""]
[401,null,4309,"други субсидии и плащания",null,0,null,null,null,null,""]
[402,4400,"Субсидии и други текущи трансфери за финансови институции",null,null,0,null,null,null,null,""]
[404,4500,"Субсидии и други текущи трансфери за юридически лица с нестопанска цел",null,null,0,null,null,null,null,""]
[404,4600,"Разходи за членски внос и участие в нетърговски организации и дейности",null,null,0,null,null,null,null,""]
[440,4900,"Предоставени текущи и капиталови трансфери за чужбина",null,{"$f":"+E711+E712","v":0},0,0,0,0,0,""]
[450,null,4901,"текущи трансфери за чужбина",null,{"$f":"G711+H711+I711+J711","v":0},null,null,null,null,""]
[495,null,4902,"капиталови трансфери за чужбина",null,{"$f":"G712+H712+I712+J712","v":0},null,null,null,null,""]
[500,5100,"Основен ремонт на дълготрайни материални активи",null,null,{"$f":"G713+H713+I713+J713","v":0},null,null,null,null,""]
[505,5200,"Придобиване на дълготрайни материални активи",null,{"$f":"SUM(E715:E721)","v":0},0,0,0,0,0,""]
[510,null,5201,"придобиване на компютри и хардуер",null,{"$f":"G715+H715+I715+J715","v":0},null,null,null,null,""]
[515,null,5202,"придобиване на сгради",null,0,null,null,null,null,""]
[520,null,5203,"придобиване на друго оборудване, машини и съоръжения",null,0,null,null,null,null,""]
[525,null,5204,"придобиване на транспортни средства",null,0,null,null,null,null,""]
[635,null,5205,"придобиване на стопански инвентар",null,0,null,null,null,null,""]
[640,null,5206,"изграждане на инфраструктурни обекти",null,0,null,null,null,null,""]
[645,null,5219,"придобиване на други ДМА",null,0,null,null,null,null,""]
[650,5300,"Придобиване на нематериални дълготрайни активи",null,{"$f":"SUM(E723:E724)","v":0},0,0,0,0,0,""]
[655,null,5301,"придобиване на програмни продукти и лицензи за програмни продукти",null,{"$f":"G723+H723+I723+J723","v":0},null,null,null,null,""]
[665,null,5309,"придобиване на други нематериални дълготрайни активи",null,{"$f":"G724+H724+I724+J724","v":0},null,null,null,null,""]
[675,5400,"Придобиване на земя",null,null,{"$f":"G725+H725+I725+J725","v":0},null,null,null,null,""]
[685,5500,"Капиталови трансфери",null,{"$f":"SUM(E727:E730)","v":0},0,0,0,0,0,""]
[690,null,5501,"капиталови трансфери за нефинансови предприятия",null,{"$f":"G727+H727+I727+J727","v":0},null,null,null,null,""]
[695,null,5502,"капиталови трансфери за финансови институции",null,{"$f":"G728+H728+I728+J728","v":0},null,null,null,null,""]
[700,null,5503,"капиталови трансфери за организации с нестопанска цел",null,{"$f":"G729+H729+I729+J729","v":0},null,null,null,null,""]
[710,null,5504,"капиталови трансфери за домакинствата",null,{"$f":"G730+H730+I730+J730","v":0},null,null,null,null,""]
[715,5700,"Прираст на държавния резерв и изкупуване на земеделска продукция (включва и § 40-71)",null,{"$f":"SUM(E732:E734)","v":0},0,0,0,0,0,""]
[720,null,5701,"плащания за попълване на държавния резерв",null,{"$f":"G732+H732+I732+J732","v":0},null,null,null,null,""]
[725,null,5702,"плащания за изкупуване на земеделска продукция",null,{"$f":"G733+H733+I733+J733","v":0},null,null,null,null,""]
[730,null,4071,"постъпления от продажба на държавния резерв (-)",null,{"$f":"G734+H734+I734+J734","v":0},null,null,null,null,""]
[735,null,null,null,null,null,null,null,null,null,""]
[740,98,"Резерв за непредвидени и неотложни разходи",null,null,{"$f":"G736+H736+I736+J736","v":0},0,0,0,0,""]
[745,null,null,null,null,null,null,null,null,null,""]
[750,null,null,null,null,null,null,null,null,null,""]
[755,null,null,null,null,null,null,null,null,null,""]
[760,null,"99-99",{"$f":"+B740","v":0},{"$f":"SUM(E624,E627,E633,E641,E642,E660,E664,E670,E673,E674,E675,E676,E677,E686,E693,E694,E695,E696,E703,E707,E708,E709,E710,E713,E714,E722,E725,E726,E731)+E736","v":65266},65266,51790,0,1000,12476,1,{"$f":"LEFT(C621,1)","v":"1"}]
[765,null,null,null,null,null,null,null,null,null,{"$f":"K740","v":1}]
[775,null,null,null,null,null,null,null,null,null,{"$f":"K740","v":1}]
[780,null,null,null,null,null,null,null,null,null,{"$f":"(IF(SUM(K754:K775)<>0,$K$2,\"\"))","v":""}]
[785,{"$f":"$B$7","v":"ОТЧЕТНИ ДАННИ ПО ЕБК ЗА ИЗПЪЛНЕНИЕТО НА БЮДЖЕТА"},null,null,null,null,null,null,null,null,{"$f":"(IF(SUM(K754:K775)<>0,$K$2,\"\"))","v":""}]
[790,null,null,null,"за периода от ","до",null,null,null,null,{"$f":"(IF(SUM(K754:K775)<>0,$K$2,\"\"))","v":""}]
[795,{"$f":"$B$9","v":"ОБЛАСТНА АДМИНИСТРАЦИЯ ПАЗАРДЖИК"},null,null,{"$f":"$E$9","v":"2017-01-01"},{"$f":"$F$9","v":"2017-12-31"},null,null,null,null,{"$f":"(IF(SUM(K754:K775)<>0,$K$2,\"\"))","v":""}]
[805,{"$f":"$B$10","v":"                                                            (наименование на разпоредителя с бюджет)"},null,null,null,null,null,null,null,null,{"$f":"(IF(SUM(K754:K775)<>0,$K$2,\"\"))","v":""}]
[810,null,null,null,null,null,null,null,null,null,{"$f":"(IF(SUM(K754:K775)<>0,$K$2,\"\"))","v":""}]
[815,{"$f":"$B$12","v":"Министерски съвет "},null,null,"       код по ЕБК:",{"$f":"$F$12","v":"0300"},null,null,null,null,{"$f":"(IF(SUM(K754:K775)<>0,$K$2,\"\"))","v":""}]
[525,{"$f":"$B$13","v":"                                             (наименование на първостепенния разпоредител с бюджет)"},null,null,null,null,null,null,null,null,{"$f":"(IF(SUM(K754:K775)<>0,$K$2,\"\"))","v":""}]
[820,null,null,"               ФИНАНСОВО-ПРАВНА ФОРМА",{"$f":"$E$15","v":0},{"$f":"$F$15","v":"БЮДЖЕТ"},null,null,null,null,{"$f":"(IF(SUM(K754:K775)<>0,$K$2,\"\"))","v":""}]
[821,null,null,"Натурални показатели за дейността",null,"(в лева)",null,null,null,null,{"$f":"(IF(SUM(K754:K775)<>0,$K$2,\"\"))","v":""}]
[822,"МЯРКА","Код 9 8","  О б щ и   н а т у р а л н и   п о к а з а т е л и","    П л а н","    О т ч е т ",null,null,null,null,{"$f":"(IF(SUM(K754:K775)<>0,$K$2,\"\"))","v":""}]
[823,null," 9 8 0 1","Щ а т н и   б р о й к и",{"$f":"E755+E756","v":0},{"$f":"F755+F756","v":0},null,null,null,null,{"$f":"(IF($E754<>0,$K$2,IF($F754<>0,$K$2,\"\")))","v":""}]
[825,null," 9 8 1 1","в т.ч.: по трудови правоотношения",null,null,null,null,null,null,""]
[null,null," 9 8 1 2","           по служебни правоотношения",null,null,null,null,null,null,""]
[null,null," 9 8 0 2","Средногодишни щатни бройки",{"$f":"E758+E759","v":0},{"$f":"F758+F759","v":0},null,null,null,null,""]
[null,null," 9 8 2 1","в т.ч.: по трудови правоотношения",null,null,null,null,null,null,""]
[null,null," 9 8 2 2","         по служебни правоотношения",null,null,null,null,null,null,""]
[null,null," 9 8 0 3","Средна годишна брутна заплата",null,null,null,null,null,null,""]
[null,null," 9 8 3 1"," в т.ч.:   по трудови правоотношения",null,null,null,null,null,null,""]
[null,null," 9 8 3 2","            по служебни правоотношения",null,null,null,null,null,null,""]
[null,null," 9 8 0 4","Брой на моторни превозни средства",null,null,null,null,null,null,""]
[null,null,"9 8 0 5","- в т.ч. - леки автомобили",null,null,null,null,null,null,""]
[null,null,"9 8 0 6","             - санитарни линейки",null,null,null,null,null,null,""]
[null,null," 9 8 0 7","Брой ученици, финансирани по единни разходни стандарти",null,null,null,null,null,null,""]
[null,null," 9 8 0 8","Средна годишна брутна заплата за дейности, финансирани по единни разходни стандарти",null,null,null,null,null,null,""]
[null,null," 9 8 0 9","Щатни бройки за дейности, финансирани по единни разходни стандарти",null,null,null,null,null,null,""]
[null,null," 9 8 1 0","Средногодишни щатни бройки за дейности, финансирани по единни разходни стандарти",null,null,null,null,null,null,""]
[null,null,"9 8 1 3","Средногодишен приравнен брой учащи във ВУ, финансирани по норматив за издръжка на обучението",null,null,null,null,null,null,""]
[905,null,"9 8 1 4","Брой леглодни в студентски общежития",null,null,null,null,null,null,""]
[906,null,"9 8 1 5","Брой хранодни в студентски стол",null,null,null,null,null,null,""]
[907,null,"9 8 1 7","Болнични легла",null,null,null,null,null,null,""]
[910,null,"9 8 1 8","Обем радиопрограма /часове/",null,null,null,null,null,null,""]
[911,null,"9 8 1 9","Обем телевизионна програма /часове/",null,null,null,null,null,null,""]
[null,"ЗАБЕЛЕЖКА:",null,null,null,null,null,null,null,null,{"$f":"K740","v":1}]
[]
[]
[null,null,null,null,null,null,null,null,null,null,{"$f":"(IF($E913<>0,$K$2,IF($F913<>0,$K$2,IF($G913<>0,$K$2,IF($H913<>0,$K$2,IF($I913<>0,$K$2,IF($J913<>0,$K$2,\"\")))))))","v":1}]
[null,null,null,null,null,null,null,null,null,null,{"$f":"(IF($E913<>0,$K$2,IF($F913<>0,$K$2,IF($G913<>0,$K$2,IF($H913<>0,$K$2,IF($I913<>0,$K$2,IF($J913<>0,$K$2,\"\")))))))","v":1}]
[null,{"$f":"$B$7","v":"ОТЧЕТНИ ДАННИ ПО ЕБК ЗА ИЗПЪЛНЕНИЕТО НА БЮДЖЕТА"},null,null,null,null,null,null,null,null,{"$f":"(IF($E913<>0,$K$2,IF($F913<>0,$K$2,IF($G913<>0,$K$2,IF($H913<>0,$K$2,IF($I913<>0,$K$2,IF($J913<>0,$K$2,\"\")))))))","v":1}]
[null,null,null,null,"за периода от ","до",null,"                 II.1. РАЗХОДИ ПО ДЕЙНОСТИ",null,null,{"$f":"(IF($E913<>0,$K$2,IF($F913<>0,$K$2,IF($G913<>0,$K$2,IF($H913<>0,$K$2,IF($I913<>0,$K$2,IF($J913<>0,$K$2,\"\")))))))","v":1}]
[null,{"$f":"$B$9","v":"ОБЛАСТНА АДМИНИСТРАЦИЯ ПАЗАРДЖИК"},null,null,{"$f":"$E$9","v":"2017-01-01"},{"$f":"$F$9","v":"2017-12-31"},null,null,null,null,{"$f":"(IF($E913<>0,$K$2,IF($F913<>0,$K$2,IF($G913<>0,$K$2,IF($H913<>0,$K$2,IF($I913<>0,$K$2,IF($J913<>0,$K$2,\"\")))))))","v":1}]
[null,{"$f":"$B$10","v":"                                                            (наименование на разпоредителя с бюджет)"},null,null,null,null,null,null,null,null,{"$f":"(IF($E913<>0,$K$2,IF($F913<>0,$K$2,IF($G913<>0,$K$2,IF($H913<>0,$K$2,IF($I913<>0,$K$2,IF($J913<>0,$K$2,\"\")))))))","v":1}]
[null,null,null,null,null,null,null,null,null,null,{"$f":"(IF($E913<>0,$K$2,IF($F913<>0,$K$2,IF($G913<>0,$K$2,IF($H913<>0,$K$2,IF($I913<>0,$K$2,IF($J913<>0,$K$2,\"\")))))))","v":1}]
[null,{"$f":"$B$12","v":"Министерски съвет "},null,null,"       код по ЕБК:",{"$f":"$F$12","v":"0300"},null,null,null,null,{"$f":"(IF($E913<>0,$K$2,IF($F913<>0,$K$2,IF($G913<>0,$K$2,IF($H913<>0,$K$2,IF($I913<>0,$K$2,IF($J913<>0,$K$2,\"\")))))))","v":1}]
[null,{"$f":"$B$13","v":"                                             (наименование на първостепенния разпоредител с бюджет)"},null,null,null,null,null,null,null,null,{"$f":"(IF($E913<>0,$K$2,IF($F913<>0,$K$2,IF($G913<>0,$K$2,IF($H913<>0,$K$2,IF($I913<>0,$K$2,IF($J913<>0,$K$2,\"\")))))))","v":1}]
[null,null,null,"ФИНАНСОВО-ПРАВНА ФОРМА",{"$f":"$E$15","v":0},{"$f":"$F$15","v":"БЮДЖЕТ"},null,null,null,null,{"$f":"(IF($E913<>0,$K$2,IF($F913<>0,$K$2,IF($G913<>0,$K$2,IF($H913<>0,$K$2,IF($I913<>0,$K$2,IF($J913<>0,$K$2,\"\")))))))","v":1}]
[null,null,null,null,null,null,null,null,null,"(в лева)",{"$f":"(IF($E913<>0,$K$2,IF($F913<>0,$K$2,IF($G913<>0,$K$2,IF($H913<>0,$K$2,IF($I913<>0,$K$2,IF($J913<>0,$K$2,\"\")))))))","v":1}]
[null,null,null,"II.1. РАЗХОДИ ПО ДЕЙНОСТИ","Уточнен план","                                                                                                                              О Т Ч Е Т Н И   Д А Н Н И",null,null,null,null,{"$f":"(IF($E913<>0,$K$2,IF($F913<>0,$K$2,IF($G913<>0,$K$2,IF($H913<>0,$K$2,IF($I913<>0,$K$2,IF($J913<>0,$K$2,\"\")))))))","v":1}]
[null,"§§","под-§§","НАИМЕНОВАНИЯ НА ПАРАГРАФИТЕ И ПОДПАРАГРАФИТЕ",{"$f":"$C$3","v":2017},"ОБЩО","левови\n сметки и СЕБРА ","валутни \nсметки ","операции в брой (в левове и валута)","операции приравнени на касов поток",{"$f":"(IF($E913<>0,$K$2,IF($F913<>0,$K$2,IF($G913<>0,$K$2,IF($H913<>0,$K$2,IF($I913<>0,$K$2,IF($J913<>0,$K$2,\"\")))))))","v":1}]
[null,null,null," 02 ¦","(1)","(2)","(3)","(4)","(5)","(6)",{"$f":"(IF($E913<>0,$K$2,IF($F913<>0,$K$2,IF($G913<>0,$K$2,IF($H913<>0,$K$2,IF($I913<>0,$K$2,IF($J913<>0,$K$2,\"\")))))))","v":1}]
[null,null,0,"ИЗБЕРЕТЕ ОПЕРАТИВНА ПРОГРАМА ",null,null,null,null,null,null,{"$f":"(IF($E913<>0,$K$2,IF($F913<>0,$K$2,IF($G913<>0,$K$2,IF($H913<>0,$K$2,IF($I913<>0,$K$2,IF($J913<>0,$K$2,\"\")))))))","v":1}]
[null,null,{"$f":"VLOOKUP(D795,EBK_DEIN2,2,FALSE)","v":1121},"<------          ДЕЙНОСТ    -  код  по  ЕБК",null,null,null,null,null,null,{"$f":"(IF($E913<>0,$K$2,IF($F913<>0,$K$2,IF($G913<>0,$K$2,IF($H913<>0,$K$2,IF($I913<>0,$K$2,IF($J913<>0,$K$2,\"\")))))))","v":1}]
[null,null,{"$f":"+C794","v":1121},"121 Областни администрации",null,null,null,null,null,null,{"$f":"(IF($E913<>0,$K$2,IF($F913<>0,$K$2,IF($G913<>0,$K$2,IF($H913<>0,$K$2,IF($I913<>0,$K$2,IF($J913<>0,$K$2,\"\")))))))","v":1}]
[null,null,null,"(наименование на дейността)",null,null,null,null,null,null,{"$f":"(IF($E913<>0,$K$2,IF($F913<>0,$K$2,IF($G913<>0,$K$2,IF($H913<>0,$K$2,IF($I913<>0,$K$2,IF($J913<>0,$K$2,\"\")))))))","v":1}]
[null,100,"Заплати и възнаграждения за персонала, нает по трудови и служебни правоотношения",null,{"$f":"SUM(E798:E799)","v":299456},298894,260770,0,0,38124,{"$f":"(IF($E797<>0,$K$2,IF($F797<>0,$K$2,IF($G797<>0,$K$2,IF($H797<>0,$K$2,IF($I797<>0,$K$2,IF($J797<>0,$K$2,\"\")))))))","v":1}]
[null,null,101,"заплати и възнаграждения на персонала нает по трудови правоотношения",102170,{"$f":"G798+H798+I798+J798","v":101779},79601,0,0,22178,{"$f":"(IF($E798<>0,$K$2,IF($F798<>0,$K$2,IF($G798<>0,$K$2,IF($H798<>0,$K$2,IF($I798<>0,$K$2,IF($J798<>0,$K$2,\"\")))))))","v":1}]
[null,null,102,"заплати и възнаграждения на персонала нает по служебни правоотношения",197286,{"$f":"G799+H799+I799+J799","v":197115},181169,0,0,15946,1]
[null,200,"Други възнаграждения и плащания за персонала",null,{"$f":"SUM(E801:E805)","v":51980},51332,47880,0,0,3452,1]
[null,null,201,"за нещатен персонал нает по трудови правоотношения ",51980,{"$f":"G801+H801+I801+J801","v":10980},8533,0,0,2447,1]
[null,null,202,"за персонала по извънтрудови правоотношения",null,{"$f":"G802+H802+I802+J802","v":2597},2358,0,0,239,1]
[null,null,205,"изплатени суми от СБКО за облекло и други на персонала, с характер на възнаграждение",null,{"$f":"G803+H803+I803+J803","v":5375},5375,0,0,0,1]
[null,null,208,"обезщетения за персонала, с характер на възнаграждение",null,{"$f":"G804+H804+I804+J804","v":30326},29560,0,0,766,1]
[null,null,209,"другиплащания и възнаграждения",null,{"$f":"G805+H805+I805+J805","v":2054},2054,0,0,0,1]
[null,500,"Задължителни осигурителни вноски от работодатели",null,{"$f":"SUM(E807:E813)","v":85728},85110,0,0,0,85110,1]
[null,null,551,"осигурителни вноски от работодатели за Държавното обществено осигуряване (ДОО)",53256,{"$f":"G807+H807+I807+J807","v":52982},0,0,0,52982,1]
[null,null,{"$f":"C807+1","v":552},"осигурителни вноски от работодатели за Учителския пенсионен фонд (УПФ)",null,0,0,0,0,null,""]
[null,null,558,"вноски по чл. 4б и 4в от КСО за сметка на осигурителя",null,{"$f":"G809+H809+I809+J809","v":0},0,0,0,0,""]
[null,null,560,"здравно-осигурителни вноски от работодатели",21920,21740,0,0,0,21740,1]
[null,null,580,"вноски за допълнително задължително осигуряване от работодатели",10552,10388,0,0,0,10388,1]
[null,null,588,"коректив на вноски за ДЗПО за сумите по чл. 4б и 4в от КСО за сметка на осигурителя",null,{"$f":"G812+H812+I812+J812","v":0},0,0,0,0,""]
[5,null,590,"задължителни вноски за чуждестранни пенсионни фондове и  схеми за сметка на осигурителя",null,0,null,null,null,null,""]
[10,800,"Вноски за доброволно осигуряване ",null,null,0,null,null,null,null,""]
[15,1000,"Издръжка",null,{"$f":"SUM(E816:E832)","v":199605},180136,177729,0,2407,0,1]
[35,null,1011,"Храна",199605,{"$f":"G816+H816+I816+J816","v":0},null,null,null,null,1]
[40,null,1012,"Медикаменти",null,0,null,null,null,null,""]
[45,null,1013,"Постелен инвентар и облекло",null,2450,0,0,2450,0,1]
[50,null,1014,"Учебни и научно-изследователски разходи и книги за библиотеките",null,0,null,null,null,null,""]
[55,null,1015,"материали",null,19140,7736,0,11404,0,1]
[60,null,1016,"вода, горива и енергия",null,55882,75650,0,-19768,0,1]
[65,null,1020,"разходи за външни услуги",null,98183,92795,0,5388,0,1]
[70,null,1030,"Текущ ремонт",null,0,null,null,null,null,""]
[75,null,1051,"командировки в страната",null,1980,0,0,1980,0,1]
[80,null,1052,"краткосрочни командировки в чужбина",null,89,0,0,89,0,1]
[80,null,1053,"дългосрочни командировки в чужбина",null,0,null,null,null,null,""]
[85,null,1062,"разходи за застраховки",null,2406,1548,0,858,0,1]
[90,null,1063,"такса ангажимент по заеми",null,0,null,null,null,null,""]
[90,null,1069,"други финансови услуги",null,2,0,0,2,0,1]
[115,null,1091,"други разходи за СБКО",null,0,null,null,null,null,""]
[125,null,1092,"разходи за договорни санкции и неустойки, съдебни обезщетения и разноски",null,4,0,0,4,0,1]
[130,null,1098,"други разходи, некласифицирани в другите параграфи и подпараграфи",null,0,null,null,null,null,""]
[135,1900,"Платени данъци, такси и административни санкции",null,{"$f":"SUM(E834:E836)","v":21000},20320,20337,0,-17,0,1]
[140,null,1901,"платени държавни данъци, такси, наказателни лихви и административни санкции",21000,{"$f":"G834+H834+I834+J834","v":95},65,0,30,0,1]
[145,null,1981,"платени общински данъци, такси, наказателни лихви и административни санкции",null,{"$f":"G835+H835+I835+J835","v":20225},20272,0,-47,0,1]
[150,null,1991,"платени данъци, такси, наказателни лихви и административни санкции в чужбина",null,{"$f":"G836+H836+I836+J836","v":0},null,null,null,null,""]
[155,2100,"Разходи за лихви по емисии на държавни (общински) ценни книжа",null,{"$f":"SUM(E838:E842)","v":0},0,0,0,0,0,""]
[160,null,2110,"лихви по държавни (общински) ценни книжа",null,{"$f":"G838+H838+I838+J838","v":0},null,null,null,null,""]
[165,null,2120,"отстъпки по държавни (общински) ценни книжа",null,{"$f":"G839+H839+I839+J839","v":0},null,null,null,null,""]
[175,null,2125,"лихви и отстъпки по целеви емисии на държавни ценни книжа",null,{"$f":"G840+H840+I840+J840","v":0},null,null,0,null,""]
[180,null,2140,"лихви по държавни ценни книжа, емитирани за структурната реформа ",null,{"$f":"G841+H841+I841+J841","v":0},null,null,0,null,""]
[185,null,2190,"премии над номинала от емисии на държавни (общински) ценни книжа (-)",null,{"$f":"G842+H842+I842+J842","v":0},null,null,0,null,""]
[190,2200,"Разходи за лихви по заеми от страната",null,{"$f":"SUM(E844:E845)","v":0},0,0,0,0,0,""]
[200,null,2221,"Разходи за лихви по заеми от банки в страната",null,{"$f":"G844+H844+I844+J844","v":0},null,null,null,null,""]
[200,null,2224,"Разходи за лихви по други заеми от страната",null,0,null,null,null,null,""]
[205,2500,"Разходи за лихви по заеми от други държави",null,null,0,null,null,null,null,""]
[210,2600,"Разходи за лихви по заеми от международни организации и институции",null,null,0,null,null,null,null,""]
[215,2700,"Разходи за лихви по заеми от банки и други финансови институции от чужбина",null,null,0,null,null,null,null,""]
[220,2800,"Разходи за лихви и отстъпки по облигации, емитирани и търгувани на международните капиталови пазари",null,null,0,null,null,null,null,""]
[225,2900,"Други разходи за лихви",null,{"$f":"SUM(E851:E858)","v":0},0,0,0,0,0,""]
[230,null,2910,"Платени лихви по финансов лизинг и търговски кредит",null,{"$f":"G851+H851+I851+J851","v":0},null,null,null,null,""]
[245,null,2920,"Платени лихви по активирани гаранции по заеми от  банки в страната",null,{"$f":"G852+H852+I852+J852","v":0},null,null,null,null,""]
[220,null,2969,"Платени лихви по активирани гаранции по заеми от международни организации и институции",null,0,null,null,null,null,""]
[225,null,2970,"Платени лихви по активирани гаранции по заеми от банки и финансови институции от чужбина",null,0,null,null,null,null,""]
[230,null,2989,"Възстановени суми по платени лихви по активирани гаранции (-)",null,0,null,null,null,null,""]
[235,null,2990,"Платени лихви по заеми, предоставени от централния бюджет и бюджетни организации",null,{"$f":"G856+H856+I856+J856","v":0},null,null,null,null,""]
[240,null,2991,"Други разходи за лихви към  местни лица",null,0,null,null,null,null,""]
[245,null,2992,"Други разходи за лихви към чуждестранни лица",null,0,null,null,null,null,""]
[250,3300,"Вноска в бюджета на Европейския съюз",null,{"$f":"SUM(E860:E865)","v":0},0,0,0,0,0,""]
[255,null,3301,"ресурс на база брутен национален доход",null,{"$f":"G860+H860+I860+J860","v":0},null,null,0,0,""]
[265,null,3302,"ресурс на база данък върху добавената стойност",null,0,null,null,0,0,""]
[270,null,3303,"корекция за Обединеното кралство",null,0,null,null,0,0,""]
[290,null,3304,"традиционни собствени ресурси - мита",null,0,null,null,0,0,""]
[320,null,3305,"традиционни собствени ресурси - такси върху производството на захар и изоглюкоза",null,0,null,null,0,0,""]
[330,null,3306,"участие във финансирането на брутното намаление за Нидерландия, Швеция, Дания и Австрия",null,0,null,null,0,0,""]
[350,3900,"Здравно-осигурителни плащания",null,null,0,null,null,null,null,{"$f":"(IF($E866<>0,$K$2,IF($F866<>0,$K$2,IF($G866<>0,$K$2,IF($H866<>0,$K$2,IF($I866<>0,$K$2,IF($J866<>0,$K$2,\"\")))))))","v":""}]
[355,4000,"Стипендии",null,null,0,null,null,null,null,""]
[375,4100,"Пенсии",null,null,0,null,null,null,null,""]
[375,4200,"Текущи трансфери, обезщетения и помощи за домакинствата",null,{"$f":"SUM(E870:E875)","v":0},0,0,0,0,0,""]
[380,null,4201,"обезщетения и помощи по социалното осигуряване",null,{"$f":"G870+H870+I870+J870","v":0},null,null,null,null,""]
[385,null,4202,"обезщетения и помощи по социалното подпомагане",null,0,null,null,null,null,""]
[390,null,4214,"обезщетения и помощи по решение на общинския съвет",null,0,null,null,null,null,""]
[390,null,4217,"текущи трансфери за домакинства от средства на Европейския съюз",null,0,null,null,null,null,""]
[395,null,4218,"текущи трансфери за домакинства по други международни програми и споразумения",null,0,null,null,null,null,""]
[397,null,4219,"други текущи трансфери за домакинствата",null,0,null,null,null,null,""]
[398,4300,"Субсидии и други текущи трансфери за нефинансови предприятия ",null,{"$f":"SUM(E877:E879)","v":0},0,0,0,0,0,""]
[399,null,4301,"за текуща дейност",null,{"$f":"G877+H877+I877+J877","v":0},null,null,null,null,""]
[400,null,4302,"за осъществяване на болнична помощ ",null,0,null,null,null,null,""]
[401,null,4309,"други субсидии и плащания",null,0,null,null,null,null,""]
[402,4400,"Субсидии и други текущи трансфери за финансови институции",null,null,0,null,null,null,null,""]
[404,4500,"Субсидии и други текущи трансфери за юридически лица с нестопанска цел",null,null,0,null,null,null,null,""]
[404,4600,"Разходи за членски внос и участие в нетърговски организации и дейности",null,null,0,null,null,null,null,""]
[440,4900,"Предоставени текущи и капиталови трансфери за чужбина",null,{"$f":"+E884+E885","v":0},0,0,0,0,0,""]
[450,null,4901,"текущи трансфери за чужбина",null,{"$f":"G884+H884+I884+J884","v":0},null,null,null,null,""]
[495,null,4902,"капиталови трансфери за чужбина",null,{"$f":"G885+H885+I885+J885","v":0},null,null,null,null,""]
[500,5100,"Основен ремонт на дълготрайни материални активи",null,null,{"$f":"G886+H886+I886+J886","v":0},null,null,null,null,""]
[505,5200,"Придобиване на дълготрайни материални активи",null,{"$f":"SUM(E888:E894)","v":0},0,0,0,0,0,""]
[510,null,5201,"придобиване на компютри и хардуер",null,{"$f":"G888+H888+I888+J888","v":0},null,null,null,null,""]
[515,null,5202,"придобиване на сгради",null,0,null,null,null,null,""]
[520,null,5203,"придобиване на друго оборудване, машини и съоръжения",null,0,null,null,null,null,""]
[525,null,5204,"придобиване на транспортни средства",null,0,null,null,null,null,""]
[635,null,5205,"придобиване на стопански инвентар",null,0,null,null,null,null,""]
[640,null,5206,"изграждане на инфраструктурни обекти",null,0,null,null,null,null,""]
[645,null,5219,"придобиване на други ДМА",null,0,null,null,null,null,""]
[650,5300,"Придобиване на нематериални дълготрайни активи",null,{"$f":"SUM(E896:E897)","v":3500},1800,1800,0,0,0,1]
[655,null,5301,"придобиване на програмни продукти и лицензи за програмни продукти",3500,{"$f":"G896+H896+I896+J896","v":1800},1800,0,0,0,1]
[665,null,5309,"придобиване на други нематериални дълготрайни активи",null,{"$f":"G897+H897+I897+J897","v":0},null,null,null,null,""]
[675,5400,"Придобиване на земя",null,null,{"$f":"G898+H898+I898+J898","v":0},null,null,null,null,""]
[685,5500,"Капиталови трансфери",null,{"$f":"SUM(E900:E903)","v":0},0,0,0,0,0,""]
[690,null,5501,"капиталови трансфери за нефинансови предприятия",null,{"$f":"G900+H900+I900+J900","v":0},null,null,null,null,""]
[695,null,5502,"капиталови трансфери за финансови институции",null,{"$f":"G901+H901+I901+J901","v":0},null,null,null,null,""]
[700,null,5503,"капиталови трансфери за организации с нестопанска цел",null,{"$f":"G902+H902+I902+J902","v":0},null,null,null,null,""]
[710,null,5504,"капиталови трансфери за домакинствата",null,{"$f":"G903+H903+I903+J903","v":0},null,null,null,null,""]
[715,5700,"Прираст на държавния резерв и изкупуване на земеделска продукция (включва и § 40-71)",null,{"$f":"SUM(E905:E907)","v":0},0,0,0,0,0,""]
[720,null,5701,"плащания за попълване на държавния резерв",null,{"$f":"G905+H905+I905+J905","v":0},null,null,null,null,""]
[725,null,5702,"плащания за изкупуване на земеделска продукция",null,{"$f":"G906+H906+I906+J906","v":0},null,null,null,null,""]
[730,null,4071,"постъпления от продажба на държавния резерв (-)",null,{"$f":"G907+H907+I907+J907","v":0},null,null,null,null,""]
[735,null,null,null,null,null,null,null,null,null,""]
[740,98,"Резерв за непредвидени и неотложни разходи",null,null,{"$f":"G909+H909+I909+J909","v":0},0,0,0,0,""]
[745,null,null,null,null,null,null,null,null,null,""]
[750,null,null,null,null,null,null,null,null,null,""]
[755,null,null,null,null,null,null,null,null,null,""]
[760,null,"99-99",{"$f":"+B913","v":0},{"$f":"SUM(E797,E800,E806,E814,E815,E833,E837,E843,E846,E847,E848,E849,E850,E859,E866,E867,E868,E869,E876,E880,E881,E882,E883,E886,E887,E895,E898,E899,E904)+E909","v":661269},637592,508516,0,2390,126686,1,{"$f":"LEFT(C794,1)","v":"1"}]
[765,null,null,null,null,null,null,null,null,null,{"$f":"K913","v":1}]
[775,null,null,null,null,null,null,null,null,null,{"$f":"K913","v":1}]
[780,null,null,null,null,null,null,null,null,null,{"$f":"(IF(SUM(K927:K948)<>0,$K$2,\"\"))","v":1}]
[785,{"$f":"$B$7","v":"ОТЧЕТНИ ДАННИ ПО ЕБК ЗА ИЗПЪЛНЕНИЕТО НА БЮДЖЕТА"},null,null,null,null,null,null,null,null,{"$f":"(IF(SUM(K927:K948)<>0,$K$2,\"\"))","v":1}]
[790,null,null,null,"за периода от ","до",null,null,null,null,{"$f":"(IF(SUM(K927:K948)<>0,$K$2,\"\"))","v":1}]
[795,{"$f":"$B$9","v":"ОБЛАСТНА АДМИНИСТРАЦИЯ ПАЗАРДЖИК"},null,null,{"$f":"$E$9","v":"2017-01-01"},{"$f":"$F$9","v":"2017-12-31"},null,null,null,null,{"$f":"(IF(SUM(K927:K948)<>0,$K$2,\"\"))","v":1}]
[805,{"$f":"$B$10","v":"                                                            (наименование на разпоредителя с бюджет)"},null,null,null,null,null,null,null,null,{"$f":"(IF(SUM(K927:K948)<>0,$K$2,\"\"))","v":1}]
[810,null,null,null,null,null,null,null,null,null,{"$f":"(IF(SUM(K927:K948)<>0,$K$2,\"\"))","v":1}]
[815,{"$f":"$B$12","v":"Министерски съвет "},null,null,"       код по ЕБК:",{"$f":"$F$12","v":"0300"},null,null,null,null,{"$f":"(IF(SUM(K927:K948)<>0,$K$2,\"\"))","v":1}]
[525,{"$f":"$B$13","v":"                                             (наименование на първостепенния разпоредител с бюджет)"},null,null,null,null,null,null,null,null,{"$f":"(IF(SUM(K927:K948)<>0,$K$2,\"\"))","v":1}]
[820,null,null,"               ФИНАНСОВО-ПРАВНА ФОРМА",{"$f":"$E$15","v":0},{"$f":"$F$15","v":"БЮДЖЕТ"},null,null,null,null,{"$f":"(IF(SUM(K927:K948)<>0,$K$2,\"\"))","v":1}]
[821,null,null,"Натурални показатели за дейността",null,"(в лева)",null,null,null,null,{"$f":"(IF(SUM(K927:K948)<>0,$K$2,\"\"))","v":1}]
[822,"МЯРКА","Код 9 8","  О б щ и   н а т у р а л н и   п о к а з а т е л и","    П л а н","    О т ч е т ",null,null,null,null,{"$f":"(IF(SUM(K927:K948)<>0,$K$2,\"\"))","v":1}]
[823,null," 9 8 0 1","Щ а т н и   б р о й к и",30,30,null,null,null,null,{"$f":"(IF($E927<>0,$K$2,IF($F927<>0,$K$2,\"\")))","v":1}]
[825,null," 9 8 1 1","в т.ч.: по трудови правоотношения",8,8,null,null,null,null,1]
[null,null," 9 8 1 2","           по служебни правоотношения",22,22,null,null,null,null,1]
[null,null," 9 8 0 2","Средногодишни щатни бройки",30,30,null,null,null,null,1]
[null,null," 9 8 2 1","в т.ч.: по трудови правоотношения",8,8,null,null,null,null,1]
[null,null," 9 8 2 2","         по служебни правоотношения",22,22,null,null,null,null,1]
[null,null," 9 8 0 3","Средна годишна брутна заплата",9981.8666666666668,9963.1333333333332,null,null,null,null,1]
[null,null," 9 8 3 1"," в т.ч.:   по трудови правоотношения",12771.25,12722.375,null,null,null,null,1]
[null,null," 9 8 3 2","            по служебни правоотношения",8967.545454545454,8959.7727272727279,null,null,null,null,1]
[null,null," 9 8 0 4","Брой на моторни превозни средства",null,4,null,null,null,null,1]
[null,null,"9 8 0 5","- в т.ч. - леки автомобили",null,4,null,null,null,null,1]
[null,null,"9 8 0 6","             - санитарни линейки",null,null,null,null,null,null,""]
[null,null," 9 8 0 7","Брой ученици, финансирани по единни разходни стандарти",null,null,null,null,null,null,""]
[null,null," 9 8 0 8","Средна годишна брутна заплата за дейности, финансирани по единни разходни стандарти",null,null,null,null,null,null,""]
[null,null," 9 8 0 9","Щатни бройки за дейности, финансирани по единни разходни стандарти",null,null,null,null,null,null,""]
[null,null," 9 8 1 0","Средногодишни щатни бройки за дейности, финансирани по единни разходни стандарти",null,null,null,null,null,null,""]
[null,null,"9 8 1 3","Средногодишен приравнен брой учащи във ВУ, финансирани по норматив за издръжка на обучението",null,null,null,null,null,null,""]
[905,null,"9 8 1 4","Брой леглодни в студентски общежития",null,null,null,null,null,null,""]
[906,null,"9 8 1 5","Брой хранодни в студентски стол",null,null,null,null,null,null,""]
[907,null,"9 8 1 7","Болнични легла",null,null,null,null,null,null,""]
[910,null,"9 8 1 8","Обем радиопрограма /часове/",null,null,null,null,null,null,""]
[911,null,"9 8 1 9","Обем телевизионна програма /часове/",null,null,null,null,null,null,""]
[null,"ЗАБЕЛЕЖКА:",null,null,null,null,null,null,null,null,{"$f":"K913","v":1}]
[]
[]
[null,null,null,null,null,null,null,null,null,null,{"$f":"(IF($E1086<>0,$K$2,IF($F1086<>0,$K$2,IF($G1086<>0,$K$2,IF($H1086<>0,$K$2,IF($I1086<>0,$K$2,IF($J1086<>0,$K$2,\"\")))))))","v":1}]
[null,null,null,null,null,null,null,null,null,null,{"$f":"(IF($E1086<>0,$K$2,IF($F1086<>0,$K$2,IF($G1086<>0,$K$2,IF($H1086<>0,$K$2,IF($I1086<>0,$K$2,IF($J1086<>0,$K$2,\"\")))))))","v":1}]
[null,{"$f":"$B$7","v":"ОТЧЕТНИ ДАННИ ПО ЕБК ЗА ИЗПЪЛНЕНИЕТО НА БЮДЖЕТА"},null,null,null,null,null,null,null,null,{"$f":"(IF($E1086<>0,$K$2,IF($F1086<>0,$K$2,IF($G1086<>0,$K$2,IF($H1086<>0,$K$2,IF($I1086<>0,$K$2,IF($J1086<>0,$K$2,\"\")))))))","v":1}]
[null,null,null,null,"за периода от ","до",null,"                 II.1. РАЗХОДИ ПО ДЕЙНОСТИ",null,null,{"$f":"(IF($E1086<>0,$K$2,IF($F1086<>0,$K$2,IF($G1086<>0,$K$2,IF($H1086<>0,$K$2,IF($I1086<>0,$K$2,IF($J1086<>0,$K$2,\"\")))))))","v":1}]
[null,{"$f":"$B$9","v":"ОБЛАСТНА АДМИНИСТРАЦИЯ ПАЗАРДЖИК"},null,null,{"$f":"$E$9","v":"2017-01-01"},{"$f":"$F$9","v":"2017-12-31"},null,null,null,null,{"$f":"(IF($E1086<>0,$K$2,IF($F1086<>0,$K$2,IF($G1086<>0,$K$2,IF($H1086<>0,$K$2,IF($I1086<>0,$K$2,IF($J1086<>0,$K$2,\"\")))))))","v":1}]
[null,{"$f":"$B$10","v":"                                                            (наименование на разпоредителя с бюджет)"},null,null,null,null,null,null,null,null,{"$f":"(IF($E1086<>0,$K$2,IF($F1086<>0,$K$2,IF($G1086<>0,$K$2,IF($H1086<>0,$K$2,IF($I1086<>0,$K$2,IF($J1086<>0,$K$2,\"\")))))))","v":1}]
[null,null,null,null,null,null,null,null,null,null,{"$f":"(IF($E1086<>0,$K$2,IF($F1086<>0,$K$2,IF($G1086<>0,$K$2,IF($H1086<>0,$K$2,IF($I1086<>0,$K$2,IF($J1086<>0,$K$2,\"\")))))))","v":1}]
[null,{"$f":"$B$12","v":"Министерски съвет "},null,null,"       код по ЕБК:",{"$f":"$F$12","v":"0300"},null,null,null,null,{"$f":"(IF($E1086<>0,$K$2,IF($F1086<>0,$K$2,IF($G1086<>0,$K$2,IF($H1086<>0,$K$2,IF($I1086<>0,$K$2,IF($J1086<>0,$K$2,\"\")))))))","v":1}]
[null,{"$f":"$B$13","v":"                                             (наименование на първостепенния разпоредител с бюджет)"},null,null,null,null,null,null,null,null,{"$f":"(IF($E1086<>0,$K$2,IF($F1086<>0,$K$2,IF($G1086<>0,$K$2,IF($H1086<>0,$K$2,IF($I1086<>0,$K$2,IF($J1086<>0,$K$2,\"\")))))))","v":1}]
[null,null,null,"ФИНАНСОВО-ПРАВНА ФОРМА",{"$f":"$E$15","v":0},{"$f":"$F$15","v":"БЮДЖЕТ"},null,null,null,null,{"$f":"(IF($E1086<>0,$K$2,IF($F1086<>0,$K$2,IF($G1086<>0,$K$2,IF($H1086<>0,$K$2,IF($I1086<>0,$K$2,IF($J1086<>0,$K$2,\"\")))))))","v":1}]
[null,null,null,null,null,null,null,null,null,"(в лева)",{"$f":"(IF($E1086<>0,$K$2,IF($F1086<>0,$K$2,IF($G1086<>0,$K$2,IF($H1086<>0,$K$2,IF($I1086<>0,$K$2,IF($J1086<>0,$K$2,\"\")))))))","v":1}]
[null,null,null,"II.1. РАЗХОДИ ПО ДЕЙНОСТИ","Уточнен план","                                                                                                                              О Т Ч Е Т Н И   Д А Н Н И",null,null,null,null,{"$f":"(IF($E1086<>0,$K$2,IF($F1086<>0,$K$2,IF($G1086<>0,$K$2,IF($H1086<>0,$K$2,IF($I1086<>0,$K$2,IF($J1086<>0,$K$2,\"\")))))))","v":1}]
[null,"§§","под-§§","НАИМЕНОВАНИЯ НА ПАРАГРАФИТЕ И ПОДПАРАГРАФИТЕ",{"$f":"$C$3","v":2017},"ОБЩО","левови\n сметки и СЕБРА ","валутни \nсметки ","операции в брой (в левове и валута)","операции приравнени на касов поток",{"$f":"(IF($E1086<>0,$K$2,IF($F1086<>0,$K$2,IF($G1086<>0,$K$2,IF($H1086<>0,$K$2,IF($I1086<>0,$K$2,IF($J1086<>0,$K$2,\"\")))))))","v":1}]
[null,null,null," 02 ¦","(1)","(2)","(3)","(4)","(5)","(6)",{"$f":"(IF($E1086<>0,$K$2,IF($F1086<>0,$K$2,IF($G1086<>0,$K$2,IF($H1086<>0,$K$2,IF($I1086<>0,$K$2,IF($J1086<>0,$K$2,\"\")))))))","v":1}]
[null,null,0,"ИЗБЕРЕТЕ ОПЕРАТИВНА ПРОГРАМА ",null,null,null,null,null,null,{"$f":"(IF($E1086<>0,$K$2,IF($F1086<>0,$K$2,IF($G1086<>0,$K$2,IF($H1086<>0,$K$2,IF($I1086<>0,$K$2,IF($J1086<>0,$K$2,\"\")))))))","v":1}]
[null,null,{"$f":"VLOOKUP(D968,EBK_DEIN2,2,FALSE)","v":2282},"<------          ДЕЙНОСТ    -  код  по  ЕБК",null,null,null,null,null,null,{"$f":"(IF($E1086<>0,$K$2,IF($F1086<>0,$K$2,IF($G1086<>0,$K$2,IF($H1086<>0,$K$2,IF($I1086<>0,$K$2,IF($J1086<>0,$K$2,\"\")))))))","v":1}]
[null,null,{"$f":"+C967","v":2282},"282 Отбранително-мобилизационна подготовка, поддържане на запаси и мощности",null,null,null,null,null,null,{"$f":"(IF($E1086<>0,$K$2,IF($F1086<>0,$K$2,IF($G1086<>0,$K$2,IF($H1086<>0,$K$2,IF($I1086<>0,$K$2,IF($J1086<>0,$K$2,\"\")))))))","v":1}]
[null,null,null,"(наименование на дейността)",null,null,null,null,null,null,{"$f":"(IF($E1086<>0,$K$2,IF($F1086<>0,$K$2,IF($G1086<>0,$K$2,IF($H1086<>0,$K$2,IF($I1086<>0,$K$2,IF($J1086<>0,$K$2,\"\")))))))","v":1}]
[null,100,"Заплати и възнаграждения за персонала, нает по трудови и служебни правоотношения",null,{"$f":"SUM(E971:E972)","v":0},0,0,0,0,0,{"$f":"(IF($E970<>0,$K$2,IF($F970<>0,$K$2,IF($G970<>0,$K$2,IF($H970<>0,$K$2,IF($I970<>0,$K$2,IF($J970<>0,$K$2,\"\")))))))","v":""}]
[null,null,101,"заплати и възнаграждения на персонала нает по трудови правоотношения",null,{"$f":"G971+H971+I971+J971","v":0},null,null,null,null,{"$f":"(IF($E971<>0,$K$2,IF($F971<>0,$K$2,IF($G971<>0,$K$2,IF($H971<>0,$K$2,IF($I971<>0,$K$2,IF($J971<>0,$K$2,\"\")))))))","v":""}]
[null,null,102,"заплати и възнаграждения на персонала нает по служебни правоотношения",null,{"$f":"G972+H972+I972+J972","v":0},null,null,null,null,""]
[null,200,"Други възнаграждения и плащания за персонала",null,{"$f":"SUM(E974:E978)","v":40388},40080,31383,0,0,8697,1]
[null,null,201,"за нещатен персонал нает по трудови правоотношения ",40388,{"$f":"G974+H974+I974+J974","v":40071},31374,0,0,8697,1]
[null,null,202,"за персонала по извънтрудови правоотношения",null,{"$f":"G975+H975+I975+J975","v":0},null,null,null,null,""]
[null,null,205,"изплатени суми от СБКО за облекло и други на персонала, с характер на възнаграждение",null,{"$f":"G976+H976+I976+J976","v":0},null,null,null,null,""]
[null,null,208,"обезщетения за персонала, с характер на възнаграждение",null,{"$f":"G977+H977+I977+J977","v":0},null,null,null,null,""]
[null,null,209,"другиплащания и възнаграждения",null,{"$f":"G978+H978+I978+J978","v":9},9,0,0,0,1]
[null,500,"Задължителни осигурителни вноски от работодатели",null,{"$f":"SUM(E980:E986)","v":8148},7612,0,0,0,7612,1]
[null,null,551,"осигурителни вноски от работодатели за Държавното обществено осигуряване (ДОО)",5040,{"$f":"G980+H980+I980+J980","v":4736},0,0,0,4736,1]
[null,null,{"$f":"C980+1","v":552},"осигурителни вноски от работодатели за Учителския пенсионен фонд (УПФ)",null,0,0,0,0,null,""]
[null,null,558,"вноски по чл. 4б и 4в от КСО за сметка на осигурителя",null,{"$f":"G982+H982+I982+J982","v":0},0,0,0,0,""]
[null,null,560,"здравно-осигурителни вноски от работодатели",2137,1984,0,0,0,1984,1]
[null,null,580,"вноски за допълнително задължително осигуряване от работодатели",971,892,0,0,0,892,1]
[null,null,588,"коректив на вноски за ДЗПО за сумите по чл. 4б и 4в от КСО за сметка на осигурителя",null,{"$f":"G985+H985+I985+J985","v":0},0,0,0,0,""]
[5,null,590,"задължителни вноски за чуждестранни пенсионни фондове и  схеми за сметка на осигурителя",null,0,null,null,null,null,""]
[10,800,"Вноски за доброволно осигуряване ",null,null,0,null,null,null,null,""]
[15,1000,"Издръжка",null,{"$f":"SUM(E989:E1005)","v":2000},990,0,0,990,0,1]
[35,null,1011,"Храна",2000,{"$f":"G989+H989+I989+J989","v":365},0,0,365,0,1]
[40,null,1012,"Медикаменти",null,0,null,null,null,null,""]
[45,null,1013,"Постелен инвентар и облекло",null,600,0,0,600,0,1]
[50,null,1014,"Учебни и научно-изследователски разходи и книги за библиотеките",null,0,null,null,null,null,""]
[55,null,1015,"материали",null,0,null,null,null,null,""]
[60,null,1016,"вода, горива и енергия",null,0,null,null,null,null,""]
[65,null,1020,"разходи за външни услуги",null,15,0,0,15,0,1]
[70,null,1030,"Текущ ремонт",null,0,null,null,null,null,""]
[75,null,1051,"командировки в страната",null,10,0,0,10,0,1]
[80,null,1052,"краткосрочни командировки в чужбина",null,0,null,null,null,null,""]
[80,null,1053,"дългосрочни командировки в чужбина",null,0,null,null,null,null,""]
[85,null,1062,"разходи за застраховки",null,0,null,null,null,null,""]
[90,null,1063,"такса ангажимент по заеми",null,0,null,null,null,null,""]
[90,null,1069,"други финансови услуги",null,0,null,null,null,null,""]
[115,null,1091,"други разходи за СБКО",null,0,null,null,null,null,""]
[125,null,1092,"разходи за договорни санкции и неустойки, съдебни обезщетения и разноски",null,0,null,null,null,null,""]
[130,null,1098,"други разходи, некласифицирани в другите параграфи и подпараграфи",null,0,null,null,null,null,""]
[135,1900,"Платени данъци, такси и административни санкции",null,{"$f":"SUM(E1007:E1009)","v":0},0,0,0,0,0,""]
[140,null,1901,"платени държавни данъци, такси, наказателни лихви и административни санкции",null,{"$f":"G1007+H1007+I1007+J1007","v":0},null,null,null,null,""]
[145,null,1981,"платени общински данъци, такси, наказателни лихви и административни санкции",null,{"$f":"G1008+H1008+I1008+J1008","v":0},null,null,null,null,""]
[150,null,1991,"платени данъци, такси, наказателни лихви и административни санкции в чужбина",null,{"$f":"G1009+H1009+I1009+J1009","v":0},null,null,null,null,""]
[155,2100,"Разходи за лихви по емисии на държавни (общински) ценни книжа",null,{"$f":"SUM(E1011:E1015)","v":0},0,0,0,0,0,""]
[160,null,2110,"лихви по държавни (общински) ценни книжа",null,{"$f":"G1011+H1011+I1011+J1011","v":0},null,null,null,null,""]
[165,null,2120,"отстъпки по държавни (общински) ценни книжа",null,{"$f":"G1012+H1012+I1012+J1012","v":0},null,null,null,null,""]
[175,null,2125,"лихви и отстъпки по целеви емисии на държавни ценни книжа",null,{"$f":"G1013+H1013+I1013+J1013","v":0},null,null,0,null,""]
[180,null,2140,"лихви по държавни ценни книжа, емитирани за структурната реформа ",null,{"$f":"G1014+H1014+I1014+J1014","v":0},null,null,0,null,""]
[185,null,2190,"премии над номинала от емисии на държавни (общински) ценни книжа (-)",null,{"$f":"G1015+H1015+I1015+J1015","v":0},null,null,0,null,""]
[190,2200,"Разходи за лихви по заеми от страната",null,{"$f":"SUM(E1017:E1018)","v":0},0,0,0,0,0,""]
[200,null,2221,"Разходи за лихви по заеми от банки в страната",null,{"$f":"G1017+H1017+I1017+J1017","v":0},null,null,null,null,""]
[200,null,2224,"Разходи за лихви по други заеми от страната",null,0,null,null,null,null,""]
[205,2500,"Разходи за лихви по заеми от други държави",null,null,0,null,null,null,null,""]
[210,2600,"Разходи за лихви по заеми от международни организации и институции",null,null,0,null,null,null,null,""]
[215,2700,"Разходи за лихви по заеми от банки и други финансови институции от чужбина",null,null,0,null,null,null,null,""]
[220,2800,"Разходи за лихви и отстъпки по облигации, емитирани и търгувани на международните капиталови пазари",null,null,0,null,null,null,null,""]
[225,2900,"Други разходи за лихви",null,{"$f":"SUM(E1024:E1031)","v":0},0,0,0,0,0,""]
[230,null,2910,"Платени лихви по финансов лизинг и търговски кредит",null,{"$f":"G1024+H1024+I1024+J1024","v":0},null,null,null,null,""]
[245,null,2920,"Платени лихви по активирани гаранции по заеми от  банки в страната",null,{"$f":"G1025+H1025+I1025+J1025","v":0},null,null,null,null,""]
[220,null,2969,"Платени лихви по активирани гаранции по заеми от международни организации и институции",null,0,null,null,null,null,""]
[225,null,2970,"Платени лихви по активирани гаранции по заеми от банки и финансови институции от чужбина",null,0,null,null,null,null,""]
[230,null,2989,"Възстановени суми по платени лихви по активирани гаранции (-)",null,0,null,null,null,null,""]
[235,null,2990,"Платени лихви по заеми, предоставени от централния бюджет и бюджетни организации",null,{"$f":"G1029+H1029+I1029+J1029","v":0},null,null,null,null,""]
[240,null,2991,"Други разходи за лихви към  местни лица",null,0,null,null,null,null,""]
[245,null,2992,"Други разходи за лихви към чуждестранни лица",null,0,null,null,null,null,""]
[250,3300,"Вноска в бюджета на Европейския съюз",null,{"$f":"SUM(E1033:E1038)","v":0},0,0,0,0,0,""]
[255,null,3301,"ресурс на база брутен национален доход",null,{"$f":"G1033+H1033+I1033+J1033","v":0},null,null,0,0,""]
[265,null,3302,"ресурс на база данък върху добавената стойност",null,0,null,null,0,0,""]
[270,null,3303,"корекция за Обединеното кралство",null,0,null,null,0,0,""]
[290,null,3304,"традиционни собствени ресурси - мита",null,0,null,null,0,0,""]
[320,null,3305,"традиционни собствени ресурси - такси върху производството на захар и изоглюкоза",null,0,null,null,0,0,""]
[330,null,3306,"участие във финансирането на брутното намаление за Нидерландия, Швеция, Дания и Австрия",null,0,null,null,0,0,""]
[350,3900,"Здравно-осигурителни плащания",null,null,0,null,null,null,null,{"$f":"(IF($E1039<>0,$K$2,IF($F1039<>0,$K$2,IF($G1039<>0,$K$2,IF($H1039<>0,$K$2,IF($I1039<>0,$K$2,IF($J1039<>0,$K$2,\"\")))))))","v":""}]
[355,4000,"Стипендии",null,null,0,null,null,null,null,""]
[375,4100,"Пенсии",null,null,0,null,null,null,null,""]
[375,4200,"Текущи трансфери, обезщетения и помощи за домакинствата",null,{"$f":"SUM(E1043:E1048)","v":0},0,0,0,0,0,""]
[380,null,4201,"обезщетения и помощи по социалното осигуряване",null,{"$f":"G1043+H1043+I1043+J1043","v":0},null,null,null,null,""]
[385,null,4202,"обезщетения и помощи по социалното подпомагане",null,0,null,null,null,null,""]
[390,null,4214,"обезщетения и помощи по решение на общинския съвет",null,0,null,null,null,null,""]
[390,null,4217,"текущи трансфери за домакинства от средства на Европейския съюз",null,0,null,null,null,null,""]
[395,null,4218,"текущи трансфери за домакинства по други международни програми и споразумения",null,0,null,null,null,null,""]
[397,null,4219,"други текущи трансфери за домакинствата",null,0,null,null,null,null,""]
[398,4300,"Субсидии и други текущи трансфери за нефинансови предприятия ",null,{"$f":"SUM(E1050:E1052)","v":0},0,0,0,0,0,""]
[399,null,4301,"за текуща дейност",null,{"$f":"G1050+H1050+I1050+J1050","v":0},null,null,null,null,""]
[400,null,4302,"за осъществяване на болнична помощ ",null,0,null,null,null,null,""]
[401,null,4309,"други субсидии и плащания",null,0,null,null,null,null,""]
[402,4400,"Субсидии и други текущи трансфери за финансови институции",null,null,0,null,null,null,null,""]
[404,4500,"Субсидии и други текущи трансфери за юридически лица с нестопанска цел",null,null,0,null,null,null,null,""]
[404,4600,"Разходи за членски внос и участие в нетърговски организации и дейности",null,null,0,null,null,null,null,""]
[440,4900,"Предоставени текущи и капиталови трансфери за чужбина",null,{"$f":"+E1057+E1058","v":0},0,0,0,0,0,""]
[450,null,4901,"текущи трансфери за чужбина",null,{"$f":"G1057+H1057+I1057+J1057","v":0},null,null,null,null,""]
[495,null,4902,"капиталови трансфери за чужбина",null,{"$f":"G1058+H1058+I1058+J1058","v":0},null,null,null,null,""]
[500,5100,"Основен ремонт на дълготрайни материални активи",null,null,{"$f":"G1059+H1059+I1059+J1059","v":0},null,null,null,null,""]
[505,5200,"Придобиване на дълготрайни материални активи",null,{"$f":"SUM(E1061:E1067)","v":0},0,0,0,0,0,""]
[510,null,5201,"придобиване на компютри и хардуер",null,{"$f":"G1061+H1061+I1061+J1061","v":0},null,null,null,null,""]
[515,null,5202,"придобиване на сгради",null,0,null,null,null,null,""]
[520,null,5203,"придобиване на друго оборудване, машини и съоръжения",null,0,null,null,null,null,""]
[525,null,5204,"придобиване на транспортни средства",null,0,null,null,null,null,""]
[635,null,5205,"придобиване на стопански инвентар",null,0,null,null,null,null,""]
[640,null,5206,"изграждане на инфраструктурни обекти",null,0,null,null,null,null,""]
[645,null,5219,"придобиване на други ДМА",null,0,null,null,null,null,""]
[650,5300,"Придобиване на нематериални дълготрайни активи",null,{"$f":"SUM(E1069:E1070)","v":0},0,0,0,0,0,""]
[655,null,5301,"придобиване на програмни продукти и лицензи за програмни продукти",null,{"$f":"G1069+H1069+I1069+J1069","v":0},null,null,null,null,""]
[665,null,5309,"придобиване на други нематериални дълготрайни активи",null,{"$f":"G1070+H1070+I1070+J1070","v":0},null,null,null,null,""]
[675,5400,"Придобиване на земя",null,null,{"$f":"G1071+H1071+I1071+J1071","v":0},null,null,null,null,""]
[685,5500,"Капиталови трансфери",null,{"$f":"SUM(E1073:E1076)","v":0},0,0,0,0,0,""]
[690,null,5501,"капиталови трансфери за нефинансови предприятия",null,{"$f":"G1073+H1073+I1073+J1073","v":0},null,null,null,null,""]
[695,null,5502,"капиталови трансфери за финансови институции",null,{"$f":"G1074+H1074+I1074+J1074","v":0},null,null,null,null,""]
[700,null,5503,"капиталови трансфери за организации с нестопанска цел",null,{"$f":"G1075+H1075+I1075+J1075","v":0},null,null,null,null,""]
[710,null,5504,"капиталови трансфери за домакинствата",null,{"$f":"G1076+H1076+I1076+J1076","v":0},null,null,null,null,""]
[715,5700,"Прираст на държавния резерв и изкупуване на земеделска продукция (включва и § 40-71)",null,{"$f":"SUM(E1078:E1080)","v":0},0,0,0,0,0,""]
[720,null,5701,"плащания за попълване на държавния резерв",null,{"$f":"G1078+H1078+I1078+J1078","v":0},null,null,null,null,""]
[725,null,5702,"плащания за изкупуване на земеделска продукция",null,{"$f":"G1079+H1079+I1079+J1079","v":0},null,null,null,null,""]
[730,null,4071,"постъпления от продажба на държавния резерв (-)",null,{"$f":"G1080+H1080+I1080+J1080","v":0},null,null,null,null,""]
[735,null,null,null,null,null,null,null,null,null,""]
[740,98,"Резерв за непредвидени и неотложни разходи",null,null,{"$f":"G1082+H1082+I1082+J1082","v":0},0,0,0,0,""]
[745,null,null,null,null,null,null,null,null,null,""]
[750,null,null,null,null,null,null,null,null,null,""]
[755,null,null,null,null,null,null,null,null,null,""]
[760,null,"99-99",{"$f":"+B1086","v":0},{"$f":"SUM(E970,E973,E979,E987,E988,E1006,E1010,E1016,E1019,E1020,E1021,E1022,E1023,E1032,E1039,E1040,E1041,E1042,E1049,E1053,E1054,E1055,E1056,E1059,E1060,E1068,E1071,E1072,E1077)+E1082","v":50536},48682,31383,0,990,16309,1,{"$f":"LEFT(C967,1)","v":"2"}]
[765,null,null,null,null,null,null,null,null,null,{"$f":"K1086","v":1}]
[775,null,null,null,null,null,null,null,null,null,{"$f":"K1086","v":1}]
[780,null,null,null,null,null,null,null,null,null,{"$f":"(IF(SUM(K1100:K1121)<>0,$K$2,\"\"))","v":""}]
[785,{"$f":"$B$7","v":"ОТЧЕТНИ ДАННИ ПО ЕБК ЗА ИЗПЪЛНЕНИЕТО НА БЮДЖЕТА"},null,null,null,null,null,null,null,null,{"$f":"(IF(SUM(K1100:K1121)<>0,$K$2,\"\"))","v":""}]
[790,null,null,null,"за периода от ","до",null,null,null,null,{"$f":"(IF(SUM(K1100:K1121)<>0,$K$2,\"\"))","v":""}]
[795,{"$f":"$B$9","v":"ОБЛАСТНА АДМИНИСТРАЦИЯ ПАЗАРДЖИК"},null,null,{"$f":"$E$9","v":"2017-01-01"},{"$f":"$F$9","v":"2017-12-31"},null,null,null,null,{"$f":"(IF(SUM(K1100:K1121)<>0,$K$2,\"\"))","v":""}]
[805,{"$f":"$B$10","v":"                                                            (наименование на разпоредителя с бюджет)"},null,null,null,null,null,null,null,null,{"$f":"(IF(SUM(K1100:K1121)<>0,$K$2,\"\"))","v":""}]
[810,null,null,null,null,null,null,null,null,null,{"$f":"(IF(SUM(K1100:K1121)<>0,$K$2,\"\"))","v":""}]
[815,{"$f":"$B$12","v":"Министерски съвет "},null,null,"       код по ЕБК:",{"$f":"$F$12","v":"0300"},null,null,null,null,{"$f":"(IF(SUM(K1100:K1121)<>0,$K$2,\"\"))","v":""}]
[525,{"$f":"$B$13","v":"                                             (наименование на първостепенния разпоредител с бюджет)"},null,null,null,null,null,null,null,null,{"$f":"(IF(SUM(K1100:K1121)<>0,$K$2,\"\"))","v":""}]
[820,null,null,"               ФИНАНСОВО-ПРАВНА ФОРМА",{"$f":"$E$15","v":0},{"$f":"$F$15","v":"БЮДЖЕТ"},null,null,null,null,{"$f":"(IF(SUM(K1100:K1121)<>0,$K$2,\"\"))","v":""}]
[821,null,null,"Натурални показатели за дейността",null,"(в лева)",null,null,null,null,{"$f":"(IF(SUM(K1100:K1121)<>0,$K$2,\"\"))","v":""}]
[822,"МЯРКА","Код 9 8","  О б щ и   н а т у р а л н и   п о к а з а т е л и","    П л а н","    О т ч е т ",null,null,null,null,{"$f":"(IF(SUM(K1100:K1121)<>0,$K$2,\"\"))","v":""}]
[823,null," 9 8 0 1","Щ а т н и   б р о й к и",{"$f":"E1101+E1102","v":0},{"$f":"F1101+F1102","v":0},null,null,null,null,{"$f":"(IF($E1100<>0,$K$2,IF($F1100<>0,$K$2,\"\")))","v":""}]
[825,null," 9 8 1 1","в т.ч.: по трудови правоотношения",null,null,null,null,null,null,""]
[null,null," 9 8 1 2","           по служебни правоотношения",null,null,null,null,null,null,""]
[null,null," 9 8 0 2","Средногодишни щатни бройки",{"$f":"E1104+E1105","v":0},{"$f":"F1104+F1105","v":0},null,null,null,null,""]
[null,null," 9 8 2 1","в т.ч.: по трудови правоотношения",null,null,null,null,null,null,""]
[null,null," 9 8 2 2","         по служебни правоотношения",null,null,null,null,null,null,""]
[null,null," 9 8 0 3","Средна годишна брутна заплата",null,null,null,null,null,null,""]
[null,null," 9 8 3 1"," в т.ч.:   по трудови правоотношения",null,null,null,null,null,null,""]
[null,null," 9 8 3 2","            по служебни правоотношения",null,null,null,null,null,null,""]
[null,null," 9 8 0 4","Брой на моторни превозни средства",null,null,null,null,null,null,""]
[null,null,"9 8 0 5","- в т.ч. - леки автомобили",null,null,null,null,null,null,""]
[null,null,"9 8 0 6","             - санитарни линейки",null,null,null,null,null,null,""]
[null,null," 9 8 0 7","Брой ученици, финансирани по единни разходни стандарти",null,null,null,null,null,null,""]
[null,null," 9 8 0 8","Средна годишна брутна заплата за дейности, финансирани по единни разходни стандарти",null,null,null,null,null,null,""]
[null,null," 9 8 0 9","Щатни бройки за дейности, финансирани по единни разходни стандарти",null,null,null,null,null,null,""]
[null,null," 9 8 1 0","Средногодишни щатни бройки за дейности, финансирани по единни разходни стандарти",null,null,null,null,null,null,""]
[null,null,"9 8 1 3","Средногодишен приравнен брой учащи във ВУ, финансирани по норматив за издръжка на обучението",null,null,null,null,null,null,""]
[905,null,"9 8 1 4","Брой леглодни в студентски общежития",null,null,null,null,null,null,""]
[906,null,"9 8 1 5","Брой хранодни в студентски стол",null,null,null,null,null,null,""]
[907,null,"9 8 1 7","Болнични легла",null,null,null,null,null,null,""]
[910,null,"9 8 1 8","Обем радиопрограма /часове/",null,null,null,null,null,null,""]
[911,null,"9 8 1 9","Обем телевизионна програма /часове/",null,null,null,null,null,null,""]
[null,"ЗАБЕЛЕЖКА:",null,null,null,null,null,null,null,null,{"$f":"K1086","v":1}]
[]
[]
[null,null,null,null,null,null,null,null,null,null,{"$f":"(IF($E1259<>0,$K$2,IF($F1259<>0,$K$2,IF($G1259<>0,$K$2,IF($H1259<>0,$K$2,IF($I1259<>0,$K$2,IF($J1259<>0,$K$2,\"\")))))))","v":1}]
[null,null,null,null,null,null,null,null,null,null,{"$f":"(IF($E1259<>0,$K$2,IF($F1259<>0,$K$2,IF($G1259<>0,$K$2,IF($H1259<>0,$K$2,IF($I1259<>0,$K$2,IF($J1259<>0,$K$2,\"\")))))))","v":1}]
[null,{"$f":"$B$7","v":"ОТЧЕТНИ ДАННИ ПО ЕБК ЗА ИЗПЪЛНЕНИЕТО НА БЮДЖЕТА"},null,null,null,null,null,null,null,null,{"$f":"(IF($E1259<>0,$K$2,IF($F1259<>0,$K$2,IF($G1259<>0,$K$2,IF($H1259<>0,$K$2,IF($I1259<>0,$K$2,IF($J1259<>0,$K$2,\"\")))))))","v":1}]
[null,null,null,null,"за периода от ","до",null,"                 II.1. РАЗХОДИ ПО ДЕЙНОСТИ",null,null,{"$f":"(IF($E1259<>0,$K$2,IF($F1259<>0,$K$2,IF($G1259<>0,$K$2,IF($H1259<>0,$K$2,IF($I1259<>0,$K$2,IF($J1259<>0,$K$2,\"\")))))))","v":1}]
[null,{"$f":"$B$9","v":"ОБЛАСТНА АДМИНИСТРАЦИЯ ПАЗАРДЖИК"},null,null,{"$f":"$E$9","v":"2017-01-01"},{"$f":"$F$9","v":"2017-12-31"},null,null,null,null,{"$f":"(IF($E1259<>0,$K$2,IF($F1259<>0,$K$2,IF($G1259<>0,$K$2,IF($H1259<>0,$K$2,IF($I1259<>0,$K$2,IF($J1259<>0,$K$2,\"\")))))))","v":1}]
[null,{"$f":"$B$10","v":"                                                            (наименование на разпоредителя с бюджет)"},null,null,null,null,null,null,null,null,{"$f":"(IF($E1259<>0,$K$2,IF($F1259<>0,$K$2,IF($G1259<>0,$K$2,IF($H1259<>0,$K$2,IF($I1259<>0,$K$2,IF($J1259<>0,$K$2,\"\")))))))","v":1}]
[null,null,null,null,null,null,null,null,null,null,{"$f":"(IF($E1259<>0,$K$2,IF($F1259<>0,$K$2,IF($G1259<>0,$K$2,IF($H1259<>0,$K$2,IF($I1259<>0,$K$2,IF($J1259<>0,$K$2,\"\")))))))","v":1}]
[null,{"$f":"$B$12","v":"Министерски съвет "},null,null,"       код по ЕБК:",{"$f":"$F$12","v":"0300"},null,null,null,null,{"$f":"(IF($E1259<>0,$K$2,IF($F1259<>0,$K$2,IF($G1259<>0,$K$2,IF($H1259<>0,$K$2,IF($I1259<>0,$K$2,IF($J1259<>0,$K$2,\"\")))))))","v":1}]
[null,{"$f":"$B$13","v":"                                             (наименование на първостепенния разпоредител с бюджет)"},null,null,null,null,null,null,null,null,{"$f":"(IF($E1259<>0,$K$2,IF($F1259<>0,$K$2,IF($G1259<>0,$K$2,IF($H1259<>0,$K$2,IF($I1259<>0,$K$2,IF($J1259<>0,$K$2,\"\")))))))","v":1}]
[null,null,null,"ФИНАНСОВО-ПРАВНА ФОРМА",{"$f":"$E$15","v":0},{"$f":"$F$15","v":"БЮДЖЕТ"},null,null,null,null,{"$f":"(IF($E1259<>0,$K$2,IF($F1259<>0,$K$2,IF($G1259<>0,$K$2,IF($H1259<>0,$K$2,IF($I1259<>0,$K$2,IF($J1259<>0,$K$2,\"\")))))))","v":1}]
[null,null,null,null,null,null,null,null,null,"(в лева)",{"$f":"(IF($E1259<>0,$K$2,IF($F1259<>0,$K$2,IF($G1259<>0,$K$2,IF($H1259<>0,$K$2,IF($I1259<>0,$K$2,IF($J1259<>0,$K$2,\"\")))))))","v":1}]
[null,null,null,"II.1. РАЗХОДИ ПО ДЕЙНОСТИ","Уточнен план","                                                                                                                              О Т Ч Е Т Н И   Д А Н Н И",null,null,null,null,{"$f":"(IF($E1259<>0,$K$2,IF($F1259<>0,$K$2,IF($G1259<>0,$K$2,IF($H1259<>0,$K$2,IF($I1259<>0,$K$2,IF($J1259<>0,$K$2,\"\")))))))","v":1}]
[null,"§§","под-§§","НАИМЕНОВАНИЯ НА ПАРАГРАФИТЕ И ПОДПАРАГРАФИТЕ",{"$f":"$C$3","v":2017},"ОБЩО","левови\n сметки и СЕБРА ","валутни \nсметки ","операции в брой (в левове и валута)","операции приравнени на касов поток",{"$f":"(IF($E1259<>0,$K$2,IF($F1259<>0,$K$2,IF($G1259<>0,$K$2,IF($H1259<>0,$K$2,IF($I1259<>0,$K$2,IF($J1259<>0,$K$2,\"\")))))))","v":1}]
[null,null,null," 02 ¦","(1)","(2)","(3)","(4)","(5)","(6)",{"$f":"(IF($E1259<>0,$K$2,IF($F1259<>0,$K$2,IF($G1259<>0,$K$2,IF($H1259<>0,$K$2,IF($I1259<>0,$K$2,IF($J1259<>0,$K$2,\"\")))))))","v":1}]
[null,null,0,"ИЗБЕРЕТЕ ОПЕРАТИВНА ПРОГРАМА ",null,null,null,null,null,null,{"$f":"(IF($E1259<>0,$K$2,IF($F1259<>0,$K$2,IF($G1259<>0,$K$2,IF($H1259<>0,$K$2,IF($I1259<>0,$K$2,IF($J1259<>0,$K$2,\"\")))))))","v":1}]
[null,null,{"$f":"VLOOKUP(D1141,EBK_DEIN2,2,FALSE)","v":5532},"<------          ДЕЙНОСТ    -  код  по  ЕБК",null,null,null,null,null,null,{"$f":"(IF($E1259<>0,$K$2,IF($F1259<>0,$K$2,IF($G1259<>0,$K$2,IF($H1259<>0,$K$2,IF($I1259<>0,$K$2,IF($J1259<>0,$K$2,\"\")))))))","v":1}]
[null,null,{"$f":"+C1140","v":5532},"532 Програми за временна заетост",null,null,null,null,null,null,{"$f":"(IF($E1259<>0,$K$2,IF($F1259<>0,$K$2,IF($G1259<>0,$K$2,IF($H1259<>0,$K$2,IF($I1259<>0,$K$2,IF($J1259<>0,$K$2,\"\")))))))","v":1}]
[null,null,null,"(наименование на дейността)",null,null,null,null,null,null,{"$f":"(IF($E1259<>0,$K$2,IF($F1259<>0,$K$2,IF($G1259<>0,$K$2,IF($H1259<>0,$K$2,IF($I1259<>0,$K$2,IF($J1259<>0,$K$2,\"\")))))))","v":1}]
[null,100,"Заплати и възнаграждения за персонала, нает по трудови и служебни правоотношения",null,{"$f":"SUM(E1144:E1145)","v":0},0,0,0,0,0,{"$f":"(IF($E1143<>0,$K$2,IF($F1143<>0,$K$2,IF($G1143<>0,$K$2,IF($H1143<>0,$K$2,IF($I1143<>0,$K$2,IF($J1143<>0,$K$2,\"\")))))))","v":""}]
[null,null,101,"заплати и възнаграждения на персонала нает по трудови правоотношения",null,{"$f":"G1144+H1144+I1144+J1144","v":0},null,null,null,null,{"$f":"(IF($E1144<>0,$K$2,IF($F1144<>0,$K$2,IF($G1144<>0,$K$2,IF($H1144<>0,$K$2,IF($I1144<>0,$K$2,IF($J1144<>0,$K$2,\"\")))))))","v":""}]
[null,null,102,"заплати и възнаграждения на персонала нает по служебни правоотношения",null,{"$f":"G1145+H1145+I1145+J1145","v":0},null,null,null,null,""]
[null,200,"Други възнаграждения и плащания за персонала",null,{"$f":"SUM(E1147:E1151)","v":14608},14577,12088,0,0,2489,1]
[null,null,201,"за нещатен персонал нает по трудови правоотношения ",14608,{"$f":"G1147+H1147+I1147+J1147","v":14344},11873,0,0,2471,1]
[null,null,202,"за персонала по извънтрудови правоотношения",null,{"$f":"G1148+H1148+I1148+J1148","v":0},null,null,null,null,""]
[null,null,205,"изплатени суми от СБКО за облекло и други на персонала, с характер на възнаграждение",null,{"$f":"G1149+H1149+I1149+J1149","v":0},null,null,null,null,""]
[null,null,208,"обезщетения за персонала, с характер на възнаграждение",null,{"$f":"G1150+H1150+I1150+J1150","v":184},166,0,0,18,1]
[null,null,209,"другиплащания и възнаграждения",null,{"$f":"G1151+H1151+I1151+J1151","v":49},49,0,0,0,1]
[null,500,"Задължителни осигурителни вноски от работодатели",null,{"$f":"SUM(E1153:E1159)","v":2774},2694,0,0,0,2694,1]
[null,null,551,"осигурителни вноски от работодатели за Държавното обществено осигуряване (ДОО)",1839,{"$f":"G1153+H1153+I1153+J1153","v":1783},0,0,0,1783,1]
[null,null,{"$f":"C1153+1","v":552},"осигурителни вноски от работодатели за Учителския пенсионен фонд (УПФ)",null,0,0,0,0,null,""]
[null,null,558,"вноски по чл. 4б и 4в от КСО за сметка на осигурителя",null,{"$f":"G1155+H1155+I1155+J1155","v":0},0,0,0,0,""]
[null,null,560,"здравно-осигурителни вноски от работодатели",714,697,0,0,0,697,1]
[null,null,580,"вноски за допълнително задължително осигуряване от работодатели",221,214,0,0,0,214,1]
[null,null,588,"коректив на вноски за ДЗПО за сумите по чл. 4б и 4в от КСО за сметка на осигурителя",null,{"$f":"G1158+H1158+I1158+J1158","v":0},0,0,0,0,""]
[5,null,590,"задължителни вноски за чуждестранни пенсионни фондове и  схеми за сметка на осигурителя",null,0,null,null,null,null,""]
[10,800,"Вноски за доброволно осигуряване ",null,null,0,null,null,null,null,""]
[15,1000,"Издръжка",null,{"$f":"SUM(E1162:E1178)","v":0},0,0,0,0,0,""]
[35,null,1011,"Храна",null,{"$f":"G1162+H1162+I1162+J1162","v":0},null,null,null,null,""]
[40,null,1012,"Медикаменти",null,0,null,null,null,null,""]
[45,null,1013,"Постелен инвентар и облекло",null,0,null,null,null,null,""]
[50,null,1014,"Учебни и научно-изследователски разходи и книги за библиотеките",null,0,null,null,null,null,""]
[55,null,1015,"материали",null,0,null,null,null,null,""]
[60,null,1016,"вода, горива и енергия",null,0,null,null,null,null,""]
[65,null,1020,"разходи за външни услуги",null,0,null,null,null,null,""]
[70,null,1030,"Текущ ремонт",null,0,null,null,null,null,""]
[75,null,1051,"командировки в страната",null,0,null,null,null,null,""]
[80,null,1052,"краткосрочни командировки в чужбина",null,0,null,null,null,null,""]
[80,null,1053,"дългосрочни командировки в чужбина",null,0,null,null,null,null,""]
[85,null,1062,"разходи за застраховки",null,0,null,null,null,null,""]
[90,null,1063,"такса ангажимент по заеми",null,0,null,null,null,null,""]
[90,null,1069,"други финансови услуги",null,0,null,null,null,null,""]
[115,null,1091,"други разходи за СБКО",null,0,null,null,null,null,""]
[125,null,1092,"разходи за договорни санкции и неустойки, съдебни обезщетения и разноски",null,0,null,null,null,null,""]
[130,null,1098,"други разходи, некласифицирани в другите параграфи и подпараграфи",null,0,null,null,null,null,""]
[135,1900,"Платени данъци, такси и административни санкции",null,{"$f":"SUM(E1180:E1182)","v":0},0,0,0,0,0,""]
[140,null,1901,"платени държавни данъци, такси, наказателни лихви и административни санкции",null,{"$f":"G1180+H1180+I1180+J1180","v":0},null,null,null,null,""]
[145,null,1981,"платени общински данъци, такси, наказателни лихви и административни санкции",null,{"$f":"G1181+H1181+I1181+J1181","v":0},null,null,null,null,""]
[150,null,1991,"платени данъци, такси, наказателни лихви и административни санкции в чужбина",null,{"$f":"G1182+H1182+I1182+J1182","v":0},null,null,null,null,""]
[155,2100,"Разходи за лихви по емисии на държавни (общински) ценни книжа",null,{"$f":"SUM(E1184:E1188)","v":0},0,0,0,0,0,""]
[160,null,2110,"лихви по държавни (общински) ценни книжа",null,{"$f":"G1184+H1184+I1184+J1184","v":0},null,null,null,null,""]
[165,null,2120,"отстъпки по държавни (общински) ценни книжа",null,{"$f":"G1185+H1185+I1185+J1185","v":0},null,null,null,null,""]
[175,null,2125,"лихви и отстъпки по целеви емисии на държавни ценни книжа",null,{"$f":"G1186+H1186+I1186+J1186","v":0},null,null,0,null,""]
[180,null,2140,"лихви по държавни ценни книжа, емитирани за структурната реформа ",null,{"$f":"G1187+H1187+I1187+J1187","v":0},null,null,0,null,""]
[185,null,2190,"премии над номинала от емисии на държавни (общински) ценни книжа (-)",null,{"$f":"G1188+H1188+I1188+J1188","v":0},null,null,0,null,""]
[190,2200,"Разходи за лихви по заеми от страната",null,{"$f":"SUM(E1190:E1191)","v":0},0,0,0,0,0,""]
[200,null,2221,"Разходи за лихви по заеми от банки в страната",null,{"$f":"G1190+H1190+I1190+J1190","v":0},null,null,null,null,""]
[200,null,2224,"Разходи за лихви по други заеми от страната",null,0,null,null,null,null,""]
[205,2500,"Разходи за лихви по заеми от други държави",null,null,0,null,null,null,null,""]
[210,2600,"Разходи за лихви по заеми от международни организации и институции",null,null,0,null,null,null,null,""]
[215,2700,"Разходи за лихви по заеми от банки и други финансови институции от чужбина",null,null,0,null,null,null,null,""]
[220,2800,"Разходи за лихви и отстъпки по облигации, емитирани и търгувани на международните капиталови пазари",null,null,0,null,null,null,null,""]
[225,2900,"Други разходи за лихви",null,{"$f":"SUM(E1197:E1204)","v":0},0,0,0,0,0,""]
[230,null,2910,"Платени лихви по финансов лизинг и търговски кредит",null,{"$f":"G1197+H1197+I1197+J1197","v":0},null,null,null,null,""]
[245,null,2920,"Платени лихви по активирани гаранции по заеми от  банки в страната",null,{"$f":"G1198+H1198+I1198+J1198","v":0},null,null,null,null,""]
[220,null,2969,"Платени лихви по активирани гаранции по заеми от международни организации и институции",null,0,null,null,null,null,""]
[225,null,2970,"Платени лихви по активирани гаранции по заеми от банки и финансови институции от чужбина",null,0,null,null,null,null,""]
[230,null,2989,"Възстановени суми по платени лихви по активирани гаранции (-)",null,0,null,null,null,null,""]
[235,null,2990,"Платени лихви по заеми, предоставени от централния бюджет и бюджетни организации",null,{"$f":"G1202+H1202+I1202+J1202","v":0},null,null,null,null,""]
[240,null,2991,"Други разходи за лихви към  местни лица",null,0,null,null,null,null,""]
[245,null,2992,"Други разходи за лихви към чуждестранни лица",null,0,null,null,null,null,""]
[250,3300,"Вноска в бюджета на Европейския съюз",null,{"$f":"SUM(E1206:E1211)","v":0},0,0,0,0,0,""]
[255,null,3301,"ресурс на база брутен национален доход",null,{"$f":"G1206+H1206+I1206+J1206","v":0},null,null,0,0,""]
[265,null,3302,"ресурс на база данък върху добавената стойност",null,0,null,null,0,0,""]
[270,null,3303,"корекция за Обединеното кралство",null,0,null,null,0,0,""]
[290,null,3304,"традиционни собствени ресурси - мита",null,0,null,null,0,0,""]
[320,null,3305,"традиционни собствени ресурси - такси върху производството на захар и изоглюкоза",null,0,null,null,0,0,""]
[330,null,3306,"участие във финансирането на брутното намаление за Нидерландия, Швеция, Дания и Австрия",null,0,null,null,0,0,""]
[350,3900,"Здравно-осигурителни плащания",null,null,0,null,null,null,null,{"$f":"(IF($E1212<>0,$K$2,IF($F1212<>0,$K$2,IF($G1212<>0,$K$2,IF($H1212<>0,$K$2,IF($I1212<>0,$K$2,IF($J1212<>0,$K$2,\"\")))))))","v":""}]
[355,4000,"Стипендии",null,null,0,null,null,null,null,""]
[375,4100,"Пенсии",null,null,0,null,null,null,null,""]
[375,4200,"Текущи трансфери, обезщетения и помощи за домакинствата",null,{"$f":"SUM(E1216:E1221)","v":0},0,0,0,0,0,""]
[380,null,4201,"обезщетения и помощи по социалното осигуряване",null,{"$f":"G1216+H1216+I1216+J1216","v":0},null,null,null,null,""]
[385,null,4202,"обезщетения и помощи по социалното подпомагане",null,0,null,null,null,null,""]
[390,null,4214,"обезщетения и помощи по решение на общинския съвет",null,0,null,null,null,null,""]
[390,null,4217,"текущи трансфери за домакинства от средства на Европейския съюз",null,0,null,null,null,null,""]
[395,null,4218,"текущи трансфери за домакинства по други международни програми и споразумения",null,0,null,null,null,null,""]
[397,null,4219,"други текущи трансфери за домакинствата",null,0,null,null,null,null,""]
[398,4300,"Субсидии и други текущи трансфери за нефинансови предприятия ",null,{"$f":"SUM(E1223:E1225)","v":0},0,0,0,0,0,""]
[399,null,4301,"за текуща дейност",null,{"$f":"G1223+H1223+I1223+J1223","v":0},null,null,null,null,""]
[400,null,4302,"за осъществяване на болнична помощ ",null,0,null,null,null,null,""]
[401,null,4309,"други субсидии и плащания",null,0,null,null,null,null,""]
[402,4400,"Субсидии и други текущи трансфери за финансови институции",null,null,0,null,null,null,null,""]
[404,4500,"Субсидии и други текущи трансфери за юридически лица с нестопанска цел",null,null,0,null,null,null,null,""]
[404,4600,"Разходи за членски внос и участие в нетърговски организации и дейности",null,null,0,null,null,null,null,""]
[440,4900,"Предоставени текущи и капиталови трансфери за чужбина",null,{"$f":"+E1230+E1231","v":0},0,0,0,0,0,""]
[450,null,4901,"текущи трансфери за чужбина",null,{"$f":"G1230+H1230+I1230+J1230","v":0},null,null,null,null,""]
[495,null,4902,"капиталови трансфери за чужбина",null,{"$f":"G1231+H1231+I1231+J1231","v":0},null,null,null,null,""]
[500,5100,"Основен ремонт на дълготрайни материални активи",null,null,{"$f":"G1232+H1232+I1232+J1232","v":0},null,null,null,null,""]
[505,5200,"Придобиване на дълготрайни материални активи",null,{"$f":"SUM(E1234:E1240)","v":0},0,0,0,0,0,""]
[510,null,5201,"придобиване на компютри и хардуер",null,{"$f":"G1234+H1234+I1234+J1234","v":0},null,null,null,null,""]
[515,null,5202,"придобиване на сгради",null,0,null,null,null,null,""]
[520,null,5203,"придобиване на друго оборудване, машини и съоръжения",null,0,null,null,null,null,""]
[525,null,5204,"придобиване на транспортни средства",null,0,null,null,null,null,""]
[635,null,5205,"придобиване на стопански инвентар",null,0,null,null,null,null,""]
[640,null,5206,"изграждане на инфраструктурни обекти",null,0,null,null,null,null,""]
[645,null,5219,"придобиване на други ДМА",null,0,null,null,null,null,""]
[650,5300,"Придобиване на нематериални дълготрайни активи",null,{"$f":"SUM(E1242:E1243)","v":0},0,0,0,0,0,""]
[655,null,5301,"придобиване на програмни продукти и лицензи за програмни продукти",null,{"$f":"G1242+H1242+I1242+J1242","v":0},null,null,null,null,""]
[665,null,5309,"придобиване на други нематериални дълготрайни активи",null,{"$f":"G1243+H1243+I1243+J1243","v":0},null,null,null,null,""]
[675,5400,"Придобиване на земя",null,null,{"$f":"G1244+H1244+I1244+J1244","v":0},null,null,null,null,""]
[685,5500,"Капиталови трансфери",null,{"$f":"SUM(E1246:E1249)","v":0},0,0,0,0,0,""]
[690,null,5501,"капиталови трансфери за нефинансови предприятия",null,{"$f":"G1246+H1246+I1246+J1246","v":0},null,null,null,null,""]
[695,null,5502,"капиталови трансфери за финансови институции",null,{"$f":"G1247+H1247+I1247+J1247","v":0},null,null,null,null,""]
[700,null,5503,"капиталови трансфери за организации с нестопанска цел",null,{"$f":"G1248+H1248+I1248+J1248","v":0},null,null,null,null,""]
[710,null,5504,"капиталови трансфери за домакинствата",null,{"$f":"G1249+H1249+I1249+J1249","v":0},null,null,null,null,""]
[715,5700,"Прираст на държавния резерв и изкупуване на земеделска продукция (включва и § 40-71)",null,{"$f":"SUM(E1251:E1253)","v":0},0,0,0,0,0,""]
[720,null,5701,"плащания за попълване на държавния резерв",null,{"$f":"G1251+H1251+I1251+J1251","v":0},null,null,null,null,""]
[725,null,5702,"плащания за изкупуване на земеделска продукция",null,{"$f":"G1252+H1252+I1252+J1252","v":0},null,null,null,null,""]
[730,null,4071,"постъпления от продажба на държавния резерв (-)",null,{"$f":"G1253+H1253+I1253+J1253","v":0},null,null,null,null,""]
[735,null,null,null,null,null,null,null,null,null,""]
[740,98,"Резерв за непредвидени и неотложни разходи",null,null,{"$f":"G1255+H1255+I1255+J1255","v":0},0,0,0,0,""]
[745,null,null,null,null,null,null,null,null,null,""]
[750,null,null,null,null,null,null,null,null,null,""]
[755,null,null,null,null,null,null,null,null,null,""]
[760,null,"99-99",{"$f":"+B1259","v":0},{"$f":"SUM(E1143,E1146,E1152,E1160,E1161,E1179,E1183,E1189,E1192,E1193,E1194,E1195,E1196,E1205,E1212,E1213,E1214,E1215,E1222,E1226,E1227,E1228,E1229,E1232,E1233,E1241,E1244,E1245,E1250)+E1255","v":17382},17271,12088,0,0,5183,1,{"$f":"LEFT(C1140,1)","v":"5"}]
[765,null,null,null,null,null,null,null,null,null,{"$f":"K1259","v":1}]
[775,null,null,null,null,null,null,null,null,null,{"$f":"K1259","v":1}]
[780,null,null,null,null,null,null,null,null,null,{"$f":"(IF(SUM(K1273:K1294)<>0,$K$2,\"\"))","v":""}]
[785,{"$f":"$B$7","v":"ОТЧЕТНИ ДАННИ ПО ЕБК ЗА ИЗПЪЛНЕНИЕТО НА БЮДЖЕТА"},null,null,null,null,null,null,null,null,{"$f":"(IF(SUM(K1273:K1294)<>0,$K$2,\"\"))","v":""}]
[790,null,null,null,"за периода от ","до",null,null,null,null,{"$f":"(IF(SUM(K1273:K1294)<>0,$K$2,\"\"))","v":""}]
[795,{"$f":"$B$9","v":"ОБЛАСТНА АДМИНИСТРАЦИЯ ПАЗАРДЖИК"},null,null,{"$f":"$E$9","v":"2017-01-01"},{"$f":"$F$9","v":"2017-12-31"},null,null,null,null,{"$f":"(IF(SUM(K1273:K1294)<>0,$K$2,\"\"))","v":""}]
[805,{"$f":"$B$10","v":"                                                            (наименование на разпоредителя с бюджет)"},null,null,null,null,null,null,null,null,{"$f":"(IF(SUM(K1273:K1294)<>0,$K$2,\"\"))","v":""}]
[810,null,null,null,null,null,null,null,null,null,{"$f":"(IF(SUM(K1273:K1294)<>0,$K$2,\"\"))","v":""}]
[815,{"$f":"$B$12","v":"Министерски съвет "},null,null,"       код по ЕБК:",{"$f":"$F$12","v":"0300"},null,null,null,null,{"$f":"(IF(SUM(K1273:K1294)<>0,$K$2,\"\"))","v":""}]
[525,{"$f":"$B$13","v":"                                             (наименование на първостепенния разпоредител с бюджет)"},null,null,null,null,null,null,null,null,{"$f":"(IF(SUM(K1273:K1294)<>0,$K$2,\"\"))","v":""}]
[820,null,null,"               ФИНАНСОВО-ПРАВНА ФОРМА",{"$f":"$E$15","v":0},{"$f":"$F$15","v":"БЮДЖЕТ"},null,null,null,null,{"$f":"(IF(SUM(K1273:K1294)<>0,$K$2,\"\"))","v":""}]
[821,null,null,"Натурални показатели за дейността",null,"(в лева)",null,null,null,null,{"$f":"(IF(SUM(K1273:K1294)<>0,$K$2,\"\"))","v":""}]
[822,"МЯРКА","Код 9 8","  О б щ и   н а т у р а л н и   п о к а з а т е л и","    П л а н","    О т ч е т ",null,null,null,null,{"$f":"(IF(SUM(K1273:K1294)<>0,$K$2,\"\"))","v":""}]
[823,null," 9 8 0 1","Щ а т н и   б р о й к и",{"$f":"E1274+E1275","v":0},{"$f":"F1274+F1275","v":0},null,null,null,null,{"$f":"(IF($E1273<>0,$K$2,IF($F1273<>0,$K$2,\"\")))","v":""}]
[825,null," 9 8 1 1","в т.ч.: по трудови правоотношения",null,null,null,null,null,null,""]
[null,null," 9 8 1 2","           по служебни правоотношения",null,null,null,null,null,null,""]
[null,null," 9 8 0 2","Средногодишни щатни бройки",{"$f":"E1277+E1278","v":0},{"$f":"F1277+F1278","v":0},null,null,null,null,""]
[null,null," 9 8 2 1","в т.ч.: по трудови правоотношения",null,null,null,null,null,null,""]
[null,null," 9 8 2 2","         по служебни правоотношения",null,null,null,null,null,null,""]
[null,null," 9 8 0 3","Средна годишна брутна заплата",null,null,null,null,null,null,""]
[null,null," 9 8 3 1"," в т.ч.:   по трудови правоотношения",null,null,null,null,null,null,""]
[null,null," 9 8 3 2","            по служебни правоотношения",null,null,null,null,null,null,""]
[null,null," 9 8 0 4","Брой на моторни превозни средства",null,null,null,null,null,null,""]
[null,null,"9 8 0 5","- в т.ч. - леки автомобили",null,null,null,null,null,null,""]
[null,null,"9 8 0 6","             - санитарни линейки",null,null,null,null,null,null,""]
[null,null," 9 8 0 7","Брой ученици, финансирани по единни разходни стандарти",null,null,null,null,null,null,""]
[null,null," 9 8 0 8","Средна годишна брутна заплата за дейности, финансирани по единни разходни стандарти",null,null,null,null,null,null,""]
[null,null," 9 8 0 9","Щатни бройки за дейности, финансирани по единни разходни стандарти",null,null,null,null,null,null,""]
[null,null," 9 8 1 0","Средногодишни щатни бройки за дейности, финансирани по единни разходни стандарти",null,null,null,null,null,null,""]
[null,null,"9 8 1 3","Средногодишен приравнен брой учащи във ВУ, финансирани по норматив за издръжка на обучението",null,null,null,null,null,null,""]
[905,null,"9 8 1 4","Брой леглодни в студентски общежития",null,null,null,null,null,null,""]
[906,null,"9 8 1 5","Брой хранодни в студентски стол",null,null,null,null,null,null,""]
[907,null,"9 8 1 7","Болнични легла",null,null,null,null,null,null,""]
[910,null,"9 8 1 8","Обем радиопрограма /часове/",null,null,null,null,null,null,""]
[911,null,"9 8 1 9","Обем телевизионна програма /часове/",null,null,null,null,null,null,""]
[null,"ЗАБЕЛЕЖКА:",null,null,null,null,null,null,null,null,{"$f":"K1259","v":1}]
[]
[]
[null,null,null,null,null,null,null,null,null,null,{"$f":"(IF($E1432<>0,$K$2,IF($F1432<>0,$K$2,IF($G1432<>0,$K$2,IF($H1432<>0,$K$2,IF($I1432<>0,$K$2,IF($J1432<>0,$K$2,\"\")))))))","v":1}]
[null,null,null,null,null,null,null,null,null,null,{"$f":"(IF($E1432<>0,$K$2,IF($F1432<>0,$K$2,IF($G1432<>0,$K$2,IF($H1432<>0,$K$2,IF($I1432<>0,$K$2,IF($J1432<>0,$K$2,\"\")))))))","v":1}]
[null,{"$f":"$B$7","v":"ОТЧЕТНИ ДАННИ ПО ЕБК ЗА ИЗПЪЛНЕНИЕТО НА БЮДЖЕТА"},null,null,null,null,null,null,null,null,{"$f":"(IF($E1432<>0,$K$2,IF($F1432<>0,$K$2,IF($G1432<>0,$K$2,IF($H1432<>0,$K$2,IF($I1432<>0,$K$2,IF($J1432<>0,$K$2,\"\")))))))","v":1}]
[null,null,null,null,"за периода от ","до",null,"                 II.1. РАЗХОДИ ПО ДЕЙНОСТИ",null,null,{"$f":"(IF($E1432<>0,$K$2,IF($F1432<>0,$K$2,IF($G1432<>0,$K$2,IF($H1432<>0,$K$2,IF($I1432<>0,$K$2,IF($J1432<>0,$K$2,\"\")))))))","v":1}]
[null,{"$f":"$B$9","v":"ОБЛАСТНА АДМИНИСТРАЦИЯ ПАЗАРДЖИК"},null,null,{"$f":"$E$9","v":"2017-01-01"},{"$f":"$F$9","v":"2017-12-31"},null,null,null,null,{"$f":"(IF($E1432<>0,$K$2,IF($F1432<>0,$K$2,IF($G1432<>0,$K$2,IF($H1432<>0,$K$2,IF($I1432<>0,$K$2,IF($J1432<>0,$K$2,\"\")))))))","v":1}]
[null,{"$f":"$B$10","v":"                                                            (наименование на разпоредителя с бюджет)"},null,null,null,null,null,null,null,null,{"$f":"(IF($E1432<>0,$K$2,IF($F1432<>0,$K$2,IF($G1432<>0,$K$2,IF($H1432<>0,$K$2,IF($I1432<>0,$K$2,IF($J1432<>0,$K$2,\"\")))))))","v":1}]
[null,null,null,null,null,null,null,null,null,null,{"$f":"(IF($E1432<>0,$K$2,IF($F1432<>0,$K$2,IF($G1432<>0,$K$2,IF($H1432<>0,$K$2,IF($I1432<>0,$K$2,IF($J1432<>0,$K$2,\"\")))))))","v":1}]
[null,{"$f":"$B$12","v":"Министерски съвет "},null,null,"       код по ЕБК:",{"$f":"$F$12","v":"0300"},null,null,null,null,{"$f":"(IF($E1432<>0,$K$2,IF($F1432<>0,$K$2,IF($G1432<>0,$K$2,IF($H1432<>0,$K$2,IF($I1432<>0,$K$2,IF($J1432<>0,$K$2,\"\")))))))","v":1}]
[null,{"$f":"$B$13","v":"                                             (наименование на първостепенния разпоредител с бюджет)"},null,null,null,null,null,null,null,null,{"$f":"(IF($E1432<>0,$K$2,IF($F1432<>0,$K$2,IF($G1432<>0,$K$2,IF($H1432<>0,$K$2,IF($I1432<>0,$K$2,IF($J1432<>0,$K$2,\"\")))))))","v":1}]
[null,null,null,"ФИНАНСОВО-ПРАВНА ФОРМА",{"$f":"$E$15","v":0},{"$f":"$F$15","v":"БЮДЖЕТ"},null,null,null,null,{"$f":"(IF($E1432<>0,$K$2,IF($F1432<>0,$K$2,IF($G1432<>0,$K$2,IF($H1432<>0,$K$2,IF($I1432<>0,$K$2,IF($J1432<>0,$K$2,\"\")))))))","v":1}]
[null,null,null,null,null,null,null,null,null,"(в лева)",{"$f":"(IF($E1432<>0,$K$2,IF($F1432<>0,$K$2,IF($G1432<>0,$K$2,IF($H1432<>0,$K$2,IF($I1432<>0,$K$2,IF($J1432<>0,$K$2,\"\")))))))","v":1}]
[null,null,null,"II.1. РАЗХОДИ ПО ДЕЙНОСТИ","Уточнен план","                                                                                                                              О Т Ч Е Т Н И   Д А Н Н И",null,null,null,null,{"$f":"(IF($E1432<>0,$K$2,IF($F1432<>0,$K$2,IF($G1432<>0,$K$2,IF($H1432<>0,$K$2,IF($I1432<>0,$K$2,IF($J1432<>0,$K$2,\"\")))))))","v":1}]
[null,"§§","под-§§","НАИМЕНОВАНИЯ НА ПАРАГРАФИТЕ И ПОДПАРАГРАФИТЕ",{"$f":"$C$3","v":2017},"ОБЩО","левови\n сметки и СЕБРА ","валутни \nсметки ","операции в брой (в левове и валута)","операции приравнени на касов поток",{"$f":"(IF($E1432<>0,$K$2,IF($F1432<>0,$K$2,IF($G1432<>0,$K$2,IF($H1432<>0,$K$2,IF($I1432<>0,$K$2,IF($J1432<>0,$K$2,\"\")))))))","v":1}]
[null,null,null," 02 ¦","(1)","(2)","(3)","(4)","(5)","(6)",{"$f":"(IF($E1432<>0,$K$2,IF($F1432<>0,$K$2,IF($G1432<>0,$K$2,IF($H1432<>0,$K$2,IF($I1432<>0,$K$2,IF($J1432<>0,$K$2,\"\")))))))","v":1}]
[null,null,0,"ИЗБЕРЕТЕ ОПЕРАТИВНА ПРОГРАМА ",null,null,null,null,null,null,{"$f":"(IF($E1432<>0,$K$2,IF($F1432<>0,$K$2,IF($G1432<>0,$K$2,IF($H1432<>0,$K$2,IF($I1432<>0,$K$2,IF($J1432<>0,$K$2,\"\")))))))","v":1}]
[null,null,{"$f":"VLOOKUP(D1314,EBK_DEIN2,2,FALSE)","v":2283},"<------          ДЕЙНОСТ    -  код  по  ЕБК",null,null,null,null,null,null,{"$f":"(IF($E1432<>0,$K$2,IF($F1432<>0,$K$2,IF($G1432<>0,$K$2,IF($H1432<>0,$K$2,IF($I1432<>0,$K$2,IF($J1432<>0,$K$2,\"\")))))))","v":1}]
[null,null,{"$f":"+C1313","v":2283},"283 Превантивна дейност за намаляване на вредните последствия от бедствия и аварии",null,null,null,null,null,null,{"$f":"(IF($E1432<>0,$K$2,IF($F1432<>0,$K$2,IF($G1432<>0,$K$2,IF($H1432<>0,$K$2,IF($I1432<>0,$K$2,IF($J1432<>0,$K$2,\"\")))))))","v":1}]
[null,null,null,"(наименование на дейността)",null,null,null,null,null,null,{"$f":"(IF($E1432<>0,$K$2,IF($F1432<>0,$K$2,IF($G1432<>0,$K$2,IF($H1432<>0,$K$2,IF($I1432<>0,$K$2,IF($J1432<>0,$K$2,\"\")))))))","v":1}]
[null,100,"Заплати и възнаграждения за персонала, нает по трудови и служебни правоотношения",null,{"$f":"SUM(E1317:E1318)","v":0},0,0,0,0,0,{"$f":"(IF($E1316<>0,$K$2,IF($F1316<>0,$K$2,IF($G1316<>0,$K$2,IF($H1316<>0,$K$2,IF($I1316<>0,$K$2,IF($J1316<>0,$K$2,\"\")))))))","v":""}]
[null,null,101,"заплати и възнаграждения на персонала нает по трудови правоотношения",null,{"$f":"G1317+H1317+I1317+J1317","v":0},null,null,null,null,{"$f":"(IF($E1317<>0,$K$2,IF($F1317<>0,$K$2,IF($G1317<>0,$K$2,IF($H1317<>0,$K$2,IF($I1317<>0,$K$2,IF($J1317<>0,$K$2,\"\")))))))","v":""}]
[null,null,102,"заплати и възнаграждения на персонала нает по служебни правоотношения",null,{"$f":"G1318+H1318+I1318+J1318","v":0},null,null,null,null,""]
[null,200,"Други възнаграждения и плащания за персонала",null,{"$f":"SUM(E1320:E1324)","v":0},0,0,0,0,0,""]
[null,null,201,"за нещатен персонал нает по трудови правоотношения ",null,{"$f":"G1320+H1320+I1320+J1320","v":0},null,null,null,null,""]
[null,null,202,"за персонала по извънтрудови правоотношения",null,{"$f":"G1321+H1321+I1321+J1321","v":0},null,null,null,null,""]
[null,null,205,"изплатени суми от СБКО за облекло и други на персонала, с характер на възнаграждение",null,{"$f":"G1322+H1322+I1322+J1322","v":0},null,null,null,null,""]
[null,null,208,"обезщетения за персонала, с характер на възнаграждение",null,{"$f":"G1323+H1323+I1323+J1323","v":0},null,null,null,null,""]
[null,null,209,"другиплащания и възнаграждения",null,{"$f":"G1324+H1324+I1324+J1324","v":0},null,null,null,null,""]
[null,500,"Задължителни осигурителни вноски от работодатели",null,{"$f":"SUM(E1326:E1332)","v":0},0,0,0,0,0,""]
[null,null,551,"осигурителни вноски от работодатели за Държавното обществено осигуряване (ДОО)",null,{"$f":"G1326+H1326+I1326+J1326","v":0},0,0,0,null,""]
[null,null,{"$f":"C1326+1","v":552},"осигурителни вноски от работодатели за Учителския пенсионен фонд (УПФ)",null,0,0,0,0,null,""]
[null,null,558,"вноски по чл. 4б и 4в от КСО за сметка на осигурителя",null,{"$f":"G1328+H1328+I1328+J1328","v":0},0,0,0,0,""]
[null,null,560,"здравно-осигурителни вноски от работодатели",null,0,0,0,0,null,""]
[null,null,580,"вноски за допълнително задължително осигуряване от работодатели",null,0,0,0,0,null,""]
[null,null,588,"коректив на вноски за ДЗПО за сумите по чл. 4б и 4в от КСО за сметка на осигурителя",null,{"$f":"G1331+H1331+I1331+J1331","v":0},0,0,0,0,""]
[5,null,590,"задължителни вноски за чуждестранни пенсионни фондове и  схеми за сметка на осигурителя",null,0,null,null,null,null,""]
[10,800,"Вноски за доброволно осигуряване ",null,null,0,null,null,null,null,""]
[15,1000,"Издръжка",null,{"$f":"SUM(E1335:E1351)","v":362645},362645,362645,0,0,0,1]
[35,null,1011,"Храна",null,{"$f":"G1335+H1335+I1335+J1335","v":0},null,null,null,null,""]
[40,null,1012,"Медикаменти",null,0,null,null,null,null,""]
[45,null,1013,"Постелен инвентар и облекло",null,0,null,null,null,null,""]
[50,null,1014,"Учебни и научно-изследователски разходи и книги за библиотеките",null,0,null,null,null,null,""]
[55,null,1015,"материали",null,0,null,null,null,null,""]
[60,null,1016,"вода, горива и енергия",null,0,null,null,null,null,""]
[65,null,1020,"разходи за външни услуги",362645,362645,362645,0,0,0,1]
[70,null,1030,"Текущ ремонт",null,0,null,null,null,null,""]
[75,null,1051,"командировки в страната",null,0,null,null,null,null,""]
[80,null,1052,"краткосрочни командировки в чужбина",null,0,null,null,null,null,""]
[80,null,1053,"дългосрочни командировки в чужбина",null,0,null,null,null,null,""]
[85,null,1062,"разходи за застраховки",null,0,null,null,null,null,""]
[90,null,1063,"такса ангажимент по заеми",null,0,null,null,null,null,""]
[90,null,1069,"други финансови услуги",null,0,null,null,null,null,""]
[115,null,1091,"други разходи за СБКО",null,0,null,null,null,null,""]
[125,null,1092,"разходи за договорни санкции и неустойки, съдебни обезщетения и разноски",null,0,null,null,null,null,""]
[130,null,1098,"други разходи, некласифицирани в другите параграфи и подпараграфи",null,0,null,null,null,null,""]
[135,1900,"Платени данъци, такси и административни санкции",null,{"$f":"SUM(E1353:E1355)","v":0},0,0,0,0,0,""]
[140,null,1901,"платени държавни данъци, такси, наказателни лихви и административни санкции",null,{"$f":"G1353+H1353+I1353+J1353","v":0},null,null,null,null,""]
[145,null,1981,"платени общински данъци, такси, наказателни лихви и административни санкции",null,{"$f":"G1354+H1354+I1354+J1354","v":0},null,null,null,null,""]
[150,null,1991,"платени данъци, такси, наказателни лихви и административни санкции в чужбина",null,{"$f":"G1355+H1355+I1355+J1355","v":0},null,null,null,null,""]
[155,2100,"Разходи за лихви по емисии на държавни (общински) ценни книжа",null,{"$f":"SUM(E1357:E1361)","v":0},0,0,0,0,0,""]
[160,null,2110,"лихви по държавни (общински) ценни книжа",null,{"$f":"G1357+H1357+I1357+J1357","v":0},null,null,null,null,""]
[165,null,2120,"отстъпки по държавни (общински) ценни книжа",null,{"$f":"G1358+H1358+I1358+J1358","v":0},null,null,null,null,""]
[175,null,2125,"лихви и отстъпки по целеви емисии на държавни ценни книжа",null,{"$f":"G1359+H1359+I1359+J1359","v":0},null,null,0,null,""]
[180,null,2140,"лихви по държавни ценни книжа, емитирани за структурната реформа ",null,{"$f":"G1360+H1360+I1360+J1360","v":0},null,null,0,null,""]
[185,null,2190,"премии над номинала от емисии на държавни (общински) ценни книжа (-)",null,{"$f":"G1361+H1361+I1361+J1361","v":0},null,null,0,null,""]
[190,2200,"Разходи за лихви по заеми от страната",null,{"$f":"SUM(E1363:E1364)","v":0},0,0,0,0,0,""]
[200,null,2221,"Разходи за лихви по заеми от банки в страната",null,{"$f":"G1363+H1363+I1363+J1363","v":0},null,null,null,null,""]
[200,null,2224,"Разходи за лихви по други заеми от страната",null,0,null,null,null,null,""]
[205,2500,"Разходи за лихви по заеми от други държави",null,null,0,null,null,null,null,""]
[210,2600,"Разходи за лихви по заеми от международни организации и институции",null,null,0,null,null,null,null,""]
[215,2700,"Разходи за лихви по заеми от банки и други финансови институции от чужбина",null,null,0,null,null,null,null,""]
[220,2800,"Разходи за лихви и отстъпки по облигации, емитирани и търгувани на международните капиталови пазари",null,null,0,null,null,null,null,""]
[225,2900,"Други разходи за лихви",null,{"$f":"SUM(E1370:E1377)","v":0},0,0,0,0,0,""]
[230,null,2910,"Платени лихви по финансов лизинг и търговски кредит",null,{"$f":"G1370+H1370+I1370+J1370","v":0},null,null,null,null,""]
[245,null,2920,"Платени лихви по активирани гаранции по заеми от  банки в страната",null,{"$f":"G1371+H1371+I1371+J1371","v":0},null,null,null,null,""]
[220,null,2969,"Платени лихви по активирани гаранции по заеми от международни организации и институции",null,0,null,null,null,null,""]
[225,null,2970,"Платени лихви по активирани гаранции по заеми от банки и финансови институции от чужбина",null,0,null,null,null,null,""]
[230,null,2989,"Възстановени суми по платени лихви по активирани гаранции (-)",null,0,null,null,null,null,""]
[235,null,2990,"Платени лихви по заеми, предоставени от централния бюджет и бюджетни организации",null,{"$f":"G1375+H1375+I1375+J1375","v":0},null,null,null,null,""]
[240,null,2991,"Други разходи за лихви към  местни лица",null,0,null,null,null,null,""]
[245,null,2992,"Други разходи за лихви към чуждестранни лица",null,0,null,null,null,null,""]
[250,3300,"Вноска в бюджета на Европейския съюз",null,{"$f":"SUM(E1379:E1384)","v":0},0,0,0,0,0,""]
[255,null,3301,"ресурс на база брутен национален доход",null,{"$f":"G1379+H1379+I1379+J1379","v":0},null,null,0,0,""]
[265,null,3302,"ресурс на база данък върху добавената стойност",null,0,null,null,0,0,""]
[270,null,3303,"корекция за Обединеното кралство",null,0,null,null,0,0,""]
[290,null,3304,"традиционни собствени ресурси - мита",null,0,null,null,0,0,""]
[320,null,3305,"традиционни собствени ресурси - такси върху производството на захар и изоглюкоза",null,0,null,null,0,0,""]
[330,null,3306,"участие във финансирането на брутното намаление за Нидерландия, Швеция, Дания и Австрия",null,0,null,null,0,0,""]
[350,3900,"Здравно-осигурителни плащания",null,null,0,null,null,null,null,{"$f":"(IF($E1385<>0,$K$2,IF($F1385<>0,$K$2,IF($G1385<>0,$K$2,IF($H1385<>0,$K$2,IF($I1385<>0,$K$2,IF($J1385<>0,$K$2,\"\")))))))","v":""}]
[355,4000,"Стипендии",null,null,0,null,null,null,null,""]
[375,4100,"Пенсии",null,null,0,null,null,null,null,""]
[375,4200,"Текущи трансфери, обезщетения и помощи за домакинствата",null,{"$f":"SUM(E1389:E1394)","v":0},0,0,0,0,0,""]
[380,null,4201,"обезщетения и помощи по социалното осигуряване",null,{"$f":"G1389+H1389+I1389+J1389","v":0},null,null,null,null,""]
[385,null,4202,"обезщетения и помощи по социалното подпомагане",null,0,null,null,null,null,""]
[390,null,4214,"обезщетения и помощи по решение на общинския съвет",null,0,null,null,null,null,""]
[390,null,4217,"текущи трансфери за домакинства от средства на Европейския съюз",null,0,null,null,null,null,""]
[395,null,4218,"текущи трансфери за домакинства по други международни програми и споразумения",null,0,null,null,null,null,""]
[397,null,4219,"други текущи трансфери за домакинствата",null,0,null,null,null,null,""]
[398,4300,"Субсидии и други текущи трансфери за нефинансови предприятия ",null,{"$f":"SUM(E1396:E1398)","v":0},0,0,0,0,0,""]
[399,null,4301,"за текуща дейност",null,{"$f":"G1396+H1396+I1396+J1396","v":0},null,null,null,null,""]
[400,null,4302,"за осъществяване на болнична помощ ",null,0,null,null,null,null,""]
[401,null,4309,"други субсидии и плащания",null,0,null,null,null,null,""]
[402,4400,"Субсидии и други текущи трансфери за финансови институции",null,null,0,null,null,null,null,""]
[404,4500,"Субсидии и други текущи трансфери за юридически лица с нестопанска цел",null,null,0,null,null,null,null,""]
[404,4600,"Разходи за членски внос и участие в нетърговски организации и дейности",null,null,0,null,null,null,null,""]
[440,4900,"Предоставени текущи и капиталови трансфери за чужбина",null,{"$f":"+E1403+E1404","v":0},0,0,0,0,0,""]
[450,null,4901,"текущи трансфери за чужбина",null,{"$f":"G1403+H1403+I1403+J1403","v":0},null,null,null,null,""]
[495,null,4902,"капиталови трансфери за чужбина",null,{"$f":"G1404+H1404+I1404+J1404","v":0},null,null,null,null,""]
[500,5100,"Основен ремонт на дълготрайни материални активи",null,null,{"$f":"G1405+H1405+I1405+J1405","v":0},null,null,null,null,""]
[505,5200,"Придобиване на дълготрайни материални активи",null,{"$f":"SUM(E1407:E1413)","v":0},0,0,0,0,0,""]
[510,null,5201,"придобиване на компютри и хардуер",null,{"$f":"G1407+H1407+I1407+J1407","v":0},null,null,null,null,""]
[515,null,5202,"придобиване на сгради",null,0,null,null,null,null,""]
[520,null,5203,"придобиване на друго оборудване, машини и съоръжения",null,0,null,null,null,null,""]
[525,null,5204,"придобиване на транспортни средства",null,0,null,null,null,null,""]
[635,null,5205,"придобиване на стопански инвентар",null,0,null,null,null,null,""]
[640,null,5206,"изграждане на инфраструктурни обекти",null,0,null,null,null,null,""]
[645,null,5219,"придобиване на други ДМА",null,0,null,null,null,null,""]
[650,5300,"Придобиване на нематериални дълготрайни активи",null,{"$f":"SUM(E1415:E1416)","v":0},0,0,0,0,0,""]
[655,null,5301,"придобиване на програмни продукти и лицензи за програмни продукти",null,{"$f":"G1415+H1415+I1415+J1415","v":0},null,null,null,null,""]
[665,null,5309,"придобиване на други нематериални дълготрайни активи",null,{"$f":"G1416+H1416+I1416+J1416","v":0},null,null,null,null,""]
[675,5400,"Придобиване на земя",null,null,{"$f":"G1417+H1417+I1417+J1417","v":0},null,null,null,null,""]
[685,5500,"Капиталови трансфери",null,{"$f":"SUM(E1419:E1422)","v":0},0,0,0,0,0,""]
[690,null,5501,"капиталови трансфери за нефинансови предприятия",null,{"$f":"G1419+H1419+I1419+J1419","v":0},null,null,null,null,""]
[695,null,5502,"капиталови трансфери за финансови институции",null,{"$f":"G1420+H1420+I1420+J1420","v":0},null,null,null,null,""]
[700,null,5503,"капиталови трансфери за организации с нестопанска цел",null,{"$f":"G1421+H1421+I1421+J1421","v":0},null,null,null,null,""]
[710,null,5504,"капиталови трансфери за домакинствата",null,{"$f":"G1422+H1422+I1422+J1422","v":0},null,null,null,null,""]
[715,5700,"Прираст на държавния резерв и изкупуване на земеделска продукция (включва и § 40-71)",null,{"$f":"SUM(E1424:E1426)","v":0},0,0,0,0,0,""]
[720,null,5701,"плащания за попълване на държавния резерв",null,{"$f":"G1424+H1424+I1424+J1424","v":0},null,null,null,null,""]
[725,null,5702,"плащания за изкупуване на земеделска продукция",null,{"$f":"G1425+H1425+I1425+J1425","v":0},null,null,null,null,""]
[730,null,4071,"постъпления от продажба на държавния резерв (-)",null,{"$f":"G1426+H1426+I1426+J1426","v":0},null,null,null,null,""]
[735,null,null,null,null,null,null,null,null,null,""]
[740,98,"Резерв за непредвидени и неотложни разходи",null,null,{"$f":"G1428+H1428+I1428+J1428","v":0},0,0,0,0,""]
[745,null,null,null,null,null,null,null,null,null,""]
[750,null,null,null,null,null,null,null,null,null,""]
[755,null,null,null,null,null,null,null,null,null,""]
[760,null,"99-99",{"$f":"+B1432","v":0},{"$f":"SUM(E1316,E1319,E1325,E1333,E1334,E1352,E1356,E1362,E1365,E1366,E1367,E1368,E1369,E1378,E1385,E1386,E1387,E1388,E1395,E1399,E1400,E1401,E1402,E1405,E1406,E1414,E1417,E1418,E1423)+E1428","v":362645},362645,362645,0,0,0,1,{"$f":"LEFT(C1313,1)","v":"2"}]
[765,null,null,null,null,null,null,null,null,null,{"$f":"K1432","v":1}]
[775,null,null,null,null,null,null,null,null,null,{"$f":"K1432","v":1}]
[780,null,null,null,null,null,null,null,null,null,{"$f":"(IF(SUM(K1446:K1467)<>0,$K$2,\"\"))","v":""}]
[785,{"$f":"$B$7","v":"ОТЧЕТНИ ДАННИ ПО ЕБК ЗА ИЗПЪЛНЕНИЕТО НА БЮДЖЕТА"},null,null,null,null,null,null,null,null,{"$f":"(IF(SUM(K1446:K1467)<>0,$K$2,\"\"))","v":""}]
[790,null,null,null,"за периода от ","до",null,null,null,null,{"$f":"(IF(SUM(K1446:K1467)<>0,$K$2,\"\"))","v":""}]
[795,{"$f":"$B$9","v":"ОБЛАСТНА АДМИНИСТРАЦИЯ ПАЗАРДЖИК"},null,null,{"$f":"$E$9","v":"2017-01-01"},{"$f":"$F$9","v":"2017-12-31"},null,null,null,null,{"$f":"(IF(SUM(K1446:K1467)<>0,$K$2,\"\"))","v":""}]
[805,{"$f":"$B$10","v":"                                                            (наименование на разпоредителя с бюджет)"},null,null,null,null,null,null,null,null,{"$f":"(IF(SUM(K1446:K1467)<>0,$K$2,\"\"))","v":""}]
[810,null,null,null,null,null,null,null,null,null,{"$f":"(IF(SUM(K1446:K1467)<>0,$K$2,\"\"))","v":""}]
[815,{"$f":"$B$12","v":"Министерски съвет "},null,null,"       код по ЕБК:",{"$f":"$F$12","v":"0300"},null,null,null,null,{"$f":"(IF(SUM(K1446:K1467)<>0,$K$2,\"\"))","v":""}]
[525,{"$f":"$B$13","v":"                                             (наименование на първостепенния разпоредител с бюджет)"},null,null,null,null,null,null,null,null,{"$f":"(IF(SUM(K1446:K1467)<>0,$K$2,\"\"))","v":""}]
[820,null,null,"               ФИНАНСОВО-ПРАВНА ФОРМА",{"$f":"$E$15","v":0},{"$f":"$F$15","v":"БЮДЖЕТ"},null,null,null,null,{"$f":"(IF(SUM(K1446:K1467)<>0,$K$2,\"\"))","v":""}]
[821,null,null,"Натурални показатели за дейността",null,"(в лева)",null,null,null,null,{"$f":"(IF(SUM(K1446:K1467)<>0,$K$2,\"\"))","v":""}]
[822,"МЯРКА","Код 9 8","  О б щ и   н а т у р а л н и   п о к а з а т е л и","    П л а н","    О т ч е т ",null,null,null,null,{"$f":"(IF(SUM(K1446:K1467)<>0,$K$2,\"\"))","v":""}]
[823,null," 9 8 0 1","Щ а т н и   б р о й к и",{"$f":"E1447+E1448","v":0},{"$f":"F1447+F1448","v":0},null,null,null,null,{"$f":"(IF($E1446<>0,$K$2,IF($F1446<>0,$K$2,\"\")))","v":""}]
[825,null," 9 8 1 1","в т.ч.: по трудови правоотношения",null,null,null,null,null,null,""]
[null,null," 9 8 1 2","           по служебни правоотношения",null,null,null,null,null,null,""]
[null,null," 9 8 0 2","Средногодишни щатни бройки",{"$f":"E1450+E1451","v":0},{"$f":"F1450+F1451","v":0},null,null,null,null,""]
[null,null," 9 8 2 1","в т.ч.: по трудови правоотношения",null,null,null,null,null,null,""]
[null,null," 9 8 2 2","         по служебни правоотношения",null,null,null,null,null,null,""]
[null,null," 9 8 0 3","Средна годишна брутна заплата",null,null,null,null,null,null,""]
[null,null," 9 8 3 1"," в т.ч.:   по трудови правоотношения",null,null,null,null,null,null,""]
[null,null," 9 8 3 2","            по служебни правоотношения",null,null,null,null,null,null,""]
[null,null," 9 8 0 4","Брой на моторни превозни средства",null,null,null,null,null,null,""]
[null,null,"9 8 0 5","- в т.ч. - леки автомобили",null,null,null,null,null,null,""]
[null,null,"9 8 0 6","             - санитарни линейки",null,null,null,null,null,null,""]
[null,null," 9 8 0 7","Брой ученици, финансирани по единни разходни стандарти",null,null,null,null,null,null,""]
[null,null," 9 8 0 8","Средна годишна брутна заплата за дейности, финансирани по единни разходни стандарти",null,null,null,null,null,null,""]
[null,null," 9 8 0 9","Щатни бройки за дейности, финансирани по единни разходни стандарти",null,null,null,null,null,null,""]
[null,null," 9 8 1 0","Средногодишни щатни бройки за дейности, финансирани по единни разходни стандарти",null,null,null,null,null,null,""]
[null,null,"9 8 1 3","Средногодишен приравнен брой учащи във ВУ, финансирани по норматив за издръжка на обучението",null,null,null,null,null,null,""]
[905,null,"9 8 1 4","Брой леглодни в студентски общежития",null,null,null,null,null,null,""]
[906,null,"9 8 1 5","Брой хранодни в студентски стол",null,null,null,null,null,null,""]
[907,null,"9 8 1 7","Болнични легла",null,null,null,null,null,null,""]
[910,null,"9 8 1 8","Обем радиопрограма /часове/",null,null,null,null,null,null,""]
[911,null,"9 8 1 9","Обем телевизионна програма /часове/",null,null,null,null,null,null,""]
[null,"ЗАБЕЛЕЖКА:",null,null,null,null,null,null,null,null,{"$f":"K1432","v":1}]

{"sheet":"INF","index":4,"n_rows":191,"n_cols":19,"rows_kept":191,"cut":false,"hidden":true,"merged":[[13,8,13,10],[15,8,15,10],[18,8,18,10],[69,9,69,10],[47,9,47,10],[29,9,29,10],[78,9,78,10],[79,9,79,10],[80,9,80,10],[81,9,81,10],[82,9,82,10],[65,9,65,10],[75,9,75,10],[32,9,32,10],[38,9,38,10],[46,9,46,10],[119,9,119,10],[98,9,98,10],[99,9,99,10],[100,9,100,10],[114,9,114,10],[115,9,115,10],[101,9,101,10],[108,9,108,10],[112,9,112,10],[113,9,113,10],[118,9,118,10],[182,8,182,10],[127,9,127,10],[130,9,130,10],[131,9,131,10],[136,9,136,10],[141,9,141,10],[149,8,149,10],[151,8,151,10],[154,8,154,10]]}
["step",173]
["gotocell","c1657"]
["nextcell","b1471"]
["INF copyrf","i12:s182"]
["dejKN"]
[]
[]
[null,"d1314"]
[]
[]
["Step:"]
[1,null,null,null,null,null,null,null,null,null,null,null,null,null,null,null,null,{"$f":"(IF($E146<>0,$K$2,IF($F146<>0,$K$2,IF($G146<>0,$K$2,IF($H146<>0,$K$2,IF($I146<>0,$K$2,IF($J146<>0,$K$2,\"\")))))))","v":0}]
[2,null,null,null,null,null,null,null,null,null,null,null,null,null,null,null,null,{"$f":"(IF($E146<>0,$K$2,IF($F146<>0,$K$2,IF($G146<>0,$K$2,IF($H146<>0,$K$2,IF($I146<>0,$K$2,IF($J146<>0,$K$2,\"\")))))))","v":0}]
[3,null,null,null,null,null,null,null,{"$f":"$B$7","v":0},null,null,null,null,null,null,null,null,{"$f":"(IF($E146<>0,$K$2,IF($F146<>0,$K$2,IF($G146<>0,$K$2,IF($H146<>0,$K$2,IF($I146<>0,$K$2,IF($J146<>0,$K$2,\"\")))))))","v":0}]
[4,null,null,null,null,null,null,null,null,null,null,"за периода от ","до",null,"                 II.1. РАЗХОДИ ПО ДЕЙНОСТИ",null,null,{"$f":"(IF($E146<>0,$K$2,IF($F146<>0,$K$2,IF($G146<>0,$K$2,IF($H146<>0,$K$2,IF($I146<>0,$K$2,IF($J146<>0,$K$2,\"\")))))))","v":0}]
[5,null,null,null,null,null,null,null,{"$f":"$B$9","v":0},null,null,{"$f":"$E$9","v":"00:00:00"},{"$f":"$F$9","v":"00:00:00"},null,null,null,null,{"$f":"(IF($E146<>0,$K$2,IF($F146<>0,$K$2,IF($G146<>0,$K$2,IF($H146<>0,$K$2,IF($I146<>0,$K$2,IF($J146<>0,$K$2,\"\")))))))","v":0}]
[6,null,null,null,null,null,null,null,{"$f":"$B$10","v":0},null,null,null,null,null,null,null,null,{"$f":"(IF($E146<>0,$K$2,IF($F146<>0,$K$2,IF($G146<>0,$K$2,IF($H146<>0,$K$2,IF($I146<>0,$K$2,IF($J146<>0,$K$2,\"\")))))))","v":0}]
[7,null,null,null,null,null,null,null,null,null,null,null,null,null,null,null,null,{"$f":"(IF($E146<>0,$K$2,IF($F146<>0,$K$2,IF($G146<>0,$K$2,IF($H146<>0,$K$2,IF($I146<>0,$K$2,IF($J146<>0,$K$2,\"\")))))))","v":0}]
[8,null,null,null,null,null,null,null,{"$f":"$B$12","v":0},null,null,"       код по ЕБК:",{"$f":"$F$12","v":0},null,null,null,null,{"$f":"(IF($E146<>0,$K$2,IF($F146<>0,$K$2,IF($G146<>0,$K$2,IF($H146<>0,$K$2,IF($I146<>0,$K$2,IF($J146<>0,$K$2,\"\")))))))","v":0}]
[9,null,null,null,null,null,null,null,{"$f":"$B$13","v":0},null,null,null,null,null,null,null,null,{"$f":"(IF($E146<>0,$K$2,IF($F146<>0,$K$2,IF($G146<>0,$K$2,IF($H146<>0,$K$2,IF($I146<>0,$K$2,IF($J146<>0,$K$2,\"\")))))))","v":0}]
[10,null,null,null,null,null,null,null,null,null,"ФИНАНСОВО-ПРАВНА ФОРМА",{"$f":"$E$15","v":0},{"$f":"$F$15","v":0},null,null,null,null,{"$f":"(IF($E146<>0,$K$2,IF($F146<>0,$K$2,IF($G146<>0,$K$2,IF($H146<>0,$K$2,IF($I146<>0,$K$2,IF($J146<>0,$K$2,\"\")))))))","v":0}]
[11,null,null,null,null,null,null,null,null,null,null,null,null,null,null,null,"(в лева)",{"$f":"(IF($E146<>0,$K$2,IF($F146<>0,$K$2,IF($G146<>0,$K$2,IF($H146<>0,$K$2,IF($I146<>0,$K$2,IF($J146<>0,$K$2,\"\")))))))","v":0}]
[12,null,null,null,null,null,null,null,null,null,"II.1. РАЗХОДИ ПО ДЕЙНОСТИ","Уточнен план","                                                                                                                              О Т Ч Е Т Н И   Д А Н Н И",null,null,null,null,{"$f":"(IF($E146<>0,$K$2,IF($F146<>0,$K$2,IF($G146<>0,$K$2,IF($H146<>0,$K$2,IF($I146<>0,$K$2,IF($J146<>0,$K$2,\"\")))))))","v":0}]
[13,null,null,null,null,null,null,null,"§§","под-§§","НАИМЕНОВАНИЯ НА ПАРАГРАФИТЕ И ПОДПАРАГРАФИТЕ",{"$f":"$C$3","v":0},"ОБЩО","левови\n сметки и СЕБРА ","валутни \nсметки ","операции в брой (в левове и валута)","операции приравнени на касов поток",{"$f":"(IF($E146<>0,$K$2,IF($F146<>0,$K$2,IF($G146<>0,$K$2,IF($H146<>0,$K$2,IF($I146<>0,$K$2,IF($J146<>0,$K$2,\"\")))))))","v":0}]
[14,null,null,null,null,null,null,null,null,null," 02 ¦","(1)","(2)","(3)","(4)","(5)","(6)",{"$f":"(IF($E146<>0,$K$2,IF($F146<>0,$K$2,IF($G146<>0,$K$2,IF($H146<>0,$K$2,IF($I146<>0,$K$2,IF($J146<>0,$K$2,\"\")))))))","v":0}]
[15,null,null,null,null,null,null,null,null,{"$f":"VLOOKUP(K26,OP_LIST2,2,FALSE)","v":0},"ИЗБЕРЕТЕ ОПЕРАТИВНА ПРОГРАМА ",null,null,null,null,null,null,{"$f":"(IF($E146<>0,$K$2,IF($F146<>0,$K$2,IF($G146<>0,$K$2,IF($H146<>0,$K$2,IF($I146<>0,$K$2,IF($J146<>0,$K$2,\"\")))))))","v":0}]
[16,null,null,null,null,null,null,null,null,{"$f":"VLOOKUP(K28,EBK_DEIN2,2,FALSE)","v":0},"<------          ДЕЙНОСТ    -  код  по  ЕБК",null,null,null,null,null,null,{"$f":"(IF($E146<>0,$K$2,IF($F146<>0,$K$2,IF($G146<>0,$K$2,IF($H146<>0,$K$2,IF($I146<>0,$K$2,IF($J146<>0,$K$2,\"\")))))))","v":0}]
[17,null,null,null,null,null,null,null,null,{"$f":"+J27","v":0},"ИЗБЕРЕТЕ ДЕЙНОСТ",null,null,null,null,null,null,{"$f":"(IF($E146<>0,$K$2,IF($F146<>0,$K$2,IF($G146<>0,$K$2,IF($H146<>0,$K$2,IF($I146<>0,$K$2,IF($J146<>0,$K$2,\"\")))))))","v":0}]
[18,null,null,null,null,null,null,null,null,null,"(наименование на дейността)",null,null,null,null,null,null,{"$f":"(IF($E146<>0,$K$2,IF($F146<>0,$K$2,IF($G146<>0,$K$2,IF($H146<>0,$K$2,IF($I146<>0,$K$2,IF($J146<>0,$K$2,\"\")))))))","v":0}]
[19,null,null,null,null,null,null,null,100,"Заплати и възнаграждения за персонала, нает по трудови и служебни правоотношения",null,{"$f":"SUM(L31:L32)","v":0},0,0,0,0,0,{"$f":"(IF($E30<>0,$K$2,IF($F30<>0,$K$2,IF($G30<>0,$K$2,IF($H30<>0,$K$2,IF($I30<>0,$K$2,IF($J30<>0,$K$2,\"\")))))))","v":0}]
[20,null,null,null,null,null,null,null,null,101,"заплати и възнаграждения на персонала нает по трудови правоотношения",null,{"$f":"N31+O31+P31+Q31","v":0},null,null,null,null,{"$f":"(IF($E31<>0,$K$2,IF($F31<>0,$K$2,IF($G31<>0,$K$2,IF($H31<>0,$K$2,IF($I31<>0,$K$2,IF($J31<>0,$K$2,\"\")))))))","v":0}]
[21,null,null,null,null,null,null,null,null,102,"заплати и възнаграждения на персонала нает по служебни правоотношения",null,{"$f":"N32+O32+P32+Q32","v":0},null,null,null,null,0]
[22,null,null,null,null,null,null,null,200,"Други възнаграждения и плащания за персонала",null,{"$f":"SUM(L34:L38)","v":0},0,0,0,0,0,0]
[23,null,null,null,null,null,null,null,null,201,"за нещатен персонал нает по трудови правоотношения ",null,{"$f":"N34+O34+P34+Q34","v":0},null,null,null,null,0]
[24,null,null,null,null,null,null,null,null,202,"за персонала по извънтрудови правоотношения",null,{"$f":"N35+O35+P35+Q35","v":0},null,null,null,null,0]
[25,null,null,null,null,null,null,null,null,205,"изплатени суми от СБКО за облекло и други на персонала, с характер на възнаграждение",null,{"$f":"N36+O36+P36+Q36","v":0},null,null,null,null,0]
[26,null,null,null,null,null,null,null,null,208,"обезщетения за персонала, с характер на възнаграждение",null,{"$f":"N37+O37+P37+Q37","v":0},null,null,null,null,0]
[27,null,null,null,null,null,null,null,null,209,"другиплащания и възнаграждения",null,{"$f":"N38+O38+P38+Q38","v":0},null,null,null,null,0]
[28,null,null,null,null,null,null,null,500,"Задължителни осигурителни вноски от работодатели",null,{"$f":"SUM(L40:L46)","v":0},0,0,0,0,0,0]
[29,null,null,null,null,null,null,null,null,551,"осигурителни вноски от работодатели за Държавното обществено осигуряване (ДОО)",null,{"$f":"N40+O40+P40+Q40","v":0},0,0,0,null,0]
[30,null,null,null,null,null,null,null,null,{"$f":"J40+1","v":552},"осигурителни вноски от работодатели за Учителския пенсионен фонд (УПФ)",null,0,0,0,0,null,0]
[31,null,null,null,null,null,null,null,null,558,"вноски по чл. 4б и 4в от КСО за сметка на осигурителя",null,{"$f":"N42+O42+P42+Q42","v":0},0,0,0,0,0]
[32,null,null,null,null,null,null,null,null,560,"здравно-осигурителни вноски от работодатели",null,0,0,0,0,null,0]
[33,null,null,null,null,null,null,null,null,580,"вноски за допълнително задължително осигуряване от работодатели",null,0,0,0,0,null,0]
[34,null,null,null,null,null,null,null,null,588,"коректив на вноски за ДЗПО за сумите по чл. 4б и 4в от КСО за сметка на осигурителя",null,{"$f":"N45+O45+P45+Q45","v":0},0,0,0,0,0]
[35,null,null,null,null,null,null,null,null,590,"задължителни вноски за чуждестранни пенсионни фондове и  схеми за сметка на осигурителя",null,0,null,null,null,null,0]
[36,null,null,null,null,null,null,null,800,"Вноски за доброволно осигуряване ",null,null,0,null,null,null,null,0]
[37,null,null,null,null,null,null,null,1000,"Издръжка",null,{"$f":"SUM(L49:L65)","v":0},0,0,0,0,0,0]
[38,null,null,null,null,null,null,null,null,1011,"Храна",null,{"$f":"N49+O49+P49+Q49","v":0},null,null,null,null,0]
[39,null,null,null,null,null,null,null,null,1012,"Медикаменти",null,0,null,null,null,null,0]
[40,null,null,null,null,null,null,null,null,1013,"Постелен инвентар и облекло",null,0,null,null,null,null,0]
[41,null,null,null,null,null,null,null,null,1014,"Учебни и научно-изследователски разходи и книги за библиотеките",null,0,null,null,null,null,0]
[42,null,null,null,null,null,null,null,null,1015,"материали",null,0,null,null,null,null,0]
[43,null,null,null,null,null,null,null,null,1016,"вода, горива и енергия",null,0,null,null,null,null,0]
[44,null,null,null,null,null,null,null,null,1020,"разходи за външни услуги",null,0,null,null,null,null,0]
[45,null,null,null,null,null,null,null,null,1030,"Текущ ремонт",null,0,null,null,null,null,0]
[46,null,null,null,null,null,null,null,null,1051,"командировки в страната",null,0,null,null,null,null,0]
[47,null,null,null,null,null,null,null,null,1052,"краткосрочни командировки в чужбина",null,0,null,null,null,null,0]
[48,null,null,null,null,null,null,null,null,1053,"дългосрочни командировки в чужбина",null,0,null,null,null,null,0]
[49,null,null,null,null,null,null,null,null,1062,"разходи за застраховки",null,0,null,null,null,null,0]
[50,null,null,null,null,null,null,null,null,1063,"такса ангажимент по заеми",null,0,null,null,null,null,0]
[51,null,null,null,null,null,null,null,null,1069,"други финансови услуги",null,0,null,null,null,null,0]
[52,null,null,null,null,null,null,null,null,1091,"други разходи за СБКО",null,0,null,null,null,null,0]
[53,null,null,null,null,null,null,null,null,1092,"разходи за договорни санкции и неустойки, съдебни обезщетения и разноски",null,0,null,null,null,null,0]
[54,null,null,null,null,null,null,null,null,1098,"други разходи, некласифицирани в другите параграфи и подпараграфи",null,0,null,null,null,null,0]
[55,null,null,null,null,null,null,null,1900,"Платени данъци, такси и административни санкции",null,{"$f":"SUM(L67:L69)","v":0},0,0,0,0,0,0]
[56,null,null,null,null,null,null,null,null,1901,"платени държавни данъци, такси, наказателни лихви и административни санкции",null,{"$f":"N67+O67+P67+Q67","v":0},null,null,null,null,0]
[57,null,null,null,null,null,null,null,null,1981,"платени общински данъци, такси, наказателни лихви и административни санкции",null,{"$f":"N68+O68+P68+Q68","v":0},null,null,null,null,0]
[58,null,null,null,null,null,null,null,null,1991,"платени данъци, такси, наказателни лихви и административни санкции в чужбина",null,{"$f":"N69+O69+P69+Q69","v":0},null,null,null,null,0]
[59,null,null,null,null,null,null,null,2100,"Разходи за лихви по емисии на държавни (общински) ценни книжа",null,{"$f":"SUM(L71:L75)","v":0},0,0,0,0,0,0]
[60,null,null,null,null,null,null,null,null,2110,"лихви по държавни (общински) ценни книжа",null,{"$f":"N71+O71+P71+Q71","v":0},null,null,null,null,0]
[61,null,null,null,null,null,null,null,null,2120,"отстъпки по държавни (общински) ценни книжа",null,{"$f":"N72+O72+P72+Q72","v":0},null,null,null,null,0]
[62,null,null,null,null,null,null,null,null,2125,"лихви и отстъпки по целеви емисии на държавни ценни книжа",null,{"$f":"N73+O73+P73+Q73","v":0},null,null,0,null,0]
[63,null,null,null,null,null,null,null,null,2140,"лихви по държавни ценни книжа, емитирани за структурната реформа ",null,{"$f":"N74+O74+P74+Q74","v":0},null,null,0,null,0]
[64,null,null,null,null,null,null,null,null,2190,"премии над номинала от емисии на държавни (общински) ценни книжа (-)",null,{"$f":"N75+O75+P75+Q75","v":0},null,null,0,null,0]
[65,null,null,null,null,null,null,null,2200,"Разходи за лихви по заеми от страната",null,{"$f":"SUM(L77:L78)","v":0},0,0,0,0,0,0]
[66,null,null,null,null,null,null,null,null,2221,"Разходи за лихви по заеми от банки в страната",null,{"$f":"N77+O77+P77+Q77","v":0},null,null,null,null,0]
[67,null,null,null,null,null,null,null,null,2224,"Разходи за лихви по други заеми от страната",null,0,null,null,null,null,0]
[68,null,null,null,null,null,null,null,2500,"Разходи за лихви по заеми от други държави",null,null,0,null,null,null,null,0]
[69,null,null,null,null,null,null,null,2600,"Разходи за лихви по заеми от международни организации и институции",null,null,0,null,null,null,null,0]
[70,null,null,null,null,null,null,null,2700,"Разходи за лихви по заеми от банки и други финансови институции от чужбина",null,null,0,null,null,null,null,0]
[71,null,null,null,null,null,null,null,2800,"Разходи за лихви и отстъпки по облигации, емитирани и търгувани на международните капиталови пазари",null,null,0,null,null,null,null,0]
[72,null,null,null,null,null,null,null,2900,"Други разходи за лихви",null,{"$f":"SUM(L84:L91)","v":0},0,0,0,0,0,0]
[73,null,null,null,null,null,null,null,null,2910,"Платени лихви по финансов лизинг и търговски кредит",null,{"$f":"N84+O84+P84+Q84","v":0},null,null,null,null,0]
[74,null,null,null,null,null,null,null,null,2920,"Платени лихви по активирани гаранции по заеми от  банки в страната",null,{"$f":"N85+O85+P85+Q85","v":0},null,null,null,null,0]
[75,null,null,null,null,null,null,null,null,2969,"Платени лихви по активирани гаранции по заеми от международни организации и институции",null,0,null,null,null,null,0]
[76,null,null,null,null,null,null,null,null,2970,"Платени лихви по активирани гаранции по заеми от банки и финансови институции от чужбина",null,0,null,null,null,null,0]
[77,null,null,null,null,null,null,null,null,2989,"Възстановени суми по платени лихви по активирани гаранции (-)",null,0,null,null,null,null,0]
[78,null,null,null,null,null,null,null,null,2990,"Платени лихви по заеми, предоставени от централния бюджет и бюджетни организации",null,{"$f":"N89+O89+P89+Q89","v":0},null,null,null,null,0]
[79,null,null,null,null,null,null,null,null,2991,"Други разходи за лихви към  местни лица",null,0,null,null,null,null,0]
[80,null,null,null,null,null,null,null,null,2992,"Други разходи за лихви към чуждестранни лица",null,0,null,null,null,null,0]
[81,null,null,null,null,null,null,null,3300,"Вноска в бюджета на Европейския съюз",null,{"$f":"SUM(L93:L98)","v":0},0,0,0,0,0,0]
[82,null,null,null,null,null,null,null,null,3301,"ресурс на база брутен национален доход",null,{"$f":"N93+O93+P93+Q93","v":0},null,null,0,0,0]
[83,null,null,null,null,null,null,null,null,3302,"ресурс на база данък върху добавената стойност",null,0,null,null,0,0,0]
[84,null,null,null,null,null,null,null,null,3303,"корекция за Обединеното кралство",null,0,null,null,0,0,0]
[85,null,null,null,null,null,null,null,null,3304,"традиционни собствени ресурси - мита",null,0,null,null,0,0,0]
[86,null,null,null,null,null,null,null,null,3305,"традиционни собствени ресурси - такси върху производството на захар и изоглюкоза",null,0,null,null,0,0,0]
[87,null,null,null,null,null,null,null,null,3306,"участие във финансирането на брутното намаление за Нидерландия, Швеция, Дания и Австрия",null,0,null,null,0,0,0]
[88,null,null,null,null,null,null,null,3900,"Здравно-осигурителни плащания",null,null,0,null,null,null,null,{"$f":"(IF($E99<>0,$K$2,IF($F99<>0,$K$2,IF($G99<>0,$K$2,IF($H99<>0,$K$2,IF($I99<>0,$K$2,IF($J99<>0,$K$2,\"\")))))))","v":0}]
[89,null,null,null,null,null,null,null,4000,"Стипендии",null,null,0,null,null,null,null,0]
[90,null,null,null,null,null,null,null,4100,"Пенсии",null,null,0,null,null,null,null,0]
[91,null,null,null,null,null,null,null,4200,"Текущи трансфери, обезщетения и помощи за домакинствата",null,{"$f":"SUM(L103:L108)","v":0},0,0,0,0,0,0]
[92,null,null,null,null,null,null,null,null,4201,"обезщетения и помощи по социалното осигуряване",null,{"$f":"N103+O103+P103+Q103","v":0},null,null,null,null,0]
[93,null,null,null,null,null,null,null,null,4202,"обезщетения и помощи по социалното подпомагане",null,0,null,null,null,null,0]
[94,null,null,null,null,null,null,null,null,4214,"обезщетения и помощи по решение на общинския съвет",null,0,null,null,null,null,0]
[95,null,null,null,null,null,null,null,null,4217,"текущи трансфери за домакинства от средства на Европейския съюз",null,0,null,null,null,null,0]
[96,null,null,null,null,null,null,null,null,4218,"текущи трансфери за домакинства по други международни програми и споразумения",null,0,null,null,null,null,0]
[97,null,null,null,null,null,null,null,null,4219,"други текущи трансфери за домакинствата",null,0,null,null,null,null,0]
[98,null,null,null,null,null,null,null,4300,"Субсидии и други текущи трансфери за нефинансови предприятия ",null,{"$f":"SUM(L110:L112)","v":0},0,0,0,0,0,0]
[99,null,null,null,null,null,null,null,null,4301,"за текуща дейност",null,{"$f":"N110+O110+P110+Q110","v":0},null,null,null,null,0]
[100,null,null,null,null,null,null,null,null,4302,"за осъществяване на болнична помощ ",null,0,null,null,null,null,0]
[101,null,null,null,null,null,null,null,null,4309,"други субсидии и плащания",null,0,null,null,null,null,0]
[102,null,null,null,null,null,null,null,4400,"Субсидии и други текущи трансфери за финансови институции",null,null,0,null,null,null,null,0]
[103,null,null,null,null,null,null,null,4500,"Субсидии и други текущи трансфери за юридически лица с нестопанска цел",null,null,0,null,null,null,null,0]
[104,null,null,null,null,null,null,null,4600,"Разходи за членски внос и участие в нетърговски организации и дейности",null,null,0,null,null,null,null,0]
[105,null,null,null,null,null,null,null,4900,"Предоставени текущи и капиталови трансфери за чужбина",null,{"$f":"+L117+L118","v":0},0,0,0,0,0,0]
[106,null,null,null,null,null,null,null,null,4901,"текущи трансфери за чужбина",null,{"$f":"N117+O117+P117+Q117","v":0},null,null,null,null,0]
[107,null,null,null,null,null,null,null,null,4902,"капиталови трансфери за чужбина",null,{"$f":"N118+O118+P118+Q118","v":0},null,null,null,null,0]
[108,null,null,null,null,null,null,null,5100,"Основен ремонт на дълготрайни материални активи",null,null,{"$f":"N119+O119+P119+Q119","v":0},null,null,null,null,0]
[109,null,null,null,null,null,null,null,5200,"Придобиване на дълготрайни материални активи",null,{"$f":"SUM(L121:L127)","v":0},0,0,0,0,0,0]
[110,null,null,null,null,null,null,null,null,5201,"придобиване на компютри и хардуер",null,{"$f":"N121+O121+P121+Q121","v":0},null,null,null,null,0]
[111,null,null,null,null,null,null,null,null,5202,"придобиване на сгради",null,0,null,null,null,null,0]
[112,null,null,null,null,null,null,null,null,5203,"придобиване на друго оборудване, машини и съоръжения",null,0,null,null,null,null,0]
[113,null,null,null,null,null,null,null,null,5204,"придобиване на транспортни средства",null,0,null,null,null,null,0]
[114,null,null,null,null,null,null,null,null,5205,"придобиване на стопански инвентар",null,0,null,null,null,null,0]
[115,null,null,null,null,null,null,null,null,5206,"изграждане на инфраструктурни обекти",null,0,null,null,null,null,0]
[116,null,null,null,null,null,null,null,null,5219,"придобиване на други ДМА",null,0,null,null,null,null,0]
[117,null,null,null,null,null,null,null,5300,"Придобиване на нематериални дълготрайни активи",null,{"$f":"SUM(L129:L130)","v":0},0,0,0,0,0,0]
[118,null,null,null,null,null,null,null,null,5301,"придобиване на програмни продукти и лицензи за програмни продукти",null,{"$f":"N129+O129+P129+Q129","v":0},null,null,null,null,0]
[119,null,null,null,null,null,null,null,null,5309,"придобиване на други нематериални дълготрайни активи",null,{"$f":"N130+O130+P130+Q130","v":0},null,null,null,null,0]
[120,null,null,null,null,null,null,null,5400,"Придобиване на земя",null,null,{"$f":"N131+O131+P131+Q131","v":0},null,null,null,null,0]
[121,null,null,null,null,null,null,null,5500,"Капиталови трансфери",null,{"$f":"SUM(L133:L136)","v":0},0,0,0,0,0,0]
[122,null,null,null,null,null,null,null,null,5501,"капиталови трансфери за нефинансови предприятия",null,{"$f":"N133+O133+P133+Q133","v":0},null,null,null,null,0]
[123,null,null,null,null,null,null,null,null,5502,"капиталови трансфери за финансови институции",null,{"$f":"N134+O134+P134+Q134","v":0},null,null,null,null,0]
[124,null,null,null,null,null,null,null,null,5503,"капиталови трансфери за организации с нестопанска цел",null,{"$f":"N135+O135+P135+Q135","v":0},null,null,null,null,0]
[125,null,null,null,null,null,null,null,null,5504,"капиталови трансфери за домакинствата",null,{"$f":"N136+O136+P136+Q136","v":0},null,null,null,null,0]
[126,null,null,null,null,null,null,null,5700,"Прираст на държавния резерв и изкупуване на земеделска продукция (включва и § 40-71)",null,{"$f":"SUM(L138:L140)","v":0},0,0,0,0,0,0]
[127,null,null,null,null,null,null,null,null,5701,"плащания за попълване на държавния резерв",null,{"$f":"N138+O138+P138+Q138","v":0},null,null,null,null,0]
[128,null,null,null,null,null,null,null,null,5702,"плащания за изкупуване на земеделска продукция",null,{"$f":"N139+O139+P139+Q139","v":0},null,null,null,null,0]
[129,null,null,null,null,null,null,null,null,4071,"постъпления от продажба на държавния резерв (-)",null,{"$f":"N140+O140+P140+Q140","v":0},null,null,null,null,0]
[130,null,null,null,null,null,null,null,null,null,null,null,null,null,null,null,null,""]
[131,null,null,null,null,null,null,null,98,"Резерв за непредвидени и неотложни разходи",null,null,{"$f":"N142+O142+P142+Q142","v":0},0,0,0,0,0]
[132,null,null,null,null,null,null,null,null,null,null,null,null,null,null,null,null,""]
[133,null,null,null,null,null,null,null,null,null,null,null,null,null,null,null,null,""]
[134,null,null,null,null,null,null,null,null,null,null,null,null,null,null,null,null,""]
[135,null,null,null,null,null,null,null,null,"99-99",{"$f":"+I146","v":0},{"$f":"SUM(L30,L33,L39,L47,L48,L66,L70,L76,L79,L80,L81,L82,L83,L92,L99,L100,L101,L102,L109,L113,L114,L115,L116,L119,L120,L128,L131,L132,L137)+L142","v":0},0,0,0,0,0,0,{"$f":"LEFT(J27,1)","v":"0"}]
[136,null,null,null,null,null,null,null,null,null,null,null,null,null,null,null,null,{"$f":"R146","v":0}]
[137,null,null,null,null,null,null,null,null,null,null,null,null,null,null,null,null,{"$f":"R146","v":0}]
[138,null,null,null,null,null,null,null,null,null,null,null,null,null,null,null,null,{"$f":"(IF(SUM(R160:R181)<>0,$K$2,\"\"))","v":""}]
[139,null,null,null,null,null,null,null,{"$f":"$B$7","v":0},null,null,null,null,null,null,null,null,{"$f":"(IF(SUM(R160:R181)<>0,$K$2,\"\"))","v":""}]
[140,null,null,null,null,null,null,null,null,null,null,"за периода от ","до",null,null,null,null,{"$f":"(IF(SUM(R160:R181)<>0,$K$2,\"\"))","v":""}]
[141,null,null,null,null,null,null,null,{"$f":"$B$9","v":0},null,null,{"$f":"$E$9","v":"00:00:00"},{"$f":"$F$9","v":"00:00:00"},null,null,null,null,{"$f":"(IF(SUM(R160:R181)<>0,$K$2,\"\"))","v":""}]
[142,null,null,null,null,null,null,null,{"$f":"$B$10","v":0},null,null,null,null,null,null,null,null,{"$f":"(IF(SUM(R160:R181)<>0,$K$2,\"\"))","v":""}]
[143,null,null,null,null,null,null,null,null,null,null,null,null,null,null,null,null,{"$f":"(IF(SUM(R160:R181)<>0,$K$2,\"\"))","v":""}]
[144,null,null,null,null,null,null,null,{"$f":"$B$12","v":0},null,null,"       код по ЕБК:",{"$f":"$F$12","v":0},null,null,null,null,{"$f":"(IF(SUM(R160:R181)<>0,$K$2,\"\"))","v":""}]
[145,null,null,null,null,null,null,null,{"$f":"$B$13","v":0},null,null,null,null,null,null,null,null,{"$f":"(IF(SUM(R160:R181)<>0,$K$2,\"\"))","v":""}]
[146,null,null,null,null,null,null,null,null,null,"               ФИНАНСОВО-ПРАВНА ФОРМА",{"$f":"$E$15","v":0},{"$f":"$F$15","v":0},null,null,null,null,{"$f":"(IF(SUM(R160:R181)<>0,$K$2,\"\"))","v":""}]
[147,null,null,null,null,null,null,null,null,null,"Натурални показатели за дейността",null,"(в лева)",null,null,null,null,{"$f":"(IF(SUM(R160:R181)<>0,$K$2,\"\"))","v":""}]
[148,null,null,null,null,null,null,null,"МЯРКА","Код 9 8","  О б щ и   н а т у р а л н и   п о к а з а т е л и","    П л а н","    О т ч е т ",null,null,null,null,{"$f":"(IF(SUM(R160:R181)<>0,$K$2,\"\"))","v":""}]
[149,null,null,null,null,null,null,null,null," 9 8 0 1","Щ а т н и   б р о й к и",{"$f":"L161+L162","v":0},{"$f":"M161+M162","v":0},null,null,null,null,{"$f":"(IF($E160<>0,$K$2,IF($F160<>0,$K$2,\"\")))","v":""}]
[150,null,null,null,null,null,null,null,null," 9 8 1 1","в т.ч.: по трудови правоотношения",null,null,null,null,null,null,""]
[151,null,null,null,null,null,null,null,null," 9 8 1 2","           по служебни правоотношения",null,null,null,null,null,null,""]
[152,null,null,null,null,null,null,null,null," 9 8 0 2","Средногодишни щатни бройки",{"$f":"L164+L165","v":0},{"$f":"M164+M165","v":0},null,null,null,null,""]
[153,null,null,null,null,null,null,null,null," 9 8 2 1","в т.ч.: по трудови правоотношения",null,null,null,null,null,null,""]
[154,null,null,null,null,null,null,null,null," 9 8 2 2","         по служебни правоотношения",null,null,null,null,null,null,""]
[155,null,null,null,null,null,null,null,null," 9 8 0 3","Средна годишна брутна заплата",null,null,null,null,null,null,""]
[156,null,null,null,null,null,null,null,null," 9 8 3 1"," в т.ч.:   по трудови правоотношения",null,null,null,null,null,null,""]
[157,null,null,null,null,null,null,null,null," 9 8 3 2","            по служебни правоотношения",null,null,null,null,null,null,""]
[158,null,null,null,null,null,null,null,null," 9 8 0 4","Брой на моторни превозни средства",null,null,null,null,null,null,""]
[159,null,null,null,null,null,null,null,null,"9 8 0 5","- в т.ч. - леки автомобили",null,null,null,null,null,null,""]
[160,null,null,null,null,null,null,null,null,"9 8 0 6","             - санитарни линейки",null,null,null,null,null,null,""]
[161,null,null,null,null,null,null,null,null," 9 8 0 7","Брой ученици, финансирани по единни разходни стандарти",null,null,null,null,null,null,""]
[162,null,null,null,null,null,null,null,null," 9 8 0 8","Средна годишна брутна заплата за дейности, финансирани по единни разходни стандарти",null,null,null,null,null,null,""]
[163,null,null,null,null,null,null,null,null," 9 8 0 9","Щатни бройки за дейности, финансирани по единни разходни стандарти",null,null,null,null,null,null,""]
[164,null,null,null,null,null,null,null,null," 9 8 1 0","Средногодишни щатни бройки за дейности, финансирани по единни разходни стандарти",null,null,null,null,null,null,""]
[165,null,null,null,null,null,null,null,null,"9 8 1 3","Средногодишен приравнен брой учащи във ВУ, финансирани по норматив за издръжка на обучението",null,null,null,null,null,null,""]
[166,null,null,null,null,null,null,null,null,"9 8 1 4","Брой леглодни в студентски общежития",null,null,null,null,null,null,""]
[167,null,null,null,null,null,null,null,null,"9 8 1 5","Брой хранодни в студентски стол",null,null,null,null,null,null,""]
[168,null,null,null,null,null,null,null,null,"9 8 1 7","Болнични легла",null,null,null,null,null,null,""]
[169,null,null,null,null,null,null,null,null,"9 8 1 8","Обем радиопрограма /часове/",null,null,null,null,null,null,""]
[170,null,null,null,null,null,null,null,null,"9 8 1 9","Обем телевизионна програма /часове/",null,null,null,null,null,null,""]
[171,null,null,null,null,null,null,null,"ЗАБЕЛЕЖКА:",null,null,null,null,null,null,null,null,{"$f":"R146","v":0}]
[172,null,null,null,null,null,null,null," За натурални показатели, не влючени в този отчет, специфични за конкретна дейност се представят отделни справки, допълнително определени от Министерство на финансите.",null,null,null,null,null,null,null,null,{"$f":"R146","v":0}]
[173,null,null,null,null,null,null,null,null,null,null,null,null,null,null,null,null,{"$f":"R146","v":0}]
[null,null,null,null,null,null,null,null,null,null,null,null,null,null,null,null,null,{"$f":"(IF(L146<>0,$G$2,IF(Q146<>0,$G$2,\"\")))","v":""}]
[null,null,null,null,null,null,null,null,null,null,null,null,null,null,null,null,null,{"$f":"(IF(L147<>0,$G$2,IF(Q147<>0,$G$2,\"\")))","v":""}]
[null,null,null,null,null,null,null,null,null,null,null,null,null,null,null,null,null,{"$f":"(IF(L146<>0,$G$2,IF(Q146<>0,$G$2,\"\")))","v":""}]
[null,null,null,null,null,null,null,null,null,null,null,null,null,null,null,null,null,{"$f":"(IF(L146<>0,$G$2,IF(Q146<>0,$G$2,\"\")))","v":""}]
[null,null,null,null,null,null,null,null,null,null,null,null,null,null,null,null,null,{"$f":"(IF(L146<>0,$G$2,IF(Q146<>0,$G$2,\"\")))","v":""}]
[null,null,null,null,null,null,null,null,null,null,null,null,null,null,null,null,null,{"$f":"(IF(L146<>0,$G$2,IF(Q146<>0,$G$2,\"\")))","v":""}]
[null,null,null,null,null,null,null,null,null,null,null,null,null,null,null,null,null,{"$f":"(IF(L146<>0,$G$2,IF(Q146<>0,$G$2,\"\")))","v":""}]

{"sheet":"list","index":5,"n_rows":724,"n_cols":3,"rows_kept":724,"cut":false,"hidden":true,"merged":[]}
["Name:","SMETKA"]
[0,"ОТЧЕТНИ ДАННИ ПО ЕБК ЗА ИЗПЪЛНЕНИЕТО НА БЮДЖЕТА","                                  ОТЧЕТ ЗА КАСОВОТО ИЗПЪЛНЕНИЕ НА БЮДЖЕТА"]
[33,"ОТЧЕТНИ ДАННИ ПО ЕБК ЗА СМЕТКИТЕ ЗА ЧУЖДИ СРЕДСТВА","                   ОТЧЕТ ЗА КАСОВОТО ИЗПЪЛНЕНИЕ НА СМЕТКИТЕ ЗА ЧУЖДИ СРЕДСТВА"]
[42,"ОТЧЕТНИ ДАННИ ПО ЕБК ЗА СМЕТКИТЕ ЗА СРЕДСТВАТА ОТ ЕВРОПЕЙСКИЯ СЪЮЗ - РА","ОТЧЕТ ЗА КАСОВОТО ИЗПЪЛНЕНИЕ НА СМЕТКИТЕ ЗА СРЕДСТВАТА ОТ ЕВРОПЕЙСКИЯ СЪЮЗ - РА"]
[96,"ОТЧЕТНИ ДАННИ ПО ЕБК ЗА СМЕТКИТЕ ЗА СРЕДСТВАТА ОТ ЕВРОПЕЙСКИЯ СЪЮЗ - ДЕС","ОТЧЕТ ЗА КАСОВОТО ИЗПЪЛНЕНИЕ НА СМЕТКИТЕ ЗА СРЕДСТВАТА ОТ ЕВРОПЕЙСКИЯ СЪЮЗ - ДЕС"]
[97,"ОТЧЕТНИ ДАННИ ПО ЕБК ЗА СМЕТКИТЕ ЗА СРЕДСТВАТА ОТ ЕВРОПЕЙСКИЯ СЪЮЗ - ДМП","ОТЧЕТ ЗА КАСОВОТО ИЗПЪЛНЕНИЕ НА СМЕТКИТЕ ЗА СРЕДСТВАТА ОТ ЕВРОПЕЙСКИЯ СЪЮЗ - ДМП"]
[98,"ОТЧЕТНИ ДАННИ ПО ЕБК ЗА СМЕТКИТЕ ЗА СРЕДСТВАТА ОТ ЕВРОПЕЙСКИЯ СЪЮЗ - КСФ","ОТЧЕТ ЗА КАСОВОТО ИЗПЪЛНЕНИЕ НА СМЕТКИТЕ ЗА СРЕДСТВАТА ОТ ЕВРОПЕЙСКИЯ СЪЮЗ - КСФ"]
[]
[]
["Name:","\"EBK_DEIN\" и \"EBK_DEIN2\""]
[null,"ИЗБЕРЕТЕ ДЕЙНОСТ"]
[1101,"101 Централни държавни органи",1101]
[1103,"103 Централни държавни органи по образованието",1103]
[1104,"104 Централни държавни органи по здравеопазването",1104]
[1105,"105 Централни държавни органи по социалното осигуряването",1105]
[1106,"106 Централни държавни органи по регионалното развитие и благоустройство",1106]
[1107,"107 Централни държавни органи по културата и спорта",1107]
[1108,"108 Централни държавни органи по икономическите дейности и услуги",1108]
[1111,"111 Контролни органи",1111]
[1115,"115 Управление, контрол и регулиране на външните работи",1115]
[1116,"116 Посолства, консулства, представителства и мисии в чужбина",1116]
[1117,"117 Държавни и общински служби и дейности по изборите",1117]
[1121,"121 Областни администрации",1121]
[1122,"122 Общинска администрация",1122]
[1123,"123 Общински съвети ",1123]
[1125,"125 Членове на Европейския парламент от Република България",1125]
[1128,"128 Международни програми и споразумения, дарения и помощи от чужбина",1128]
[1139,"139 Други изпълнителни и законодателни органи",1139]
[1141,"141 Статистически институт,служби и дейности,социологически проучвания и анкети",1141]
[1142,"142 Общоикономическо и социално програмиране и прогнозиране",1142]
[1143,"143 Регистрация и контрол на чуждестранните инвестиции",1143]
[1144,"144 Служби и дейности за връзки с българите в чужбина",1144]
[1145,"145 Служби и дейности за подпомагане на бежанците",1145]
[1146,"146 Управление и администриране на получена чуждестранна помощ",1146]
[1147,"147 Управление на държавния резерв и военновременните запаси",1147]
[1148,"148 Управление на гражд.администрация и административнообслужване на населението",1148]
[1149,"149 Други общи служби",1149]
[1151,"151 Ликвидационна комисия за закрити бюджетни организации",1151]
[1158,"158 Международни програми и споразумения, дарения и помощи от чужбина",1158]
[1161,"161 Организация и управление на научните изследвания и дейности",1161]
[1162,"162 Научноизследователско дело",1162]
[1163,"163 Научноизследователски институти и центрове",1163]
[1168,"168 Международни програми и споразумения, дарения и помощи от чужбина",1168]
[1179,"179 Други дейности на науката",1179]
[2201,"201 Дейности по отбраната",2201]
[2205,"205 Участие на Република България в НАТО",2205]
[2206,"206 Мироопазващи мисии в чужбина",2206]
[2215,"215 Приложни научни изследвания в областта на отбраната",2215]
[2218,"218 Международни програми и споразумения, дарения и помощи от чужбина",2218]
[2219,"219 Други дейности по отбраната",2219]
[2221,"221 Полиция и вътрешен ред",2221]
[2222,"222 Национална служба за охрана",2222]
[2223,"223 Държавна агенция \"Разузнаване\"",2223]
[2224,"224 Противопожарна охрана",2224]
[2225,"225 Приложни научни изследвания в областта на вътрешния ред и сигурност",2225]
[2228,"228 Международни програми и споразумения, дарения и помощи от чужбина",2228]
[2239,"239 Други дейности по вътрешната сигурност",2239]
[2241,"241 Висш съдебен съвет",2241]
[2242,"242 Върховен административен съд",2242]
[2243,"243 Върховен касационен съд",2243]
[2244,"244 Прокуратура",2244]
[2245,"245 Национална следствена служба",2245]
[2246,"246 Съдилища",2246]
[2247,"247 Окръжни следствени служби",2247]
[2248,"248 Инспекторат към Висшия съдебен съвет",2248]
[2249,"249 Национален институт на правосъдието",2249]
[2258,"258 Международни програми и споразумения, дарения и помощи от чужбина",2258]
[2259,"259 Други дейности на съдебната власт",2259]
[2261,"261 Места за лишаване от свобода",2261]
[2268,"268 Международни програми и споразумения, дарения и помощи от чужбина",2268]
[2279,"279 Други дейности на администрацията на затворите",2279]
[2281,"281 Неотложна дейност по защита на населението и националното стопанство",2281]
[2282,"282 Отбранително-мобилизационна подготовка, поддържане на запаси и мощности",2282]
[2283,"283 Превантивна дейност за намаляване на вредните последствия от бедствия и аварии",2283]
[2284,"284 Ликвидиране на последици от стихийни бедствия и производствени аварии",2284]
[2285,"285 Доброволни формирования за защита при бедствия",2285]
[2288,"288 Международни програми и споразумения, дарения и помощи от чужбина",2288]
[2289,"289 Други дейности за защита на населението при стихийни бедствия и аварии",2289]
[3301,"301 Управление, контрол, регулиране и лицензиране на дейности по образованието",3301]
[3311,"311 Детски градини",3311]
[3312,"312 Специални групи в детски градини за деца със СОП",3312]
[3318,"318 Подготвителна група в училище",3318]
[3321,"321 Специални училища и центрове за специална образователна подкрепа",3321]
[3322,"322 Неспециализирани училища, без професионални гимназии",3322]
[3323,"323 Училища по културата и училища по изкуствата",3323]
[3324,"324 Спортни училища",3324]
[3325,"325 Български училища в чужбина",3325]
[3326,"326 Професионални гимназии и паралелки за професионална подготовка",3326]
[3327,"327 Училища в места за лишаване от свобода",3327]
[3332,"332 Общежития",3332]
[3333,"333 Ученически почивни лагери",3333]
[3334,"334 Повишаване на квалификацията",3334]
[3336,"336 Столове",3336]
[3337,"337 Център за подкрепа за личностно развитие",3337]
[3338,"338 Ресурсно подпомагане",3338]
[3341,"341 Академии, университети и висши училища",3341]
[3349,"349 Приложни научни изследвания в областта на образованието",3349]
[3359,"359 Други дейности за децата",3359]
[3369,"369 Други дейности за младежта",3369]
[3388,"388 Международни програми и споразумения, дарения и помощи от чужбина",3388]
[3389,"389 Други дейности по образованието",3389]
[4401,"401 Управление, контрол и регулиране на дейности по здравеопазването",4401]
[4412,"412 Многопрофилни болници за активно лечение ",4412]
[4415,"415 Домове за медико-социални грижи ",4415]
[4418,"418 Психиатрични болници",4418]
[4429,"429 Центрове за спешна медицинска помощ",4429]
[4431,"431 Детски ясли, детски кухни и яслени групи в детска градина",4431]
[4433,"433 Рехабилитация",4433]
[4436,"436 Национални центрове",4436]
[4437,"437 Здравен кабинет в детски градини и училища",4437]
[4450,"450 Преобразувани лечебни заведения",4450]
[4451,"451 Плащания за първична извънболнична медицинска помощ",4451]
[4452,"452 Плащания за специализирана извънболнична медицинска помощ",4452]
[4453,"453 Плащания за дентална помощ",4453]
[4454,"454 Плащания за медико-диагностична дейност",4454]
[4455,"455 Плащания за лекарствени продукти, медицински изделия и диетични храни за специални медицински цели за домашно лечение на територията на страната",4455]
[4456,"456 Плащания за болнична медицинска помощ",4456]
[4457,"457 Плащания за медицински изделия прилагани в болничната медицинска помощ",4457]
[4458,"458 Плащания за лекарствени продукти при злокачествени заболявания в условия на болнична медицинска помощ",4458]
[4459,"459 Други здравноосигурителни плащания",4459]
[4465,"465 Приложни научни изследвания в областта на здравеопазването",4465]
[4467,"467 Национални програми",4467]
[4468,"468 Международни програми и споразумения, дарения и помощи от чужбина",4468]
[4469,"469 Други дейности по здравеопазването",4469]
[5501,"501 Пенсии",5501]
[5511,"511 Помощи по Закона за семейните помощи за деца",5511]
[5512,"512 Помощи по Закона за социално подпомагане",5512]
[5513,"513 Помощи по Закона за интеграция на хората с увреждания",5513]
[5514,"514 Помощи за диагностика и лечение на социално слаби лица",5514]
[5515,"515 Помощи по Закона за закрила на детето",5515]
[5516,"516 Помощи по Закона за ветераните от войните",5516]
[5517,"517 Помощи по Закона за военноинвалидите и военнопострадалите",5517]
[5518,"518 Социални помощи и обезщетения по международни програми, помощи и дарения",5518]
[5519,"519 Други помощи и обезщетения",5519]
[5521,"521 Служби по социалното осигуряване (ДОО и др.)",5521]
[5522,"522 Дирекции за социално подпомагане",5522]
[5524,"524 Домашен социален патронаж",5524]
[5525,"525 Клубове на пенсионера, инвалида и др.",5525]
[5526,"526 Центрове за обществена подкрепа",5526]
[5527,"527 Звена \"Майка и бебе\"",5527]
[5528,"528 Център за работа с деца на улицата",5528]
[5529,"529 Кризисен център",5529]
[5530,"530 Център за настаняване от семеен тип",5530]
[5531,"531 Дейности за предотвратяване на трудови злополуки и професионални болести",5531]
[5532,"532 Програми за временна заетост",5532]
[5533,"533 Други програми и дейности за осигуряване на заетост",5533]
[5534,"534 Наблюдавани жилища",5534]
[5535,"535 Преходни жилища",5535]
[5538,"538 Програми за закрила на детето",5538]
[5540,"540 Домове за стари хора",5540]
[5541,"541 Домове за възрастни хора с увреждания",5541]
[5545,"545 Социален учебно-професионален център",5545]
[5546,"546 Домове за деца",5546]
[5547,"547 Център за временно настаняване",5547]
[5548,"548 Дневни центрове за стари хора",5548]
[5550,"550 Центрове за социална рехабилитация и интеграция",5550]
[5551,"551 Дневни центрове за лица с увреждания",5551]
[5553,"553 Приюти",5553]
[5554,"554 Защитени жилища",5554]
[5556,"556 Приложни научни изследвания в областта на социалното осигуряване и подпомагане",5556]
[5561,"561 Социален асистент",5561]
[5562,"562 Личен асистент",5562]
[5588,"588 Международни програми и споразумения, дарения и помощи от чужбина",5588]
[5589,"589 Други служби и дейности по социалното осигуряване, подпомагане и заетостта",5589]
[6601,"601 Управление, контрол и регулиране на дейностите по жил. строителство и териториално развитие",6601]
[6602,"602 Служби по кадастър, геодезия и регистрация на недвижимата собственост",6602]
[6603,"603 Водоснабдяване и канализация",6603]
[6604,"604 Осветление на улици и площади",6604]
[6605,"605 Бани и перални",6605]
[6606,"606 Изграждане, ремонт и поддържане на уличната мрежа",6606]
[6618,"618 Международни програми и споразумения, дарения и помощи от чужбина",6618]
[6619,"619 Други дейности по жилищното строителство, благоустройството и регионалното развитие",6619]
[6621,"621 Управление, контрол и регулиране на дейностите по опазване на околната среда",6621]
[6622,"622 Озеленяване",6622]
[6623,"623 Чистота",6623]
[6624,"624 Геозащита",6624]
[6625,"625 Приложни и научни изследвания  в областта на опазване на околната среда",6625]
[6626,"626 Пречистване на отпадъчните води от населените места",6626]
[6627,"627 Управление на дейностите по отпадъците",6627]
[6628,"628 Международни програми и споразумения, дарения и помощи от чужбина",6628]
[6629,"629 Други дейности по опазване на околната среда",6629]
[7701,"701 Дейности по почивното дело и социалния отдих",7701]
[7708,"708 Международни програми и споразумения, дарения и помощи от чужбина",7708]
[7711,"711 Управление, контрол и регулиране на дейностите по спорта",7711]
[7712,"712 Детски и специализирани спортни школи",7712]
[7713,"713 Спорт за всички",7713]
[7714,"714 Спортни бази за спорт за всички",7714]
[7718,"718 Международни програми и споразумения, дарения и помощи от чужбина",7718]
[7719,"719 Други дейности по спорта и физическата култура",7719]
[7731,"731 Управление, контрол и регулиране на дейностите по културата",7731]
[7732,"732 Културни дейности",7732]
[7733,"733 Български културни институти в чужбина",7733]
[7735,"735 Театри",7735]
[7736,"736 Оперно - филхармонични дружества и опери",7736]
[7737,"737 Оркестри и ансамбли",7737]
[7738,"738 Читалища",7738]
[7739,"739 Музеи, худ. галерии, паметници на културата и етногр. комплекси с национален и регионален харакер",7739]
[7740,"740 Музеи, художествени галерии, паметници на културата и етнографски комплекси с местен харакер",7740]
[7741,"741 Радиотранслационни възли",7741]
[7742,"742 Радио",7742]
[7743,"743 Телевизия",7743]
[7744,"744 Филмотечно и фонотечно дело",7744]
[7745,"745 Обредни домове и зали",7745]
[7746,"746 Зоопаркове",7746]
[7747,"747 Държавен архив и териториални архиви",7747]
[7748,"748 Подпомагане развитието на културата",7748]
[7751,"751 Библиотеки с национален и регионален характер",7751]
[7752,"752 Градски библиотеки",7752]
[7755,"755 Приложни и научни изследвания  в областта на опазване на културата",7755]
[7758,"758 Международни програми и споразумения, дарения и помощи от чужбина",7758]
[7759,"759 Други дейности по културата",7759]
[7761,"761 Контрол и регулиране на дейностите по религиозно дело",7761]
[7762,"762 Субсидии и други разходи за дейности по религиозно дело",7762]
[7768,"768 Международни програми и споразумения, дарения и помощи от чужбина",7768]
[8801,"801 Управление, контрол и регулиране на минното дело и дейностите по енергетиката",8801]
[8802,"802 Изследвания, измервания и анализи на горивата и енергията",8802]
[8803,"803 Безопасност и съхраняване на радиоактивни отпадъци",8803]
[8804,"804 Извеждане на ядрени съоръжения от експлоатация",8804]
[8805,"805 Приложни и научни изследвания  в областта на минното дело, горивата и енергията",8805]
[8807,"807 Международни програми и споразумения, дарения и помощи от чужбина",8807]
[8808,"808 Други дейности по минното дело",8808]
[8809,"809 Други дейности по горивата и енергията",8809]
[8811,"811 Управление, контрол и регулиране на дейностите по растениевъдство",8811]
[8813,"813 Областни земеделски служби",8813]
[8814,"814 Управление, контрол и регулиране на дейностите по горското стопанство",8814]
[8815,"815 Управление, контрол и регулиране на дейностите по лова и риболова",8815]
[8816,"816 Машинно-изпитателни центрове и контролно технически инспекции",8816]
[8817,"817 Ветеринарно-медицински служби",8817]
[8821,"821 Други служби по поземлената реформа",8821]
[8824,"824 Национални доплащания и съфинансиране към директните плащания за земеделски производители",8824]
[8825,"825 Приложни и научни изследвания  в областта на земеделието и горите",8825]
[8826,"826 Рибарство",8826]
[8827,"827 Развитие на селските райони",8827]
[8828,"828 Международни програми и споразумения, дарения и помощи от чужбина",8828]
[8829,"829 Други дейности по селско и горско стопанство, лов и риболов",8829]
[8831,"831 Управление,контрол и регулиране на дейностите по транспорта и пътищата",8831]
[8832,"832 Служби и дейности по поддържане, ремонт и изграждане на пътищата",8832]
[8833,"833 Проучвания, измервания и анализи на пътната мрежа",8833]
[8834,"834 Дейности по автомобилния транспорт",8834]
[8835,"835 Дейности по железопътния транспорт",8835]
[8836,"836 Дейности по въздушния транспорт",8836]
[8837,"837 Дейности по водния транспорт",8837]
[8838,"838 Управление, контрол и регулиране на дейностите по комуникациите",8838]
[8839,"839 Пощи и далекосъобщения",8839]
[8845,"845 Приложни и научни изследвания  в областта на транспорта и съобщенията",8845]
[8848,"848 Международни програми и споразумения, дарения и помощи от чужбина",8848]
[8849,"849 Други дейности по транспорта,пътищата,пощите и далекосъобщенията",8849]
[8851,"851 Управление, контрол и регулиране на дейностите по промишлеността",8851]
[8852,"852 Управление, контрол и регулиране на дейностите по строителството",8852]
[8853,"853 Международни програми и споразумения, дарения и помощи от чужбина",8853]
[8855,"855 Приложни и научни изследвания  в областта на промишлеността и строителството",8855]
[8858,"858 Други дейности по промишлеността",8858]
[8859,"859 Други дейности по строителството",8859]
[8861,"861 Управление, контрол и регулиране на дейностите по туризма",8861]
[8862,"862 Туристически бази",8862]
[8863,"863 Специализирани спортно-туристически школи",8863]
[8864,"864 Международни програми и споразумения, дарения и помощи от чужбина",8864]
[8865,"865 Други дейности по туризма",8865]
[8866,"866 Общински пазари и тържища",8866]
[8867,"867 Реклама и маркетинг",8867]
[8868,"868 Информационно-изчислителни центрове",8868]
[8869,"869 Издателска дейност и печатни бази",8869]
[8871,"871 Помощни стопанства, столове и други спомагателни дейности",8871]
[8872,"872 Дворци, резиденции и стопанства",8872]
[8873,"873 Оздравителни програми за предприятия в изолация и ликвидация",8873]
[8875,"875 Органи и дейности по приватизация",8875]
[8876,"876 Органи по стандартизация и метрология",8876]
[8877,"877 Патентно дело",8877]
[8878,"878 Приюти за безстопанствени животни",8878]
[8885,"885 Приложни и научни изследвания  в други дейности по икономиката",8885]
[8888,"888 Структурни реформи",8888]
[8897,"897 Международни програми и споразумения, дарения и помощи от чужбина",8897]
[8898,"898 Други дейности по икономиката",8898]
[9910,"910 Разходи за лихви",9910]
[9997,"997 Други разходи некласифицирани по другите функции",9997]
[9998,"998 Резерв ",9998]
[]
[]
[]
[]
["Name:","\"OP_LIST\"  и \"OP_LIST2\""]
["ИЗБЕРЕТЕ ОПЕРАТИВНА ПРОГРАМА "]
["ПЕРИОД 2014-2020"]
["КФ - ОП \"Транспорт и транспортна инфраструктура\"","98111"]
["КФ - ОП \"Околна среда\"","98112"]
["ЕФРР - ОП \"Транспорт и транспортна инфраструктура\"","98211"]
["ЕФРР - ОП \"Региони в растеж\"","98212"]
["ЕФРР - ОП \"Наука и образование за интелигентен растеж\"","98213"]
["ЕФРР - ОП \"Иновации и конкурентоспособност \"","98214"]
["ЕФРР - ОП \"Околна среда\"","98215"]
["ЕФРР - ОП \"Инициатива за малки и средни предприятия\"","98224"]
["ЕСФ - ОП \"Развитие на човешките ресурси\"","98311"]
["ЕСФ - ОП \"Добро управление\"","98312"]
["ЕСФ - ОП \"Наука и образование за интелигентен растеж\"","98313"]
["ОП \"Фонд за европейско подпомагане на най-нуждаещите се лица\" ",98315]
["ПЕРИОД 2007-2013"]
["КФ - ОП \"ТРАНСПОРТ\"","98101"]
["КФ - ОП \"ОКОЛНА СРЕДА\"","98102"]
["ЕФРР - ОП \"ТРАНСПОРТ\"","98201"]
["ЕФРР - ОП \"РЕГИОНАЛНО РАЗВИТИЕ\"","98202"]
["ЕФРР - ОП \"КОНКУРЕНТНОСПОСОБНОСТ\"","98204"]
["ЕФРР - ОП \"ОКОЛНА СРЕДА\"","98205"]
["ЕФРР - ОП \"ТЕХНИЧЕСКА ПОМОЩ\"","98210"]
["ЕСФ - ОП \"ЧОВЕШКИ РЕСУРСИ\"","98301"]
["ЕСФ - ОП \"АДМИНИСТРАТИВЕН КАПАЦИТЕТ\"","98302"]
[]
[]
["Name:","\"PRBK\""]
[null,"А ) Кодове на бюджетни организации от подсектор \"централно управление\" (подсектор \"ЦУ\")"]
[null,"    А.1) Кодове на централния бюджет и разпоредителите с бюджет по държавния бюджет"]
["0100","Народно събрание"]
["0200","Администрация на президентството"]
["0300","Министерски съвет "]
["0400","Конституционен съд"]
["0500","Сметна палата"]
["0600","Висш съдебен съвет"]
["1000","Министерство на финансите"]
["1100","Министерство на външните работи"]
["1200","Министерство на отбраната"]
["1300","Министерство на вътрешните работи"]
["1400","Министерство на правосъдието"]
["1500","Министерство на труда и социалната политика"]
["1600","Министерство на здравеопазването"]
["1700","Министерство на образованието и науката "]
["1800","Министерство на културата"]
["1900","Министерство на околната среда и водите"]
["2000","Министерство на икономиката"]
["2100","Министерство на регионалното развитие и благоустройство"]
["2200","Министерство на земеделието и храните"]
["2300","Министерство на транспорта, информационните технологии и съобщенията"]
["2400","Министерство на енергетиката"]
["2500","Министерство на младежта и спорта"]
["3000","Държавна агенция  \"Национална сигурност\""]
["3200","Комисия за разкриване на документите и за обявяване на принадлежност на български граждани към Държавна сигурност и разузнавателните служби на Българската народна армия"]
["3300","Комисия за защита от дискриминация"]
["3400","Комисия за защита на личните данни"]
["3500","Държавна агенция “Електронно управление”"]
["3700","Комисия за отнемане на незаконно придобито имущество"]
["3800","Национална служба за охрана"]
["3900","Държавна агенция \"Разузнаване\""]
["4000","Омбудсман"]
["4100","Национален статистически институт"]
["4200","Комисия за защита на конкуренцията"]
["4300","Комисия за регулиране на съобщенията"]
["4400","Съвет за електронни медии"]
["4500","Комисия за енергийно и водно регулиране"]
["4600","Агенция за ядрено регулиране"]
["4700","Комисия за финансов надзор"]
["4800","Държавна комисия по сигурността на информацията"]
["5300","Държавна агенция \"Държавен резерв и военновременни запаси\""]
["6100","Българска национална телевизия"]
["6200","Българско национално радио"]
["6300","Българска телеграфна агенция"]
["7100","Министерство на туризма"]
["8100","Комисия за предотвратяване и установяване на конфликт на интереси"]
["8200","Централна избирателна комисия"]
["8300","Комисия за публичен надзор над регистрираните одитори"]
["8400","Държавен фонд \"Земеделие\""]
["8500","Национално бюро за контрол на специалните разузнавателни средства"]
["8600","Държавна агенция „Технически операции”"]
["9900","Централен бюджет"]
[null,"     А.2) Кодове на други бюджетни организации от подсектор \"централно управление\""]
[null,"    А.2.1) кодове на държавните висши училища и Българската академия на науките"]
[null,"        А.2.1а) кодове на ДВУ и БАН, финансирани от Министерството на образованието и науката"]
["1701","Софийски университет \"Климент Охридски\" - София"]
["1702","Пловдивски университет \"Паисий Хилендарски\" - Пловдив"]
["1703","Университет \"Проф. д-р Асен Златаров\" - Бургас"]
["1704","Великотърновки университет \"Св. св . Кирил и Методий\" - В. Търново"]
["1705","Югозападен университет \"Неофит Рилски\" - Благоевград"]
["1706","Шуменски университет \"Епископ Константин Преславски\" - Шумен"]
["1711","Русенски университет \"Ангел Кънчев\" - Русе"]
["1712","Технически университет - София"]
["1713","Технически университет - София - филиал Пловдив"]
["1714","Технически университет - Варна"]
["1715","Технически университет - Габрово"]
["1716","Университет по архитектура, строителство и геодезия - София"]
["1717","Минно-геоложки университет \"Св. Ив. Рилски\" - София"]
["1718","Лесотехнически университет - София"]
["1719","Химико-технологичен и металургичен университет - София",""]
["1721","Университет по хранителни технологии - Пловдив",""]
["1722","Аграрен университет - Пловдив",""]
["1723","Тракийски университет - Стара Загора",""]
["1731","Медицински университет - София",""]
["1732","Медицински университет - Пловдив",""]
["1733","Медицински университет \"Проф. д-р Параскев Иванов Стоянов\" - Варна",""]
["1734","Тракийски университет - Стара Загора - медицински факултет",""]
["1735","Медицински университет - Плевен",""]
["1741","Университет за национално и световно стопанство - София",""]
["1742","Икономически университет - Варна",""]
["1743","Стопанска академия \"Димитър Ценов\" - Свищов",""]
["1751","Държавна музикална академия \"Панчо Владигеров\" - София",""]
["1752","Национална академия за театрално и филмово изкуство \"Кр. Сарафов\" - София",""]
["1753","Национална художествена академия - София",""]
["1754","Академия за музикално, танцово и изобразително изкуство - Пловдив",""]
["1759","Национална спортна академия \"Васил Левски\" - София",""]
["1767","Висше строително училище \"Любен Каравелов\" - София",""]
["1768","Висше транспортно училище \"Тодор Каблешков\" - София",""]
["1771","Университет по библиотекознание и информационни технологии - София ",""]
["1772","Висше училище по телекомуникации и пощи - София",""]
["1790","Българска академия на науките - София",""]
["","        А.2.1.б) кодове на ДВУ и ВА \"Г. С. Раковски\", финансирани от Министерството на отбраната",""]
["1281","Военна академия \"Г. С. Раковски\" - София",""]
["1282","Национален военен университет \"Васил Левски\" - Велико Търново",""]
["1283","Висше военноморско училище \"Н. Й. Вапцаров\" - Варна",""]
["","    А.2.2) кодове на други разпоредители с бюджет по чл. 13, ал. 3 от ЗПФ",""]
["6100","Българска национална телевизия",""]
["6200","Българско национално радио",""]
["6300","Българска телеграфна агенция",""]
["","    А.2.3) кодове на разпоредители с бюджет по чл. 13, ал. 4 от ЗПФ",""]
["1313","Държавно предприятие „Център за предоставяне на услуги”",""]
["3535","Държавно предприятие „Единен системен оператор“ ",""]
["1950","Предприятие за управление на дейностите по опазване на околната среда (ПУДООС)  - чл. 60 от ЗООС",""]
[null,null,""]
["2480","Фонд \"Сигурност на електроенергийната система\"",""]
["9817","Национален фонд към Министерството на финансите",""]
["2220","Държавен фонд \"Земеделие\" - Разплащателна агенция",""]
[null,null,""]
["5500","Национален осигурителен институт - Държавно обществено осигуряване",""]
["5591","Национален осигурителен институт - Учителски пенсионен фонд",""]
["5592","Национален осигрителен инститт - фонд \"Гарантирани вземания на работници и служители\"",""]
["5600","Национална здравноосигурителна каса",""]
["5101","Банско",""]
["5102","Белица",""]
["5103","Благоевград",""]
["5104","Гоце Делчев",""]
["5105","Гърмен",""]
["5106","Кресна",""]
["5107","Петрич",""]
["5108","Разлог",""]
["5109","Сандански",""]
["5110","Сатовча",""]
["5111","Симитли",""]
["5112","Струмяни",""]
["5113","Хаджидимово",""]
["5114","Якоруда",""]
["5201","Айтос",""]
["5202","Бургас ",""]
["5203","Камено",""]
["5204","Карнобат",""]
["5205","Малко Търново",""]
["5206","Несебър",""]
["5207","Поморие",""]
["5208","Приморско",""]
["5209","Руен",""]
["5210","Созопол",""]
["5211","Средец",""]
["5212","Сунгурларе",""]
["5213","Царево",""]
["5301","Аврен",""]
["5302","Аксаково",""]
["5303","Белослав",""]
["5304","Бяла",""]
["5305","Варна",""]
["5306","Ветрино",""]
["5307","Вълчидол",""]
["5308","Девня",""]
["5309","Долни Чифлик",""]
["5310","Дългопол",""]
["5311","Провадия",""]
["5312","Суворово",""]
["5401","Велико Търново",""]
["5402","Горна Оряховица",""]
["5403","Елена",""]
["5404","Златарица",""]
["5405","Лясковец",""]
["5406","Павликени",""]
["5407","Полски Тръмбеш",""]
["5408","Свищов",""]
["5409","Стражица",""]
["5410","Сухиндол",""]
["5501","Белоградчик",""]
["5502","Бойница",""]
["5503","Брегово",""]
["5504","Видин",""]
["5505","Грамада",""]
["5506","Димово",""]
["5507","Кула",""]
["5508","Макреш",""]
["5509","Ново село",""]
["5510","Ружинци",""]
["5511","Чупрене",""]
["5601","Борован",""]
["5602","Бяла Слатина",""]
["5603","Враца",""]
["5605","Козлодуй",""]
["5606","Криводол",""]
["5607","Мездра",""]
["5608","Мизия",""]
["5609","Оряхово",""]
["5610","Роман",""]
["5611","Хайредин",""]
["5701","Габрово",""]
["5702","Дряново",""]
["5703","Севлиево",""]
["5704","Трявна",""]
["5801","Балчик",""]
["5802","Генерал Тошево",""]
["5803","Добрич",""]
["5804","Добричка",""]
["5805","Каварна",""]
["5806","Крушари",""]
["5807","Тервел",""]
["5808","Шабла",""]
["5901","Ардино",""]
["5902","Джебел",""]
["5903","Кирково",""]
["5904","Крумовград",""]
["5905","Кърджали",""]
["5906","Момчилград",""]
["5907","Черноочене",""]
["6001","Бобовдол",""]
["6002","Бобошево",""]
["6003","Дупница",""]
["6004","Кочериново",""]
["6005","Кюстендил",""]
["6006","Невестино",""]
["6007","Рила",""]
["6008","Сапарева баня",""]
["6009","Трекляно",""]
["6101","Априлци",""]
["6102","Летница",""]
["6103","Ловеч",""]
["6104","Луковит",""]
["6105","Тетевен",""]
["6106","Троян",""]
["6107","Угърчин",""]
["6108","Ябланица",""]
["6201","Берковица",""]
["6202","Бойчиновци",""]
["6203","Брусарци",""]
["6204","Вълчедръм",""]
["6205","Вършец",""]
["6206","Георги Дамяново",""]
["6207","Лом",""]
["6208","Медковец",""]
["6209","Монтана",""]
["6210","Чипровци",""]
["6211","Якимово",""]
["6301","Батак",""]
["6302","Белово",""]
["6303","Брацигово",""]
["6304","Велинград",""]
["6305","Лесичово",""]
["6306","Пазарджик",""]
["6307","Панагюрище",""]
["6308","Пещера",""]
["6309","Ракитово",""]
["6310","Септември",""]
["6311","Стрелча",""]
["6312","Сърница",""]
["6401","Брезник",""]
["6402","Земен",""]
["6403","Ковачевци",""]
["6404","Перник",""]
["6405","Радомир",""]
["6406","Трън",""]
["6501","Белене",""]
["6502","Гулянци",""]
["6503","Долна Митрополия",""]
["6504","Долни Дъбник",""]
["6505","Искър",""]
["6506","Левски",""]
["6507","Никопол",""]
["6508","Плевен",""]
["6509","Пордим",""]
["6510","Червен бряг",""]
["6511","Кнежа",""]
["6601","Асеновград",""]
["6602","Брезово",""]
["6603","Калояново",""]
["6604","Карлово",""]
["6605","Кричим",""]
["6606","Лъки",""]
["6607","Марица",""]
["6608","Перущица",""]
["6609","Пловдив",""]
["6610","Първомай",""]
["6611","Раковски",""]
["6612","Родопи",""]
["6613","Садово",""]
["6614","Стамболийски",""]
["6615","Съединение",""]
["6616","Хисаря",""]
["6617","Куклен",""]
["6618","Сопот",""]
["6701","Завет",""]
["6702","Исперих",""]
["6703","Кубрат",""]
["6704","Лозница",""]
["6705","Разград",""]
["6706","Самуил",""]
["6707","Цар Калоян",""]
["6801","Борово",""]
["6802","Бяла",""]
["6803","Ветово",""]
["6804","Две могили",""]
["6805","Иваново",""]
["6806","Русе",""]
["6807","Сливо поле",""]
["6808","Ценово",""]
["6901","Алфатар",""]
["6902","Главиница",""]
["6903","Дулово",""]
["6904","Кайнарджа",""]
["6905","Силистра",""]
["6906","Ситово",""]
["6907","Тутракан",""]
["7001","Котел",""]
["7002","Нова Загора",""]
["7003","Сливен",""]
["7004","Твърдица",""]
["7101","Баните",""]
["7102","Борино",""]
["7103","Девин",""]
["7104","Доспат",""]
["7105","Златоград",""]
["7106","Мадан",""]
["7107","Неделино",""]
["7108","Рудозем",""]
["7109","Смолян",""]
["7110","Чепеларе",""]
["7201","Район Банкя",""]
["7202","Район Витоша",""]
["7203","Район Възраждане ",""]
["7204","Район Връбница",""]
["7205","Район Илинден",""]
["7206","Район Искър",""]
["7207","Район Изгрев",""]
["7208","Район Красна Поляна",""]
["7209","Район Красно село",""]
["7210","Район Кремиковци",""]
["7211","Район Лозенец",""]
["7212","Район Люлин",""]
["7213","Район Младост",""]
["7214","Район Надежда",""]
["7215","Район Нови Искър",""]
["7216","Район Оборище",""]
["7217","Район Овча Купел",""]
["7218","Район Панчарево",""]
["7219","Район Подуяне",""]
["7220","Район Сердика",""]
["7221","Район Слатина",""]
["7222","Район Средец",""]
["7223","Район Студентска",""]
["7224","Район Триадица",""]
["7225","Столична община",""]
["7301","Антон",""]
["7302","Божурище",""]
["7303","Ботевград",""]
["7304","Годеч",""]
["7305","Горна Малина",""]
["7306","Долна Баня",""]
["7307","Драгоман ",""]
["7308","Елин Пелин",""]
["7309","Етрополе",""]
["7310","Златица",""]
["7311","Ихтиман",""]
["7312","Копривщица",""]
["7313","Костенец",""]
["7314","Костинброд",""]
["7315","Мирково",""]
["7316","Пирдоп",""]
["7317","Правец",""]
["7318","Самоков",""]
["7319","Своге",""]
["7320","Сливница",""]
["7321","Чавдар",""]
["7322","Челопеч",""]
["7401","Братя Даскалови",""]
["7402","Гурково",""]
["7403","Гълъбово",""]
["7404","Казанлък",""]
["7405","Мъглиж",""]
["7406","Николаево",""]
["7407","Опан",""]
["7408","Павел баня",""]
["7409","Раднево",""]
["7410","Стара Загора",""]
["7411","Чирпан",""]
["7501","Антоново",""]
["7502","Омуртаг",""]
["7503","Опака",""]
["7504","Попово",""]
["7505","Търговище",""]
["7601","Димитровград",""]
["7602","Ивайловград",""]
["7603","Любимец",""]
["7604","Маджарово",""]
["7605","Минерални Бани",""]
["7606","Свиленград",""]
["7607","Симеоновград",""]
["7608","Стамболово",""]
["7609","Тополовград",""]
["7610","Харманли",""]
["7611","Хасково",""]
["7701","Велики Преслав",""]
["7702","Венец",""]
["7703","Върбица",""]
["7704","Каолиново",""]
["7705","Каспичан",""]
["7706","Никола Козлево",""]
["7707","Нови пазар",""]
["7708","Смядово",""]
["7709","Хитрино",""]
["7710","Шумен",""]
["7801","Болярово",""]
["7802","Елхово",""]
["7803","Стралджа",""]
["7804","Тунджа",""]
["7805","Ямбол",""]
[]
["Name:","Date","Name:"]
[null,"2017-01-31","януари"]
[null,"2017-02-28","февруари"]
[null,"2017-03-31","март"]
[null,"2017-04-30","април"]
[null,"2017-05-31","май"]
[null,"2017-06-30","юни"]
[null,"2017-07-31","юли"]
[null,"2017-08-31","август"]
[null,"2017-09-30","септември"]
[null,"2017-10-31","октомври"]
[null,"2017-11-30","ноември"]
[null,"2017-12-31","декември"]